Workbook

Sheet Contents
C6: Zero Emission Energy for Transport: | D6: Regional Demand Forecasts for Hydrogen - Excel Tool
C13: Tab | D13: Description
B14: Key Assumptions | C14: Key Assumptions > | D14: Section Tab containing overview of the policy assumptions and scenario framework.
C15: Transport Demand Forecasts | D15: Description of the key assumptions for transport demand (to determine number of journeys, length and frequecy) and other relevant information, by mode.
C16: Technology Transition Scenarios | D16: Description of the key assumptions for each of the three technology transition scenarios, by mode.
C17: Energy Demand Analysis | D17: Description of the key assumptions for energy demand calculations, by mode.
B18: Result Tools | C18: Results Tools > | D18: Section Tab containing ability to select different regions for viewing
C19: Total Energy Demand | D19: Total hydrogen demand forecasts according to each technology scenario and region by year (with scenario viewing and updating tool).
C20: Regional Comparison | D20: Total hydrogen demand forecasts according to each technology scenario and region by year
C21: Scenario Dashboard | D21: Total hydrogen demand forecasts for each technology transition scenario explorer by year, stacked by mode (Road, Rail, Maritime and Aviation).
C22: Energy Demand by Mode | D22: Total hydrogen forecasts for each technology transition scenario explorer by year, stacked by mode (Road, Rail, Maritime and Aviation) and table of sub-mode breakdown (with scenario viewing and updating tool).
B24: Energy Demand Tables | C24: Energy Demand Tables > | D24: Section Tab
C25: Full Results | D25: Tables of the total electricity and hydrogen demand by year, mode and vehicle, vessel, rolling stock and aircraft categories.
C28: Notes: | D28: Clicking on Transport Scotland logo will return user to the contents page.
D29: The results in this dataset are driven by separate models compiled by mode which form the data and calculations behind the results.
D30: Hydrogen includes all energy demand for this source across modes, vehicle, vessel, rolling stock or aircraft type (hydrogen, fuel cell, included within ammonia etc).
C32: Copyright Notice: | D32: The material in this excel spreadsheet has been prepared by Jacobs, copyright 2021 Jacobs Engineering Group Inc. All rights reserved.
D33: This excel spreadsheet is protected by U.S. and International Copyright Laws. Reproduction and resdistribution without written permission is prohibited.
D34: Jacobs, the Jacobs logo, and all other Jacobs trademarks are the property of Jacobs Engineering Group Inc.
D35: Jacobs is a trademark of Jacobs Engineering Group Inc.

Sheet Key Assumptions >
C3: Key Assumptions: Overview and Section Tab >
B8: Overarching Energy Demand Forecast Parameters
B9: Assumptions common to all scenarios | C9: While scenarios are consistent across all transport modes, the assumptions for high, medium and low transition to hydrogen (or fuel-cell) vary. This is because the consensus of technological readiness and suitability of different energy sources varies both across and even within each mode (e.g. shipping versus ferries). Where applicable, Policy Scenario 3 is applied to guide Transport Demand.
B10: Alignment to Scottish Government Targets and Policy Commitments | C10: GHG targets: All forecasts align to 100% emissions reduction relative to 1990 by 2045. Road: 20% reduction in distance travelled by car by 2030; phase out of new petrol and diesel cars and vans by 2030 and heavy vehicles by 2035; majority of public service buses zero emission by 2023 Rail: Passenger rail decarbonisation by 2035; and UK commitment to Net Zero emission rail network by 2050. Aviation: Decarbonisation of intra-Scotland scheduled flights by 2040. Maritime: 2032 low emission solutions at Scottish Ports, proportion of low emission Scottish Ferries 30% by 2032, IMO and UK commitment for annual emissions from international shipping reduced by 50% by 2050.
B13: Technology Transition Scenario Framework
B14: Three scenarios have been adopted as suggested by Transport Scotland to enable flexibility, they build on those developed for future transport demand, and whole system energy modelling. They are grounded in plans/expectations for relevant technologies being rolled-out at scale:
B15: A. Low transition to hydrogen (Low)
B16: B. Medium transition to hydrogen (Medium)
B17: C. High transition to hydrogen (High)
B19: Regions in Model
B20: Three regions have been modelled as suggested by Transport Scotland to focus on contrasting regions for hydrogen demand
B21: Dumfries & Galloway
B22: Fife
B23: Highlands

Sheet Transport Demand
C3: Key Assumptions: Transport Demand
B8: Road Demand
C9: Cars | D9: Vans/LGV | E9: Coaches & Scheduled Buses | F9: HGV
B10: Vehicle specific assumptions | C10: As per Transport Model for Scotland (TMfS:18 STPR2 Low Growth Do Minimum) for trunk and principal roads. Department for Transport Statistics for 2019 have been used to estimate the non modelled demand on minor roads not represented in TMfS. Car demand on minor roads is assumed to fall to 80% of the 2019 demand by 2030. | D10: As per Transport Model for Scotland (TMfS:18 STPR2 Low Growth Do Minimum) for trunk and principal roads. Department for Transport Statistics for 2019 have been used to estimate the non modelled demand on minor roads not represented in TMfS. LGV demand on minor roads is assumed to be unchanged through to 2045. | E10: Fleet data was compiled from a variety of sources to identify the numbers of vehicles in individual fleets of buses and coaches. Numbers of buses identified correlated closely with the regional elements of the national TMfS18 model and additional local authority data. Numbers of coaches in the regions studied were similar to or greater than the numbers derived by scaling the national coach model by the same proportion as the buses. Total distance travelled by buses is assumed to remain constant through to 2045 | F10: As per Transport Model for Scotland (TMfS:18 STPR2 Low Growth Do Minimum). No minor road adjustment required.
B11: All vehicles | C11: As agreed with Transport Scotland, the TMfS:18 model was utilised to estimate demand for road transport, which assumes: Reduce Private Demand and increased public transport demand under the Low Scenario as it reflects the current policy ambitions of the Scottish Government and is consistent with STPR2 and other recent modelling undertaken on behalf of the Scottish Government by external consultants.
B15: Rail Demand
B16: All Scenarios | C16: Year | D16: Service Introductions | F16: Rolling Stock Notes
C17: 2028 | D17: Inverness to Wick / Thurso (Hydrogen in all Scenarios) | F17: Class 158 units withdrawn
C18: 2029 | D18: Inverness to Kyle of Lochalsh (Hydrogen in all Scenarios) | F18: Class 158 units withdrawn
C19: 2030 | D19: West Highland Line (Hydrogen in all Scenarios) | F19: Class 158 units withdrawn
C20: 2035 | D20: Aberdeen to Inverness services | F20: Class 170 units withdrawn
D21: Glasgow Central to Stranraer, Dumfries and Carlisle via Kilmarnock | F21: Remaining Class 158 and class Class 170 units withdrawn
B22: Other Notes | C22: Following implementation of the May 2022 timetable, vehicle miles is anticipated to be approximately 92% of 2019/20 service levels, and this is assumed to increase at 1% per annum, returning to 2019/20 levels by 2030.
B26: Maritime
B27: All Scenarios | C27: Shipping | E27: Ferries
C28: Scottish Greenhouse Gas statistics: 1990-2019 2019 UK greenhouse gas emissions: final figures – dataset of emissions by source Greenhouse gas reporting: Conversion factors 2021 UK Port Freight Traffic – 2019 forecasts | E28: Ferry demand was kept constant across the period and compiled from publicly available data on length, journey time and number of trips (according to current timetables for each Ferry route).
B34: Notes | C34: Shipping: For shipping a top-down approach was adopted to estimate transport demand (for fuel) based on the Scottish government reporting on GHG emissions from all sectors on an annual basis and broken down by type of water-borne navigation. This data was then split using the UK Government's reporting on emissions by type of fuel on an annual basis - also broken down by type of water-borne navigation. The CO2e Emission factors for each type of fuel is applied to convert CO2e emissions to fuel consumption The tonnage growth forecasted for UK ports was applied to the 2019 Scotland reported emissions to forecast future emissions Fuel Source: All the fuel used for deep sea fishing in non-UK waters is assumed to be gas oil sourced in the UK. Type and share of fuel as per UK (no Scotland specific). Shipping Movements: All emissions will be used to calculate fuel requirements and assumes ships will refuel at Scottish ports. Energy demand from ferries is subtracted at the end. International Accounting: Bunker Fuel Sales are the currently agreed basis by which countries report international shipping emissions to the UN. Types of Journeys and Vessels: Classified according to the Scottish government reports on GHG emissions. Forecasted Emissions: Scottish future emissions growth as per the UK tonnage forecasted annual growth on a port-by-port basis. Ferries: For Ferries, total distance travelled by the vessel operating each route was determined and summer deadweight and average operating capacity was estimated for the primary vessel operating each of the routes within the full domestic ferry dataset. Due to a lack of information on efficiencies for Fuel Cell and Battery powered ferries, the assumption was made to maintain the same energy demand requirements as currently required, but adjusted for different route operating requirements and alternative fuel systems.
B37: Aviation
B38: All Scenarios | C38: Air Traffic Movements | D38: Average Fleet Mix | E38: Average Sector Distance | F38: Average Fleet Mix
C39: OAG, CAA and Department for Transport – Aviation Forecast data was used to inform 2019 Air Traffic Movements taken as baseline. The Aviation Forecast from the DfT used to forecast future movements for Scottish Airports. Annual growth assumed as per the “Other Regional – Central Demand” | D39: OAG 2019 aircraft fleet by airport taken as baseline. Future aircraft mix based on literature review: modest growth in NB and WB services, flat growth or large turboprops and regional services and smaller airports remain 100% small turboprops served | E39: OAG and literature review data informed the average distance flown in 2019 by each aircraft type from each airport taken as baseline. Future average distance remains almost the same, only with a modest growth in Narrow Body and Wide Body distances | F39: The ICAO fuel consumption per formula was used to calculate the total tonnes of fuel burnt by aircraft type and airport. The kerosene energy density was then used to convert into kWh
B45: Notes | C45: 2019 baseline Air Traffic Movements are assumed to be recovered by 2025 2019 Baseline fleet mix by airport, forecast for modest growth in narrow body and wide body services. 2019 average distance by aircraft type and airport forecast modest growth in narrow body and wide body distances.

Sheet Technology Scenarios
C3: Key Assumptions: Technology Transition Scenarios
B8: Road
B9: Scenarios | C9: Cars | D9: Vans/LGV | E9: Buses | F9: HGV
B10: A. Low transition to hydrogen | C10: Car fleet is assumed to follow 1/3 the hydrogen uptake rates specified in PS3. | D10: Van fleet is assumed to follow 1/3 the hydrogen uptake rates specified in PS3. | E10: Highlands: High electric vehicle take up leaves little market for hydrogen Dumfries & Galloway: Moderate take-up of electric vehicles occurs with a high price for fuel cells Fife: Moderate take-up of electric vehicles with low take up of hydrogen. Transition of local fleet is late (2042) | F10: Early lock-in of Battery as fuel source for HGVs
B11: B. Medium transition to hydrogen | C11: Car fleet is assumed to follow 2/3 the hydrogen uptake rates specified in PS3. | D11: BEV uptake follows middle boundary of ZEV uptake rate in UK wide transition Van fleet is assumed to follow 2/3 the hydrogen uptake rates specified in PS3. | E11: Highlands: Moderate electric vehicle demand with high fuel cell prices Dumfries & Galloway: Moderate take-up of electric vehicles occurs with a mid-range price for fuel cells Fife: Moderate take-up of electric vehicles with low take up of hydrogen. Transition of local fleet in 2036 | F11: Mixed trajectory where Hydrogen and Battery are allowed to compete
B12: C. High transition to hydrogen | C12: Car fleet is assumed to follow the hydrogen uptake rates specified in PS3. | D12: Van fleet follows the hydrogen uptake rates specified in PS3 capped at total ZEV rate | E12: Highlands: Moderate electric vehicle demand with lower fuel cell prices Dumfries & Galloway: Moderate take-up of electric vehicles occurs with a low price for fuel cells Fife: Moderate take-up of electric vehicles with low take up of hydrogen. Transition of local fleet is early (2024-5) | F12: Early lock-in of Hydrogen as fuel source for HGVs
B13: Other Notes | C13: For cars, due to the expected low hydrogen numbers, the expected ZEV vehicle numbers are calculated and then split into BEV and hydrogen, using the hydrogen figure from PS3 as a base line. Due to the widely differing future implementation rates of the potential technologies, there is a different definition of High/Medium/Low across the modes There is a different probability for the most likely scenario across the different modes. This is most likely to be Low hydrogen for both Cars and Vans, and, potentially, Medium for HGVs Buses and coaches are scrapped on average after 15 years of operation, unless other incentives or policies cause them to be removed from service sooner. Van fleet is assumed to follow car fleet hydrogen uptake rates specified in PS3 capped at total ZEV rate - assumptions above for vans are based on this overarching assumption.
B17: Rail
B18: Scenarios
B19: A. Low transition to hydrogen | C19: Hydrogen – Far North (2028 to Wick, 2029 to Kyle of Lochalsh) & West Highland (23% in Highland) (2030) only
B20: B. Medium transition to hydrogen | C20: Hydrogen – Far North (2028 to Wick, 2029 to Kyle of Lochalsh), West Highland (23% in Highland) (2030) & Stranraer (21% in Dumfries & Galloway) (2035)
B21: C. High transition to hydrogen | C21: Hydrogen – Far North (2028 to Wick, 2029 to Kyle of Lochalsh), West Highland (23% in Highland) (2030), Stranraer (21% in Dumfries & Galloway) & Inverness to Aberdeen (18% in Highland) (2035)
B22: Other Notes | C22: All other lines are assumed to be overhead electric
B26: Maritime
B27: Scenarios | C27: Shipping | D27: Ferries
B28: A. Low transition to hydrogen | C28: Dumfries and Fife: 20% Domestic & 8% International* Highlands: 40% Domestic & 32% International | D28: Assume hydrogen is not viable until 2030 (tech readiness/supply side constraints) and assume Ammonia for large ROPax ferries (Dumfries and Galloway) is not viable until 2030. All replacements from 2022-2029 are BE or hybrid. However, vessel lifespan can be extended by a further five years, so replacements can occur 30 years after commissioning. The extended lifetime means more vessels are able to delay replacement until hydrogen is viable and therefore convert to hydrogen rather than hybrid (hydrogen demand increases). In Dumfries and Galloway the lifetime for the three large vessels is assumed to be extended to 35 years Note: Those vessels which can already be replaced by hydrogen are still assumed to be replaced after 25 years
B29: B. Medium transition to hydrogen | C29: Dumfries and Fife: 40% Domestic & 32% International* Highlands: 76% Domestic & 52% International | D29: Assume hydrogen is not viable until 2025 (tech readiness/supply side barriers) and assume Ammonia for large RO-RO Pax ferries (Dumfries and Galloway) is not viable until 2030. Replacements due between 2022-2025 will be BE or hybrid. After this point, most appropriate of hydrogen/BE will be introduced. Replacements occur 25 years after commissioning apart from Dumfries and Galloway where they are extended by up to 5 years given the age of the Ferries .
B30: C. High transition to hydrogen | C30: Dumfries and Fife: 76% Domestic & 52% International* Highlands: 100% Domestic & 85%-100% International | D30: No technological readiness or supply side restrictions on hydrogen and hydrogen is ready to be utilised now, but assume Ammonia for large RO-RO Pax ferries (Dumfries and Galloway) is not viable until 2028. All ferries to be replaced by the most appropriate technology for the route (hydrogen/battery electric) Replacements occur 25 years after commissioning apart from Dumfries and Galloway where they are extended by up to 5 years given the age of the Ferries. No hybrid ferries.
B31: Notes | C31: * % of energy (TWh) demand at 2045 (Domestic / International) Higer hydrogen take up for the Highland region due to the ambition and potential of the region to produce (and consume) green hydrogen as well as the objective of many airports within the region to become net zero. Ammonia remains as zero-carbon fuel chosen. It has been assumed a higher uptake of ammonia technology and an earlier transition to zero-emission alternatives for the domestic shipping due to the usage of smaller vessels and shorter routes. Shipping Entry into Service Ammonia vessels: Ammonia powered vessels are considered to entry into service from 2030. Retirement Cycle: A 15 year retirement cycle of existing vessels has been considered.
C32: Shipping Emissions International Emissions: IMO targets annual emissions from international emissions to be reduced by at least 50% by 2050 (compared to 2008 emissions).
B36: Aviation
B37: Scenarios
B38: A. Low transition to hydrogen | C38: Electric: 16% (7%) Hydrogen: 20% (25%) Kerosene**: 64% (68%)
B39: B. Medium transition to hydrogen | C39: Electric: 16% (6%) Hydrogen: 35% (42%) Kerosene**: 48% (52%)
B40: C. High transition to hydrogen | C40: Electric: 28% (9%) Hydrogen: 47% (56%) Kerosene**: 25% (35%)
B41: Notes | C41: * % of ATMs by 2050 (% of Kms by 2050). ** (Part of) the kerosene could be replaced by Sustainable Aviation Fuels (SAF). SAFs are out of the scope of this study.

Sheet Energy Demand
C4: Key Assumptions: Energy Demand Analysis
B10: General | H10: Other Notes:
B11: Parameter | C11: Value | D11: Units | E11: Notes | H11: This tab contains key metrics used in parralel with the mileage and route data to analyse current energy demands and convert this to future predictions. A brief summary of the data sources are provided here for reference. More detail will be provided in the final report Refer to the main report for links to reports listed
B12: Hydrogen to Electricity Conversion | C12: 0.03 | D12: kg/kWh | E12: Based on the LHV of Hydrogen (33.46kWh/kg)
B14: Rail
B15: Parameter | C15: Value | D15: Units | E15: Notes
B16: Hydrogen Consumption | C16: 0.386 | D16: kg/mile | E16: Based on values for Concordia iLint and ARUP route to market study
B18: Road
B19: Parameter | C19: Value | D19: Units | E19: Notes
B20: Car Hydrogen Utilisation | C20: 0.011 | D20: kg H2/km | E20: From Toyota Mirai
B21: Car Annual Mileage | C21: 13900 | D21: km | E21: TMfS:18 Data
B22: Van Hydrogen Utilisation | C22: 0.012987 | D22: kg H2/km | E22: Assumption that H2 efficiency scales as EV
B23: Van Annual Mileage | C23: 29185 | D23: km | E23: TMfS:18 Data
B24: HGV Hydrogen Utilisation | C24: 0.071928 | D24: kg H2/km | E24: Assumption that H2 efficiency scales as EV
B25: HGV Annual Mileage | C25: 77856 | D25: km | E25: TMfS:18 Data
B26: Single Decker Bus Hydrogen Utilisation | C26: 0.055 | D26: kg H2/km | E26: Calculated based on electricity figures and Fuel Cell 60% efficiency
B27: Single Decker Bus Annual Mileage | C27: 80467 | D27: km | E27: Based on data from Scottish Bus electrification
B28: Double Decker Bus Hydrogen Utilisation | C28: 0.07 | D28: kg H2/km | E28: As above for SD Bus
B29: Double Decker Bus Annual Mileage | C29: 80467 | D29: km | E29: Based on data from Scottish Bus electrification
B30: Coach Hydrogen Utilisation | C30: 0.055 | D30: kg H2/km | E30: As above for SD Bus
B31: Coach Annual Mileage | C31: 80467 | D31: km | E31: Based on data from Scottish Bus electrification
B33: Shipping
B34: Parameter | C34: Value | D34: Units | E34: Notes
B35: Marine Fuel Oil CO₂e emissions | C35: 3159.51 | D35: kg/tonne of fuel | E35: UK Greenhouse gas reporting: conversion factors 2021
B36: Marine Gas Oil CO₂e emissions | C36: 3249.99 | D36: kg/tonne of fuel
B37: Diesel | C37: 2969.07 | D37: kg/tonne of fuel
B38: Motor Spirit | C38: 2947.62 | D38: kg/tonne of fuel
B39: Current Shipping Fuel Efficiency | C39: 0.5 | E39: Based on IEEE: Electric Container Ships Are Stuck on the Horizon
B40: Ammonia Engine Efficiency | C40: 0.5 | E40: Based on estimation from MAN Energy Solutions data
B41: Ammonia Energy Density | C41: 22.5 | D41: MJ/Kg | E41: Ammonia HHV value
B42: Hydrogen Energy Density | C42: 120 | D42: MJ/Kg | E42: Hydrogen LHV value
B43: Hydrogen to Ammonia Conversion Efficiency | C43: 0.85 | E43: Based on data in Sailing on Solar, EDF
B45: Ferries
B46: Parameter | C46: Value | D46: Units | E46: Notes
B47: Marine Fuel Oil CO₂e emissions | C47: 0.262 | D47: kg CO₂e/kWh(gross CV) | E47: UK Greenhouse gas reporting: conversion factors 2021
B48: Ferry CO₂e Emmisions | C48: 0.05166 | D48: kg CO₂e/tonne.km
B49: Large RoPax Ferry CO₂e Emmisions | C49: 0.37667 | D49: kg CO₂e/tonne.km
B50: Energy Demand per km on each Route | C50: N/A | D50: kWh/km | E50: Each route was determined to have a different energy demand. This is based on an analysis of the individual ferry routes, including consideration of route length and speed of travel.
B52: Aviation
B53: Parameter | C53: Value | D53: Units | E53: Notes
B54: Specific Energy of Baseline Fuel | C54: 42.8 | D54: MJ/kg | E54: Hypertextbook: Energy Density of Aviation Fuel
B55: Specific energy of LH₂ | C55: 120 | D55: MJ/kg | E55: Hydrogen LHV value
B56: Increase in efficiency of using LH₂ | C56: 0.57 | E56: Based on detailed analysis in FlyZero study
B57: Kerosene use Efficiency | C57: 0.27 | E57: Leeham - Article: The true cost of electric aircraft

Sheet Results Tools >
C6: Results Tools - Overview and Section Tab >
B12: Region | C12: Dumfries & Galloway

Sheet Total Energy Demand
B6: Total Energy Demand Excel Tool
A10: Energy Units Selector | B10: GWh
A11: (Drop down filter)
A12: Currently Displaying | B12: Dumfries & Galloway
B74: Sum of Hydrogen | C74: Column Labels
B75: Row Labels | C75: Scenario A: Low Hydrogen | D75: Scenario B: Medium Hydrogen | E75: Scenario C: High Hydrogen | F75: Grand Total
B76: 2022 | C76: 122939.8479 | D76: 148362.5766 | E76: 173728.3008 | F76: 445030.7253
B77: 2023 | C77: 150302.7392 | D77: 196442.7802 | E77: 242472.2418 | F77: 589217.7612
B78: 2024 | C78: 173932.3416 | D78: 239283.0334 | E78: 304492.1075 | F78: 717707.4824
B79: 2025 | C79: 215387.9179 | D79: 321376.0668 | E79: 427060.2644 | F79: 963824.2492
B80: 2026 | C80: 1113852.458 | D80: 2216903.919 | E80: 2426284.758 | F80: 5757041.135
B81: 2027 | C81: 2115865.209 | D81: 4404986.374 | E81: 7122040.938 | F81: 13642892.52
B82: 2028 | C82: 3135613.776 | D82: 6651901.81 | E82: 225707795.1 | F82: 235495310.6
B83: 2029 | C83: 4263750.764 | D83: 9137401.905 | E83: 804566019.9 | F83: 817967172.6
B84: 2030 | C84: 5862516.364 | D84: 228899949.1 | E84: 1168610149 | F84: 1403372615
B85: 2035 | C85: 232703020.9 | D85: 1206022082 | E85: 1210474370 | F85: 2649199473
B86: 2040 | C86: 1180295710 | D86: 1229290709 | E86: 1239227030 | F86: 3648813449
B87: 2045 | C87: 1188483923 | D87: 1240725456 | E87: 1259121505 | F87: 3688330884
B88: Grand Total | C88: 2618636815 | D88: 3928254855 | E88: 5918402948 | F88: 1.246529462e+10

Sheet Regional Comparison
B6: Regional Comparison
A10: Energy Units Selector | B10: kWh

Sheet Energy Demand by Mode
B6: Energy Demand by Mode Excel Tool
A11: Energy Units Selector | B11: GWh
A12: (Drop down filter)
A13: Currently Displaying
A14: Dumfries & Galloway

Sheet Energy Demand Explorer
B6: Energy Demand Explorer Excel Tool
A10: Currently Displaying | B10: Dumfries & Galloway
B14: Maritime
A15: Energy Units Selector | B15: GWh
A16: (Drop down filter)
F30: 2022 | G30: 2023 | H30: 2024 | I30: 2025 | J30: 2026 | K30: 2027 | L30: 2028 | M30: 2029 | N30: 2030 | O30: 2035 | P30: 2040 | Q30: 2045
D31: Scenario A: Low Hydrogen | E31: Ferries - Hydrogen | F31: 0 | G31: 0 | H31: 0 | I31: 0 | J31: 0 | K31: 0 | L31: 0 | M31: 0 | N31: 0 | O31: 216276080 | P31: 1152614335 | Q31: 1152614335
E32: Shipping - Hydrogen | F32: 0 | G32: 0 | H32: 0 | I32: 0 | J32: 0 | K32: 0 | L32: 0 | M32: 0 | N32: 86696.12245 | O32: 531311.6338 | P32: 994922.2917 | Q32: 1478137.586
E33: Total Hydrogen | F33: 0 | G33: 0 | H33: 0 | I33: 0 | J33: 0 | K33: 0 | L33: 0 | M33: 0 | N33: 86696.12245 | O33: 216807391.7 | P33: 1153609257 | Q33: 1154092473
D34: Scenario B: Medium Hydrogen | E34: Ferries - Hydrogen | F34: 0 | G34: 0 | H34: 0 | I34: 0 | J34: 0 | K34: 0 | L34: 0 | M34: 0 | N34: 216276080 | O34: 1152614335 | P34: 1152614335 | Q34: 1152614335
E35: Shipping - Hydrogen | F35: 0 | G35: 0 | H35: 0 | I35: 0 | J35: 0 | K35: 0 | L35: 0 | M35: 0 | N35: 222487.63 | O35: 1363501.191 | P35: 2553261.858 | Q35: 3793333.762
E36: Total Hydrogen | F36: 0 | G36: 0 | H36: 0 | I36: 0 | J36: 0 | K36: 0 | L36: 0 | M36: 0 | N36: 216498567.7 | O36: 1153977836 | P36: 1155167597 | Q36: 1156407669
D37: Scenario C: High Hydrogen | E37: Ferries - Hydrogen | F37: 0 | G37: 0 | H37: 0 | I37: 0 | J37: 0 | K37: 0 | L37: 216276080 | M37: 792583247.6 | N37: 1152614335 | O37: 1152614335 | P37: 1152614335 | Q37: 1152614335
E38: Shipping - Hydrogen | F38: 0 | G38: 0 | H38: 0 | I38: 0 | J38: 0 | K38: 0 | L38: 0 | M38: 0 | N38: 395724.0352 | O38: 2425169.405 | P38: 4541318.03 | Q38: 6746951.924
E39: Total Hydrogen | F39: 0 | G39: 0 | H39: 0 | I39: 0 | J39: 0 | K39: 0 | L39: 216276080 | M39: 792583247.6 | N39: 1153010059 | O39: 1155039504 | P39: 1157155653 | Q39: 1159361287

Sheet Energy Demand Tables >
C6: Energy Demand Tables - Section Tab >

Sheet Full Results
C4: Full Results Table
A9: Units | B9: MWh | C9: 2022 | D9: 2023 | E9: 2024 | F9: 2025 | G9: 2026 | H9: 2027 | I9: 2028 | J9: 2029 | K9: 2030 | L9: 2035 | M9: 2040 | N9: 2045
A11: (Drop down filter)
A15: Aviation
A16: Scenario A: Low Hydrogen
A17: Hydrogen | B17: Total | C17: =SUM(C18:C20) -> 0 | D17: 0 | E17: 0 | F17: 0 | G17: 0 | H17: 0 | I17: 0 | J17: 0 | K17: 0 | L17: 0 | M17: 0 | N17: 0
A18: LH2 Narrow Body | C18: ='Aviation Summary'!G12 -> 0 | D18: ='Aviation Summary'!H12 -> 0 | E18: ='Aviation Summary'!I12 -> 0 | F18: ='Aviation Summary'!J12 -> 0 | G18: ='Aviation Summary'!K12 -> 0 | H18: ='Aviation Summary'!L12 -> 0 | I18: ='Aviation Summary'!M12 -> 0 | J18: ='Aviation Summary'!N12 -> 0 | K18: ='Aviation Summary'!O12 -> 0 | L18: ='Aviation Summary'!P12 -> 0 | M18: ='Aviation Summary'!Q12 -> 0 | N18: ='Aviation Summary'!R12 -> 0
A19: LH2 Regional | C19: ='Aviation Summary'!G13 -> 0 | D19: ='Aviation Summary'!H13 -> 0 | E19: ='Aviation Summary'!I13 -> 0 | F19: ='Aviation Summary'!J13 -> 0 | G19: ='Aviation Summary'!K13 -> 0 | H19: ='Aviation Summary'!L13 -> 0 | I19: ='Aviation Summary'!M13 -> 0 | J19: ='Aviation Summary'!N13 -> 0 | K19: ='Aviation Summary'!O13 -> 0 | L19: ='Aviation Summary'!P13 -> 0 | M19: ='Aviation Summary'!Q13 -> 0 | N19: ='Aviation Summary'!R13 -> 0
A20: LH2 Wide Body | C20: ='Aviation Summary'!G14 -> 0 | D20: ='Aviation Summary'!H14 -> 0 | E20: ='Aviation Summary'!I14 -> 0 | F20: ='Aviation Summary'!J14 -> 0 | G20: ='Aviation Summary'!K14 -> 0 | H20: ='Aviation Summary'!L14 -> 0 | I20: ='Aviation Summary'!M14 -> 0 | J20: ='Aviation Summary'!N14 -> 0 | K20: ='Aviation Summary'!O14 -> 0 | L20: ='Aviation Summary'!P14 -> 0 | M20: ='Aviation Summary'!Q14 -> 0 | N20: ='Aviation Summary'!R14 -> 0
A21: Scenario B: Medium Hydrogen
A22: Hydrogen | B22: Total | C22: =SUM(C23:C25) -> 0 | D22: 0 | E22: 0 | F22: 0 | G22: 0 | H22: 0 | I22: 0 | J22: 0 | K22: 0 | L22: 0 | M22: 0 | N22: 0
A23: LH2 Narrow Body | C23: ='Aviation Summary'!G16 -> 0 | D23: ='Aviation Summary'!H16 -> 0 | E23: ='Aviation Summary'!I16 -> 0 | F23: ='Aviation Summary'!J16 -> 0 | G23: ='Aviation Summary'!K16 -> 0 | H23: ='Aviation Summary'!L16 -> 0 | I23: ='Aviation Summary'!M16 -> 0 | J23: ='Aviation Summary'!N16 -> 0 | K23: ='Aviation Summary'!O16 -> 0 | L23: ='Aviation Summary'!P16 -> 0 | M23: ='Aviation Summary'!Q16 -> 0 | N23: ='Aviation Summary'!R16 -> 0
A24: LH2 Regional | C24: ='Aviation Summary'!G17 -> 0 | D24: ='Aviation Summary'!H17 -> 0 | E24: ='Aviation Summary'!I17 -> 0 | F24: ='Aviation Summary'!J17 -> 0 | G24: ='Aviation Summary'!K17 -> 0 | H24: ='Aviation Summary'!L17 -> 0 | I24: ='Aviation Summary'!M17 -> 0 | J24: ='Aviation Summary'!N17 -> 0 | K24: ='Aviation Summary'!O17 -> 0 | L24: ='Aviation Summary'!P17 -> 0 | M24: ='Aviation Summary'!Q17 -> 0 | N24: ='Aviation Summary'!R17 -> 0
A25: LH2 Wide Body | C25: ='Aviation Summary'!G18 -> 0 | D25: ='Aviation Summary'!H18 -> 0 | E25: ='Aviation Summary'!I18 -> 0 | F25: ='Aviation Summary'!J18 -> 0 | G25: ='Aviation Summary'!K18 -> 0 | H25: ='Aviation Summary'!L18 -> 0 | I25: ='Aviation Summary'!M18 -> 0 | J25: ='Aviation Summary'!N18 -> 0 | K25: ='Aviation Summary'!O18 -> 0 | L25: ='Aviation Summary'!P18 -> 0 | M25: ='Aviation Summary'!Q18 -> 0 | N25: ='Aviation Summary'!R18 -> 0
A26: Scenario C: High Hydrogen
A27: Hydrogen | B27: Total | C27: =SUM(C28:C30) -> 0 | D27: 0 | E27: 0 | F27: 0 | G27: 0 | H27: 0 | I27: 0 | J27: 0 | K27: 0 | L27: 0 | M27: 0 | N27: 0
A28: LH2 Narrow Body | C28: ='Aviation Summary'!G20 -> 0 | D28: ='Aviation Summary'!H20 -> 0 | E28: ='Aviation Summary'!I20 -> 0 | F28: ='Aviation Summary'!J20 -> 0 | G28: ='Aviation Summary'!K20 -> 0 | H28: ='Aviation Summary'!L20 -> 0 | I28: ='Aviation Summary'!M20 -> 0 | J28: ='Aviation Summary'!N20 -> 0 | K28: ='Aviation Summary'!O20 -> 0 | L28: ='Aviation Summary'!P20 -> 0 | M28: ='Aviation Summary'!Q20 -> 0 | N28: ='Aviation Summary'!R20 -> 0
A29: LH2 Regional | C29: ='Aviation Summary'!G21 -> 0 | D29: ='Aviation Summary'!H21 -> 0 | E29: ='Aviation Summary'!I21 -> 0 | F29: ='Aviation Summary'!J21 -> 0 | G29: ='Aviation Summary'!K21 -> 0 | H29: ='Aviation Summary'!L21 -> 0 | I29: ='Aviation Summary'!M21 -> 0 | J29: ='Aviation Summary'!N21 -> 0 | K29: ='Aviation Summary'!O21 -> 0 | L29: ='Aviation Summary'!P21 -> 0 | M29: ='Aviation Summary'!Q21 -> 0 | N29: ='Aviation Summary'!R21 -> 0
A30: LH2 Wide Body | C30: ='Aviation Summary'!G22 -> 0 | D30: ='Aviation Summary'!H22 -> 0 | E30: ='Aviation Summary'!I22 -> 0 | F30: ='Aviation Summary'!J22 -> 0 | G30: ='Aviation Summary'!K22 -> 0 | H30: ='Aviation Summary'!L22 -> 0 | I30: ='Aviation Summary'!M22 -> 0 | J30: ='Aviation Summary'!N22 -> 0 | K30: ='Aviation Summary'!O22 -> 0 | L30: ='Aviation Summary'!P22 -> 0 | M30: ='Aviation Summary'!Q22 -> 0 | N30: ='Aviation Summary'!R22 -> 0
A33: Maritime
A34: Scenario A: Low Hydrogen
A35: Hydrogen | B35: Total | C35: =SUM(C36:C37) -> 0 | D35: 0 | E35: 0 | F35: 0 | G35: 0 | H35: 0 | I35: 0 | J35: 0 | K35: 86696.12245 | L35: 216807391.7 | M35: 1153609257 | N35: 1154092473
A36: Ferries | C36: ='Ferries Summary'!E12 -> 0 | D36: ='Ferries Summary'!F12 -> 0 | E36: ='Ferries Summary'!G12 -> 0 | F36: ='Ferries Summary'!H12 -> 0 | G36: ='Ferries Summary'!I12 -> 0 | H36: ='Ferries Summary'!J12 -> 0 | I36: ='Ferries Summary'!K12 -> 0 | J36: ='Ferries Summary'!L12 -> 0 | K36: ='Ferries Summary'!M12 -> 0 | L36: ='Ferries Summary'!N12 -> 216276080 | M36: ='Ferries Summary'!O12 -> 1152614335 | N36: ='Ferries Summary'!P12 -> 1152614335
A37: Shipping | C37: ='Shipping Summary'!H13 -> 0 | D37: ='Shipping Summary'!I13 -> 0 | E37: ='Shipping Summary'!J13 -> 0 | F37: ='Shipping Summary'!K13 -> 0 | G37: ='Shipping Summary'!L13 -> 0 | H37: ='Shipping Summary'!M13 -> 0 | I37: ='Shipping Summary'!N13 -> 0 | J37: ='Shipping Summary'!O13 -> 0 | K37: ='Shipping Summary'!P13 -> 86696.12245 | L37: ='Shipping Summary'!Q13 -> 531311.6338 | M37: ='Shipping Summary'!R13 -> 994922.2917 | N37: ='Shipping Summary'!S13 -> 1478137.586
A38: Scenario B: Medium Hydrogen
A39: Hydrogen | B39: Total | C39: =SUM(C40:C41) -> 0 | D39: 0 | E39: 0 | F39: 0 | G39: 0 | H39: 0 | I39: 0 | J39: 0 | K39: 216498567.7 | L39: 1153977836 | M39: 1155167597 | N39: 1156407669
A40: Ferries | C40: ='Ferries Summary'!E15 -> 0 | D40: ='Ferries Summary'!F15 -> 0 | E40: ='Ferries Summary'!G15 -> 0 | F40: ='Ferries Summary'!H15 -> 0 | G40: ='Ferries Summary'!I15 -> 0 | H40: ='Ferries Summary'!J15 -> 0 | I40: ='Ferries Summary'!K15 -> 0 | J40: ='Ferries Summary'!L15 -> 0 | K40: ='Ferries Summary'!M15 -> 216276080 | L40: ='Ferries Summary'!N15 -> 1152614335 | M40: ='Ferries Summary'!O15 -> 1152614335 | N40: ='Ferries Summary'!P15 -> 1152614335
A41: Shipping | C41: ='Shipping Summary'!H17 -> 0 | D41: ='Shipping Summary'!I17 -> 0 | E41: ='Shipping Summary'!J17 -> 0 | F41: ='Shipping Summary'!K17 -> 0 | G41: ='Shipping Summary'!L17 -> 0 | H41: ='Shipping Summary'!M17 -> 0 | I41: ='Shipping Summary'!N17 -> 0 | J41: ='Shipping Summary'!O17 -> 0 | K41: ='Shipping Summary'!P17 -> 222487.63 | L41: ='Shipping Summary'!Q17 -> 1363501.191 | M41: ='Shipping Summary'!R17 -> 2553261.858 | N41: ='Shipping Summary'!S17 -> 3793333.762
A42: Scenario C: High Hydrogen
A43: Hydrogen | B43: Total | C43: =SUM(C44:C45) -> 0 | D43: 0 | E43: 0 | F43: 0 | G43: 0 | H43: 0 | I43: 216276080 | J43: 792583247.6 | K43: 1153010059 | L43: 1155039504 | M43: 1157155653 | N43: 1159361287
A44: Ferries | C44: ='Ferries Summary'!E18 -> 0 | D44: ='Ferries Summary'!F18 -> 0 | E44: ='Ferries Summary'!G18 -> 0 | F44: ='Ferries Summary'!H18 -> 0 | G44: ='Ferries Summary'!I18 -> 0 | H44: ='Ferries Summary'!J18 -> 0 | I44: ='Ferries Summary'!K18 -> 216276080 | J44: ='Ferries Summary'!L18 -> 792583247.6 | K44: ='Ferries Summary'!M18 -> 1152614335 | L44: ='Ferries Summary'!N18 -> 1152614335 | M44: ='Ferries Summary'!O18 -> 1152614335 | N44: ='Ferries Summary'!P18 -> 1152614335
A45: Shipping | C45: ='Shipping Summary'!H21 -> 0 | D45: ='Shipping Summary'!I21 -> 0 | E45: ='Shipping Summary'!J21 -> 0 | F45: ='Shipping Summary'!K21 -> 0 | G45: ='Shipping Summary'!L21 -> 0 | H45: ='Shipping Summary'!M21 -> 0 | I45: ='Shipping Summary'!N21 -> 0 | J45: ='Shipping Summary'!O21 -> 0 | K45: ='Shipping Summary'!P21 -> 395724.0352 | L45: ='Shipping Summary'!Q21 -> 2425169.405 | M45: ='Shipping Summary'!R21 -> 4541318.03 | N45: ='Shipping Summary'!S21 -> 6746951.924
A48: Road
A49: Scenario A: Low Hydrogen
A50: Hydrogen | B50: Total | C50: =SUM(C51:C55) -> 122939.8479 | D50: 150302.7392 | E50: 173932.3416 | F50: 215387.9179 | G50: 1113852.458 | H50: 2115865.209 | I50: 3135613.776 | J50: 4263750.764 | K50: 5775820.241 | L50: 15895629.19 | M50: 26686452.76 | N50: 34391450.26
A51: Car | C51: ='Car Summary'!E6 -> 118942.8219 | D51: ='Car Summary'!F6 -> 143181.834 | E51: ='Car Summary'!G6 -> 163052.8283 | F51: ='Car Summary'!H6 -> 198825.1482 | G51: ='Car Summary'!I6 -> 245984.5246 | H51: ='Car Summary'!J6 -> 283818.1093 | I51: ='Car Summary'!K6 -> 316646.7583 | J51: ='Car Summary'!L6 -> 351829.6232 | K51: ='Car Summary'!M6 -> 624492.3293 | L51: ='Car Summary'!N6 -> 2807536.777 | M51: ='Car Summary'!O6 -> 5734048.541 | N51: ='Car Summary'!P6 -> 7020654.085
A52: LGV | C52: ='Van Summary'!E6 -> 3997.025997 | D52: ='Van Summary'!F6 -> 7120.905168 | E52: ='Van Summary'!G6 -> 10879.51329 | F52: ='Van Summary'!H6 -> 16562.7697 | G52: ='Van Summary'!I6 -> 24963.82149 | H52: ='Van Summary'!J6 -> 34191.37542 | I52: ='Van Summary'!K6 -> 43460.95124 | J52: ='Van Summary'!L6 -> 51308.07829 | K52: ='Van Summary'!M6 -> 116041.1104 | L52: ='Van Summary'!N6 -> 458651.9248 | M52: ='Van Summary'!O6 -> 683934.6696 | N52: ='Van Summary'!P6 -> 797628.2177
A53: HGV | C53: ='HGV Summary'!E6 -> 0 | D53: ='HGV Summary'!F6 -> 0 | E53: ='HGV Summary'!G6 -> 0 | F53: ='HGV Summary'!H6 -> 0 | G53: ='HGV Summary'!I6 -> 842904.1123 | H53: ='HGV Summary'!J6 -> 1797855.725 | I53: ='HGV Summary'!K6 -> 2775506.067 | J53: ='HGV Summary'!L6 -> 3860613.063 | K53: ='HGV Summary'!M6 -> 5035286.802 | L53: ='HGV Summary'!N6 -> 11586497.06 | M53: ='HGV Summary'!O6 -> 18704054.41 | N53: ='HGV Summary'!P6 -> 25008752.82
A54: Bus | C54: ='Bus Summary'!E24 -> 0 | D54: ='Bus Summary'!F24 -> 0 | E54: ='Bus Summary'!G24 -> 0 | F54: ='Bus Summary'!H24 -> 0 | G54: ='Bus Summary'!I24 -> 0 | H54: ='Bus Summary'!J24 -> 0 | I54: ='Bus Summary'!K24 -> 0 | J54: ='Bus Summary'!L24 -> 0 | K54: ='Bus Summary'!M24 -> 0 | L54: ='Bus Summary'!N24 -> 0 | M54: ='Bus Summary'!O24 -> 521471.7131 | N54: ='Bus Summary'!P24 -> 521471.7131
A55: Coach | C55: ='Bus Summary'!E37 -> 0 | D55: ='Bus Summary'!F37 -> 0 | E55: ='Bus Summary'!G37 -> 0 | F55: ='Bus Summary'!H37 -> 0 | G55: ='Bus Summary'!I37 -> 0 | H55: ='Bus Summary'!J37 -> 0 | I55: ='Bus Summary'!K37 -> 0 | J55: ='Bus Summary'!L37 -> 0 | K55: ='Bus Summary'!M37 -> 0 | L55: ='Bus Summary'!N37 -> 1042943.426 | M55: ='Bus Summary'!O37 -> 1042943.426 | N55: ='Bus Summary'!P37 -> 1042943.426
A56: Scenario B: Medium Hydrogen
A57: Hydrogen | B57: Total | C57: =SUM(C58:C62) -> 148362.5766 | D57: 196442.7802 | E57: 239283.0334 | F57: 321376.0668 | G57: 2216903.919 | H57: 4404986.374 | I57: 6651901.81 | J57: 9137401.905 | K57: 12401381.41 | L57: 43624027.7 | M57: 65702893.72 | N57: 75897569.05
A58: Car | C58: ='Car Summary'!E9 -> 140390.0449 | D58: ='Car Summary'!F9 -> 182241.932 | E58: ='Car Summary'!G9 -> 217581.094 | F58: ='Car Summary'!H9 -> 288325.4135 | G58: ='Car Summary'!I9 -> 384097.9142 | H58: ='Car Summary'!J9 -> 462805.0767 | I58: ='Car Summary'!K9 -> 532264.5248 | J58: ='Car Summary'!L9 -> 606334.2888 | K58: ='Car Summary'!M9 -> 1149699.184 | L58: ='Car Summary'!N9 -> 5465177.101 | M58: ='Car Summary'!O9 -> 11211406.6 | N58: ='Car Summary'!P9 -> 13671407.54
A59: LGV | C59: ='Van Summary'!E9 -> 7972.531708 | D59: ='Van Summary'!F9 -> 14200.84824 | E59: ='Van Summary'!G9 -> 21701.93936 | F59: ='Van Summary'!H9 -> 33050.65331 | G59: ='Van Summary'!I9 -> 49808.94462 | H59: ='Van Summary'!J9 -> 68222.60213 | I59: ='Van Summary'!K9 -> 86727.84 | J59: ='Van Summary'!L9 -> 102402.3502 | K59: ='Van Summary'!M9 -> 231221.0602 | L59: ='Van Summary'!N9 -> 910641.0053 | M59: ='Van Summary'!O9 -> 1355842.406 | N59: ='Van Summary'!P9 -> 1575683.456
A60: HGV | C60: ='HGV Summary'!E9 -> 0 | D60: ='HGV Summary'!F9 -> 0 | E60: ='HGV Summary'!G9 -> 0 | F60: ='HGV Summary'!H9 -> 0 | G60: ='HGV Summary'!I9 -> 1782997.06 | H60: ='HGV Summary'!J9 -> 3873958.695 | I60: ='HGV Summary'!K9 -> 6032909.445 | J60: ='HGV Summary'!L9 -> 8428665.266 | K60: ='HGV Summary'!M9 -> 11020461.17 | L60: ='HGV Summary'!N9 -> 33945555.41 | M60: ='HGV Summary'!O9 -> 49832990.53 | N60: ='HGV Summary'!P9 -> 57347823.87
A61: Bus | C61: ='Bus Summary'!E27 -> 0 | D61: ='Bus Summary'!F27 -> 0 | E61: ='Bus Summary'!G27 -> 0 | F61: ='Bus Summary'!H27 -> 0 | G61: ='Bus Summary'!I27 -> 0 | H61: ='Bus Summary'!J27 -> 0 | I61: ='Bus Summary'!K27 -> 0 | J61: ='Bus Summary'!L27 -> 0 | K61: ='Bus Summary'!M27 -> 0 | L61: ='Bus Summary'!N27 -> 1564415.139 | M61: ='Bus Summary'!O27 -> 1564415.139 | N61: ='Bus Summary'!P27 -> 1564415.139
A62: Coach | C62: ='Bus Summary'!E40 -> 0 | D62: ='Bus Summary'!F40 -> 0 | E62: ='Bus Summary'!G40 -> 0 | F62: ='Bus Summary'!H40 -> 0 | G62: ='Bus Summary'!I40 -> 0 | H62: ='Bus Summary'!J40 -> 0 | I62: ='Bus Summary'!K40 -> 0 | J62: ='Bus Summary'!L40 -> 0 | K62: ='Bus Summary'!M40 -> 0 | L62: ='Bus Summary'!N40 -> 1738239.044 | M62: ='Bus Summary'!O40 -> 1738239.044 | N62: ='Bus Summary'!P40 -> 1738239.044
A63: Scenario C: High Hydrogen
A64: Hydrogen | B64: Total | C64: =SUM(C65:C69) -> 173728.3008 | D64: 242472.2418 | E64: 304492.1075 | F64: 427060.2644 | G64: 2426284.758 | H64: 7122040.938 | I64: 9431715.006 | J64: 11982772.31 | K64: 15600090.33 | L64: 47014647.21 | M64: 73651158.63 | N64: 91339999.96
A65: Car | C65: ='Car Summary'!E12 -> 161769.5033 | D65: ='Car Summary'!F12 -> 221170.9694 | E65: ='Car Summary'!G12 -> 271939.1984 | F65: ='Car Summary'!H12 -> 377484.2845 | G65: ='Car Summary'!I12 -> 521578.9841 | H65: ='Car Summary'!J12 -> 640937.4718 | I65: ='Car Summary'!K12 -> 746863.6099 | J65: ='Car Summary'!L12 -> 859657.8976 | K65: ='Car Summary'!M12 -> 1670719.826 | L65: ='Car Summary'!N12 -> 8070362.77 | M65: ='Car Summary'!O12 -> 16534467.95 | N65: ='Car Summary'!P12 -> 20064886.18
A66: LGV | C66: ='Van Summary'!E12 -> 11958.79756 | D66: ='Van Summary'!F12 -> 21301.27236 | E66: ='Van Summary'!G12 -> 32552.90904 | F66: ='Van Summary'!H12 -> 49575.97997 | G66: ='Van Summary'!I12 -> 74713.41693 | H66: ='Van Summary'!J12 -> 102333.9032 | I66: ='Van Summary'!K12 -> 130091.76 | J66: ='Van Summary'!L12 -> 153603.5253 | K66: ='Van Summary'!M12 -> 346831.5904 | L66: ='Van Summary'!N12 -> 1365961.508 | M66: ='Van Summary'!O12 -> 2033356.625 | N66: ='Van Summary'!P12 -> 2356424.434
A67: HGV | C67: ='HGV Summary'!E12 -> 0 | D67: ='HGV Summary'!F12 -> 0 | E67: ='HGV Summary'!G12 -> 0 | F67: ='HGV Summary'!H12 -> 0 | G67: ='HGV Summary'!I12 -> 1829992.357 | H67: ='HGV Summary'!J12 -> 3945234.902 | I67: ='HGV Summary'!K12 -> 6121224.974 | J67: ='HGV Summary'!L12 -> 8535976.23 | K67: ='HGV Summary'!M12 -> 11149004.25 | L67: ='HGV Summary'!N12 -> 33232725.33 | M67: ='HGV Summary'!O12 -> 50737736.45 | N67: ='HGV Summary'!P12 -> 64573091.73
A68: Bus | C68: ='Bus Summary'!E30 -> 0 | D68: ='Bus Summary'!F30 -> 0 | E68: ='Bus Summary'!G30 -> 0 | F68: ='Bus Summary'!H30 -> 0 | G68: ='Bus Summary'!I30 -> 0 | H68: ='Bus Summary'!J30 -> 0 | I68: ='Bus Summary'!K30 -> 0 | J68: ='Bus Summary'!L30 -> 0 | K68: ='Bus Summary'!M30 -> 0 | L68: ='Bus Summary'!N30 -> 1912062.948 | M68: ='Bus Summary'!O30 -> 1912062.948 | N68: ='Bus Summary'!P30 -> 1912062.948
A69: Coach | C69: ='Bus Summary'!E43 -> 0 | D69: ='Bus Summary'!F43 -> 0 | E69: ='Bus Summary'!G43 -> 0 | F69: ='Bus Summary'!H43 -> 0 | G69: ='Bus Summary'!I43 -> 0 | H69: ='Bus Summary'!J43 -> 2433534.661 | I69: ='Bus Summary'!K43 -> 2433534.661 | J69: ='Bus Summary'!L43 -> 2433534.661 | K69: ='Bus Summary'!M43 -> 2433534.661 | L69: ='Bus Summary'!N43 -> 2433534.661 | M69: ='Bus Summary'!O43 -> 2433534.661 | N69: ='Bus Summary'!P43 -> 2433534.661
A72: Rail
A73: Scenario A: Low Hydrogen
A74: Hydrogen | B74: Total | C74: =C75 -> 0 | D74: =D75 -> 0 | E74: 0 | F74: 0 | G74: 0 | H74: 0 | I74: 0 | J74: 0 | K74: 0 | L74: 0 | M74: 0 | N74: 0
A75: Hydrogen | C75: ='Rail Summary'!E11 -> 0 | D75: ='Rail Summary'!F11 -> 0 | E75: ='Rail Summary'!G11 -> 0 | F75: ='Rail Summary'!H11 -> 0 | G75: ='Rail Summary'!I11 -> 0 | H75: ='Rail Summary'!J11 -> 0 | I75: ='Rail Summary'!K11 -> 0 | J75: ='Rail Summary'!L11 -> 0 | K75: ='Rail Summary'!M11 -> 0 | L75: ='Rail Summary'!N11 -> 0 | M75: ='Rail Summary'!O11 -> 0 | N75: ='Rail Summary'!P11 -> 0
A76: Scenario B: Medium Hydrogen
A77: Hydrogen | B77: Total | C77: =C78 -> 0 | D77: =D78 -> 0 | E77: =E78 -> 0 | F77: =F78 -> 0 | G77: =G78 -> 0 | H77: =H78 -> 0 | I77: =I78 -> 0 | J77: =J78 -> 0 | K77: =K78 -> 0 | L77: =L78 -> 8420218.282 | M77: =M78 -> 8420218.282 | N77: =N78 -> 8420218.282
A78: Hydrogen | C78: ='Rail Summary'!E14 -> 0 | D78: ='Rail Summary'!F14 -> 0 | E78: ='Rail Summary'!G14 -> 0 | F78: ='Rail Summary'!H14 -> 0 | G78: ='Rail Summary'!I14 -> 0 | H78: ='Rail Summary'!J14 -> 0 | I78: ='Rail Summary'!K14 -> 0 | J78: ='Rail Summary'!L14 -> 0 | K78: ='Rail Summary'!M14 -> 0 | L78: ='Rail Summary'!N14 -> 8420218.282 | M78: ='Rail Summary'!O14 -> 8420218.282 | N78: ='Rail Summary'!P14 -> 8420218.282
A79: Scenario C: High Hydrogen
A80: Hydrogen | B80: Total | C80: =C81 -> 0 | D80: =D81 -> 0 | E80: =E81 -> 0 | F80: =F81 -> 0 | G80: =G81 -> 0 | H80: =H81 -> 0 | I80: =I81 -> 0 | J80: =J81 -> 0 | K80: =K81 -> 0 | L80: =L81 -> 8420218.282 | M80: =M81 -> 8420218.282 | N80: =N81 -> 8420218.282
A81: Hydrogen | C81: ='Rail Summary'!E17 -> 0 | D81: ='Rail Summary'!F17 -> 0 | E81: ='Rail Summary'!G17 -> 0 | F81: ='Rail Summary'!H17 -> 0 | G81: ='Rail Summary'!I17 -> 0 | H81: ='Rail Summary'!J17 -> 0 | I81: ='Rail Summary'!K17 -> 0 | J81: ='Rail Summary'!L17 -> 0 | K81: ='Rail Summary'!M17 -> 0 | L81: ='Rail Summary'!N17 -> 8420218.282 | M81: ='Rail Summary'!O17 -> 8420218.282 | N81: ='Rail Summary'!P17 -> 8420218.282
C90: l

Sheet Shipping Summary (hidden)
B1: 0
C2: ZEEfT - ZEEfT - Shipping
C5: Summary Tables for Zero Emission Shipping
E6: E | F6: F | G6: G | H6: H | I6: I | J6: J | K6: K | L6: L | M6: M | N6: N | O6: O | P6: P | Q6: Q | R6: R | S6: S
C7: Summary Tables
C9: Total | D9: Units | E9: 2019 | F9: 2020 | G9: 2021 | H9: 2022 | I9: 2023 | J9: 2024 | K9: 2025 | L9: 2026 | M9: 2027 | N9: 2028 | O9: 2029 | P9: 2030 | Q9: 2035 | R9: 2040 | S9: 2045 | U9: Lookup | V9: Row
B10: Scenario A: Low Hydrogen | C10: Total | U10: ='Key Assumptions >'!$B$21 -> Dumfries & Galloway | V10: =ROW(C29) -> 29
C11: Battery Electric | D11: kWh | U11: ='Key Assumptions >'!$B$22 -> Fife | V11: =ROW(C27) -> 27
C12: Shore Power | D12: kWh | U12: ='Key Assumptions >'!$B$23 -> Highlands | V12: =ROW(C28) -> 28
A13: 0 | C13: Hydrogen | D13: kWh | E13: =INDIRECT("'Shipping Summary'!"&'Shipping Summary'!E$6&($A13+INDEX('Shipping Summary'!$V$10:$V$17,MATCH(Region,'Shipping Summary'!$U$10:$U$17,0)))) -> 0 | F13: =INDIRECT("'Shipping Summary'!"&'Shipping Summary'!F$6&($A13+INDEX('Shipping Summary'!$V$10:$V$17,MATCH(Region,'Shipping Summary'!$U$10:$U$17,0)))) -> 0 | G13: =INDIRECT("'Shipping Summary'!"&'Shipping Summary'!G$6&($A13+INDEX('Shipping Summary'!$V$10:$V$17,MATCH(Region,'Shipping Summary'!$U$10:$U$17,0)))) -> 0 | H13: =INDIRECT("'Shipping Summary'!"&'Shipping Summary'!H$6&($A13+INDEX('Shipping Summary'!$V$10:$V$17,MATCH(Region,'Shipping Summary'!$U$10:$U$17,0)))) -> 0 | I13: =INDIRECT("'Shipping Summary'!"&'Shipping Summary'!I$6&($A13+INDEX('Shipping Summary'!$V$10:$V$17,MATCH(Region,'Shipping Summary'!$U$10:$U$17,0)))) -> 0 | J13: =INDIRECT("'Shipping Summary'!"&'Shipping Summary'!J$6&($A13+INDEX('Shipping Summary'!$V$10:$V$17,MATCH(Region,'Shipping Summary'!$U$10:$U$17,0)))) -> 0 | K13: =INDIRECT("'Shipping Summary'!"&'Shipping Summary'!K$6&($A13+INDEX('Shipping Summary'!$V$10:$V$17,MATCH(Region,'Shipping Summary'!$U$10:$U$17,0)))) -> 0 | L13: =INDIRECT("'Shipping Summary'!"&'Shipping Summary'!L$6&($A13+INDEX('Shipping Summary'!$V$10:$V$17,MATCH(Region,'Shipping Summary'!$U$10:$U$17,0)))) -> 0 | M13: =INDIRECT("'Shipping Summary'!"&'Shipping Summary'!M$6&($A13+INDEX('Shipping Summary'!$V$10:$V$17,MATCH(Region,'Shipping Summary'!$U$10:$U$17,0)))) -> 0 | N13: =INDIRECT("'Shipping Summary'!"&'Shipping Summary'!N$6&($A13+INDEX('Shipping Summary'!$V$10:$V$17,MATCH(Region,'Shipping Summary'!$U$10:$U$17,0)))) -> 0 | O13: =INDIRECT("'Shipping Summary'!"&'Shipping Summary'!O$6&($A13+INDEX('Shipping Summary'!$V$10:$V$17,MATCH(Region,'Shipping Summary'!$U$10:$U$17,0)))) -> 0 | P13: =INDIRECT("'Shipping Summary'!"&'Shipping Summary'!P$6&($A13+INDEX('Shipping Summary'!$V$10:$V$17,MATCH(Region,'Shipping Summary'!$U$10:$U$17,0)))) -> 86696.12245 | Q13: =INDIRECT("'Shipping Summary'!"&'Shipping Summary'!Q$6&($A13+INDEX('Shipping Summary'!$V$10:$V$17,MATCH(Region,'Shipping Summary'!$U$10:$U$17,0)))) -> 531311.6338 | R13: =INDIRECT("'Shipping Summary'!"&'Shipping Summary'!R$6&($A13+INDEX('Shipping Summary'!$V$10:$V$17,MATCH(Region,'Shipping Summary'!$U$10:$U$17,0)))) -> 994922.2917 | S13: =INDIRECT("'Shipping Summary'!"&'Shipping Summary'!S$6&($A13+INDEX('Shipping Summary'!$V$10:$V$17,MATCH(Region,'Shipping Summary'!$U$10:$U$17,0)))) -> 1478137.586
B14: Scenario B: Medium Hydrogen | C14: Total
C15: Electricity | D15: kWh
C16: Shore Power | D16: kWh
A17: 4 | C17: Hydrogen | D17: kWh | E17: =INDIRECT("'Shipping Summary'!"&'Shipping Summary'!E$6&($A17+INDEX('Shipping Summary'!$V$10:$V$17,MATCH(Region,'Shipping Summary'!$U$10:$U$17,0)))) -> 0 | F17: =INDIRECT("'Shipping Summary'!"&'Shipping Summary'!F$6&($A17+INDEX('Shipping Summary'!$V$10:$V$17,MATCH(Region,'Shipping Summary'!$U$10:$U$17,0)))) -> 0 | G17: =INDIRECT("'Shipping Summary'!"&'Shipping Summary'!G$6&($A17+INDEX('Shipping Summary'!$V$10:$V$17,MATCH(Region,'Shipping Summary'!$U$10:$U$17,0)))) -> 0 | H17: =INDIRECT("'Shipping Summary'!"&'Shipping Summary'!H$6&($A17+INDEX('Shipping Summary'!$V$10:$V$17,MATCH(Region,'Shipping Summary'!$U$10:$U$17,0)))) -> 0 | I17: =INDIRECT("'Shipping Summary'!"&'Shipping Summary'!I$6&($A17+INDEX('Shipping Summary'!$V$10:$V$17,MATCH(Region,'Shipping Summary'!$U$10:$U$17,0)))) -> 0 | J17: =INDIRECT("'Shipping Summary'!"&'Shipping Summary'!J$6&($A17+INDEX('Shipping Summary'!$V$10:$V$17,MATCH(Region,'Shipping Summary'!$U$10:$U$17,0)))) -> 0 | K17: =INDIRECT("'Shipping Summary'!"&'Shipping Summary'!K$6&($A17+INDEX('Shipping Summary'!$V$10:$V$17,MATCH(Region,'Shipping Summary'!$U$10:$U$17,0)))) -> 0 | L17: =INDIRECT("'Shipping Summary'!"&'Shipping Summary'!L$6&($A17+INDEX('Shipping Summary'!$V$10:$V$17,MATCH(Region,'Shipping Summary'!$U$10:$U$17,0)))) -> 0 | M17: =INDIRECT("'Shipping Summary'!"&'Shipping Summary'!M$6&($A17+INDEX('Shipping Summary'!$V$10:$V$17,MATCH(Region,'Shipping Summary'!$U$10:$U$17,0)))) -> 0 | N17: =INDIRECT("'Shipping Summary'!"&'Shipping Summary'!N$6&($A17+INDEX('Shipping Summary'!$V$10:$V$17,MATCH(Region,'Shipping Summary'!$U$10:$U$17,0)))) -> 0 | O17: =INDIRECT("'Shipping Summary'!"&'Shipping Summary'!O$6&($A17+INDEX('Shipping Summary'!$V$10:$V$17,MATCH(Region,'Shipping Summary'!$U$10:$U$17,0)))) -> 0 | P17: =INDIRECT("'Shipping Summary'!"&'Shipping Summary'!P$6&($A17+INDEX('Shipping Summary'!$V$10:$V$17,MATCH(Region,'Shipping Summary'!$U$10:$U$17,0)))) -> 222487.63 | Q17: =INDIRECT("'Shipping Summary'!"&'Shipping Summary'!Q$6&($A17+INDEX('Shipping Summary'!$V$10:$V$17,MATCH(Region,'Shipping Summary'!$U$10:$U$17,0)))) -> 1363501.191 | R17: =INDIRECT("'Shipping Summary'!"&'Shipping Summary'!R$6&($A17+INDEX('Shipping Summary'!$V$10:$V$17,MATCH(Region,'Shipping Summary'!$U$10:$U$17,0)))) -> 2553261.858 | S17: =INDIRECT("'Shipping Summary'!"&'Shipping Summary'!S$6&($A17+INDEX('Shipping Summary'!$V$10:$V$17,MATCH(Region,'Shipping Summary'!$U$10:$U$17,0)))) -> 3793333.762
B18: Scenario C: High Hydrogen | C18: Total
C19: Battery Electric | D19: kWh
C20: Shore Power | D20: kWh
A21: 8 | C21: Hydrogen | D21: kWh | E21: =INDIRECT("'Shipping Summary'!"&'Shipping Summary'!E$6&($A21+INDEX('Shipping Summary'!$V$10:$V$17,MATCH(Region,'Shipping Summary'!$U$10:$U$17,0)))) -> 0 | F21: =INDIRECT("'Shipping Summary'!"&'Shipping Summary'!F$6&($A21+INDEX('Shipping Summary'!$V$10:$V$17,MATCH(Region,'Shipping Summary'!$U$10:$U$17,0)))) -> 0 | G21: =INDIRECT("'Shipping Summary'!"&'Shipping Summary'!G$6&($A21+INDEX('Shipping Summary'!$V$10:$V$17,MATCH(Region,'Shipping Summary'!$U$10:$U$17,0)))) -> 0 | H21: =INDIRECT("'Shipping Summary'!"&'Shipping Summary'!H$6&($A21+INDEX('Shipping Summary'!$V$10:$V$17,MATCH(Region,'Shipping Summary'!$U$10:$U$17,0)))) -> 0 | I21: =INDIRECT("'Shipping Summary'!"&'Shipping Summary'!I$6&($A21+INDEX('Shipping Summary'!$V$10:$V$17,MATCH(Region,'Shipping Summary'!$U$10:$U$17,0)))) -> 0 | J21: =INDIRECT("'Shipping Summary'!"&'Shipping Summary'!J$6&($A21+INDEX('Shipping Summary'!$V$10:$V$17,MATCH(Region,'Shipping Summary'!$U$10:$U$17,0)))) -> 0 | K21: =INDIRECT("'Shipping Summary'!"&'Shipping Summary'!K$6&($A21+INDEX('Shipping Summary'!$V$10:$V$17,MATCH(Region,'Shipping Summary'!$U$10:$U$17,0)))) -> 0 | L21: =INDIRECT("'Shipping Summary'!"&'Shipping Summary'!L$6&($A21+INDEX('Shipping Summary'!$V$10:$V$17,MATCH(Region,'Shipping Summary'!$U$10:$U$17,0)))) -> 0 | M21: =INDIRECT("'Shipping Summary'!"&'Shipping Summary'!M$6&($A21+INDEX('Shipping Summary'!$V$10:$V$17,MATCH(Region,'Shipping Summary'!$U$10:$U$17,0)))) -> 0 | N21: =INDIRECT("'Shipping Summary'!"&'Shipping Summary'!N$6&($A21+INDEX('Shipping Summary'!$V$10:$V$17,MATCH(Region,'Shipping Summary'!$U$10:$U$17,0)))) -> 0 | O21: =INDIRECT("'Shipping Summary'!"&'Shipping Summary'!O$6&($A21+INDEX('Shipping Summary'!$V$10:$V$17,MATCH(Region,'Shipping Summary'!$U$10:$U$17,0)))) -> 0 | P21: =INDIRECT("'Shipping Summary'!"&'Shipping Summary'!P$6&($A21+INDEX('Shipping Summary'!$V$10:$V$17,MATCH(Region,'Shipping Summary'!$U$10:$U$17,0)))) -> 395724.0352 | Q21: =INDIRECT("'Shipping Summary'!"&'Shipping Summary'!Q$6&($A21+INDEX('Shipping Summary'!$V$10:$V$17,MATCH(Region,'Shipping Summary'!$U$10:$U$17,0)))) -> 2425169.405 | R21: =INDIRECT("'Shipping Summary'!"&'Shipping Summary'!R$6&($A21+INDEX('Shipping Summary'!$V$10:$V$17,MATCH(Region,'Shipping Summary'!$U$10:$U$17,0)))) -> 4541318.03 | S21: =INDIRECT("'Shipping Summary'!"&'Shipping Summary'!S$6&($A21+INDEX('Shipping Summary'!$V$10:$V$17,MATCH(Region,'Shipping Summary'!$U$10:$U$17,0)))) -> 6746951.924
D25: Units | E25: 2019 | F25: 2020 | G25: 2021 | H25: 2022 | I25: 2023 | J25: 2024 | K25: 2025 | L25: 2026 | M25: 2027 | N25: 2028 | O25: 2029 | P25: 2030 | Q25: 2035 | R25: 2040 | S25: 2045
C26: Scenario A: Low Hydrogen
C27: Fife | D27: kWh | E27: 0 | F27: 0 | G27: 0 | H27: 0 | I27: 0 | J27: 0 | K27: 0 | L27: 0 | M27: 0 | N27: 0 | O27: 0 | P27: 241931 | Q27: 1580492 | R27: 3157779 | S27: 5009463
C28: Highland | D28: kWh | E28: 0 | F28: 0 | G28: 0 | H28: 0 | I28: 0 | J28: 0 | K28: 0 | L28: 0 | M28: 0 | N28: 0 | O28: 0 | P28: 24812949 | Q28: 127784237 | R28: 234907479 | S28: 346746070
C29: Dumfries | D29: kWh | E29: 0 | F29: 0 | G29: 0 | H29: 0 | I29: 0 | J29: 0 | K29: 0 | L29: 0 | M29: 0 | N29: 0 | O29: 0 | P29: 86696.12245 | Q29: 531311.6338 | R29: 994922.2917 | S29: 1478137.586
C30: Scenario B: Medium Hydrogen
C31: Fife | D31: kWh | E31: 0 | F31: 0 | G31: 0 | H31: 0 | I31: 0 | J31: 0 | K31: 0 | L31: 0 | M31: 0 | N31: 0 | O31: 0 | P31: 667370 | Q31: 4337476 | R31: 8624713 | S31: 13620648
C32: Highland | D32: kWh | E32: 0 | F32: 0 | G32: 0 | H32: 0 | I32: 0 | J32: 0 | K32: 0 | L32: 0 | M32: 0 | N32: 0 | O32: 0 | P32: 46483093 | Q32: 254388259 | R32: 474207834 | S32: 711261015
C33: Dumfries | D33: kWh | E33: 0 | F33: 0 | G33: 0 | H33: 0 | I33: 0 | J33: 0 | K33: 0 | L33: 0 | M33: 0 | N33: 0 | O33: 0 | P33: 222487.63 | Q33: 1363501.191 | R33: 2553261.858 | S33: 3793333.762
C34: Scenario C: High Hydrogen
C35: Fife | D35: kWh | E35: 0 | F35: 0 | G35: 0 | H35: 0 | I35: 0 | J35: 0 | K35: 0 | L35: 0 | M35: 0 | N35: 0 | O35: 0 | P35: 1167073 | Q35: 7594134 | R35: 15116919 | S35: 23898285
C36: Highland | D36: kWh | E36: 0 | F36: 0 | G36: 0 | H36: 0 | I36: 0 | J36: 0 | K36: 0 | L36: 0 | M36: 0 | N36: 0 | O36: 0 | P36: 67172336 | Q36: 375963807 | R36: 703373131 | S36: 1061656517
C37: Dumfries | D37: kWh | E37: 0 | F37: 0 | G37: 0 | H37: 0 | I37: 0 | J37: 0 | K37: 0 | L37: 0 | M37: 0 | N37: 0 | O37: 0 | P37: 395724.0352 | Q37: 2425169.405 | R37: 4541318.03 | S37: 6746951.924

Sheet Data_Explorer_Backend (hidden)
A1: Aviation
C2: Hydrogen | D2: Electricity | E2: LH2 Narrow Body | F2: LH2 Regional | G2: LH2 Wide Body | H2: Elec Regional | I2: Elec Small Turbo | J2: Elec Large Turbo | Z2: 2022 | AA2: 2023 | AB2: 2024 | AC2: 2025 | AD2: 2026 | AE2: 2027 | AF2: 2028 | AG2: 2029 | AH2: 2030 | AI2: 2035 | AJ2: 2040 | AK2: 2045 | AO2: Scenario A: Low Hydrogen | AP2: 2022 | AQ2: 2023 | AR2: 2024 | AS2: 2025 | AT2: 2026 | AU2: 2027 | AV2: 2028 | AW2: 2029 | AX2: 2030 | AY2: 2035 | AZ2: 2040 | BA2: 2045 | BD2: Aviation | BE2: Scenario A: Low Hydrogen | BF2: kWh
A3: Scenario A: Low Hydrogen | B3: 2022 | C3: =SUM(E3:G3) -> 0 | D3: =SUM(H3:J3) -> 0 | E3: =TRANSPOSE(Z3:AK5) -> 0 | F3: 0 | G3: 0 | H3: =TRANSPOSE(Z7:AK9) -> 0 | I3: 0 | J3: 0 | X3: Scenario A: Low Hydrogen | Y3: LH2 Narrow Body | Z3: ='Aviation Summary'!G12 -> 0 | AA3: ='Aviation Summary'!H12 -> 0 | AB3: ='Aviation Summary'!I12 -> 0 | AC3: ='Aviation Summary'!J12 -> 0 | AD3: ='Aviation Summary'!K12 -> 0 | AE3: ='Aviation Summary'!L12 -> 0 | AF3: ='Aviation Summary'!M12 -> 0 | AG3: ='Aviation Summary'!N12 -> 0 | AH3: ='Aviation Summary'!O12 -> 0 | AI3: ='Aviation Summary'!P12 -> 0 | AJ3: ='Aviation Summary'!Q12 -> 0 | AK3: ='Aviation Summary'!R12 -> 0 | AO3: Aviation | AP3: =Z6 -> 0 | AQ3: =AA6 -> 0 | AR3: =AB6 -> 0 | AS3: 0 | AT3: 0 | AU3: 0 | AV3: 0 | AW3: 0 | AX3: 0 | AY3: 0 | AZ3: 0 | BA3: 0 | BD3: Maritime | BE3: Scenario B: Medium Hydrogen | BF3: MWh
B4: 2023 | C4: =SUM(E4:G4) -> 0 | D4: 0 | E4: 0 | F4: 0 | G4: 0 | H4: 0 | I4: 0 | J4: 0 | Y4: LH2 Regional | Z4: ='Aviation Summary'!G13 -> 0 | AA4: ='Aviation Summary'!H13 -> 0 | AB4: ='Aviation Summary'!I13 -> 0 | AC4: ='Aviation Summary'!J13 -> 0 | AD4: ='Aviation Summary'!K13 -> 0 | AE4: ='Aviation Summary'!L13 -> 0 | AF4: ='Aviation Summary'!M13 -> 0 | AG4: ='Aviation Summary'!N13 -> 0 | AH4: ='Aviation Summary'!O13 -> 0 | AI4: ='Aviation Summary'!P13 -> 0 | AJ4: ='Aviation Summary'!Q13 -> 0 | AK4: ='Aviation Summary'!R13 -> 0 | AO4: Maritime | AP4: =Z80 -> 0 | AQ4: =AA80 -> 0 | AR4: 0 | AS4: 0 | AT4: 0 | AU4: 0 | AV4: 0 | AW4: 0 | AX4: 86696.12245 | AY4: 216807391.7 | AZ4: 1153609257 | BA4: =AK80 -> 1154092473 | BD4: Road | BE4: Scenario C: High Hydrogen | BF4: GWh
B5: 2024 | C5: 0 | D5: 0 | E5: 0 | F5: 0 | G5: 0 | H5: 0 | I5: 0 | J5: 0 | Y5: LH2 Wide Body | Z5: ='Aviation Summary'!G14 -> 0 | AA5: ='Aviation Summary'!H14 -> 0 | AB5: ='Aviation Summary'!I14 -> 0 | AC5: ='Aviation Summary'!J14 -> 0 | AD5: ='Aviation Summary'!K14 -> 0 | AE5: ='Aviation Summary'!L14 -> 0 | AF5: ='Aviation Summary'!M14 -> 0 | AG5: ='Aviation Summary'!N14 -> 0 | AH5: ='Aviation Summary'!O14 -> 0 | AI5: ='Aviation Summary'!P14 -> 0 | AJ5: ='Aviation Summary'!Q14 -> 0 | AK5: ='Aviation Summary'!R14 -> 0 | AO5: Rail | AP5: =Z232 -> 0 | AQ5: =AA232 -> 0 | AR5: 0 | AS5: 0 | AT5: 0 | AU5: 0 | AV5: 0 | AW5: 0 | AX5: 0 | AY5: 0 | AZ5: 0 | BA5: 0 | BD5: Rail | BE5: Blank | BF5: TWh
B6: 2025 | C6: 0 | D6: 0 | E6: 0 | F6: 0 | G6: 0 | H6: 0 | I6: 0 | J6: 0 | Y6: Total Hydrogen | Z6: =SUM(Z3:Z5) -> 0 | AA6: =SUM(AA3:AA5) -> 0 | AB6: 0 | AC6: 0 | AD6: 0 | AE6: 0 | AF6: 0 | AG6: 0 | AH6: 0 | AI6: 0 | AJ6: 0 | AK6: 0 | AO6: Road | AP6: =Z158 -> 122939.8479 | AQ6: =AA158 -> 150302.7392 | AR6: 173932.3416 | AS6: 215387.9179 | AT6: 1113852.458 | AU6: 2115865.209 | AV6: 3135613.776 | AW6: 4263750.764 | AX6: 5775820.241 | AY6: 15895629.19 | AZ6: 26686452.76 | BA6: 34391450.26 | BE6: Blank
B7: 2026 | C7: 0 | D7: 0 | E7: 0 | F7: 0 | G7: 0 | H7: 0 | I7: 0 | J7: 0 | Y7: Elec Regional | Z7: ='Aviation Summary'!G27 -> 0 | AA7: ='Aviation Summary'!H27 -> 0 | AB7: ='Aviation Summary'!I27 -> 0 | AC7: ='Aviation Summary'!J27 -> 0 | AD7: ='Aviation Summary'!K27 -> 0 | AE7: ='Aviation Summary'!L27 -> 0 | AF7: ='Aviation Summary'!M27 -> 0 | AG7: ='Aviation Summary'!N27 -> 0 | AH7: ='Aviation Summary'!O27 -> 0 | AI7: ='Aviation Summary'!P27 -> 0 | AJ7: ='Aviation Summary'!Q27 -> 0 | AK7: ='Aviation Summary'!R27 -> 0 | BE7: Blank
B8: 2027 | C8: 0 | D8: 0 | E8: 0 | F8: 0 | G8: 0 | H8: 0 | I8: 0 | J8: 0 | Y8: Elec Small Turbo | Z8: ='Aviation Summary'!G28 -> 0 | AA8: ='Aviation Summary'!H28 -> 0 | AB8: ='Aviation Summary'!I28 -> 0 | AC8: ='Aviation Summary'!J28 -> 0 | AD8: ='Aviation Summary'!K28 -> 0 | AE8: ='Aviation Summary'!L28 -> 0 | AF8: ='Aviation Summary'!M28 -> 0 | AG8: ='Aviation Summary'!N28 -> 0 | AH8: ='Aviation Summary'!O28 -> 0 | AI8: ='Aviation Summary'!P28 -> 0 | AJ8: ='Aviation Summary'!Q28 -> 0 | AK8: ='Aviation Summary'!R28 -> 0
B9: 2028 | C9: 0 | D9: 0 | E9: 0 | F9: 0 | G9: 0 | H9: 0 | I9: 0 | J9: 0 | Y9: Elec Large Turbo | Z9: ='Aviation Summary'!G29 -> 0 | AA9: ='Aviation Summary'!H29 -> 0 | AB9: ='Aviation Summary'!I29 -> 0 | AC9: ='Aviation Summary'!J29 -> 0 | AD9: ='Aviation Summary'!K29 -> 0 | AE9: ='Aviation Summary'!L29 -> 0 | AF9: ='Aviation Summary'!M29 -> 0 | AG9: ='Aviation Summary'!N29 -> 0 | AH9: ='Aviation Summary'!O29 -> 0 | AI9: ='Aviation Summary'!P29 -> 0 | AJ9: ='Aviation Summary'!Q29 -> 0 | AK9: ='Aviation Summary'!R29 -> 0 | AO9: Scenario B: Medium Hydrogen | AP9: 2022 | AQ9: 2023 | AR9: 2024 | AS9: 2025 | AT9: 2026 | AU9: 2027 | AV9: 2028 | AW9: 2029 | AX9: 2030 | AY9: 2035 | AZ9: 2040 | BA9: 2045
B10: 2029 | C10: 0 | D10: 0 | E10: 0 | F10: 0 | G10: 0 | H10: 0 | I10: 0 | J10: 0 | Y10: Total Electricity | Z10: =SUM(Z7:Z9) -> 0 | AA10: =SUM(AA7:AA9) -> 0 | AB10: 0 | AC10: 0 | AD10: 0 | AE10: 0 | AF10: 0 | AG10: 0 | AH10: 0 | AI10: 0 | AJ10: 0 | AK10: 0 | AO10: Aviation | AP10: =Z14 -> 0 | AQ10: =AA14 -> 0 | AR10: 0 | AS10: 0 | AT10: 0 | AU10: 0 | AV10: 0 | AW10: 0 | AX10: 0 | AY10: 0 | AZ10: 0 | BA10: 0
B11: 2030 | C11: 0 | D11: 0 | E11: 0 | F11: 0 | G11: 0 | H11: 0 | I11: 0 | J11: 0 | X11: Scenario B: Medium Hydrogen | Y11: LH2 Narrow Body | Z11: ='Aviation Summary'!G16 -> 0 | AA11: ='Aviation Summary'!H16 -> 0 | AB11: ='Aviation Summary'!I16 -> 0 | AC11: ='Aviation Summary'!J16 -> 0 | AD11: ='Aviation Summary'!K16 -> 0 | AE11: ='Aviation Summary'!L16 -> 0 | AF11: ='Aviation Summary'!M16 -> 0 | AG11: ='Aviation Summary'!N16 -> 0 | AH11: ='Aviation Summary'!O16 -> 0 | AI11: ='Aviation Summary'!P16 -> 0 | AJ11: ='Aviation Summary'!Q16 -> 0 | AK11: ='Aviation Summary'!R16 -> 0 | AO11: Maritime | AP11: =Z87 -> 0 | AQ11: =AA87 -> 0 | AR11: 0 | AS11: 0 | AT11: 0 | AU11: 0 | AV11: 0 | AW11: 0 | AX11: 216498567.7 | AY11: 1153977836 | AZ11: 1155167597 | BA11: 1156407669
B12: 2035 | C12: 0 | D12: 0 | E12: 0 | F12: 0 | G12: 0 | H12: 0 | I12: 0 | J12: 0 | Y12: LH2 Regional | Z12: ='Aviation Summary'!G17 -> 0 | AA12: ='Aviation Summary'!H17 -> 0 | AB12: ='Aviation Summary'!I17 -> 0 | AC12: ='Aviation Summary'!J17 -> 0 | AD12: ='Aviation Summary'!K17 -> 0 | AE12: ='Aviation Summary'!L17 -> 0 | AF12: ='Aviation Summary'!M17 -> 0 | AG12: ='Aviation Summary'!N17 -> 0 | AH12: ='Aviation Summary'!O17 -> 0 | AI12: ='Aviation Summary'!P17 -> 0 | AJ12: ='Aviation Summary'!Q17 -> 0 | AK12: ='Aviation Summary'!R17 -> 0 | AO12: Rail | AP12: =Z246 -> 0 | AQ12: =AA246 -> 0 | AR12: 0 | AS12: 0 | AT12: 0 | AU12: 0 | AV12: 0 | AW12: 0 | AX12: 0 | AY12: 8420218.282 | AZ12: 8420218.282 | BA12: 8420218.282
B13: 2040 | C13: 0 | D13: 0 | E13: 0 | F13: 0 | G13: 0 | H13: 0 | I13: 0 | J13: 0 | Y13: LH2 Wide Body | Z13: ='Aviation Summary'!G18 -> 0 | AA13: ='Aviation Summary'!H18 -> 0 | AB13: ='Aviation Summary'!I18 -> 0 | AC13: ='Aviation Summary'!J18 -> 0 | AD13: ='Aviation Summary'!K18 -> 0 | AE13: ='Aviation Summary'!L18 -> 0 | AF13: ='Aviation Summary'!M18 -> 0 | AG13: ='Aviation Summary'!N18 -> 0 | AH13: ='Aviation Summary'!O18 -> 0 | AI13: ='Aviation Summary'!P18 -> 0 | AJ13: ='Aviation Summary'!Q18 -> 0 | AK13: ='Aviation Summary'!R18 -> 0 | AO13: Road | AP13: =Z170 -> 148362.5766 | AQ13: 196442.7802 | AR13: 239283.0334 | AS13: 321376.0668 | AT13: 2216903.919 | AU13: 4404986.374 | AV13: 6651901.81 | AW13: 9137401.905 | AX13: 12401381.41 | AY13: 43624027.7 | AZ13: 65702893.72 | BA13: 75897569.05
B14: 2045 | C14: =SUM(E14:G14) -> 0 | D14: 0 | E14: 0 | F14: 0 | G14: 0 | H14: 0 | I14: 0 | J14: 0 | Y14: Total Hydrogen | Z14: =SUM(Z11:Z13) -> 0 | AA14: =SUM(AA11:AA13) -> 0 | AB14: 0 | AC14: 0 | AD14: 0 | AE14: 0 | AF14: 0 | AG14: 0 | AH14: 0 | AI14: 0 | AJ14: 0 | AK14: 0
A15: Scenario B: Medium Hydrogen | B15: 2022 | C15: 0 | D15: 0 | E15: =TRANSPOSE(Z11:AK13) -> 0 | F15: 0 | G15: 0 | H15: =TRANSPOSE(Z15:AK17) -> 0 | I15: 0 | J15: 0 | Y15: Elec Regional | Z15: ='Aviation Summary'!G31 -> 0 | AA15: ='Aviation Summary'!H31 -> 0 | AB15: ='Aviation Summary'!I31 -> 0 | AC15: ='Aviation Summary'!J31 -> 0 | AD15: ='Aviation Summary'!K31 -> 0 | AE15: ='Aviation Summary'!L31 -> 0 | AF15: ='Aviation Summary'!M31 -> 0 | AG15: ='Aviation Summary'!N31 -> 0 | AH15: ='Aviation Summary'!O31 -> 0 | AI15: ='Aviation Summary'!P31 -> 0 | AJ15: ='Aviation Summary'!Q31 -> 0 | AK15: ='Aviation Summary'!R31 -> 0
B16: 2023 | C16: 0 | D16: 0 | E16: 0 | F16: 0 | G16: 0 | H16: 0 | I16: 0 | J16: 0 | Y16: Elec Small Turbo | Z16: ='Aviation Summary'!G32 -> 0 | AA16: ='Aviation Summary'!H32 -> 0 | AB16: ='Aviation Summary'!I32 -> 0 | AC16: ='Aviation Summary'!J32 -> 0 | AD16: ='Aviation Summary'!K32 -> 0 | AE16: ='Aviation Summary'!L32 -> 0 | AF16: ='Aviation Summary'!M32 -> 0 | AG16: ='Aviation Summary'!N32 -> 0 | AH16: ='Aviation Summary'!O32 -> 0 | AI16: ='Aviation Summary'!P32 -> 0 | AJ16: ='Aviation Summary'!Q32 -> 0 | AK16: ='Aviation Summary'!R32 -> 0 | AO16: Scenario C: High Hydrogen | AP16: 2022 | AQ16: 2023 | AR16: 2024 | AS16: 2025 | AT16: 2026 | AU16: 2027 | AV16: 2028 | AW16: 2029 | AX16: 2030 | AY16: 2035 | AZ16: 2040 | BA16: 2045
B17: 2024 | C17: 0 | D17: 0 | E17: 0 | F17: 0 | G17: 0 | H17: 0 | I17: 0 | J17: 0 | Y17: Elec Large Turbo | Z17: ='Aviation Summary'!G33 -> 0 | AA17: ='Aviation Summary'!H33 -> 0 | AB17: ='Aviation Summary'!I33 -> 0 | AC17: ='Aviation Summary'!J33 -> 0 | AD17: ='Aviation Summary'!K33 -> 0 | AE17: ='Aviation Summary'!L33 -> 0 | AF17: ='Aviation Summary'!M33 -> 0 | AG17: ='Aviation Summary'!N33 -> 0 | AH17: ='Aviation Summary'!O33 -> 0 | AI17: ='Aviation Summary'!P33 -> 0 | AJ17: ='Aviation Summary'!Q33 -> 0 | AK17: ='Aviation Summary'!R33 -> 0 | AO17: Aviation | AP17: =Z22 -> 0 | AQ17: =AA22 -> 0 | AR17: 0 | AS17: 0 | AT17: 0 | AU17: 0 | AV17: 0 | AW17: 0 | AX17: 0 | AY17: 0 | AZ17: 0 | BA17: 0
B18: 2025 | C18: 0 | D18: 0 | E18: 0 | F18: 0 | G18: 0 | H18: 0 | I18: 0 | J18: 0 | Y18: Total Electricity | Z18: =SUM(Z15:Z17) -> 0 | AA18: =SUM(AA15:AA17) -> 0 | AB18: 0 | AC18: 0 | AD18: 0 | AE18: 0 | AF18: 0 | AG18: 0 | AH18: 0 | AI18: 0 | AJ18: 0 | AK18: 0 | AO18: Maritime | AP18: =Z94 -> 0 | AQ18: =AA94 -> 0 | AR18: 0 | AS18: 0 | AT18: 0 | AU18: 0 | AV18: 216276080 | AW18: 792583247.6 | AX18: 1153010059 | AY18: 1155039504 | AZ18: 1157155653 | BA18: 1159361287
B19: 2026 | C19: 0 | D19: 0 | E19: 0 | F19: 0 | G19: 0 | H19: 0 | I19: 0 | J19: 0 | X19: Scenario C: High Hydrogen | Y19: LH2 Narrow Body | Z19: ='Aviation Summary'!G20 -> 0 | AA19: ='Aviation Summary'!H20 -> 0 | AB19: ='Aviation Summary'!I20 -> 0 | AC19: ='Aviation Summary'!J20 -> 0 | AD19: ='Aviation Summary'!K20 -> 0 | AE19: ='Aviation Summary'!L20 -> 0 | AF19: ='Aviation Summary'!M20 -> 0 | AG19: ='Aviation Summary'!N20 -> 0 | AH19: ='Aviation Summary'!O20 -> 0 | AI19: ='Aviation Summary'!P20 -> 0 | AJ19: ='Aviation Summary'!Q20 -> 0 | AK19: ='Aviation Summary'!R20 -> 0 | AO19: Rail | AP19: =Z260 -> 0 | AQ19: =AA260 -> 0 | AR19: 0 | AS19: 0 | AT19: 0 | AU19: 0 | AV19: 0 | AW19: 0 | AX19: 0 | AY19: 8420218.282 | AZ19: 8420218.282 | BA19: 8420218.282
B20: 2027 | C20: 0 | D20: 0 | E20: 0 | F20: 0 | G20: 0 | H20: 0 | I20: 0 | J20: 0 | Y20: LH2 Regional | Z20: ='Aviation Summary'!G21 -> 0 | AA20: ='Aviation Summary'!H21 -> 0 | AB20: ='Aviation Summary'!I21 -> 0 | AC20: ='Aviation Summary'!J21 -> 0 | AD20: ='Aviation Summary'!K21 -> 0 | AE20: ='Aviation Summary'!L21 -> 0 | AF20: ='Aviation Summary'!M21 -> 0 | AG20: ='Aviation Summary'!N21 -> 0 | AH20: ='Aviation Summary'!O21 -> 0 | AI20: ='Aviation Summary'!P21 -> 0 | AJ20: ='Aviation Summary'!Q21 -> 0 | AK20: ='Aviation Summary'!R21 -> 0 | AO20: Road | AP20: =Z182 -> 173728.3008 | AQ20: 242472.2418 | AR20: 304492.1075 | AS20: 427060.2644 | AT20: 2426284.758 | AU20: 7122040.938 | AV20: 9431715.006 | AW20: 11982772.31 | AX20: 15600090.33 | AY20: 47014647.21 | AZ20: 73651158.63 | BA20: 91339999.96
B21: 2028 | C21: 0 | D21: 0 | E21: 0 | F21: 0 | G21: 0 | H21: 0 | I21: 0 | J21: 0 | Y21: LH2 Wide Body | Z21: ='Aviation Summary'!G22 -> 0 | AA21: ='Aviation Summary'!H22 -> 0 | AB21: ='Aviation Summary'!I22 -> 0 | AC21: ='Aviation Summary'!J22 -> 0 | AD21: ='Aviation Summary'!K22 -> 0 | AE21: ='Aviation Summary'!L22 -> 0 | AF21: ='Aviation Summary'!M22 -> 0 | AG21: ='Aviation Summary'!N22 -> 0 | AH21: ='Aviation Summary'!O22 -> 0 | AI21: ='Aviation Summary'!P22 -> 0 | AJ21: ='Aviation Summary'!Q22 -> 0 | AK21: ='Aviation Summary'!R22 -> 0
B22: 2029 | C22: 0 | D22: 0 | E22: 0 | F22: 0 | G22: 0 | H22: 0 | I22: 0 | J22: 0 | Y22: Total Hydrogen | Z22: =SUM(Z19:Z21) -> 0 | AA22: =SUM(AA19:AA21) -> 0 | AB22: 0 | AC22: 0 | AD22: 0 | AE22: 0 | AF22: 0 | AG22: 0 | AH22: 0 | AI22: 0 | AJ22: 0 | AK22: 0
B23: 2030 | C23: 0 | D23: 0 | E23: 0 | F23: 0 | G23: 0 | H23: 0 | I23: 0 | J23: 0 | Y23: Elec Regional | Z23: ='Aviation Summary'!G35 -> 0 | AA23: ='Aviation Summary'!H35 -> 0 | AB23: ='Aviation Summary'!I35 -> 0 | AC23: ='Aviation Summary'!J35 -> 0 | AD23: ='Aviation Summary'!K35 -> 0 | AE23: ='Aviation Summary'!L35 -> 0 | AF23: ='Aviation Summary'!M35 -> 0 | AG23: ='Aviation Summary'!N35 -> 0 | AH23: ='Aviation Summary'!O35 -> 0 | AI23: ='Aviation Summary'!P35 -> 0 | AJ23: ='Aviation Summary'!Q35 -> 0 | AK23: ='Aviation Summary'!R35 -> 0 | AO23: Blank | AP23: 2022 | AQ23: 2023 | AR23: 2024 | AS23: 2025 | AT23: 2026 | AU23: 2027 | AV23: 2028 | AW23: 2029 | AX23: 2030 | AY23: 2035 | AZ23: 2040 | BA23: 2045
B24: 2035 | C24: 0 | D24: 0 | E24: 0 | F24: 0 | G24: 0 | H24: 0 | I24: 0 | J24: 0 | Y24: Elec Small Turbo | Z24: ='Aviation Summary'!G36 -> 0 | AA24: ='Aviation Summary'!H36 -> 0 | AB24: ='Aviation Summary'!I36 -> 0 | AC24: ='Aviation Summary'!J36 -> 0 | AD24: ='Aviation Summary'!K36 -> 0 | AE24: ='Aviation Summary'!L36 -> 0 | AF24: ='Aviation Summary'!M36 -> 0 | AG24: ='Aviation Summary'!N36 -> 0 | AH24: ='Aviation Summary'!O36 -> 0 | AI24: ='Aviation Summary'!P36 -> 0 | AJ24: ='Aviation Summary'!Q36 -> 0 | AK24: ='Aviation Summary'!R36 -> 0 | AO24: Aviation | AP24: =Z30 -> 0 | AQ24: =AA30 -> 0 | AR24: 0 | AS24: 0 | AT24: 0 | AU24: 0 | AV24: 0 | AW24: 0 | AX24: 0 | AY24: 0 | AZ24: 0 | BA24: 0
B25: 2040 | C25: 0 | D25: 0 | E25: 0 | F25: 0 | G25: 0 | H25: 0 | I25: 0 | J25: 0 | Y25: Elec Large Turbo | Z25: ='Aviation Summary'!G37 -> 0 | AA25: ='Aviation Summary'!H37 -> 0 | AB25: ='Aviation Summary'!I37 -> 0 | AC25: ='Aviation Summary'!J37 -> 0 | AD25: ='Aviation Summary'!K37 -> 0 | AE25: ='Aviation Summary'!L37 -> 0 | AF25: ='Aviation Summary'!M37 -> 0 | AG25: ='Aviation Summary'!N37 -> 0 | AH25: ='Aviation Summary'!O37 -> 0 | AI25: ='Aviation Summary'!P37 -> 0 | AJ25: ='Aviation Summary'!Q37 -> 0 | AK25: ='Aviation Summary'!R37 -> 0 | AO25: Maritime | AP25: =Z101 -> 0 | AQ25: =AA101 -> 0 | AR25: 0 | AS25: 0 | AT25: 0 | AU25: 0 | AV25: 0 | AW25: 0 | AX25: 0 | AY25: 0 | AZ25: 0 | BA25: 0
B26: 2045 | C26: 0 | D26: 0 | E26: 0 | F26: 0 | G26: 0 | H26: 0 | I26: 0 | J26: 0 | Y26: Total Electricity | Z26: =SUM(Z23:Z25) -> 0 | AA26: =SUM(AA23:AA25) -> 0 | AB26: 0 | AC26: 0 | AD26: 0 | AE26: 0 | AF26: 0 | AG26: 0 | AH26: 0 | AI26: 0 | AJ26: 0 | AK26: 0 | AO26: Rail | AP26: =Z274 -> 0 | AQ26: =AA274 -> 0 | AR26: 0 | AS26: 0 | AT26: 0 | AU26: 0 | AV26: 0 | AW26: 0 | AX26: 0 | AY26: 0 | AZ26: 0 | BA26: 0
A27: Scenario C: High Hydrogen | B27: 2022 | C27: 0 | D27: 0 | E27: =TRANSPOSE(Z19:AK21) -> 0 | F27: 0 | G27: 0 | H27: =TRANSPOSE(Z23:AK25) -> 0 | I27: 0 | J27: 0 | X27: Blank | Y27: LH2 Narrow Body | AO27: Road | AP27: =Z194 -> 0 | AQ27: 0 | AR27: 0 | AS27: 0 | AT27: 0 | AU27: 0 | AV27: 0 | AW27: 0 | AX27: 0 | AY27: 0 | AZ27: 0 | BA27: 0
B28: 2023 | C28: 0 | D28: 0 | E28: 0 | F28: 0 | G28: 0 | H28: 0 | I28: 0 | J28: 0 | Y28: LH2 Regional
B29: 2024 | C29: 0 | D29: 0 | E29: 0 | F29: 0 | G29: 0 | H29: 0 | I29: 0 | J29: 0 | Y29: LH2 Wide Body
B30: 2025 | C30: 0 | D30: 0 | E30: 0 | F30: 0 | G30: 0 | H30: 0 | I30: 0 | J30: 0 | Y30: Total Hydrogen | AO30: Blank | AP30: 2022 | AQ30: 2023 | AR30: 2024 | AS30: 2025 | AT30: 2026 | AU30: 2027 | AV30: 2028 | AW30: 2029 | AX30: 2030 | AY30: 2035 | AZ30: 2040 | BA30: 2045
B31: 2026 | C31: 0 | D31: 0 | E31: 0 | F31: 0 | G31: 0 | H31: 0 | I31: 0 | J31: 0 | Y31: Elec Regional | AO31: Aviation | AP31: =Z38 -> 0 | AQ31: =AA38 -> 0 | AR31: 0 | AS31: 0 | AT31: 0 | AU31: 0 | AV31: 0 | AW31: 0 | AX31: 0 | AY31: 0 | AZ31: 0 | BA31: 0
B32: 2027 | C32: 0 | D32: 0 | E32: 0 | F32: 0 | G32: 0 | H32: 0 | I32: 0 | J32: 0 | Y32: Elec Small Turbo | AO32: Maritime | AP32: =Z108 -> 0 | AQ32: =AA108 -> 0 | AR32: 0 | AS32: 0 | AT32: 0 | AU32: 0 | AV32: 0 | AW32: 0 | AX32: 0 | AY32: 0 | AZ32: 0 | BA32: 0
B33: 2028 | C33: 0 | D33: 0 | E33: 0 | F33: 0 | G33: 0 | H33: 0 | I33: 0 | J33: 0 | Y33: Elec Large Turbo | AO33: Rail | AP33: =Z288 -> 0 | AQ33: =AA288 -> 0 | AR33: 0 | AS33: 0 | AT33: 0 | AU33: 0 | AV33: 0 | AW33: 0 | AX33: 0 | AY33: 0 | AZ33: 0 | BA33: 0
B34: 2029 | C34: 0 | D34: 0 | E34: 0 | F34: 0 | G34: 0 | H34: 0 | I34: 0 | J34: 0 | Y34: Total Electricity | AO34: Road | AP34: =Z206 -> 0 | AQ34: 0 | AR34: 0 | AS34: 0 | AT34: 0 | AU34: 0 | AV34: 0 | AW34: 0 | AX34: 0 | AY34: 0 | AZ34: 0 | BA34: 0
B35: 2030 | C35: =SUM(E35:G35) -> 0 | D35: =SUM(H35:J35) -> 0 | E35: 0 | F35: 0 | G35: 0 | H35: 0 | I35: 0 | J35: 0 | X35: Blank | Y35: LH2 Narrow Body
B36: 2035 | C36: 0 | D36: 0 | E36: 0 | F36: 0 | G36: 0 | H36: 0 | I36: 0 | J36: 0 | Y36: LH2 Regional
B37: 2040 | C37: 0 | D37: 0 | E37: 0 | F37: 0 | G37: 0 | H37: 0 | I37: 0 | J37: 0 | Y37: LH2 Wide Body
B38: 2045 | C38: 0 | D38: 0 | E38: 0 | F38: 0 | G38: 0 | H38: 0 | I38: 0 | J38: 0 | Y38: Total Hydrogen | AO38: Blank | AP38: 2022 | AQ38: 2023 | AR38: 2024 | AS38: 2025 | AT38: 2026 | AU38: 2027 | AV38: 2028 | AW38: 2029 | AX38: 2030 | AY38: 2035 | AZ38: 2040 | BA38: 2045
A39: Scenario 4: High Electric + Low Hydrogen | B39: 2022 | C39: 0 | D39: 0 | E39: =TRANSPOSE(Z27:AK29) -> 0 | F39: 0 | G39: 0 | H39: =TRANSPOSE(Z31:AK33) -> 0 | I39: 0 | J39: 0 | Y39: Elec Regional | AO39: Aviation | AP39: =Z46 -> 0 | AQ39: =AA46 -> 0 | AR39: 0 | AS39: 0 | AT39: 0 | AU39: 0 | AV39: 0 | AW39: 0 | AX39: 0 | AY39: 0 | AZ39: 0 | BA39: 0
B40: 2023 | C40: 0 | D40: 0 | E40: 0 | F40: 0 | G40: 0 | H40: 0 | I40: 0 | J40: 0 | Y40: Elec Small Turbo | AO40: Maritime | AP40: =Z115 -> 0 | AQ40: =AA115 -> 0 | AR40: 0 | AS40: 0 | AT40: 0 | AU40: 0 | AV40: 0 | AW40: 0 | AX40: 0 | AY40: 0 | AZ40: 0 | BA40: 0
B41: 2024 | C41: 0 | D41: 0 | E41: 0 | F41: 0 | G41: 0 | H41: 0 | I41: 0 | J41: 0 | Y41: Elec Large Turbo | AO41: Rail | AP41: =Z302 -> 0 | AQ41: =AA302 -> 0 | AR41: 0 | AS41: 0 | AT41: 0 | AU41: 0 | AV41: 0 | AW41: 0 | AX41: 0 | AY41: 0 | AZ41: 0 | BA41: 0
B42: 2025 | C42: 0 | D42: 0 | E42: 0 | F42: 0 | G42: 0 | H42: 0 | I42: 0 | J42: 0 | Y42: Total Electricity | AO42: Road | AP42: =Z218 -> 0 | AQ42: 0 | AR42: 0 | AS42: 0 | AT42: 0 | AU42: 0 | AV42: 0 | AW42: 0 | AX42: 0 | AY42: 0 | AZ42: 0 | BA42: 0
B43: 2026 | C43: 0 | D43: 0 | E43: 0 | F43: 0 | G43: 0 | H43: 0 | I43: 0 | J43: 0 | X43: Blank | Y43: LH2 Narrow Body
B44: 2027 | C44: 0 | D44: 0 | E44: 0 | F44: 0 | G44: 0 | H44: 0 | I44: 0 | J44: 0 | Y44: LH2 Regional
B45: 2028 | C45: 0 | D45: 0 | E45: 0 | F45: 0 | G45: 0 | H45: 0 | I45: 0 | J45: 0 | Y45: LH2 Wide Body
B46: 2029 | C46: 0 | D46: 0 | E46: 0 | F46: 0 | G46: 0 | H46: 0 | I46: 0 | J46: 0 | Y46: Total Hydrogen
B47: 2030 | C47: 0 | D47: 0 | E47: 0 | F47: 0 | G47: 0 | H47: 0 | I47: 0 | J47: 0 | Y47: Elec Regional | AO47: Scenario A: Low Hydrogen | AP47: 2022 | AQ47: 2023 | AR47: 2024 | AS47: 2025 | AT47: 2026 | AU47: 2027 | AV47: 2028 | AW47: 2029 | AX47: 2030 | AY47: 2035 | AZ47: 2040 | BA47: 2045
B48: 2035 | C48: 0 | D48: 0 | E48: 0 | F48: 0 | G48: 0 | H48: 0 | I48: 0 | J48: 0 | Y48: Elec Small Turbo | AO48: Aviation | AP48: =Z10 -> 0 | AQ48: =AA10 -> 0 | AR48: 0 | AS48: 0 | AT48: 0 | AU48: 0 | AV48: 0 | AW48: 0 | AX48: 0 | AY48: 0 | AZ48: 0 | BA48: 0
B49: 2040 | C49: 0 | D49: 0 | E49: 0 | F49: 0 | G49: 0 | H49: 0 | I49: 0 | J49: 0 | Y49: Elec Large Turbo | AO49: Maritime | AP49: =Z84 -> 0 | AQ49: =AA84 -> 0 | AR49: 0 | AS49: 0 | AT49: 0 | AU49: 0 | AV49: 0 | AW49: 0 | AX49: 0 | AY49: 0 | AZ49: 0 | BA49: 0
B50: 2045 | C50: 0 | D50: 0 | E50: 0 | F50: 0 | G50: 0 | H50: 0 | I50: 0 | J50: 0 | Y50: Total Electricity | AO50: Rail | AP50: =Z241 -> 0 | AQ50: =AA241 -> 0 | AR50: 0 | AS50: 0 | AT50: 0 | AU50: 0 | AV50: 0 | AW50: 0 | AX50: 0 | AY50: 0 | AZ50: 0 | BA50: 0
A51: Scenario 5: High Electric + High Hydrogen | B51: 2022 | C51: 0 | D51: 0 | E51: =TRANSPOSE(Z35:AK37) -> 0 | F51: 0 | G51: 0 | H51: =TRANSPOSE(Z39:AK41) -> 0 | I51: 0 | J51: 0 | AO51: Road | AP51: =Z164 -> 0 | AQ51: 0 | AR51: 0 | AS51: 0 | AT51: 0 | AU51: 0 | AV51: 0 | AW51: 0 | AX51: 0 | AY51: 0 | AZ51: 0 | BA51: 0
B52: 2023 | C52: 0 | D52: 0 | E52: 0 | F52: 0 | G52: 0 | H52: 0 | I52: 0 | J52: 0
B53: 2024 | C53: 0 | D53: 0 | E53: 0 | F53: 0 | G53: 0 | H53: 0 | I53: 0 | J53: 0
B54: 2025 | C54: 0 | D54: 0 | E54: 0 | F54: 0 | G54: 0 | H54: 0 | I54: 0 | J54: 0 | AO54: Scenario B: Medium Hydrogen | AP54: 2022 | AQ54: 2023 | AR54: 2024 | AS54: 2025 | AT54: 2026 | AU54: 2027 | AV54: 2028 | AW54: 2029 | AX54: 2030 | AY54: 2035 | AZ54: 2040 | BA54: 2045
B55: 2026 | C55: 0 | D55: 0 | E55: 0 | F55: 0 | G55: 0 | H55: 0 | I55: 0 | J55: 0 | AO55: Aviation | AP55: =Z18 -> 0 | AQ55: =AA18 -> 0 | AR55: 0 | AS55: 0 | AT55: 0 | AU55: 0 | AV55: 0 | AW55: 0 | AX55: 0 | AY55: 0 | AZ55: 0 | BA55: 0
B56: 2027 | C56: 0 | D56: 0 | E56: 0 | F56: 0 | G56: 0 | H56: 0 | I56: 0 | J56: 0 | AO56: Maritime | AP56: =Z91 -> 0 | AQ56: =AA91 -> 0 | AR56: 0 | AS56: 0 | AT56: 0 | AU56: 0 | AV56: 0 | AW56: 0 | AX56: 0 | AY56: 0 | AZ56: 0 | BA56: 0
B57: 2028 | C57: 0 | D57: 0 | E57: 0 | F57: 0 | G57: 0 | H57: 0 | I57: 0 | J57: 0 | AO57: Rail | AP57: =Z255 -> 0 | AQ57: =AA255 -> 0 | AR57: 0 | AS57: 0 | AT57: 0 | AU57: 0 | AV57: 0 | AW57: 0 | AX57: 0 | AY57: 0 | AZ57: 0 | BA57: 0
B58: 2029 | C58: 0 | D58: 0 | E58: 0 | F58: 0 | G58: 0 | H58: 0 | I58: 0 | J58: 0 | AO58: Road | AP58: =Z176 -> 0 | AQ58: 0 | AR58: 0 | AS58: 0 | AT58: 0 | AU58: 0 | AV58: 0 | AW58: 0 | AX58: 0 | AY58: 0 | AZ58: 0 | BA58: 0
B59: 2030 | C59: 0 | D59: 0 | E59: 0 | F59: 0 | G59: 0 | H59: 0 | I59: 0 | J59: 0
B60: 2035 | C60: 0 | D60: 0 | E60: 0 | F60: 0 | G60: 0 | H60: 0 | I60: 0 | J60: 0
B61: 2040 | C61: 0 | D61: 0 | E61: 0 | F61: 0 | G61: 0 | H61: 0 | I61: 0 | J61: 0 | AO61: Scenario C: High Hydrogen | AP61: 2022 | AQ61: 2023 | AR61: 2024 | AS61: 2025 | AT61: 2026 | AU61: 2027 | AV61: 2028 | AW61: 2029 | AX61: 2030 | AY61: 2035 | AZ61: 2040 | BA61: 2045
B62: 2045 | C62: 0 | D62: 0 | E62: 0 | F62: 0 | G62: 0 | H62: 0 | I62: 0 | J62: 0 | AO62: Aviation | AP62: =Z26 -> 0 | AQ62: =AA26 -> 0 | AR62: 0 | AS62: 0 | AT62: 0 | AU62: 0 | AV62: 0 | AW62: 0 | AX62: 0 | AY62: 0 | AZ62: 0 | BA62: 0
A63: Scenario 6: Medium Electric + Medium Hydrogen | B63: 2022 | C63: 0 | D63: 0 | E63: =TRANSPOSE(Z43:AK45) -> 0 | F63: 0 | G63: 0 | H63: =TRANSPOSE(Z47:AK49) -> 0 | I63: 0 | J63: 0 | AO63: Maritime | AP63: =Z98 -> 0 | AQ63: =AA98 -> 0 | AR63: 0 | AS63: 0 | AT63: 0 | AU63: 0 | AV63: 0 | AW63: 0 | AX63: 0 | AY63: 0 | AZ63: 0 | BA63: 0
B64: 2023 | C64: 0 | D64: 0 | E64: 0 | F64: 0 | G64: 0 | H64: 0 | I64: 0 | J64: 0 | AO64: Rail | AP64: =Z269 -> 0 | AQ64: =AA269 -> 0 | AR64: 0 | AS64: 0 | AT64: 0 | AU64: 0 | AV64: 0 | AW64: 0 | AX64: 0 | AY64: 0 | AZ64: 0 | BA64: 0
B65: 2024 | C65: 0 | D65: 0 | E65: 0 | F65: 0 | G65: 0 | H65: 0 | I65: 0 | J65: 0 | AO65: Road | AP65: =Z188 -> 0 | AQ65: 0 | AR65: 0 | AS65: 0 | AT65: 0 | AU65: 0 | AV65: 0 | AW65: 0 | AX65: 0 | AY65: 0 | AZ65: 0 | BA65: 0
B66: 2025 | C66: 0 | D66: 0 | E66: 0 | F66: 0 | G66: 0 | H66: 0 | I66: 0 | J66: 0
B67: 2026 | C67: =SUM(E67:G67) -> 0 | D67: =SUM(H67:J67) -> 0 | E67: 0 | F67: 0 | G67: 0 | H67: 0 | I67: 0 | J67: 0
B68: 2027 | C68: 0 | D68: 0 | E68: 0 | F68: 0 | G68: 0 | H68: 0 | I68: 0 | J68: 0 | AO68: Blank | AP68: 2022 | AQ68: 2023 | AR68: 2024 | AS68: 2025 | AT68: 2026 | AU68: 2027 | AV68: 2028 | AW68: 2029 | AX68: 2030 | AY68: 2035 | AZ68: 2040 | BA68: 2045
B69: 2028 | C69: 0 | D69: 0 | E69: 0 | F69: 0 | G69: 0 | H69: 0 | I69: 0 | J69: 0 | AO69: Aviation | AP69: =Z34 -> 0 | AQ69: =AA34 -> 0 | AR69: 0 | AS69: 0 | AT69: 0 | AU69: 0 | AV69: 0 | AW69: 0 | AX69: 0 | AY69: 0 | AZ69: 0 | BA69: 0
B70: 2029 | C70: 0 | D70: 0 | E70: 0 | F70: 0 | G70: 0 | H70: 0 | I70: 0 | J70: 0 | AO70: Maritime | AP70: =Z105 -> 0 | AQ70: =AA105 -> 0 | AR70: 0 | AS70: 0 | AT70: 0 | AU70: 0 | AV70: 0 | AW70: 0 | AX70: 0 | AY70: 0 | AZ70: 0 | BA70: 0
B71: 2030 | C71: 0 | D71: 0 | E71: 0 | F71: 0 | G71: 0 | H71: 0 | I71: 0 | J71: 0 | AO71: Rail | AP71: =Z283 -> 0 | AQ71: =AA283 -> 0 | AR71: 0 | AS71: 0 | AT71: 0 | AU71: 0 | AV71: 0 | AW71: 0 | AX71: 0 | AY71: 0 | AZ71: 0 | BA71: 0
B72: 2035 | C72: 0 | D72: 0 | E72: 0 | F72: 0 | G72: 0 | H72: 0 | I72: 0 | J72: 0 | AO72: Road | AP72: =Z200 -> 0 | AQ72: 0 | AR72: 0 | AS72: 0 | AT72: 0 | AU72: 0 | AV72: 0 | AW72: 0 | AX72: 0 | AY72: 0 | AZ72: 0 | BA72: 0
B73: 2040 | C73: 0 | D73: 0 | E73: 0 | F73: 0 | G73: 0 | H73: 0 | I73: 0 | J73: 0
B74: 2045 | C74: 0 | D74: 0 | E74: 0 | F74: 0 | G74: 0 | H74: 0 | I74: 0 | J74: 0
AO75: Blank | AP75: 2022 | AQ75: 2023 | AR75: 2024 | AS75: 2025 | AT75: 2026 | AU75: 2027 | AV75: 2028 | AW75: 2029 | AX75: 2030 | AY75: 2035 | AZ75: 2040 | BA75: 2045
A76: Maritime | AO76: Aviation | AP76: =Z42 -> 0 | AQ76: =AA42 -> 0 | AR76: 0 | AS76: 0 | AT76: 0 | AU76: 0 | AV76: 0 | AW76: 0 | AX76: 0 | AY76: 0 | AZ76: 0 | BA76: 0
C77: Hydrogen | D77: Electricity | E77: Ferries - Hydrogen | F77: Shipping - Ammonia | G77: Total Hydrogen | H77: Ferries - Electric | I77: Shipping - Electric | J77: Shipping - Shore Power | K77: Total Electricity | Z77: 2022 | AA77: 2023 | AB77: 2024 | AC77: 2025 | AD77: 2026 | AE77: 2027 | AF77: 2028 | AG77: 2029 | AH77: 2030 | AI77: 2035 | AJ77: 2040 | AK77: 2045 | AO77: Maritime | AP77: =Z112 -> 0 | AQ77: =AA112 -> 0 | AR77: 0 | AS77: 0 | AT77: 0 | AU77: 0 | AV77: 0 | AW77: 0 | AX77: 0 | AY77: 0 | AZ77: 0 | BA77: 0
A78: Scenario A: Low Hydrogen (GWh) | B78: 2022 | C78: =SUM(E78:F78) -> 0 | D78: =SUM(H78:J78) -> 0 | E78: =TRANSPOSE(Z78:AK84) -> 0 | F78: 0 | G78: 0 | H78: 0 | I78: 0 | J78: 0 | K78: 0 | X78: Scenario A: Low Hydrogen | Y78: Ferries - Hydrogen | Z78: ='Ferries Summary'!E12 -> 0 | AA78: ='Ferries Summary'!F12 -> 0 | AB78: ='Ferries Summary'!G12 -> 0 | AC78: ='Ferries Summary'!H12 -> 0 | AD78: ='Ferries Summary'!I12 -> 0 | AE78: ='Ferries Summary'!J12 -> 0 | AF78: ='Ferries Summary'!K12 -> 0 | AG78: ='Ferries Summary'!L12 -> 0 | AH78: ='Ferries Summary'!M12 -> 0 | AI78: ='Ferries Summary'!N12 -> 216276080 | AJ78: ='Ferries Summary'!O12 -> 1152614335 | AK78: ='Ferries Summary'!P12 -> 1152614335 | AO78: Rail | AP78: =Z297 -> 0 | AQ78: =AA297 -> 0 | AR78: 0 | AS78: 0 | AT78: 0 | AU78: 0 | AV78: 0 | AW78: 0 | AX78: 0 | AY78: 0 | AZ78: 0 | BA78: 0
B79: 2023 | C79: 0 | D79: 0 | E79: 0 | F79: 0 | G79: 0 | H79: 0 | I79: 0 | J79: 0 | K79: 0 | Y79: Shipping - Hydrogen | Z79: ='Shipping Summary'!H13 -> 0 | AA79: ='Shipping Summary'!I13 -> 0 | AB79: ='Shipping Summary'!J13 -> 0 | AC79: ='Shipping Summary'!K13 -> 0 | AD79: ='Shipping Summary'!L13 -> 0 | AE79: ='Shipping Summary'!M13 -> 0 | AF79: ='Shipping Summary'!N13 -> 0 | AG79: ='Shipping Summary'!O13 -> 0 | AH79: ='Shipping Summary'!P13 -> 86696.12245 | AI79: ='Shipping Summary'!Q13 -> 531311.6338 | AJ79: ='Shipping Summary'!R13 -> 994922.2917 | AK79: ='Shipping Summary'!S13 -> 1478137.586 | AO79: Road | AP79: =Z212 -> 0 | AQ79: 0 | AR79: 0 | AS79: 0 | AT79: 0 | AU79: 0 | AV79: 0 | AW79: 0 | AX79: 0 | AY79: 0 | AZ79: 0 | BA79: 0
B80: 2024 | C80: 0 | D80: 0 | E80: 0 | F80: 0 | G80: 0 | H80: 0 | I80: 0 | J80: 0 | K80: 0 | Y80: Total Hydrogen | Z80: =SUM(Z78:Z79) -> 0 | AA80: =SUM(AA78:AA79) -> 0 | AB80: 0 | AC80: 0 | AD80: 0 | AE80: 0 | AF80: 0 | AG80: 0 | AH80: 86696.12245 | AI80: 216807391.7 | AJ80: 1153609257 | AK80: 1154092473
B81: 2025 | C81: 0 | D81: 0 | E81: 0 | F81: 0 | G81: 0 | H81: 0 | I81: 0 | J81: 0 | K81: 0 | Y81: Ferries - Electric | Z81: ='Ferries Summary'!E11 -> 0 | AA81: ='Ferries Summary'!F11 -> 0 | AB81: ='Ferries Summary'!G11 -> 0 | AC81: ='Ferries Summary'!H11 -> 0 | AD81: ='Ferries Summary'!I11 -> 0 | AE81: ='Ferries Summary'!J11 -> 0 | AF81: ='Ferries Summary'!K11 -> 0 | AG81: ='Ferries Summary'!L11 -> 0 | AH81: ='Ferries Summary'!M11 -> 0 | AI81: ='Ferries Summary'!N11 -> 0 | AJ81: ='Ferries Summary'!O11 -> 0 | AK81: ='Ferries Summary'!P11 -> 0
B82: 2026 | C82: 0 | D82: 0 | E82: 0 | F82: 0 | G82: 0 | H82: 0 | I82: 0 | J82: 0 | K82: 0 | Y82: Shipping - Electric | Z82: ='Shipping Summary'!H11 -> 0 | AA82: ='Shipping Summary'!I11 -> 0 | AB82: ='Shipping Summary'!J11 -> 0 | AC82: ='Shipping Summary'!K11 -> 0 | AD82: ='Shipping Summary'!L11 -> 0 | AE82: ='Shipping Summary'!M11 -> 0 | AF82: ='Shipping Summary'!N11 -> 0 | AG82: ='Shipping Summary'!O11 -> 0 | AH82: ='Shipping Summary'!P11 -> 0 | AI82: ='Shipping Summary'!Q11 -> 0 | AJ82: ='Shipping Summary'!R11 -> 0 | AK82: ='Shipping Summary'!S11 -> 0
B83: 2027 | C83: 0 | D83: 0 | E83: 0 | F83: 0 | G83: 0 | H83: 0 | I83: 0 | J83: 0 | K83: 0 | Y83: Shipping - Shore Power | Z83: ='Shipping Summary'!H12 -> 0 | AA83: ='Shipping Summary'!I12 -> 0 | AB83: ='Shipping Summary'!J12 -> 0 | AC83: ='Shipping Summary'!K12 -> 0 | AD83: ='Shipping Summary'!L12 -> 0 | AE83: ='Shipping Summary'!M12 -> 0 | AF83: ='Shipping Summary'!N12 -> 0 | AG83: ='Shipping Summary'!O12 -> 0 | AH83: ='Shipping Summary'!P12 -> 0 | AI83: ='Shipping Summary'!Q12 -> 0 | AJ83: ='Shipping Summary'!R12 -> 0 | AK83: ='Shipping Summary'!S12 -> 0 | AO83: Blank | AP83: 2022 | AQ83: 2023 | AR83: 2024 | AS83: 2025 | AT83: 2026 | AU83: 2027 | AV83: 2028 | AW83: 2029 | AX83: 2030 | AY83: 2035 | AZ83: 2040 | BA83: 2045
B84: 2028 | C84: 0 | D84: 0 | E84: 0 | F84: 0 | G84: 0 | H84: 0 | I84: 0 | J84: 0 | K84: 0 | Y84: Total Electricity | Z84: =SUM(Z81:Z83) -> 0 | AA84: =SUM(AA81:AA83) -> 0 | AB84: 0 | AC84: 0 | AD84: 0 | AE84: 0 | AF84: 0 | AG84: 0 | AH84: 0 | AI84: 0 | AJ84: 0 | AK84: 0 | AO84: Aviation | AP84: =Z50 -> 0 | AQ84: =AA50 -> 0 | AR84: 0 | AS84: 0 | AT84: 0 | AU84: 0 | AV84: 0 | AW84: 0 | AX84: 0 | AY84: 0 | AZ84: 0 | BA84: 0
B85: 2029 | C85: 0 | D85: 0 | E85: 0 | F85: 0 | G85: 0 | H85: 0 | I85: 0 | J85: 0 | K85: 0 | X85: Scenario B: Medium Hydrogen | Y85: Ferries - Hydrogen | Z85: ='Ferries Summary'!E15 -> 0 | AA85: ='Ferries Summary'!F15 -> 0 | AB85: ='Ferries Summary'!G15 -> 0 | AC85: ='Ferries Summary'!H15 -> 0 | AD85: ='Ferries Summary'!I15 -> 0 | AE85: ='Ferries Summary'!J15 -> 0 | AF85: ='Ferries Summary'!K15 -> 0 | AG85: ='Ferries Summary'!L15 -> 0 | AH85: ='Ferries Summary'!M15 -> 216276080 | AI85: ='Ferries Summary'!N15 -> 1152614335 | AJ85: ='Ferries Summary'!O15 -> 1152614335 | AK85: ='Ferries Summary'!P15 -> 1152614335 | AO85: Maritime | AP85: =Z119 -> 0 | AQ85: =AA119 -> 0 | AR85: 0 | AS85: 0 | AT85: 0 | AU85: 0 | AV85: 0 | AW85: 0 | AX85: 0 | AY85: 0 | AZ85: 0 | BA85: 0
B86: 2030 | C86: 86696.12245 | D86: 0 | E86: 0 | F86: 86696.12245 | G86: 86696.12245 | H86: 0 | I86: 0 | J86: 0 | K86: 0 | Y86: Shipping - Hydrogen | Z86: ='Shipping Summary'!H17 -> 0 | AA86: ='Shipping Summary'!I17 -> 0 | AB86: ='Shipping Summary'!J17 -> 0 | AC86: ='Shipping Summary'!K17 -> 0 | AD86: ='Shipping Summary'!L17 -> 0 | AE86: ='Shipping Summary'!M17 -> 0 | AF86: ='Shipping Summary'!N17 -> 0 | AG86: ='Shipping Summary'!O17 -> 0 | AH86: ='Shipping Summary'!P17 -> 222487.63 | AI86: ='Shipping Summary'!Q17 -> 1363501.191 | AJ86: ='Shipping Summary'!R17 -> 2553261.858 | AK86: ='Shipping Summary'!S17 -> 3793333.762 | AO86: Rail | AP86: =Z311 -> 0 | AQ86: =AA311 -> 0 | AR86: 0 | AS86: 0 | AT86: 0 | AU86: 0 | AV86: 0 | AW86: 0 | AX86: 0 | AY86: 0 | AZ86: 0 | BA86: 0
B87: 2035 | C87: 216807391.7 | D87: 0 | E87: 216276080 | F87: 531311.6338 | G87: 216807391.7 | H87: 0 | I87: 0 | J87: 0 | K87: 0 | Y87: Total Hydrogen | Z87: =SUM(Z85:Z86) -> 0 | AA87: =SUM(AA85:AA86) -> 0 | AB87: =SUM(AB85:AB86) -> 0 | AC87: =SUM(AC85:AC86) -> 0 | AD87: =SUM(AD85:AD86) -> 0 | AE87: =SUM(AE85:AE86) -> 0 | AF87: =SUM(AF85:AF86) -> 0 | AG87: =SUM(AG85:AG86) -> 0 | AH87: =SUM(AH85:AH86) -> 216498567.7 | AI87: =SUM(AI85:AI86) -> 1153977836 | AJ87: =SUM(AJ85:AJ86) -> 1155167597 | AK87: =SUM(AK85:AK86) -> 1156407669 | AO87: Road | AP87: =Z224 -> 0 | AQ87: 0 | AR87: 0 | AS87: 0 | AT87: 0 | AU87: 0 | AV87: 0 | AW87: 0 | AX87: 0 | AY87: 0 | AZ87: 0 | BA87: 0
B88: 2040 | C88: 1153609257 | D88: 0 | E88: 1152614335 | F88: 994922.2917 | G88: 1153609257 | H88: 0 | I88: 0 | J88: 0 | K88: 0 | Y88: Ferries - Electric | Z88: ='Ferries Summary'!E14 -> 0 | AA88: ='Ferries Summary'!F14 -> 0 | AB88: ='Ferries Summary'!G14 -> 0 | AC88: ='Ferries Summary'!H14 -> 0 | AD88: ='Ferries Summary'!I14 -> 0 | AE88: ='Ferries Summary'!J14 -> 0 | AF88: ='Ferries Summary'!K14 -> 0 | AG88: ='Ferries Summary'!L14 -> 0 | AH88: ='Ferries Summary'!M14 -> 0 | AI88: ='Ferries Summary'!N14 -> 0 | AJ88: ='Ferries Summary'!O14 -> 0 | AK88: ='Ferries Summary'!P14 -> 0
B89: 2045 | C89: 1154092473 | D89: 0 | E89: 1152614335 | F89: 1478137.586 | G89: 1154092473 | H89: 0 | I89: 0 | J89: 0 | K89: 0 | Y89: Shipping - Electric | Z89: ='Shipping Summary'!H15 -> 0 | AA89: ='Shipping Summary'!I15 -> 0 | AB89: ='Shipping Summary'!J15 -> 0 | AC89: ='Shipping Summary'!K15 -> 0 | AD89: ='Shipping Summary'!L15 -> 0 | AE89: ='Shipping Summary'!M15 -> 0 | AF89: ='Shipping Summary'!N15 -> 0 | AG89: ='Shipping Summary'!O15 -> 0 | AH89: ='Shipping Summary'!P15 -> 0 | AI89: ='Shipping Summary'!Q15 -> 0 | AJ89: ='Shipping Summary'!R15 -> 0 | AK89: ='Shipping Summary'!S15 -> 0
A90: Scenario B: Medium Hydrogen (GWh) | B90: 2022 | C90: 0 | D90: 0 | E90: =TRANSPOSE(Z85:AK91) -> 0 | F90: 0 | G90: 0 | H90: 0 | I90: 0 | J90: 0 | K90: 0 | Y90: Shipping - Shore Power | Z90: ='Shipping Summary'!H16 -> 0 | AA90: ='Shipping Summary'!I16 -> 0 | AB90: ='Shipping Summary'!J16 -> 0 | AC90: ='Shipping Summary'!K16 -> 0 | AD90: ='Shipping Summary'!L16 -> 0 | AE90: ='Shipping Summary'!M16 -> 0 | AF90: ='Shipping Summary'!N16 -> 0 | AG90: ='Shipping Summary'!O16 -> 0 | AH90: ='Shipping Summary'!P16 -> 0 | AI90: ='Shipping Summary'!Q16 -> 0 | AJ90: ='Shipping Summary'!R16 -> 0 | AK90: ='Shipping Summary'!S16 -> 0
B91: 2023 | C91: 0 | D91: 0 | E91: 0 | F91: 0 | G91: 0 | H91: 0 | I91: 0 | J91: 0 | K91: 0 | Y91: Total Electricity | Z91: =SUM(Z88:Z90) -> 0 | AA91: =SUM(AA88:AA90) -> 0 | AB91: =SUM(AB88:AB90) -> 0 | AC91: =SUM(AC88:AC90) -> 0 | AD91: =SUM(AD88:AD90) -> 0 | AE91: =SUM(AE88:AE90) -> 0 | AF91: =SUM(AF88:AF90) -> 0 | AG91: =SUM(AG88:AG90) -> 0 | AH91: =SUM(AH88:AH90) -> 0 | AI91: =SUM(AI88:AI90) -> 0 | AJ91: =SUM(AJ88:AJ90) -> 0 | AK91: =SUM(AK88:AK90) -> 0
B92: 2024 | C92: 0 | D92: 0 | E92: 0 | F92: 0 | G92: 0 | H92: 0 | I92: 0 | J92: 0 | K92: 0 | X92: Scenario C: High Hydrogen | Y92: Ferries - Hydrogen | Z92: ='Ferries Summary'!E18 -> 0 | AA92: ='Ferries Summary'!F18 -> 0 | AB92: ='Ferries Summary'!G18 -> 0 | AC92: ='Ferries Summary'!H18 -> 0 | AD92: ='Ferries Summary'!I18 -> 0 | AE92: ='Ferries Summary'!J18 -> 0 | AF92: ='Ferries Summary'!K18 -> 216276080 | AG92: ='Ferries Summary'!L18 -> 792583247.6 | AH92: ='Ferries Summary'!M18 -> 1152614335 | AI92: ='Ferries Summary'!N18 -> 1152614335 | AJ92: ='Ferries Summary'!O18 -> 1152614335 | AK92: ='Ferries Summary'!P18 -> 1152614335
B93: 2025 | C93: 0 | D93: 0 | E93: 0 | F93: 0 | G93: 0 | H93: 0 | I93: 0 | J93: 0 | K93: 0 | Y93: Shipping - Hydrogen | Z93: ='Shipping Summary'!H21 -> 0 | AA93: ='Shipping Summary'!I21 -> 0 | AB93: ='Shipping Summary'!J21 -> 0 | AC93: ='Shipping Summary'!K21 -> 0 | AD93: ='Shipping Summary'!L21 -> 0 | AE93: ='Shipping Summary'!M21 -> 0 | AF93: ='Shipping Summary'!N21 -> 0 | AG93: ='Shipping Summary'!O21 -> 0 | AH93: ='Shipping Summary'!P21 -> 395724.0352 | AI93: ='Shipping Summary'!Q21 -> 2425169.405 | AJ93: ='Shipping Summary'!R21 -> 4541318.03 | AK93: ='Shipping Summary'!S21 -> 6746951.924
B94: 2026 | C94: 0 | D94: 0 | E94: 0 | F94: 0 | G94: 0 | H94: 0 | I94: 0 | J94: 0 | K94: 0 | Y94: Total Hydrogen | Z94: =SUM(Z92:Z93) -> 0 | AA94: =SUM(AA92:AA93) -> 0 | AB94: =SUM(AB92:AB93) -> 0 | AC94: =SUM(AC92:AC93) -> 0 | AD94: =SUM(AD92:AD93) -> 0 | AE94: =SUM(AE92:AE93) -> 0 | AF94: =SUM(AF92:AF93) -> 216276080 | AG94: =SUM(AG92:AG93) -> 792583247.6 | AH94: =SUM(AH92:AH93) -> 1153010059 | AI94: =SUM(AI92:AI93) -> 1155039504 | AJ94: =SUM(AJ92:AJ93) -> 1157155653 | AK94: =SUM(AK92:AK93) -> 1159361287
B95: 2027 | C95: 0 | D95: 0 | E95: 0 | F95: 0 | G95: 0 | H95: 0 | I95: 0 | J95: 0 | K95: 0 | Y95: Ferries - Electric | Z95: ='Ferries Summary'!E17 -> 0 | AA95: ='Ferries Summary'!F17 -> 0 | AB95: ='Ferries Summary'!G17 -> 0 | AC95: ='Ferries Summary'!H17 -> 0 | AD95: ='Ferries Summary'!I17 -> 0 | AE95: ='Ferries Summary'!J17 -> 0 | AF95: ='Ferries Summary'!K17 -> 0 | AG95: ='Ferries Summary'!L17 -> 0 | AH95: ='Ferries Summary'!M17 -> 0 | AI95: ='Ferries Summary'!N17 -> 0 | AJ95: ='Ferries Summary'!O17 -> 0 | AK95: ='Ferries Summary'!P17 -> 0
B96: 2028 | C96: 0 | D96: 0 | E96: 0 | F96: 0 | G96: 0 | H96: 0 | I96: 0 | J96: 0 | K96: 0 | Y96: Shipping - Electric | Z96: ='Shipping Summary'!H19 -> 0 | AA96: ='Shipping Summary'!I19 -> 0 | AB96: ='Shipping Summary'!J19 -> 0 | AC96: ='Shipping Summary'!K19 -> 0 | AD96: ='Shipping Summary'!L19 -> 0 | AE96: ='Shipping Summary'!M19 -> 0 | AF96: ='Shipping Summary'!N19 -> 0 | AG96: ='Shipping Summary'!O19 -> 0 | AH96: ='Shipping Summary'!P19 -> 0 | AI96: ='Shipping Summary'!Q19 -> 0 | AJ96: ='Shipping Summary'!R19 -> 0 | AK96: ='Shipping Summary'!S19 -> 0
B97: 2029 | C97: 0 | D97: 0 | E97: 0 | F97: 0 | G97: 0 | H97: 0 | I97: 0 | J97: 0 | K97: 0 | Y97: Shipping - Shore Power | Z97: ='Shipping Summary'!H20 -> 0 | AA97: ='Shipping Summary'!I20 -> 0 | AB97: ='Shipping Summary'!J20 -> 0 | AC97: ='Shipping Summary'!K20 -> 0 | AD97: ='Shipping Summary'!L20 -> 0 | AE97: ='Shipping Summary'!M20 -> 0 | AF97: ='Shipping Summary'!N20 -> 0 | AG97: ='Shipping Summary'!O20 -> 0 | AH97: ='Shipping Summary'!P20 -> 0 | AI97: ='Shipping Summary'!Q20 -> 0 | AJ97: ='Shipping Summary'!R20 -> 0 | AK97: ='Shipping Summary'!S20 -> 0
B98: 2030 | C98: 216498567.7 | D98: 0 | E98: 216276080 | F98: 222487.63 | G98: 216498567.7 | H98: 0 | I98: 0 | J98: 0 | K98: 0 | Y98: Total Electricity | Z98: =SUM(Z95:Z97) -> 0 | AA98: =SUM(AA95:AA97) -> 0 | AB98: =SUM(AB95:AB97) -> 0 | AC98: =SUM(AC95:AC97) -> 0 | AD98: =SUM(AD95:AD97) -> 0 | AE98: =SUM(AE95:AE97) -> 0 | AF98: =SUM(AF95:AF97) -> 0 | AG98: =SUM(AG95:AG97) -> 0 | AH98: =SUM(AH95:AH97) -> 0 | AI98: =SUM(AI95:AI97) -> 0 | AJ98: =SUM(AJ95:AJ97) -> 0 | AK98: =SUM(AK95:AK97) -> 0
B99: 2035 | C99: 1153977836 | D99: 0 | E99: 1152614335 | F99: 1363501.191 | G99: 1153977836 | H99: 0 | I99: 0 | J99: 0 | K99: 0 | X99: Blank | Y99: Ferries - Hydrogen
B100: 2040 | C100: 1155167597 | D100: 0 | E100: 1152614335 | F100: 2553261.858 | G100: 1155167597 | H100: 0 | I100: 0 | J100: 0 | K100: 0 | Y100: Shipping - Hydrogen
B101: 2045 | C101: 1156407669 | D101: 0 | E101: 1152614335 | F101: 3793333.762 | G101: 1156407669 | H101: 0 | I101: 0 | J101: 0 | K101: 0 | Y101: Total Hydrogen
A102: Scenario C: High Hydrogen (GWh) | B102: 2022 | C102: 0 | D102: 0 | E102: =TRANSPOSE(Z92:AK98) -> 0 | F102: 0 | G102: 0 | H102: 0 | I102: 0 | J102: 0 | K102: 0 | Y102: Ferries - Electric
B103: 2023 | C103: 0 | D103: 0 | E103: 0 | F103: 0 | G103: 0 | H103: 0 | I103: 0 | J103: 0 | K103: 0 | Y103: Shipping - Electric
B104: 2024 | C104: 0 | D104: 0 | E104: 0 | F104: 0 | G104: 0 | H104: 0 | I104: 0 | J104: 0 | K104: 0 | Y104: Shipping - Shore Power
B105: 2025 | C105: 0 | D105: 0 | E105: 0 | F105: 0 | G105: 0 | H105: 0 | I105: 0 | J105: 0 | K105: 0 | Y105: Total Electricity
B106: 2026 | C106: 0 | D106: 0 | E106: 0 | F106: 0 | G106: 0 | H106: 0 | I106: 0 | J106: 0 | K106: 0 | X106: Blank | Y106: Ferries - Hydrogen
B107: 2027 | C107: 0 | D107: 0 | E107: 0 | F107: 0 | G107: 0 | H107: 0 | I107: 0 | J107: 0 | K107: 0 | Y107: Shipping - Hydrogen
B108: 2028 | C108: 216276080 | D108: 0 | E108: 216276080 | F108: 0 | G108: 216276080 | H108: 0 | I108: 0 | J108: 0 | K108: 0 | Y108: Total Hydrogen
B109: 2029 | C109: 792583247.6 | D109: 0 | E109: 792583247.6 | F109: 0 | G109: 792583247.6 | H109: 0 | I109: 0 | J109: 0 | K109: 0 | Y109: Ferries - Electric
B110: 2030 | C110: =SUM(E110:F110) -> 1153010059 | D110: =SUM(H110:J110) -> 0 | E110: 1152614335 | F110: 395724.0352 | G110: 1153010059 | H110: 0 | I110: 0 | J110: 0 | K110: 0 | Y110: Shipping - Electric
B111: 2035 | C111: 1155039504 | D111: 0 | E111: 1152614335 | F111: 2425169.405 | G111: 1155039504 | H111: 0 | I111: 0 | J111: 0 | K111: 0 | Y111: Shipping - Shore Power
B112: 2040 | C112: 1157155653 | D112: 0 | E112: 1152614335 | F112: 4541318.03 | G112: 1157155653 | H112: 0 | I112: 0 | J112: 0 | K112: 0 | Y112: Total Electricity
B113: 2045 | C113: 1159361287 | D113: 0 | E113: 1152614335 | F113: 6746951.924 | G113: 1159361287 | H113: 0 | I113: 0 | J113: 0 | K113: 0 | X113: Blank | Y113: Ferries - Hydrogen
A114: Scenario 4: High Electric + Low Hydrogen | B114: 2022 | C114: 0 | D114: 0 | E114: =TRANSPOSE(Z99:AK105) -> 0 | F114: 0 | G114: 0 | H114: 0 | I114: 0 | J114: 0 | K114: 0 | Y114: Shipping - Hydrogen
B115: 2023 | C115: 0 | D115: 0 | E115: 0 | F115: 0 | G115: 0 | H115: 0 | I115: 0 | J115: 0 | K115: 0 | Y115: Total Hydrogen
B116: 2024 | C116: 0 | D116: 0 | E116: 0 | F116: 0 | G116: 0 | H116: 0 | I116: 0 | J116: 0 | K116: 0 | Y116: Ferries - Electric
B117: 2025 | C117: 0 | D117: 0 | E117: 0 | F117: 0 | G117: 0 | H117: 0 | I117: 0 | J117: 0 | K117: 0 | Y117: Shipping - Electric
B118: 2026 | C118: 0 | D118: 0 | E118: 0 | F118: 0 | G118: 0 | H118: 0 | I118: 0 | J118: 0 | K118: 0 | Y118: Shipping - Shore Power
B119: 2027 | C119: 0 | D119: 0 | E119: 0 | F119: 0 | G119: 0 | H119: 0 | I119: 0 | J119: 0 | K119: 0 | Y119: Total Electricity
B120: 2028 | C120: 0 | D120: 0 | E120: 0 | F120: 0 | G120: 0 | H120: 0 | I120: 0 | J120: 0 | K120: 0
B121: 2029 | C121: 0 | D121: 0 | E121: 0 | F121: 0 | G121: 0 | H121: 0 | I121: 0 | J121: 0 | K121: 0
B122: 2030 | C122: 0 | D122: 0 | E122: 0 | F122: 0 | G122: 0 | H122: 0 | I122: 0 | J122: 0 | K122: 0
B123: 2035 | C123: 0 | D123: 0 | E123: 0 | F123: 0 | G123: 0 | H123: 0 | I123: 0 | J123: 0 | K123: 0
B124: 2040 | C124: 0 | D124: 0 | E124: 0 | F124: 0 | G124: 0 | H124: 0 | I124: 0 | J124: 0 | K124: 0
B125: 2045 | C125: 0 | D125: 0 | E125: 0 | F125: 0 | G125: 0 | H125: 0 | I125: 0 | J125: 0 | K125: 0
A126: Scenario 5: High Electric + High Hydrogen | B126: 2022 | C126: 0 | D126: 0 | E126: =TRANSPOSE(Z106:AK112) -> 0 | F126: 0 | G126: 0 | H126: 0 | I126: 0 | J126: 0 | K126: 0
B127: 2023 | C127: 0 | D127: 0 | E127: 0 | F127: 0 | G127: 0 | H127: 0 | I127: 0 | J127: 0 | K127: 0
B128: 2024 | C128: 0 | D128: 0 | E128: 0 | F128: 0 | G128: 0 | H128: 0 | I128: 0 | J128: 0 | K128: 0
B129: 2025 | C129: 0 | D129: 0 | E129: 0 | F129: 0 | G129: 0 | H129: 0 | I129: 0 | J129: 0 | K129: 0
B130: 2026 | C130: 0 | D130: 0 | E130: 0 | F130: 0 | G130: 0 | H130: 0 | I130: 0 | J130: 0 | K130: 0
B131: 2027 | C131: 0 | D131: 0 | E131: 0 | F131: 0 | G131: 0 | H131: 0 | I131: 0 | J131: 0 | K131: 0
B132: 2028 | C132: 0 | D132: 0 | E132: 0 | F132: 0 | G132: 0 | H132: 0 | I132: 0 | J132: 0 | K132: 0
B133: 2029 | C133: 0 | D133: 0 | E133: 0 | F133: 0 | G133: 0 | H133: 0 | I133: 0 | J133: 0 | K133: 0
B134: 2030 | C134: 0 | D134: 0 | E134: 0 | F134: 0 | G134: 0 | H134: 0 | I134: 0 | J134: 0 | K134: 0
B135: 2035 | C135: 0 | D135: 0 | E135: 0 | F135: 0 | G135: 0 | H135: 0 | I135: 0 | J135: 0 | K135: 0
B136: 2040 | C136: 0 | D136: 0 | E136: 0 | F136: 0 | G136: 0 | H136: 0 | I136: 0 | J136: 0 | K136: 0
B137: 2045 | C137: 0 | D137: 0 | E137: 0 | F137: 0 | G137: 0 | H137: 0 | I137: 0 | J137: 0 | K137: 0
A138: Scenario 6: Medium Electric + Medium Hydrogen | B138: 2022 | C138: 0 | D138: 0 | E138: =TRANSPOSE(Z113:AK119) -> 0 | F138: 0 | G138: 0 | H138: 0 | I138: 0 | J138: 0 | K138: 0
B139: 2023 | C139: 0 | D139: 0 | E139: 0 | F139: 0 | G139: 0 | H139: 0 | I139: 0 | J139: 0 | K139: 0
B140: 2024 | C140: 0 | D140: 0 | E140: 0 | F140: 0 | G140: 0 | H140: 0 | I140: 0 | J140: 0 | K140: 0
B141: 2025 | C141: 0 | D141: 0 | E141: 0 | F141: 0 | G141: 0 | H141: 0 | I141: 0 | J141: 0 | K141: 0
B142: 2026 | C142: =SUM(E142:F142) -> 0 | D142: =SUM(H142:J142) -> 0 | E142: 0 | F142: 0 | G142: 0 | H142: 0 | I142: 0 | J142: 0 | K142: 0
B143: 2027 | C143: 0 | D143: 0 | E143: 0 | F143: 0 | G143: 0 | H143: 0 | I143: 0 | J143: 0 | K143: 0
B144: 2028 | C144: 0 | D144: 0 | E144: 0 | F144: 0 | G144: 0 | H144: 0 | I144: 0 | J144: 0 | K144: 0
B145: 2029 | C145: 0 | D145: 0 | E145: 0 | F145: 0 | G145: 0 | H145: 0 | I145: 0 | J145: 0 | K145: 0
B146: 2030 | C146: 0 | D146: 0 | E146: 0 | F146: 0 | G146: 0 | H146: 0 | I146: 0 | J146: 0 | K146: 0
B147: 2035 | C147: 0 | D147: 0 | E147: 0 | F147: 0 | G147: 0 | H147: 0 | I147: 0 | J147: 0 | K147: 0
B148: 2040 | C148: 0 | D148: 0 | E148: 0 | F148: 0 | G148: 0 | H148: 0 | I148: 0 | J148: 0 | K148: 0
B149: 2045 | C149: 0 | D149: 0 | E149: 0 | F149: 0 | G149: 0 | H149: 0 | I149: 0 | J149: 0 | K149: 0
A151: Road
C152: Hydrogen | D152: Electricity | E152: Car - Hydrogen | F152: LGV - Hydrogen | G152: HGV - Hydrogen | H152: Bus - Hydrogen | I152: Coach - Hydrogen | J152: Total Hydrogen | K152: Car - Electric | L152: LGV - Electric | M152: HGV - Electric | N152: Bus - Electric | O152: Coach - Electric | P152: Total Electricity | Z152: 2022 | AA152: 2023 | AB152: 2024 | AC152: 2025 | AD152: 2026 | AE152: 2027 | AF152: 2028 | AG152: 2029 | AH152: 2030 | AI152: 2035 | AJ152: 2040 | AK152: 2045
A153: Scenario A: Low Hydrogen | B153: 2022 | C153: =SUM(E153:I153) -> 122939.8479 | D153: =SUM(K153:O153) -> 0 | E153: =TRANSPOSE(Z153:AK164) -> 118942.8219 | F153: 3997.025997 | G153: 0 | H153: 0 | I153: 0 | J153: 122939.8479 | K153: 0 | L153: 0 | M153: 0 | N153: 0 | O153: 0 | P153: 0 | X153: Scenario A: Low Hydrogen | Y153: Car - Hydrogen | Z153: ='Car Summary'!E6 -> 118942.8219 | AA153: ='Car Summary'!F6 -> 143181.834 | AB153: ='Car Summary'!G6 -> 163052.8283 | AC153: ='Car Summary'!H6 -> 198825.1482 | AD153: ='Car Summary'!I6 -> 245984.5246 | AE153: ='Car Summary'!J6 -> 283818.1093 | AF153: ='Car Summary'!K6 -> 316646.7583 | AG153: ='Car Summary'!L6 -> 351829.6232 | AH153: ='Car Summary'!M6 -> 624492.3293 | AI153: ='Car Summary'!N6 -> 2807536.777 | AJ153: ='Car Summary'!O6 -> 5734048.541 | AK153: ='Car Summary'!P6 -> 7020654.085
B154: 2023 | C154: 150302.7392 | D154: 0 | E154: 143181.834 | F154: 7120.905168 | G154: 0 | H154: 0 | I154: 0 | J154: 150302.7392 | K154: 0 | L154: 0 | M154: 0 | N154: 0 | O154: 0 | P154: 0 | Y154: LGV - Hydrogen | Z154: ='Van Summary'!E6 -> 3997.025997 | AA154: ='Van Summary'!F6 -> 7120.905168 | AB154: ='Van Summary'!G6 -> 10879.51329 | AC154: ='Van Summary'!H6 -> 16562.7697 | AD154: ='Van Summary'!I6 -> 24963.82149 | AE154: ='Van Summary'!J6 -> 34191.37542 | AF154: ='Van Summary'!K6 -> 43460.95124 | AG154: ='Van Summary'!L6 -> 51308.07829 | AH154: ='Van Summary'!M6 -> 116041.1104 | AI154: ='Van Summary'!N6 -> 458651.9248 | AJ154: ='Van Summary'!O6 -> 683934.6696 | AK154: ='Van Summary'!P6 -> 797628.2177
B155: 2024 | C155: 173932.3416 | D155: 0 | E155: 163052.8283 | F155: 10879.51329 | G155: 0 | H155: 0 | I155: 0 | J155: 173932.3416 | K155: 0 | L155: 0 | M155: 0 | N155: 0 | O155: 0 | P155: 0 | Y155: HGV - Hydrogen | Z155: ='HGV Summary'!E6 -> 0 | AA155: ='HGV Summary'!F6 -> 0 | AB155: ='HGV Summary'!G6 -> 0 | AC155: ='HGV Summary'!H6 -> 0 | AD155: ='HGV Summary'!I6 -> 842904.1123 | AE155: ='HGV Summary'!J6 -> 1797855.725 | AF155: ='HGV Summary'!K6 -> 2775506.067 | AG155: ='HGV Summary'!L6 -> 3860613.063 | AH155: ='HGV Summary'!M6 -> 5035286.802 | AI155: ='HGV Summary'!N6 -> 11586497.06 | AJ155: ='HGV Summary'!O6 -> 18704054.41 | AK155: ='HGV Summary'!P6 -> 25008752.82
B156: 2025 | C156: 215387.9179 | D156: 0 | E156: 198825.1482 | F156: 16562.7697 | G156: 0 | H156: 0 | I156: 0 | J156: 215387.9179 | K156: 0 | L156: 0 | M156: 0 | N156: 0 | O156: 0 | P156: 0 | Y156: Bus - Hydrogen | Z156: ='Bus Summary'!E24 -> 0 | AA156: ='Bus Summary'!F24 -> 0 | AB156: ='Bus Summary'!G24 -> 0 | AC156: ='Bus Summary'!H24 -> 0 | AD156: ='Bus Summary'!I24 -> 0 | AE156: ='Bus Summary'!J24 -> 0 | AF156: ='Bus Summary'!K24 -> 0 | AG156: ='Bus Summary'!L24 -> 0 | AH156: ='Bus Summary'!M24 -> 0 | AI156: ='Bus Summary'!N24 -> 0 | AJ156: ='Bus Summary'!O24 -> 521471.7131 | AK156: ='Bus Summary'!P24 -> 521471.7131
B157: 2026 | C157: 1113852.458 | D157: 0 | E157: 245984.5246 | F157: 24963.82149 | G157: 842904.1123 | H157: 0 | I157: 0 | J157: 1113852.458 | K157: 0 | L157: 0 | M157: 0 | N157: 0 | O157: 0 | P157: 0 | Y157: Coach - Hydrogen | Z157: ='Bus Summary'!E37 -> 0 | AA157: ='Bus Summary'!F37 -> 0 | AB157: ='Bus Summary'!G37 -> 0 | AC157: ='Bus Summary'!H37 -> 0 | AD157: ='Bus Summary'!I37 -> 0 | AE157: ='Bus Summary'!J37 -> 0 | AF157: ='Bus Summary'!K37 -> 0 | AG157: ='Bus Summary'!L37 -> 0 | AH157: ='Bus Summary'!M37 -> 0 | AI157: ='Bus Summary'!N37 -> 1042943.426 | AJ157: ='Bus Summary'!O37 -> 1042943.426 | AK157: ='Bus Summary'!P37 -> 1042943.426
B158: 2027 | C158: 2115865.209 | D158: 0 | E158: 283818.1093 | F158: 34191.37542 | G158: 1797855.725 | H158: 0 | I158: 0 | J158: 2115865.209 | K158: 0 | L158: 0 | M158: 0 | N158: 0 | O158: 0 | P158: 0 | Y158: Total Hydrogen | Z158: =SUM(Z153:Z157) -> 122939.8479 | AA158: 150302.7392 | AB158: 173932.3416 | AC158: 215387.9179 | AD158: 1113852.458 | AE158: 2115865.209 | AF158: 3135613.776 | AG158: 4263750.764 | AH158: 5775820.241 | AI158: 15895629.19 | AJ158: 26686452.76 | AK158: 34391450.26
B159: 2028 | C159: 3135613.776 | D159: 0 | E159: 316646.7583 | F159: 43460.95124 | G159: 2775506.067 | H159: 0 | I159: 0 | J159: 3135613.776 | K159: 0 | L159: 0 | M159: 0 | N159: 0 | O159: 0 | P159: 0 | Y159: Car - Electric | Z159: ='Car Summary'!E5 -> 0 | AA159: ='Car Summary'!F5 -> 0 | AB159: ='Car Summary'!G5 -> 0 | AC159: ='Car Summary'!H5 -> 0 | AD159: ='Car Summary'!I5 -> 0 | AE159: ='Car Summary'!J5 -> 0 | AF159: ='Car Summary'!K5 -> 0 | AG159: ='Car Summary'!L5 -> 0 | AH159: ='Car Summary'!M5 -> 0 | AI159: ='Car Summary'!N5 -> 0 | AJ159: ='Car Summary'!O5 -> 0 | AK159: ='Car Summary'!P5 -> 0
B160: 2029 | C160: 4263750.764 | D160: 0 | E160: 351829.6232 | F160: 51308.07829 | G160: 3860613.063 | H160: 0 | I160: 0 | J160: 4263750.764 | K160: 0 | L160: 0 | M160: 0 | N160: 0 | O160: 0 | P160: 0 | Y160: LGV - Electric | Z160: ='Van Summary'!E5 -> 0 | AA160: ='Van Summary'!F5 -> 0 | AB160: ='Van Summary'!G5 -> 0 | AC160: ='Van Summary'!H5 -> 0 | AD160: ='Van Summary'!I5 -> 0 | AE160: ='Van Summary'!J5 -> 0 | AF160: ='Van Summary'!K5 -> 0 | AG160: ='Van Summary'!L5 -> 0 | AH160: ='Van Summary'!M5 -> 0 | AI160: ='Van Summary'!N5 -> 0 | AJ160: ='Van Summary'!O5 -> 0 | AK160: ='Van Summary'!P5 -> 0
B161: 2030 | C161: 5775820.241 | D161: 0 | E161: 624492.3293 | F161: 116041.1104 | G161: 5035286.802 | H161: 0 | I161: 0 | J161: 5775820.241 | K161: 0 | L161: 0 | M161: 0 | N161: 0 | O161: 0 | P161: 0 | Y161: HGV - Electric | Z161: ='HGV Summary'!E5 -> 0 | AA161: ='HGV Summary'!F5 -> 0 | AB161: ='HGV Summary'!G5 -> 0 | AC161: ='HGV Summary'!H5 -> 0 | AD161: ='HGV Summary'!I5 -> 0 | AE161: ='HGV Summary'!J5 -> 0 | AF161: ='HGV Summary'!K5 -> 0 | AG161: ='HGV Summary'!L5 -> 0 | AH161: ='HGV Summary'!M5 -> 0 | AI161: ='HGV Summary'!N5 -> 0 | AJ161: ='HGV Summary'!O5 -> 0 | AK161: ='HGV Summary'!P5 -> 0
B162: 2035 | C162: 15895629.19 | D162: 0 | E162: 2807536.777 | F162: 458651.9248 | G162: 11586497.06 | H162: 0 | I162: 1042943.426 | J162: 15895629.19 | K162: 0 | L162: 0 | M162: 0 | N162: 0 | O162: 0 | P162: 0 | Y162: Bus - Electric | Z162: ='Bus Summary'!E25 -> 0 | AA162: ='Bus Summary'!F25 -> 0 | AB162: ='Bus Summary'!G25 -> 0 | AC162: ='Bus Summary'!H25 -> 0 | AD162: ='Bus Summary'!I25 -> 0 | AE162: ='Bus Summary'!J25 -> 0 | AF162: ='Bus Summary'!K25 -> 0 | AG162: ='Bus Summary'!L25 -> 0 | AH162: ='Bus Summary'!M25 -> 0 | AI162: ='Bus Summary'!N25 -> 0 | AJ162: ='Bus Summary'!O25 -> 0 | AK162: ='Bus Summary'!P25 -> 0
B163: 2040 | C163: 26686452.76 | D163: 0 | E163: 5734048.541 | F163: 683934.6696 | G163: 18704054.41 | H163: 521471.7131 | I163: 1042943.426 | J163: 26686452.76 | K163: 0 | L163: 0 | M163: 0 | N163: 0 | O163: 0 | P163: 0 | Y163: Coach - Electric | Z163: ='Bus Summary'!E38 -> 0 | AA163: ='Bus Summary'!F38 -> 0 | AB163: ='Bus Summary'!G38 -> 0 | AC163: ='Bus Summary'!H38 -> 0 | AD163: ='Bus Summary'!I38 -> 0 | AE163: ='Bus Summary'!J38 -> 0 | AF163: ='Bus Summary'!K38 -> 0 | AG163: ='Bus Summary'!L38 -> 0 | AH163: ='Bus Summary'!M38 -> 0 | AI163: ='Bus Summary'!N38 -> 0 | AJ163: ='Bus Summary'!O38 -> 0 | AK163: ='Bus Summary'!P38 -> 0
B164: 2045 | C164: 34391450.26 | D164: 0 | E164: 7020654.085 | F164: 797628.2177 | G164: 25008752.82 | H164: 521471.7131 | I164: 1042943.426 | J164: 34391450.26 | K164: 0 | L164: 0 | M164: 0 | N164: 0 | O164: 0 | P164: 0 | Y164: Total Electricity | Z164: =SUM(Z159:Z163) -> 0 | AA164: 0 | AB164: 0 | AC164: 0 | AD164: 0 | AE164: 0 | AF164: 0 | AG164: 0 | AH164: 0 | AI164: 0 | AJ164: 0 | AK164: 0
A165: Scenario B: Medium Hydrogen | B165: 2022 | C165: 148362.5766 | D165: 0 | E165: =TRANSPOSE(Z165:AK176) -> 140390.0449 | F165: 7972.531708 | G165: 0 | H165: 0 | I165: 0 | J165: 148362.5766 | K165: 0 | L165: 0 | M165: 0 | N165: 0 | O165: 0 | P165: 0 | X165: Scenario B: Medium Hydrogen | Y165: Car - Hydrogen | Z165: ='Car Summary'!E9 -> 140390.0449 | AA165: ='Car Summary'!F9 -> 182241.932 | AB165: ='Car Summary'!G9 -> 217581.094 | AC165: ='Car Summary'!H9 -> 288325.4135 | AD165: ='Car Summary'!I9 -> 384097.9142 | AE165: ='Car Summary'!J9 -> 462805.0767 | AF165: ='Car Summary'!K9 -> 532264.5248 | AG165: ='Car Summary'!L9 -> 606334.2888 | AH165: ='Car Summary'!M9 -> 1149699.184 | AI165: ='Car Summary'!N9 -> 5465177.101 | AJ165: ='Car Summary'!O9 -> 11211406.6 | AK165: ='Car Summary'!P9 -> 13671407.54
B166: 2023 | C166: 196442.7802 | D166: 0 | E166: 182241.932 | F166: 14200.84824 | G166: 0 | H166: 0 | I166: 0 | J166: 196442.7802 | K166: 0 | L166: 0 | M166: 0 | N166: 0 | O166: 0 | P166: 0 | Y166: LGV - Hydrogen | Z166: ='Van Summary'!E9 -> 7972.531708 | AA166: ='Van Summary'!F9 -> 14200.84824 | AB166: ='Van Summary'!G9 -> 21701.93936 | AC166: ='Van Summary'!H9 -> 33050.65331 | AD166: ='Van Summary'!I9 -> 49808.94462 | AE166: ='Van Summary'!J9 -> 68222.60213 | AF166: ='Van Summary'!K9 -> 86727.84 | AG166: ='Van Summary'!L9 -> 102402.3502 | AH166: ='Van Summary'!M9 -> 231221.0602 | AI166: ='Van Summary'!N9 -> 910641.0053 | AJ166: ='Van Summary'!O9 -> 1355842.406 | AK166: ='Van Summary'!P9 -> 1575683.456
B167: 2024 | C167: 239283.0334 | D167: 0 | E167: 217581.094 | F167: 21701.93936 | G167: 0 | H167: 0 | I167: 0 | J167: 239283.0334 | K167: 0 | L167: 0 | M167: 0 | N167: 0 | O167: 0 | P167: 0 | Y167: HGV - Hydrogen | Z167: ='HGV Summary'!E9 -> 0 | AA167: ='HGV Summary'!F9 -> 0 | AB167: ='HGV Summary'!G9 -> 0 | AC167: ='HGV Summary'!H9 -> 0 | AD167: ='HGV Summary'!I9 -> 1782997.06 | AE167: ='HGV Summary'!J9 -> 3873958.695 | AF167: ='HGV Summary'!K9 -> 6032909.445 | AG167: ='HGV Summary'!L9 -> 8428665.266 | AH167: ='HGV Summary'!M9 -> 11020461.17 | AI167: ='HGV Summary'!N9 -> 33945555.41 | AJ167: ='HGV Summary'!O9 -> 49832990.53 | AK167: ='HGV Summary'!P9 -> 57347823.87
B168: 2025 | C168: 321376.0668 | D168: 0 | E168: 288325.4135 | F168: 33050.65331 | G168: 0 | H168: 0 | I168: 0 | J168: 321376.0668 | K168: 0 | L168: 0 | M168: 0 | N168: 0 | O168: 0 | P168: 0 | Y168: Bus - Hydrogen | Z168: ='Bus Summary'!E27 -> 0 | AA168: ='Bus Summary'!F27 -> 0 | AB168: ='Bus Summary'!G27 -> 0 | AC168: ='Bus Summary'!H27 -> 0 | AD168: ='Bus Summary'!I27 -> 0 | AE168: ='Bus Summary'!J27 -> 0 | AF168: ='Bus Summary'!K27 -> 0 | AG168: ='Bus Summary'!L27 -> 0 | AH168: ='Bus Summary'!M27 -> 0 | AI168: ='Bus Summary'!N27 -> 1564415.139 | AJ168: ='Bus Summary'!O27 -> 1564415.139 | AK168: ='Bus Summary'!P27 -> 1564415.139
B169: 2026 | C169: 2216903.919 | D169: 0 | E169: 384097.9142 | F169: 49808.94462 | G169: 1782997.06 | H169: 0 | I169: 0 | J169: 2216903.919 | K169: 0 | L169: 0 | M169: 0 | N169: 0 | O169: 0 | P169: 0 | Y169: Coach - Hydrogen | Z169: ='Bus Summary'!E40 -> 0 | AA169: ='Bus Summary'!F40 -> 0 | AB169: ='Bus Summary'!G40 -> 0 | AC169: ='Bus Summary'!H40 -> 0 | AD169: ='Bus Summary'!I40 -> 0 | AE169: ='Bus Summary'!J40 -> 0 | AF169: ='Bus Summary'!K40 -> 0 | AG169: ='Bus Summary'!L40 -> 0 | AH169: ='Bus Summary'!M40 -> 0 | AI169: ='Bus Summary'!N40 -> 1738239.044 | AJ169: ='Bus Summary'!O40 -> 1738239.044 | AK169: ='Bus Summary'!P40 -> 1738239.044
B170: 2027 | C170: 4404986.374 | D170: 0 | E170: 462805.0767 | F170: 68222.60213 | G170: 3873958.695 | H170: 0 | I170: 0 | J170: 4404986.374 | K170: 0 | L170: 0 | M170: 0 | N170: 0 | O170: 0 | P170: 0 | Y170: Total Hydrogen | Z170: =SUM(Z165:Z169) -> 148362.5766 | AA170: 196442.7802 | AB170: 239283.0334 | AC170: 321376.0668 | AD170: 2216903.919 | AE170: 4404986.374 | AF170: 6651901.81 | AG170: 9137401.905 | AH170: 12401381.41 | AI170: 43624027.7 | AJ170: 65702893.72 | AK170: 75897569.05
B171: 2028 | C171: 6651901.81 | D171: 0 | E171: 532264.5248 | F171: 86727.84 | G171: 6032909.445 | H171: 0 | I171: 0 | J171: 6651901.81 | K171: 0 | L171: 0 | M171: 0 | N171: 0 | O171: 0 | P171: 0 | Y171: Car - Electric | Z171: ='Car Summary'!E8 -> 0 | AA171: ='Car Summary'!F8 -> 0 | AB171: ='Car Summary'!G8 -> 0 | AC171: ='Car Summary'!H8 -> 0 | AD171: ='Car Summary'!I8 -> 0 | AE171: ='Car Summary'!J8 -> 0 | AF171: ='Car Summary'!K8 -> 0 | AG171: ='Car Summary'!L8 -> 0 | AH171: ='Car Summary'!M8 -> 0 | AI171: ='Car Summary'!N8 -> 0 | AJ171: ='Car Summary'!O8 -> 0 | AK171: ='Car Summary'!P8 -> 0
B172: 2029 | C172: 9137401.905 | D172: 0 | E172: 606334.2888 | F172: 102402.3502 | G172: 8428665.266 | H172: 0 | I172: 0 | J172: 9137401.905 | K172: 0 | L172: 0 | M172: 0 | N172: 0 | O172: 0 | P172: 0 | Y172: LGV - Electric | Z172: ='Van Summary'!E8 -> 0 | AA172: ='Van Summary'!F8 -> 0 | AB172: ='Van Summary'!G8 -> 0 | AC172: ='Van Summary'!H8 -> 0 | AD172: ='Van Summary'!I8 -> 0 | AE172: ='Van Summary'!J8 -> 0 | AF172: ='Van Summary'!K8 -> 0 | AG172: ='Van Summary'!L8 -> 0 | AH172: ='Van Summary'!M8 -> 0 | AI172: ='Van Summary'!N8 -> 0 | AJ172: ='Van Summary'!O8 -> 0 | AK172: ='Van Summary'!P8 -> 0
B173: 2030 | C173: 12401381.41 | D173: 0 | E173: 1149699.184 | F173: 231221.0602 | G173: 11020461.17 | H173: 0 | I173: 0 | J173: 12401381.41 | K173: 0 | L173: 0 | M173: 0 | N173: 0 | O173: 0 | P173: 0 | Y173: HGV - Electric | Z173: ='HGV Summary'!E8 -> 0 | AA173: ='HGV Summary'!F8 -> 0 | AB173: ='HGV Summary'!G8 -> 0 | AC173: ='HGV Summary'!H8 -> 0 | AD173: ='HGV Summary'!I8 -> 0 | AE173: ='HGV Summary'!J8 -> 0 | AF173: ='HGV Summary'!K8 -> 0 | AG173: ='HGV Summary'!L8 -> 0 | AH173: ='HGV Summary'!M8 -> 0 | AI173: ='HGV Summary'!N8 -> 0 | AJ173: ='HGV Summary'!O8 -> 0 | AK173: ='HGV Summary'!P8 -> 0
B174: 2035 | C174: 43624027.7 | D174: 0 | E174: 5465177.101 | F174: 910641.0053 | G174: 33945555.41 | H174: 1564415.139 | I174: 1738239.044 | J174: 43624027.7 | K174: 0 | L174: 0 | M174: 0 | N174: 0 | O174: 0 | P174: 0 | Y174: Bus - Electric | Z174: ='Bus Summary'!E28 -> 0 | AA174: ='Bus Summary'!F28 -> 0 | AB174: ='Bus Summary'!G28 -> 0 | AC174: ='Bus Summary'!H28 -> 0 | AD174: ='Bus Summary'!I28 -> 0 | AE174: ='Bus Summary'!J28 -> 0 | AF174: ='Bus Summary'!K28 -> 0 | AG174: ='Bus Summary'!L28 -> 0 | AH174: ='Bus Summary'!M28 -> 0 | AI174: ='Bus Summary'!N28 -> 0 | AJ174: ='Bus Summary'!O28 -> 0 | AK174: ='Bus Summary'!P28 -> 0
B175: 2040 | C175: 65702893.72 | D175: 0 | E175: 11211406.6 | F175: 1355842.406 | G175: 49832990.53 | H175: 1564415.139 | I175: 1738239.044 | J175: 65702893.72 | K175: 0 | L175: 0 | M175: 0 | N175: 0 | O175: 0 | P175: 0 | Y175: Coach - Electric | Z175: ='Bus Summary'!E41 -> 0 | AA175: ='Bus Summary'!F41 -> 0 | AB175: ='Bus Summary'!G41 -> 0 | AC175: ='Bus Summary'!H41 -> 0 | AD175: ='Bus Summary'!I41 -> 0 | AE175: ='Bus Summary'!J41 -> 0 | AF175: ='Bus Summary'!K41 -> 0 | AG175: ='Bus Summary'!L41 -> 0 | AH175: ='Bus Summary'!M41 -> 0 | AI175: ='Bus Summary'!N41 -> 0 | AJ175: ='Bus Summary'!O41 -> 0 | AK175: ='Bus Summary'!P41 -> 0
B176: 2045 | C176: 75897569.05 | D176: 0 | E176: 13671407.54 | F176: 1575683.456 | G176: 57347823.87 | H176: 1564415.139 | I176: 1738239.044 | J176: 75897569.05 | K176: 0 | L176: 0 | M176: 0 | N176: 0 | O176: 0 | P176: 0 | Y176: Total Electricity | Z176: =SUM(Z171:Z175) -> 0 | AA176: 0 | AB176: 0 | AC176: 0 | AD176: 0 | AE176: 0 | AF176: 0 | AG176: 0 | AH176: 0 | AI176: 0 | AJ176: 0 | AK176: 0
A177: Scenario C: High Hydrogen | B177: 2022 | C177: 173728.3008 | D177: 0 | E177: =TRANSPOSE(Z177:AK188) -> 161769.5033 | F177: 11958.79756 | G177: 0 | H177: 0 | I177: 0 | J177: 173728.3008 | K177: 0 | L177: 0 | M177: 0 | N177: 0 | O177: 0 | P177: 0 | X177: Scenario C: High Hydrogen | Y177: Car - Hydrogen | Z177: ='Car Summary'!E12 -> 161769.5033 | AA177: ='Car Summary'!F12 -> 221170.9694 | AB177: ='Car Summary'!G12 -> 271939.1984 | AC177: ='Car Summary'!H12 -> 377484.2845 | AD177: ='Car Summary'!I12 -> 521578.9841 | AE177: ='Car Summary'!J12 -> 640937.4718 | AF177: ='Car Summary'!K12 -> 746863.6099 | AG177: ='Car Summary'!L12 -> 859657.8976 | AH177: ='Car Summary'!M12 -> 1670719.826 | AI177: ='Car Summary'!N12 -> 8070362.77 | AJ177: ='Car Summary'!O12 -> 16534467.95 | AK177: ='Car Summary'!P12 -> 20064886.18
B178: 2023 | C178: 242472.2418 | D178: 0 | E178: 221170.9694 | F178: 21301.27236 | G178: 0 | H178: 0 | I178: 0 | J178: 242472.2418 | K178: 0 | L178: 0 | M178: 0 | N178: 0 | O178: 0 | P178: 0 | Y178: LGV - Hydrogen | Z178: ='Van Summary'!E12 -> 11958.79756 | AA178: ='Van Summary'!F12 -> 21301.27236 | AB178: ='Van Summary'!G12 -> 32552.90904 | AC178: ='Van Summary'!H12 -> 49575.97997 | AD178: ='Van Summary'!I12 -> 74713.41693 | AE178: ='Van Summary'!J12 -> 102333.9032 | AF178: ='Van Summary'!K12 -> 130091.76 | AG178: ='Van Summary'!L12 -> 153603.5253 | AH178: ='Van Summary'!M12 -> 346831.5904 | AI178: ='Van Summary'!N12 -> 1365961.508 | AJ178: ='Van Summary'!O12 -> 2033356.625 | AK178: ='Van Summary'!P12 -> 2356424.434
B179: 2024 | C179: 304492.1075 | D179: 0 | E179: 271939.1984 | F179: 32552.90904 | G179: 0 | H179: 0 | I179: 0 | J179: 304492.1075 | K179: 0 | L179: 0 | M179: 0 | N179: 0 | O179: 0 | P179: 0 | Y179: HGV - Hydrogen | Z179: ='HGV Summary'!E12 -> 0 | AA179: ='HGV Summary'!F12 -> 0 | AB179: ='HGV Summary'!G12 -> 0 | AC179: ='HGV Summary'!H12 -> 0 | AD179: ='HGV Summary'!I12 -> 1829992.357 | AE179: ='HGV Summary'!J12 -> 3945234.902 | AF179: ='HGV Summary'!K12 -> 6121224.974 | AG179: ='HGV Summary'!L12 -> 8535976.23 | AH179: ='HGV Summary'!M12 -> 11149004.25 | AI179: ='HGV Summary'!N12 -> 33232725.33 | AJ179: ='HGV Summary'!O12 -> 50737736.45 | AK179: ='HGV Summary'!P12 -> 64573091.73
B180: 2025 | C180: 427060.2644 | D180: 0 | E180: 377484.2845 | F180: 49575.97997 | G180: 0 | H180: 0 | I180: 0 | J180: 427060.2644 | K180: 0 | L180: 0 | M180: 0 | N180: 0 | O180: 0 | P180: 0 | Y180: Bus - Hydrogen | Z180: ='Bus Summary'!E30 -> 0 | AA180: ='Bus Summary'!F30 -> 0 | AB180: ='Bus Summary'!G30 -> 0 | AC180: ='Bus Summary'!H30 -> 0 | AD180: ='Bus Summary'!I30 -> 0 | AE180: ='Bus Summary'!J30 -> 0 | AF180: ='Bus Summary'!K30 -> 0 | AG180: ='Bus Summary'!L30 -> 0 | AH180: ='Bus Summary'!M30 -> 0 | AI180: ='Bus Summary'!N30 -> 1912062.948 | AJ180: ='Bus Summary'!O30 -> 1912062.948 | AK180: ='Bus Summary'!P30 -> 1912062.948
B181: 2026 | C181: 2426284.758 | D181: 0 | E181: 521578.9841 | F181: 74713.41693 | G181: 1829992.357 | H181: 0 | I181: 0 | J181: 2426284.758 | K181: 0 | L181: 0 | M181: 0 | N181: 0 | O181: 0 | P181: 0 | Y181: Coach - Hydrogen | Z181: ='Bus Summary'!E43 -> 0 | AA181: ='Bus Summary'!F43 -> 0 | AB181: ='Bus Summary'!G43 -> 0 | AC181: ='Bus Summary'!H43 -> 0 | AD181: ='Bus Summary'!I43 -> 0 | AE181: ='Bus Summary'!J43 -> 2433534.661 | AF181: ='Bus Summary'!K43 -> 2433534.661 | AG181: ='Bus Summary'!L43 -> 2433534.661 | AH181: ='Bus Summary'!M43 -> 2433534.661 | AI181: ='Bus Summary'!N43 -> 2433534.661 | AJ181: ='Bus Summary'!O43 -> 2433534.661 | AK181: ='Bus Summary'!P43 -> 2433534.661
B182: 2027 | C182: 7122040.938 | D182: 0 | E182: 640937.4718 | F182: 102333.9032 | G182: 3945234.902 | H182: 0 | I182: 2433534.661 | J182: 7122040.938 | K182: 0 | L182: 0 | M182: 0 | N182: 0 | O182: 0 | P182: 0 | Y182: Total Hydrogen | Z182: =SUM(Z177:Z181) -> 173728.3008 | AA182: 242472.2418 | AB182: 304492.1075 | AC182: 427060.2644 | AD182: 2426284.758 | AE182: 7122040.938 | AF182: 9431715.006 | AG182: 11982772.31 | AH182: 15600090.33 | AI182: 47014647.21 | AJ182: 73651158.63 | AK182: 91339999.96
B183: 2028 | C183: 9431715.006 | D183: 0 | E183: 746863.6099 | F183: 130091.76 | G183: 6121224.974 | H183: 0 | I183: 2433534.661 | J183: 9431715.006 | K183: 0 | L183: 0 | M183: 0 | N183: 0 | O183: 0 | P183: 0 | Y183: Car - Electric | Z183: ='Car Summary'!E11 -> 0 | AA183: ='Car Summary'!F11 -> 0 | AB183: ='Car Summary'!G11 -> 0 | AC183: ='Car Summary'!H11 -> 0 | AD183: ='Car Summary'!I11 -> 0 | AE183: ='Car Summary'!J11 -> 0 | AF183: ='Car Summary'!K11 -> 0 | AG183: ='Car Summary'!L11 -> 0 | AH183: ='Car Summary'!M11 -> 0 | AI183: ='Car Summary'!N11 -> 0 | AJ183: ='Car Summary'!O11 -> 0 | AK183: ='Car Summary'!P11 -> 0
B184: 2029 | C184: 11982772.31 | D184: 0 | E184: 859657.8976 | F184: 153603.5253 | G184: 8535976.23 | H184: 0 | I184: 2433534.661 | J184: 11982772.31 | K184: 0 | L184: 0 | M184: 0 | N184: 0 | O184: 0 | P184: 0 | Y184: LGV - Electric | Z184: ='Van Summary'!E11 -> 0 | AA184: ='Van Summary'!F11 -> 0 | AB184: ='Van Summary'!G11 -> 0 | AC184: ='Van Summary'!H11 -> 0 | AD184: ='Van Summary'!I11 -> 0 | AE184: ='Van Summary'!J11 -> 0 | AF184: ='Van Summary'!K11 -> 0 | AG184: ='Van Summary'!L11 -> 0 | AH184: ='Van Summary'!M11 -> 0 | AI184: ='Van Summary'!N11 -> 0 | AJ184: ='Van Summary'!O11 -> 0 | AK184: ='Van Summary'!P11 -> 0
B185: 2030 | C185: =SUM(E185:I185) -> 15600090.33 | D185: =SUM(K185:O185) -> 0 | E185: 1670719.826 | F185: 346831.5904 | G185: 11149004.25 | H185: 0 | I185: 2433534.661 | J185: 15600090.33 | K185: 0 | L185: 0 | M185: 0 | N185: 0 | O185: 0 | P185: 0 | Y185: HGV - Electric | Z185: ='HGV Summary'!E11 -> 0 | AA185: ='HGV Summary'!F11 -> 0 | AB185: ='HGV Summary'!G11 -> 0 | AC185: ='HGV Summary'!H11 -> 0 | AD185: ='HGV Summary'!I11 -> 0 | AE185: ='HGV Summary'!J11 -> 0 | AF185: ='HGV Summary'!K11 -> 0 | AG185: ='HGV Summary'!L11 -> 0 | AH185: ='HGV Summary'!M11 -> 0 | AI185: ='HGV Summary'!N11 -> 0 | AJ185: ='HGV Summary'!O11 -> 0 | AK185: ='HGV Summary'!P11 -> 0
B186: 2035 | C186: 47014647.21 | D186: 0 | E186: 8070362.77 | F186: 1365961.508 | G186: 33232725.33 | H186: 1912062.948 | I186: 2433534.661 | J186: 47014647.21 | K186: 0 | L186: 0 | M186: 0 | N186: 0 | O186: 0 | P186: 0 | Y186: Bus - Electric | Z186: ='Bus Summary'!E31 -> 0 | AA186: ='Bus Summary'!F31 -> 0 | AB186: ='Bus Summary'!G31 -> 0 | AC186: ='Bus Summary'!H31 -> 0 | AD186: ='Bus Summary'!I31 -> 0 | AE186: ='Bus Summary'!J31 -> 0 | AF186: ='Bus Summary'!K31 -> 0 | AG186: ='Bus Summary'!L31 -> 0 | AH186: ='Bus Summary'!M31 -> 0 | AI186: ='Bus Summary'!N31 -> 0 | AJ186: ='Bus Summary'!O31 -> 0 | AK186: ='Bus Summary'!P31 -> 0
B187: 2040 | C187: 73651158.63 | D187: 0 | E187: 16534467.95 | F187: 2033356.625 | G187: 50737736.45 | H187: 1912062.948 | I187: 2433534.661 | J187: 73651158.63 | K187: 0 | L187: 0 | M187: 0 | N187: 0 | O187: 0 | P187: 0 | Y187: Coach - Electric | Z187: ='Bus Summary'!E44 -> 0 | AA187: ='Bus Summary'!F44 -> 0 | AB187: ='Bus Summary'!G44 -> 0 | AC187: ='Bus Summary'!H44 -> 0 | AD187: ='Bus Summary'!I44 -> 0 | AE187: ='Bus Summary'!J44 -> 0 | AF187: ='Bus Summary'!K44 -> 0 | AG187: ='Bus Summary'!L44 -> 0 | AH187: ='Bus Summary'!M44 -> 0 | AI187: ='Bus Summary'!N44 -> 0 | AJ187: ='Bus Summary'!O44 -> 0 | AK187: ='Bus Summary'!P44 -> 0
B188: 2045 | C188: 91339999.96 | D188: 0 | E188: 20064886.18 | F188: 2356424.434 | G188: 64573091.73 | H188: 1912062.948 | I188: 2433534.661 | J188: 91339999.96 | K188: 0 | L188: 0 | M188: 0 | N188: 0 | O188: 0 | P188: 0 | Y188: Total Electricity | Z188: =SUM(Z183:Z187) -> 0 | AA188: 0 | AB188: 0 | AC188: 0 | AD188: 0 | AE188: 0 | AF188: 0 | AG188: 0 | AH188: 0 | AI188: 0 | AJ188: 0 | AK188: 0
A189: Scenario 4: High Electric + Low Hydrogen | B189: 2022 | C189: 0 | D189: 0 | E189: =TRANSPOSE(Z189:AK200) -> 0 | F189: 0 | G189: 0 | H189: 0 | I189: 0 | J189: 0 | K189: 0 | L189: 0 | M189: 0 | N189: 0 | O189: 0 | P189: 0 | X189: Blank | Y189: Car - Hydrogen
B190: 2023 | C190: 0 | D190: 0 | E190: 0 | F190: 0 | G190: 0 | H190: 0 | I190: 0 | J190: 0 | K190: 0 | L190: 0 | M190: 0 | N190: 0 | O190: 0 | P190: 0 | Y190: LGV - Hydrogen
B191: 2024 | C191: 0 | D191: 0 | E191: 0 | F191: 0 | G191: 0 | H191: 0 | I191: 0 | J191: 0 | K191: 0 | L191: 0 | M191: 0 | N191: 0 | O191: 0 | P191: 0 | Y191: HGV - Hydrogen
B192: 2025 | C192: 0 | D192: 0 | E192: 0 | F192: 0 | G192: 0 | H192: 0 | I192: 0 | J192: 0 | K192: 0 | L192: 0 | M192: 0 | N192: 0 | O192: 0 | P192: 0 | Y192: Bus - Hydrogen
B193: 2026 | C193: 0 | D193: 0 | E193: 0 | F193: 0 | G193: 0 | H193: 0 | I193: 0 | J193: 0 | K193: 0 | L193: 0 | M193: 0 | N193: 0 | O193: 0 | P193: 0 | Y193: Coach - Hydrogen
B194: 2027 | C194: 0 | D194: 0 | E194: 0 | F194: 0 | G194: 0 | H194: 0 | I194: 0 | J194: 0 | K194: 0 | L194: 0 | M194: 0 | N194: 0 | O194: 0 | P194: 0 | Y194: Total Hydrogen
B195: 2028 | C195: 0 | D195: 0 | E195: 0 | F195: 0 | G195: 0 | H195: 0 | I195: 0 | J195: 0 | K195: 0 | L195: 0 | M195: 0 | N195: 0 | O195: 0 | P195: 0 | Y195: Car - Electric
B196: 2029 | C196: 0 | D196: 0 | E196: 0 | F196: 0 | G196: 0 | H196: 0 | I196: 0 | J196: 0 | K196: 0 | L196: 0 | M196: 0 | N196: 0 | O196: 0 | P196: 0 | Y196: LGV - Electric
B197: 2030 | C197: 0 | D197: 0 | E197: 0 | F197: 0 | G197: 0 | H197: 0 | I197: 0 | J197: 0 | K197: 0 | L197: 0 | M197: 0 | N197: 0 | O197: 0 | P197: 0 | Y197: HGV - Electric
B198: 2035 | C198: 0 | D198: 0 | E198: 0 | F198: 0 | G198: 0 | H198: 0 | I198: 0 | J198: 0 | K198: 0 | L198: 0 | M198: 0 | N198: 0 | O198: 0 | P198: 0 | Y198: Bus - Electric
B199: 2040 | C199: 0 | D199: 0 | E199: 0 | F199: 0 | G199: 0 | H199: 0 | I199: 0 | J199: 0 | K199: 0 | L199: 0 | M199: 0 | N199: 0 | O199: 0 | P199: 0 | Y199: Coach - Electric
B200: 2045 | C200: 0 | D200: 0 | E200: 0 | F200: 0 | G200: 0 | H200: 0 | I200: 0 | J200: 0 | K200: 0 | L200: 0 | M200: 0 | N200: 0 | O200: 0 | P200: 0 | Y200: Total Electricity
A201: Scenario 5: High Electric + High Hydrogen | B201: 2022 | C201: 0 | D201: 0 | E201: =TRANSPOSE(Z201:AK212) -> 0 | F201: 0 | G201: 0 | H201: 0 | I201: 0 | J201: 0 | K201: 0 | L201: 0 | M201: 0 | N201: 0 | O201: 0 | P201: 0 | X201: Blank | Y201: Car - Hydrogen
... 109 more rows

Sheet Aviation Summary (hidden)
B1: 0
C2: Scotland ATMs Analysis - Scotland ATMs Analysis
C5: Summary Tables for Zero Emission Aircraft
D6: D | E6: E | F6: F | G6: G | H6: H | I6: I | J6: J | K6: K | L6: L | M6: M | N6: N | O6: O | P6: P | Q6: Q | R6: R
C7: Summary Tables
B10: KWh | C10: Hydrogen (Breakdown) | D10: 2019 | E10: 2020 | F10: 2021 | G10: 2022 | H10: 2023 | I10: 2024 | J10: 2025 | K10: 2026 | L10: 2027 | M10: 2028 | N10: 2029 | O10: 2030 | P10: 2035 | Q10: 2040 | R10: 2045 | T10: Lookup | U10: Row
B11: Scenario A: Low Hydrogen | C11: Total | T11: ='Key Assumptions >'!$B$21 -> Dumfries & Galloway | U11: =ROW(B40) -> 40
A12: 5 | C12: LH2 Narrow Body | D12: =INDIRECT("'Aviation Summary'!"&'Aviation Summary'!D$6&($A12+INDEX('Aviation Summary'!$U$11:$U$18,MATCH(Region,'Aviation Summary'!$T$11:$T$18,0)))) -> 0 | E12: =INDIRECT("'Aviation Summary'!"&'Aviation Summary'!E$6&($A12+INDEX('Aviation Summary'!$U$11:$U$18,MATCH(Region,'Aviation Summary'!$T$11:$T$18,0)))) -> 0 | F12: =INDIRECT("'Aviation Summary'!"&'Aviation Summary'!F$6&($A12+INDEX('Aviation Summary'!$U$11:$U$18,MATCH(Region,'Aviation Summary'!$T$11:$T$18,0)))) -> 0 | G12: =INDIRECT("'Aviation Summary'!"&'Aviation Summary'!G$6&($A12+INDEX('Aviation Summary'!$U$11:$U$18,MATCH(Region,'Aviation Summary'!$T$11:$T$18,0)))) -> 0 | H12: =INDIRECT("'Aviation Summary'!"&'Aviation Summary'!H$6&($A12+INDEX('Aviation Summary'!$U$11:$U$18,MATCH(Region,'Aviation Summary'!$T$11:$T$18,0)))) -> 0 | I12: =INDIRECT("'Aviation Summary'!"&'Aviation Summary'!I$6&($A12+INDEX('Aviation Summary'!$U$11:$U$18,MATCH(Region,'Aviation Summary'!$T$11:$T$18,0)))) -> 0 | J12: =INDIRECT("'Aviation Summary'!"&'Aviation Summary'!J$6&($A12+INDEX('Aviation Summary'!$U$11:$U$18,MATCH(Region,'Aviation Summary'!$T$11:$T$18,0)))) -> 0 | K12: =INDIRECT("'Aviation Summary'!"&'Aviation Summary'!K$6&($A12+INDEX('Aviation Summary'!$U$11:$U$18,MATCH(Region,'Aviation Summary'!$T$11:$T$18,0)))) -> 0 | L12: =INDIRECT("'Aviation Summary'!"&'Aviation Summary'!L$6&($A12+INDEX('Aviation Summary'!$U$11:$U$18,MATCH(Region,'Aviation Summary'!$T$11:$T$18,0)))) -> 0 | M12: =INDIRECT("'Aviation Summary'!"&'Aviation Summary'!M$6&($A12+INDEX('Aviation Summary'!$U$11:$U$18,MATCH(Region,'Aviation Summary'!$T$11:$T$18,0)))) -> 0 | N12: =INDIRECT("'Aviation Summary'!"&'Aviation Summary'!N$6&($A12+INDEX('Aviation Summary'!$U$11:$U$18,MATCH(Region,'Aviation Summary'!$T$11:$T$18,0)))) -> 0 | O12: =INDIRECT("'Aviation Summary'!"&'Aviation Summary'!O$6&($A12+INDEX('Aviation Summary'!$U$11:$U$18,MATCH(Region,'Aviation Summary'!$T$11:$T$18,0)))) -> 0 | P12: =INDIRECT("'Aviation Summary'!"&'Aviation Summary'!P$6&($A12+INDEX('Aviation Summary'!$U$11:$U$18,MATCH(Region,'Aviation Summary'!$T$11:$T$18,0)))) -> 0 | Q12: =INDIRECT("'Aviation Summary'!"&'Aviation Summary'!Q$6&($A12+INDEX('Aviation Summary'!$U$11:$U$18,MATCH(Region,'Aviation Summary'!$T$11:$T$18,0)))) -> 0 | R12: =INDIRECT("'Aviation Summary'!"&'Aviation Summary'!R$6&($A12+INDEX('Aviation Summary'!$U$11:$U$18,MATCH(Region,'Aviation Summary'!$T$11:$T$18,0)))) -> 0 | T12: ='Key Assumptions >'!$B$22 -> Fife | U12: =ROW(B72) -> 72
A13: 6 | C13: LH2 Regional | D13: =INDIRECT("'Aviation Summary'!"&'Aviation Summary'!D$6&($A13+INDEX('Aviation Summary'!$U$11:$U$18,MATCH(Region,'Aviation Summary'!$T$11:$T$18,0)))) -> 0 | E13: =INDIRECT("'Aviation Summary'!"&'Aviation Summary'!E$6&($A13+INDEX('Aviation Summary'!$U$11:$U$18,MATCH(Region,'Aviation Summary'!$T$11:$T$18,0)))) -> 0 | F13: =INDIRECT("'Aviation Summary'!"&'Aviation Summary'!F$6&($A13+INDEX('Aviation Summary'!$U$11:$U$18,MATCH(Region,'Aviation Summary'!$T$11:$T$18,0)))) -> 0 | G13: =INDIRECT("'Aviation Summary'!"&'Aviation Summary'!G$6&($A13+INDEX('Aviation Summary'!$U$11:$U$18,MATCH(Region,'Aviation Summary'!$T$11:$T$18,0)))) -> 0 | H13: =INDIRECT("'Aviation Summary'!"&'Aviation Summary'!H$6&($A13+INDEX('Aviation Summary'!$U$11:$U$18,MATCH(Region,'Aviation Summary'!$T$11:$T$18,0)))) -> 0 | I13: =INDIRECT("'Aviation Summary'!"&'Aviation Summary'!I$6&($A13+INDEX('Aviation Summary'!$U$11:$U$18,MATCH(Region,'Aviation Summary'!$T$11:$T$18,0)))) -> 0 | J13: =INDIRECT("'Aviation Summary'!"&'Aviation Summary'!J$6&($A13+INDEX('Aviation Summary'!$U$11:$U$18,MATCH(Region,'Aviation Summary'!$T$11:$T$18,0)))) -> 0 | K13: =INDIRECT("'Aviation Summary'!"&'Aviation Summary'!K$6&($A13+INDEX('Aviation Summary'!$U$11:$U$18,MATCH(Region,'Aviation Summary'!$T$11:$T$18,0)))) -> 0 | L13: =INDIRECT("'Aviation Summary'!"&'Aviation Summary'!L$6&($A13+INDEX('Aviation Summary'!$U$11:$U$18,MATCH(Region,'Aviation Summary'!$T$11:$T$18,0)))) -> 0 | M13: =INDIRECT("'Aviation Summary'!"&'Aviation Summary'!M$6&($A13+INDEX('Aviation Summary'!$U$11:$U$18,MATCH(Region,'Aviation Summary'!$T$11:$T$18,0)))) -> 0 | N13: =INDIRECT("'Aviation Summary'!"&'Aviation Summary'!N$6&($A13+INDEX('Aviation Summary'!$U$11:$U$18,MATCH(Region,'Aviation Summary'!$T$11:$T$18,0)))) -> 0 | O13: =INDIRECT("'Aviation Summary'!"&'Aviation Summary'!O$6&($A13+INDEX('Aviation Summary'!$U$11:$U$18,MATCH(Region,'Aviation Summary'!$T$11:$T$18,0)))) -> 0 | P13: =INDIRECT("'Aviation Summary'!"&'Aviation Summary'!P$6&($A13+INDEX('Aviation Summary'!$U$11:$U$18,MATCH(Region,'Aviation Summary'!$T$11:$T$18,0)))) -> 0 | Q13: =INDIRECT("'Aviation Summary'!"&'Aviation Summary'!Q$6&($A13+INDEX('Aviation Summary'!$U$11:$U$18,MATCH(Region,'Aviation Summary'!$T$11:$T$18,0)))) -> 0 | R13: =INDIRECT("'Aviation Summary'!"&'Aviation Summary'!R$6&($A13+INDEX('Aviation Summary'!$U$11:$U$18,MATCH(Region,'Aviation Summary'!$T$11:$T$18,0)))) -> 0 | T13: ='Key Assumptions >'!$B$23 -> Highlands | U13: =ROW(B104) -> 104
A14: 7 | C14: LH2 Wide Body | D14: =INDIRECT("'Aviation Summary'!"&'Aviation Summary'!D$6&($A14+INDEX('Aviation Summary'!$U$11:$U$18,MATCH(Region,'Aviation Summary'!$T$11:$T$18,0)))) -> 0 | E14: =INDIRECT("'Aviation Summary'!"&'Aviation Summary'!E$6&($A14+INDEX('Aviation Summary'!$U$11:$U$18,MATCH(Region,'Aviation Summary'!$T$11:$T$18,0)))) -> 0 | F14: =INDIRECT("'Aviation Summary'!"&'Aviation Summary'!F$6&($A14+INDEX('Aviation Summary'!$U$11:$U$18,MATCH(Region,'Aviation Summary'!$T$11:$T$18,0)))) -> 0 | G14: =INDIRECT("'Aviation Summary'!"&'Aviation Summary'!G$6&($A14+INDEX('Aviation Summary'!$U$11:$U$18,MATCH(Region,'Aviation Summary'!$T$11:$T$18,0)))) -> 0 | H14: =INDIRECT("'Aviation Summary'!"&'Aviation Summary'!H$6&($A14+INDEX('Aviation Summary'!$U$11:$U$18,MATCH(Region,'Aviation Summary'!$T$11:$T$18,0)))) -> 0 | I14: =INDIRECT("'Aviation Summary'!"&'Aviation Summary'!I$6&($A14+INDEX('Aviation Summary'!$U$11:$U$18,MATCH(Region,'Aviation Summary'!$T$11:$T$18,0)))) -> 0 | J14: =INDIRECT("'Aviation Summary'!"&'Aviation Summary'!J$6&($A14+INDEX('Aviation Summary'!$U$11:$U$18,MATCH(Region,'Aviation Summary'!$T$11:$T$18,0)))) -> 0 | K14: =INDIRECT("'Aviation Summary'!"&'Aviation Summary'!K$6&($A14+INDEX('Aviation Summary'!$U$11:$U$18,MATCH(Region,'Aviation Summary'!$T$11:$T$18,0)))) -> 0 | L14: =INDIRECT("'Aviation Summary'!"&'Aviation Summary'!L$6&($A14+INDEX('Aviation Summary'!$U$11:$U$18,MATCH(Region,'Aviation Summary'!$T$11:$T$18,0)))) -> 0 | M14: =INDIRECT("'Aviation Summary'!"&'Aviation Summary'!M$6&($A14+INDEX('Aviation Summary'!$U$11:$U$18,MATCH(Region,'Aviation Summary'!$T$11:$T$18,0)))) -> 0 | N14: =INDIRECT("'Aviation Summary'!"&'Aviation Summary'!N$6&($A14+INDEX('Aviation Summary'!$U$11:$U$18,MATCH(Region,'Aviation Summary'!$T$11:$T$18,0)))) -> 0 | O14: =INDIRECT("'Aviation Summary'!"&'Aviation Summary'!O$6&($A14+INDEX('Aviation Summary'!$U$11:$U$18,MATCH(Region,'Aviation Summary'!$T$11:$T$18,0)))) -> 0 | P14: =INDIRECT("'Aviation Summary'!"&'Aviation Summary'!P$6&($A14+INDEX('Aviation Summary'!$U$11:$U$18,MATCH(Region,'Aviation Summary'!$T$11:$T$18,0)))) -> 0 | Q14: =INDIRECT("'Aviation Summary'!"&'Aviation Summary'!Q$6&($A14+INDEX('Aviation Summary'!$U$11:$U$18,MATCH(Region,'Aviation Summary'!$T$11:$T$18,0)))) -> 0 | R14: =INDIRECT("'Aviation Summary'!"&'Aviation Summary'!R$6&($A14+INDEX('Aviation Summary'!$U$11:$U$18,MATCH(Region,'Aviation Summary'!$T$11:$T$18,0)))) -> 0
A15: 8 | B15: Scenario B: Medium Hydrogen | C15: Total
A16: 9 | C16: LH2 Narrow Body | D16: =INDIRECT("'Aviation Summary'!"&'Aviation Summary'!D$6&($A16+INDEX('Aviation Summary'!$U$11:$U$18,MATCH(Region,'Aviation Summary'!$T$11:$T$18,0)))) -> 0 | E16: =INDIRECT("'Aviation Summary'!"&'Aviation Summary'!E$6&($A16+INDEX('Aviation Summary'!$U$11:$U$18,MATCH(Region,'Aviation Summary'!$T$11:$T$18,0)))) -> 0 | F16: =INDIRECT("'Aviation Summary'!"&'Aviation Summary'!F$6&($A16+INDEX('Aviation Summary'!$U$11:$U$18,MATCH(Region,'Aviation Summary'!$T$11:$T$18,0)))) -> 0 | G16: =INDIRECT("'Aviation Summary'!"&'Aviation Summary'!G$6&($A16+INDEX('Aviation Summary'!$U$11:$U$18,MATCH(Region,'Aviation Summary'!$T$11:$T$18,0)))) -> 0 | H16: =INDIRECT("'Aviation Summary'!"&'Aviation Summary'!H$6&($A16+INDEX('Aviation Summary'!$U$11:$U$18,MATCH(Region,'Aviation Summary'!$T$11:$T$18,0)))) -> 0 | I16: =INDIRECT("'Aviation Summary'!"&'Aviation Summary'!I$6&($A16+INDEX('Aviation Summary'!$U$11:$U$18,MATCH(Region,'Aviation Summary'!$T$11:$T$18,0)))) -> 0 | J16: =INDIRECT("'Aviation Summary'!"&'Aviation Summary'!J$6&($A16+INDEX('Aviation Summary'!$U$11:$U$18,MATCH(Region,'Aviation Summary'!$T$11:$T$18,0)))) -> 0 | K16: =INDIRECT("'Aviation Summary'!"&'Aviation Summary'!K$6&($A16+INDEX('Aviation Summary'!$U$11:$U$18,MATCH(Region,'Aviation Summary'!$T$11:$T$18,0)))) -> 0 | L16: =INDIRECT("'Aviation Summary'!"&'Aviation Summary'!L$6&($A16+INDEX('Aviation Summary'!$U$11:$U$18,MATCH(Region,'Aviation Summary'!$T$11:$T$18,0)))) -> 0 | M16: =INDIRECT("'Aviation Summary'!"&'Aviation Summary'!M$6&($A16+INDEX('Aviation Summary'!$U$11:$U$18,MATCH(Region,'Aviation Summary'!$T$11:$T$18,0)))) -> 0 | N16: =INDIRECT("'Aviation Summary'!"&'Aviation Summary'!N$6&($A16+INDEX('Aviation Summary'!$U$11:$U$18,MATCH(Region,'Aviation Summary'!$T$11:$T$18,0)))) -> 0 | O16: =INDIRECT("'Aviation Summary'!"&'Aviation Summary'!O$6&($A16+INDEX('Aviation Summary'!$U$11:$U$18,MATCH(Region,'Aviation Summary'!$T$11:$T$18,0)))) -> 0 | P16: =INDIRECT("'Aviation Summary'!"&'Aviation Summary'!P$6&($A16+INDEX('Aviation Summary'!$U$11:$U$18,MATCH(Region,'Aviation Summary'!$T$11:$T$18,0)))) -> 0 | Q16: =INDIRECT("'Aviation Summary'!"&'Aviation Summary'!Q$6&($A16+INDEX('Aviation Summary'!$U$11:$U$18,MATCH(Region,'Aviation Summary'!$T$11:$T$18,0)))) -> 0 | R16: =INDIRECT("'Aviation Summary'!"&'Aviation Summary'!R$6&($A16+INDEX('Aviation Summary'!$U$11:$U$18,MATCH(Region,'Aviation Summary'!$T$11:$T$18,0)))) -> 0
A17: 10 | C17: LH2 Regional | D17: =INDIRECT("'Aviation Summary'!"&'Aviation Summary'!D$6&($A17+INDEX('Aviation Summary'!$U$11:$U$18,MATCH(Region,'Aviation Summary'!$T$11:$T$18,0)))) -> 0 | E17: =INDIRECT("'Aviation Summary'!"&'Aviation Summary'!E$6&($A17+INDEX('Aviation Summary'!$U$11:$U$18,MATCH(Region,'Aviation Summary'!$T$11:$T$18,0)))) -> 0 | F17: =INDIRECT("'Aviation Summary'!"&'Aviation Summary'!F$6&($A17+INDEX('Aviation Summary'!$U$11:$U$18,MATCH(Region,'Aviation Summary'!$T$11:$T$18,0)))) -> 0 | G17: =INDIRECT("'Aviation Summary'!"&'Aviation Summary'!G$6&($A17+INDEX('Aviation Summary'!$U$11:$U$18,MATCH(Region,'Aviation Summary'!$T$11:$T$18,0)))) -> 0 | H17: =INDIRECT("'Aviation Summary'!"&'Aviation Summary'!H$6&($A17+INDEX('Aviation Summary'!$U$11:$U$18,MATCH(Region,'Aviation Summary'!$T$11:$T$18,0)))) -> 0 | I17: =INDIRECT("'Aviation Summary'!"&'Aviation Summary'!I$6&($A17+INDEX('Aviation Summary'!$U$11:$U$18,MATCH(Region,'Aviation Summary'!$T$11:$T$18,0)))) -> 0 | J17: =INDIRECT("'Aviation Summary'!"&'Aviation Summary'!J$6&($A17+INDEX('Aviation Summary'!$U$11:$U$18,MATCH(Region,'Aviation Summary'!$T$11:$T$18,0)))) -> 0 | K17: =INDIRECT("'Aviation Summary'!"&'Aviation Summary'!K$6&($A17+INDEX('Aviation Summary'!$U$11:$U$18,MATCH(Region,'Aviation Summary'!$T$11:$T$18,0)))) -> 0 | L17: =INDIRECT("'Aviation Summary'!"&'Aviation Summary'!L$6&($A17+INDEX('Aviation Summary'!$U$11:$U$18,MATCH(Region,'Aviation Summary'!$T$11:$T$18,0)))) -> 0 | M17: =INDIRECT("'Aviation Summary'!"&'Aviation Summary'!M$6&($A17+INDEX('Aviation Summary'!$U$11:$U$18,MATCH(Region,'Aviation Summary'!$T$11:$T$18,0)))) -> 0 | N17: =INDIRECT("'Aviation Summary'!"&'Aviation Summary'!N$6&($A17+INDEX('Aviation Summary'!$U$11:$U$18,MATCH(Region,'Aviation Summary'!$T$11:$T$18,0)))) -> 0 | O17: =INDIRECT("'Aviation Summary'!"&'Aviation Summary'!O$6&($A17+INDEX('Aviation Summary'!$U$11:$U$18,MATCH(Region,'Aviation Summary'!$T$11:$T$18,0)))) -> 0 | P17: =INDIRECT("'Aviation Summary'!"&'Aviation Summary'!P$6&($A17+INDEX('Aviation Summary'!$U$11:$U$18,MATCH(Region,'Aviation Summary'!$T$11:$T$18,0)))) -> 0 | Q17: =INDIRECT("'Aviation Summary'!"&'Aviation Summary'!Q$6&($A17+INDEX('Aviation Summary'!$U$11:$U$18,MATCH(Region,'Aviation Summary'!$T$11:$T$18,0)))) -> 0 | R17: =INDIRECT("'Aviation Summary'!"&'Aviation Summary'!R$6&($A17+INDEX('Aviation Summary'!$U$11:$U$18,MATCH(Region,'Aviation Summary'!$T$11:$T$18,0)))) -> 0
A18: 11 | C18: LH2 Wide Body | D18: =INDIRECT("'Aviation Summary'!"&'Aviation Summary'!D$6&($A18+INDEX('Aviation Summary'!$U$11:$U$18,MATCH(Region,'Aviation Summary'!$T$11:$T$18,0)))) -> 0 | E18: =INDIRECT("'Aviation Summary'!"&'Aviation Summary'!E$6&($A18+INDEX('Aviation Summary'!$U$11:$U$18,MATCH(Region,'Aviation Summary'!$T$11:$T$18,0)))) -> 0 | F18: =INDIRECT("'Aviation Summary'!"&'Aviation Summary'!F$6&($A18+INDEX('Aviation Summary'!$U$11:$U$18,MATCH(Region,'Aviation Summary'!$T$11:$T$18,0)))) -> 0 | G18: =INDIRECT("'Aviation Summary'!"&'Aviation Summary'!G$6&($A18+INDEX('Aviation Summary'!$U$11:$U$18,MATCH(Region,'Aviation Summary'!$T$11:$T$18,0)))) -> 0 | H18: =INDIRECT("'Aviation Summary'!"&'Aviation Summary'!H$6&($A18+INDEX('Aviation Summary'!$U$11:$U$18,MATCH(Region,'Aviation Summary'!$T$11:$T$18,0)))) -> 0 | I18: =INDIRECT("'Aviation Summary'!"&'Aviation Summary'!I$6&($A18+INDEX('Aviation Summary'!$U$11:$U$18,MATCH(Region,'Aviation Summary'!$T$11:$T$18,0)))) -> 0 | J18: =INDIRECT("'Aviation Summary'!"&'Aviation Summary'!J$6&($A18+INDEX('Aviation Summary'!$U$11:$U$18,MATCH(Region,'Aviation Summary'!$T$11:$T$18,0)))) -> 0 | K18: =INDIRECT("'Aviation Summary'!"&'Aviation Summary'!K$6&($A18+INDEX('Aviation Summary'!$U$11:$U$18,MATCH(Region,'Aviation Summary'!$T$11:$T$18,0)))) -> 0 | L18: =INDIRECT("'Aviation Summary'!"&'Aviation Summary'!L$6&($A18+INDEX('Aviation Summary'!$U$11:$U$18,MATCH(Region,'Aviation Summary'!$T$11:$T$18,0)))) -> 0 | M18: =INDIRECT("'Aviation Summary'!"&'Aviation Summary'!M$6&($A18+INDEX('Aviation Summary'!$U$11:$U$18,MATCH(Region,'Aviation Summary'!$T$11:$T$18,0)))) -> 0 | N18: =INDIRECT("'Aviation Summary'!"&'Aviation Summary'!N$6&($A18+INDEX('Aviation Summary'!$U$11:$U$18,MATCH(Region,'Aviation Summary'!$T$11:$T$18,0)))) -> 0 | O18: =INDIRECT("'Aviation Summary'!"&'Aviation Summary'!O$6&($A18+INDEX('Aviation Summary'!$U$11:$U$18,MATCH(Region,'Aviation Summary'!$T$11:$T$18,0)))) -> 0 | P18: =INDIRECT("'Aviation Summary'!"&'Aviation Summary'!P$6&($A18+INDEX('Aviation Summary'!$U$11:$U$18,MATCH(Region,'Aviation Summary'!$T$11:$T$18,0)))) -> 0 | Q18: =INDIRECT("'Aviation Summary'!"&'Aviation Summary'!Q$6&($A18+INDEX('Aviation Summary'!$U$11:$U$18,MATCH(Region,'Aviation Summary'!$T$11:$T$18,0)))) -> 0 | R18: =INDIRECT("'Aviation Summary'!"&'Aviation Summary'!R$6&($A18+INDEX('Aviation Summary'!$U$11:$U$18,MATCH(Region,'Aviation Summary'!$T$11:$T$18,0)))) -> 0
A19: 12 | B19: Scenario C: High Hydrogen | C19: Total
A20: 13 | C20: LH2 Narrow Body | D20: =INDIRECT("'Aviation Summary'!"&'Aviation Summary'!D$6&($A20+INDEX('Aviation Summary'!$U$11:$U$18,MATCH(Region,'Aviation Summary'!$T$11:$T$18,0)))) -> 0 | E20: =INDIRECT("'Aviation Summary'!"&'Aviation Summary'!E$6&($A20+INDEX('Aviation Summary'!$U$11:$U$18,MATCH(Region,'Aviation Summary'!$T$11:$T$18,0)))) -> 0 | F20: =INDIRECT("'Aviation Summary'!"&'Aviation Summary'!F$6&($A20+INDEX('Aviation Summary'!$U$11:$U$18,MATCH(Region,'Aviation Summary'!$T$11:$T$18,0)))) -> 0 | G20: =INDIRECT("'Aviation Summary'!"&'Aviation Summary'!G$6&($A20+INDEX('Aviation Summary'!$U$11:$U$18,MATCH(Region,'Aviation Summary'!$T$11:$T$18,0)))) -> 0 | H20: =INDIRECT("'Aviation Summary'!"&'Aviation Summary'!H$6&($A20+INDEX('Aviation Summary'!$U$11:$U$18,MATCH(Region,'Aviation Summary'!$T$11:$T$18,0)))) -> 0 | I20: =INDIRECT("'Aviation Summary'!"&'Aviation Summary'!I$6&($A20+INDEX('Aviation Summary'!$U$11:$U$18,MATCH(Region,'Aviation Summary'!$T$11:$T$18,0)))) -> 0 | J20: =INDIRECT("'Aviation Summary'!"&'Aviation Summary'!J$6&($A20+INDEX('Aviation Summary'!$U$11:$U$18,MATCH(Region,'Aviation Summary'!$T$11:$T$18,0)))) -> 0 | K20: =INDIRECT("'Aviation Summary'!"&'Aviation Summary'!K$6&($A20+INDEX('Aviation Summary'!$U$11:$U$18,MATCH(Region,'Aviation Summary'!$T$11:$T$18,0)))) -> 0 | L20: =INDIRECT("'Aviation Summary'!"&'Aviation Summary'!L$6&($A20+INDEX('Aviation Summary'!$U$11:$U$18,MATCH(Region,'Aviation Summary'!$T$11:$T$18,0)))) -> 0 | M20: =INDIRECT("'Aviation Summary'!"&'Aviation Summary'!M$6&($A20+INDEX('Aviation Summary'!$U$11:$U$18,MATCH(Region,'Aviation Summary'!$T$11:$T$18,0)))) -> 0 | N20: =INDIRECT("'Aviation Summary'!"&'Aviation Summary'!N$6&($A20+INDEX('Aviation Summary'!$U$11:$U$18,MATCH(Region,'Aviation Summary'!$T$11:$T$18,0)))) -> 0 | O20: =INDIRECT("'Aviation Summary'!"&'Aviation Summary'!O$6&($A20+INDEX('Aviation Summary'!$U$11:$U$18,MATCH(Region,'Aviation Summary'!$T$11:$T$18,0)))) -> 0 | P20: =INDIRECT("'Aviation Summary'!"&'Aviation Summary'!P$6&($A20+INDEX('Aviation Summary'!$U$11:$U$18,MATCH(Region,'Aviation Summary'!$T$11:$T$18,0)))) -> 0 | Q20: =INDIRECT("'Aviation Summary'!"&'Aviation Summary'!Q$6&($A20+INDEX('Aviation Summary'!$U$11:$U$18,MATCH(Region,'Aviation Summary'!$T$11:$T$18,0)))) -> 0 | R20: =INDIRECT("'Aviation Summary'!"&'Aviation Summary'!R$6&($A20+INDEX('Aviation Summary'!$U$11:$U$18,MATCH(Region,'Aviation Summary'!$T$11:$T$18,0)))) -> 0
A21: 14 | C21: LH2 Regional | D21: =INDIRECT("'Aviation Summary'!"&'Aviation Summary'!D$6&($A21+INDEX('Aviation Summary'!$U$11:$U$18,MATCH(Region,'Aviation Summary'!$T$11:$T$18,0)))) -> 0 | E21: =INDIRECT("'Aviation Summary'!"&'Aviation Summary'!E$6&($A21+INDEX('Aviation Summary'!$U$11:$U$18,MATCH(Region,'Aviation Summary'!$T$11:$T$18,0)))) -> 0 | F21: =INDIRECT("'Aviation Summary'!"&'Aviation Summary'!F$6&($A21+INDEX('Aviation Summary'!$U$11:$U$18,MATCH(Region,'Aviation Summary'!$T$11:$T$18,0)))) -> 0 | G21: =INDIRECT("'Aviation Summary'!"&'Aviation Summary'!G$6&($A21+INDEX('Aviation Summary'!$U$11:$U$18,MATCH(Region,'Aviation Summary'!$T$11:$T$18,0)))) -> 0 | H21: =INDIRECT("'Aviation Summary'!"&'Aviation Summary'!H$6&($A21+INDEX('Aviation Summary'!$U$11:$U$18,MATCH(Region,'Aviation Summary'!$T$11:$T$18,0)))) -> 0 | I21: =INDIRECT("'Aviation Summary'!"&'Aviation Summary'!I$6&($A21+INDEX('Aviation Summary'!$U$11:$U$18,MATCH(Region,'Aviation Summary'!$T$11:$T$18,0)))) -> 0 | J21: =INDIRECT("'Aviation Summary'!"&'Aviation Summary'!J$6&($A21+INDEX('Aviation Summary'!$U$11:$U$18,MATCH(Region,'Aviation Summary'!$T$11:$T$18,0)))) -> 0 | K21: =INDIRECT("'Aviation Summary'!"&'Aviation Summary'!K$6&($A21+INDEX('Aviation Summary'!$U$11:$U$18,MATCH(Region,'Aviation Summary'!$T$11:$T$18,0)))) -> 0 | L21: =INDIRECT("'Aviation Summary'!"&'Aviation Summary'!L$6&($A21+INDEX('Aviation Summary'!$U$11:$U$18,MATCH(Region,'Aviation Summary'!$T$11:$T$18,0)))) -> 0 | M21: =INDIRECT("'Aviation Summary'!"&'Aviation Summary'!M$6&($A21+INDEX('Aviation Summary'!$U$11:$U$18,MATCH(Region,'Aviation Summary'!$T$11:$T$18,0)))) -> 0 | N21: =INDIRECT("'Aviation Summary'!"&'Aviation Summary'!N$6&($A21+INDEX('Aviation Summary'!$U$11:$U$18,MATCH(Region,'Aviation Summary'!$T$11:$T$18,0)))) -> 0 | O21: =INDIRECT("'Aviation Summary'!"&'Aviation Summary'!O$6&($A21+INDEX('Aviation Summary'!$U$11:$U$18,MATCH(Region,'Aviation Summary'!$T$11:$T$18,0)))) -> 0 | P21: =INDIRECT("'Aviation Summary'!"&'Aviation Summary'!P$6&($A21+INDEX('Aviation Summary'!$U$11:$U$18,MATCH(Region,'Aviation Summary'!$T$11:$T$18,0)))) -> 0 | Q21: =INDIRECT("'Aviation Summary'!"&'Aviation Summary'!Q$6&($A21+INDEX('Aviation Summary'!$U$11:$U$18,MATCH(Region,'Aviation Summary'!$T$11:$T$18,0)))) -> 0 | R21: =INDIRECT("'Aviation Summary'!"&'Aviation Summary'!R$6&($A21+INDEX('Aviation Summary'!$U$11:$U$18,MATCH(Region,'Aviation Summary'!$T$11:$T$18,0)))) -> 0
A22: 15 | C22: LH2 Wide Body | D22: =INDIRECT("'Aviation Summary'!"&'Aviation Summary'!D$6&($A22+INDEX('Aviation Summary'!$U$11:$U$18,MATCH(Region,'Aviation Summary'!$T$11:$T$18,0)))) -> 0 | E22: =INDIRECT("'Aviation Summary'!"&'Aviation Summary'!E$6&($A22+INDEX('Aviation Summary'!$U$11:$U$18,MATCH(Region,'Aviation Summary'!$T$11:$T$18,0)))) -> 0 | F22: =INDIRECT("'Aviation Summary'!"&'Aviation Summary'!F$6&($A22+INDEX('Aviation Summary'!$U$11:$U$18,MATCH(Region,'Aviation Summary'!$T$11:$T$18,0)))) -> 0 | G22: =INDIRECT("'Aviation Summary'!"&'Aviation Summary'!G$6&($A22+INDEX('Aviation Summary'!$U$11:$U$18,MATCH(Region,'Aviation Summary'!$T$11:$T$18,0)))) -> 0 | H22: =INDIRECT("'Aviation Summary'!"&'Aviation Summary'!H$6&($A22+INDEX('Aviation Summary'!$U$11:$U$18,MATCH(Region,'Aviation Summary'!$T$11:$T$18,0)))) -> 0 | I22: =INDIRECT("'Aviation Summary'!"&'Aviation Summary'!I$6&($A22+INDEX('Aviation Summary'!$U$11:$U$18,MATCH(Region,'Aviation Summary'!$T$11:$T$18,0)))) -> 0 | J22: =INDIRECT("'Aviation Summary'!"&'Aviation Summary'!J$6&($A22+INDEX('Aviation Summary'!$U$11:$U$18,MATCH(Region,'Aviation Summary'!$T$11:$T$18,0)))) -> 0 | K22: =INDIRECT("'Aviation Summary'!"&'Aviation Summary'!K$6&($A22+INDEX('Aviation Summary'!$U$11:$U$18,MATCH(Region,'Aviation Summary'!$T$11:$T$18,0)))) -> 0 | L22: =INDIRECT("'Aviation Summary'!"&'Aviation Summary'!L$6&($A22+INDEX('Aviation Summary'!$U$11:$U$18,MATCH(Region,'Aviation Summary'!$T$11:$T$18,0)))) -> 0 | M22: =INDIRECT("'Aviation Summary'!"&'Aviation Summary'!M$6&($A22+INDEX('Aviation Summary'!$U$11:$U$18,MATCH(Region,'Aviation Summary'!$T$11:$T$18,0)))) -> 0 | N22: =INDIRECT("'Aviation Summary'!"&'Aviation Summary'!N$6&($A22+INDEX('Aviation Summary'!$U$11:$U$18,MATCH(Region,'Aviation Summary'!$T$11:$T$18,0)))) -> 0 | O22: =INDIRECT("'Aviation Summary'!"&'Aviation Summary'!O$6&($A22+INDEX('Aviation Summary'!$U$11:$U$18,MATCH(Region,'Aviation Summary'!$T$11:$T$18,0)))) -> 0 | P22: =INDIRECT("'Aviation Summary'!"&'Aviation Summary'!P$6&($A22+INDEX('Aviation Summary'!$U$11:$U$18,MATCH(Region,'Aviation Summary'!$T$11:$T$18,0)))) -> 0 | Q22: =INDIRECT("'Aviation Summary'!"&'Aviation Summary'!Q$6&($A22+INDEX('Aviation Summary'!$U$11:$U$18,MATCH(Region,'Aviation Summary'!$T$11:$T$18,0)))) -> 0 | R22: =INDIRECT("'Aviation Summary'!"&'Aviation Summary'!R$6&($A22+INDEX('Aviation Summary'!$U$11:$U$18,MATCH(Region,'Aviation Summary'!$T$11:$T$18,0)))) -> 0
B25: KWh | C25: Electric aircraft breakdown | D25: 2019 | E25: 2020 | F25: 2021 | G25: 2022 | H25: 2023 | I25: 2024 | J25: 2025 | K25: 2026 | L25: 2027 | M25: 2028 | N25: 2029 | O25: 2030 | P25: 2035 | Q25: 2040 | R25: 2045
B26: Scenario A: Low Hydrogen | C26: Total
C27: Elec Regional
C28: Elec Small Turbo
C29: Elec Large Turbo
B30: Scenario B: Medium Hydrogen | C30: Total
C31: Elec Regional
C32: Elec Small Turbo
C33: Elec Large Turbo
B34: Scenario C: High Hydrogen | C34: Total
C35: Elec Regional
C36: Elec Small Turbo
C37: Elec Large Turbo
B40: Dumfries & Galloway | C40: Summary Tables
B43: KWh | C43: Hydrogen (Breakdown) | D43: 2019 | E43: 2020 | F43: 2021 | G43: 2022 | H43: 2023 | I43: 2024 | J43: 2025 | K43: 2026 | L43: 2027 | M43: 2028 | N43: 2029 | O43: 2030 | P43: 2035 | Q43: 2040 | R43: 2045
B44: Scenario A: Low Hydrogen | C44: Total
C45: LH2 Narrow Body
C46: LH2 Regional
C47: LH2 Wide Body
B48: Scenario B: Medium Hydrogen | C48: Total
C49: LH2 Narrow Body
C50: LH2 Regional
C51: LH2 Wide Body
B52: Scenario C: High Hydrogen | C52: Total
C53: LH2 Narrow Body
C54: LH2 Regional
C55: LH2 Wide Body
B58: KWh | C58: Electric aircraft breakdown | D58: 2019 | E58: 2020 | F58: 2021 | G58: 2022 | H58: 2023 | I58: 2024 | J58: 2025 | K58: 2026 | L58: 2027 | M58: 2028 | N58: 2029 | O58: 2030 | P58: 2035 | Q58: 2040 | R58: 2045
B59: Scenario A: Low Hydrogen | C59: Total
C60: Elec Regional
C61: Elec Small Turbo
C62: Elec Large Turbo
B63: Scenario B: Medium Hydrogen | C63: Total
C64: Elec Regional
C65: Elec Small Turbo
C66: Elec Large Turbo
B67: Scenario C: High Hydrogen | C67: Total
C68: Elec Regional
C69: Elec Small Turbo
C70: Elec Large Turbo
B72: Fife | C72: Summary Tables
B75: KWh | C75: Hydrogen (Breakdown) | D75: 2019 | E75: 2020 | F75: 2021 | G75: 2022 | H75: 2023 | I75: 2024 | J75: 2025 | K75: 2026 | L75: 2027 | M75: 2028 | N75: 2029 | O75: 2030 | P75: 2035 | Q75: 2040 | R75: 2045
B76: Scenario A: Low Hydrogen | C76: Total
C77: LH2 Narrow Body
C78: LH2 Regional
C79: LH2 Wide Body
B80: Scenario B: Medium Hydrogen | C80: Total
C81: LH2 Narrow Body
C82: LH2 Regional
C83: LH2 Wide Body
B84: Scenario C: High Hydrogen | C84: Total
C85: LH2 Narrow Body
C86: LH2 Regional
C87: LH2 Wide Body
B90: KWh | C90: Electric aircraft breakdown | D90: 2019 | E90: 2020 | F90: 2021 | G90: 2022 | H90: 2023 | I90: 2024 | J90: 2025 | K90: 2026 | L90: 2027 | M90: 2028 | N90: 2029 | O90: 2030 | P90: 2035 | Q90: 2040 | R90: 2045
B91: Scenario A: Low Hydrogen | C91: Total
C92: Elec Regional
C93: Elec Small Turbo
C94: Elec Large Turbo
B95: Scenario B: Medium Hydrogen | C95: Total
C96: Elec Regional
C97: Elec Small Turbo
C98: Elec Large Turbo
B99: Scenario C: High Hydrogen | C99: Total
C100: Elec Regional
C101: Elec Small Turbo
C102: Elec Large Turbo
B104: Highlands | C104: Summary Tables
B107: KWh | C107: Hydrogen (Breakdown) | D107: 2019 | E107: 2020 | F107: 2021 | G107: 2022 | H107: 2023 | I107: 2024 | J107: 2025 | K107: 2026 | L107: 2027 | M107: 2028 | N107: 2029 | O107: 2030 | P107: 2035 | Q107: 2040 | R107: 2045
B108: Scenario A: Low Hydrogen | C108: Total
C109: LH2 Narrow Body | D109: 0 | E109: 0 | F109: 0 | G109: 0 | H109: 0 | I109: 0 | J109: 0 | K109: 0 | L109: 0 | M109: 0 | N109: - | O109: - | P109: - | Q109: 6644490 | R109: 21545559
C110: LH2 Regional | D110: 0 | E110: 0 | F110: 0 | G110: 0 | H110: 0 | I110: 0 | J110: 0 | K110: 0 | L110: 0 | M110: 0 | N110: - | O110: - | P110: 357133 | Q110: 2351650 | R110: 4981791
C111: LH2 Wide Body | D111: 0 | E111: 0 | F111: 0 | G111: 0 | H111: 0 | I111: 0 | J111: 0 | K111: 0 | L111: 0 | M111: 0 | N111: - | O111: - | P111: - | Q111: - | R111: -
B112: Scenario B: Medium Hydrogen | C112: Total
C113: LH2 Narrow Body | D113: 0 | E113: 0 | F113: 0 | G113: 0 | H113: 0 | I113: 0 | J113: 0 | K113: 0 | L113: 0 | M113: 0 | N113: - | O113: - | P113: 2530982 | Q113: 17541453 | R113: 39105189
C114: LH2 Regional | D114: 0 | E114: 0 | F114: 0 | G114: 0 | H114: 0 | I114: 0 | J114: 0 | K114: 0 | L114: 0 | M114: 0 | N114: - | O114: - | P114: 2236230 | Q114: 5522263 | R114: 9926635
C115: LH2 Wide Body | D115: 0 | E115: 0 | F115: 0 | G115: 0 | H115: 0 | I115: 0 | J115: 0 | K115: 0 | L115: 0 | M115: 0 | N115: - | O115: - | P115: - | Q115: - | R115: -
B116: Scenario C: High Hydrogen | C116: Total
C117: LH2 Narrow Body | D117: 0 | E117: 0 | F117: 0 | G117: 0 | H117: 0 | I117: 0 | J117: 0 | K117: 0 | L117: 0 | M117: 0 | N117: - | O117: - | P117: 8858436 | Q117: 27286705 | R117: 53917761
C118: LH2 Regional | D118: 0 | E118: 0 | F118: 0 | G118: 0 | H118: 0 | I118: 0 | J118: 0 | K118: 0 | L118: 0 | M118: 0 | N118: - | O118: 620221 | P118: 4137330 | Q118: 8325235 | R118: 13993961
C119: LH2 Wide Body | D119: 0 | E119: 0 | F119: 0 | G119: 0 | H119: 0 | I119: 0 | J119: 0 | K119: 0 | L119: 0 | M119: 0 | N119: - | O119: - | P119: - | Q119: - | R119: -
B122: KWh | C122: Electric aircraft breakdown | D122: 2019 | E122: 2020 | F122: 2021 | G122: 2022 | H122: 2023 | I122: 2024 | J122: 2025 | K122: 2026 | L122: 2027 | M122: 2028 | N122: 2029 | O122: 2030 | P122: 2035 | Q122: 2040 | R122: 2045
B123: Scenario A: Low Hydrogen | C123: Total
C124: Elec Regional
C125: Elec Small Turbo
C126: Elec Large Turbo
B127: Scenario B: Medium Hydrogen | C127: Total
C128: Elec Regional
C129: Elec Small Turbo
C130: Elec Large Turbo
B131: Scenario C: High Hydrogen | C131: Total
C132: Elec Regional
C133: Elec Small Turbo
C134: Elec Large Turbo

Sheet Ferries Summary (hidden)
A1: OK
E4: E | F4: F | G4: G | H4: H | I4: I | J4: J | K4: K | L4: L | M4: M | N4: N | O4: O | P4: P
R5: Lookup | S5: Row
R6: ='Key Assumptions >'!$B$21 -> Dumfries & Galloway | S6: =ROW(B21) -> 21
R7: ='Key Assumptions >'!$B$22 -> Fife | S7: =ROW(B40) -> 40
R8: ='Key Assumptions >'!$B$23 -> Highlands | S8: =ROW(B59) -> 59
C9: TOtal | D9: Units | E9: 2022 | F9: 2023 | G9: 2024 | H9: 2025 | I9: 2026 | J9: 2027 | K9: 2028 | L9: 2029 | M9: 2030 | N9: 2035 | O9: 2040 | P9: 2045
B10: Scenario A: Low Hydrogen | C10: Total | E10: =E11+E12 -> 0 | F10: =F11+F12 -> 0 | G10: 0 | H10: 0 | I10: 0 | J10: 0 | K10: 0 | L10: 0 | M10: 0 | N10: 216276080 | O10: 1152614335 | P10: 1152614335
A11: 3 | C11: Electricity | D11: kWh | E11: =INDIRECT("'Ferries Summary'!"&'Ferries Summary'!E$4&($A11+INDEX('Ferries Summary'!$S$6:$S$13,MATCH(Region,'Ferries Summary'!$R$6:$R$13,0)))) -> 0 | F11: =INDIRECT("'Ferries Summary'!"&'Ferries Summary'!F$4&($A11+INDEX('Ferries Summary'!$S$6:$S$13,MATCH(Region,'Ferries Summary'!$R$6:$R$13,0)))) -> 0 | G11: =INDIRECT("'Ferries Summary'!"&'Ferries Summary'!G$4&($A11+INDEX('Ferries Summary'!$S$6:$S$13,MATCH(Region,'Ferries Summary'!$R$6:$R$13,0)))) -> 0 | H11: =INDIRECT("'Ferries Summary'!"&'Ferries Summary'!H$4&($A11+INDEX('Ferries Summary'!$S$6:$S$13,MATCH(Region,'Ferries Summary'!$R$6:$R$13,0)))) -> 0 | I11: =INDIRECT("'Ferries Summary'!"&'Ferries Summary'!I$4&($A11+INDEX('Ferries Summary'!$S$6:$S$13,MATCH(Region,'Ferries Summary'!$R$6:$R$13,0)))) -> 0 | J11: =INDIRECT("'Ferries Summary'!"&'Ferries Summary'!J$4&($A11+INDEX('Ferries Summary'!$S$6:$S$13,MATCH(Region,'Ferries Summary'!$R$6:$R$13,0)))) -> 0 | K11: =INDIRECT("'Ferries Summary'!"&'Ferries Summary'!K$4&($A11+INDEX('Ferries Summary'!$S$6:$S$13,MATCH(Region,'Ferries Summary'!$R$6:$R$13,0)))) -> 0 | L11: =INDIRECT("'Ferries Summary'!"&'Ferries Summary'!L$4&($A11+INDEX('Ferries Summary'!$S$6:$S$13,MATCH(Region,'Ferries Summary'!$R$6:$R$13,0)))) -> 0 | M11: =INDIRECT("'Ferries Summary'!"&'Ferries Summary'!M$4&($A11+INDEX('Ferries Summary'!$S$6:$S$13,MATCH(Region,'Ferries Summary'!$R$6:$R$13,0)))) -> 0 | N11: =INDIRECT("'Ferries Summary'!"&'Ferries Summary'!N$4&($A11+INDEX('Ferries Summary'!$S$6:$S$13,MATCH(Region,'Ferries Summary'!$R$6:$R$13,0)))) -> 0 | O11: =INDIRECT("'Ferries Summary'!"&'Ferries Summary'!O$4&($A11+INDEX('Ferries Summary'!$S$6:$S$13,MATCH(Region,'Ferries Summary'!$R$6:$R$13,0)))) -> 0 | P11: =INDIRECT("'Ferries Summary'!"&'Ferries Summary'!P$4&($A11+INDEX('Ferries Summary'!$S$6:$S$13,MATCH(Region,'Ferries Summary'!$R$6:$R$13,0)))) -> 0
A12: 15 | C12: Hydrogen | D12: kWh | E12: =INDIRECT("'Ferries Summary'!"&'Ferries Summary'!E$4&($A12+INDEX('Ferries Summary'!$S$6:$S$13,MATCH(Region,'Ferries Summary'!$R$6:$R$13,0)))) -> 0 | F12: =INDIRECT("'Ferries Summary'!"&'Ferries Summary'!F$4&($A12+INDEX('Ferries Summary'!$S$6:$S$13,MATCH(Region,'Ferries Summary'!$R$6:$R$13,0)))) -> 0 | G12: =INDIRECT("'Ferries Summary'!"&'Ferries Summary'!G$4&($A12+INDEX('Ferries Summary'!$S$6:$S$13,MATCH(Region,'Ferries Summary'!$R$6:$R$13,0)))) -> 0 | H12: =INDIRECT("'Ferries Summary'!"&'Ferries Summary'!H$4&($A12+INDEX('Ferries Summary'!$S$6:$S$13,MATCH(Region,'Ferries Summary'!$R$6:$R$13,0)))) -> 0 | I12: =INDIRECT("'Ferries Summary'!"&'Ferries Summary'!I$4&($A12+INDEX('Ferries Summary'!$S$6:$S$13,MATCH(Region,'Ferries Summary'!$R$6:$R$13,0)))) -> 0 | J12: =INDIRECT("'Ferries Summary'!"&'Ferries Summary'!J$4&($A12+INDEX('Ferries Summary'!$S$6:$S$13,MATCH(Region,'Ferries Summary'!$R$6:$R$13,0)))) -> 0 | K12: =INDIRECT("'Ferries Summary'!"&'Ferries Summary'!K$4&($A12+INDEX('Ferries Summary'!$S$6:$S$13,MATCH(Region,'Ferries Summary'!$R$6:$R$13,0)))) -> 0 | L12: =INDIRECT("'Ferries Summary'!"&'Ferries Summary'!L$4&($A12+INDEX('Ferries Summary'!$S$6:$S$13,MATCH(Region,'Ferries Summary'!$R$6:$R$13,0)))) -> 0 | M12: =INDIRECT("'Ferries Summary'!"&'Ferries Summary'!M$4&($A12+INDEX('Ferries Summary'!$S$6:$S$13,MATCH(Region,'Ferries Summary'!$R$6:$R$13,0)))) -> 0 | N12: =INDIRECT("'Ferries Summary'!"&'Ferries Summary'!N$4&($A12+INDEX('Ferries Summary'!$S$6:$S$13,MATCH(Region,'Ferries Summary'!$R$6:$R$13,0)))) -> 216276080 | O12: =INDIRECT("'Ferries Summary'!"&'Ferries Summary'!O$4&($A12+INDEX('Ferries Summary'!$S$6:$S$13,MATCH(Region,'Ferries Summary'!$R$6:$R$13,0)))) -> 1152614335 | P12: =INDIRECT("'Ferries Summary'!"&'Ferries Summary'!P$4&($A12+INDEX('Ferries Summary'!$S$6:$S$13,MATCH(Region,'Ferries Summary'!$R$6:$R$13,0)))) -> 1152614335
B13: Scenario B: Medium Hydrogen | C13: Total | D13: kWh | E13: =E14+E15 -> 0 | F13: =F14+F15 -> 0 | G13: 0 | H13: 0 | I13: 0 | J13: 0 | K13: 0 | L13: 0 | M13: 216276080 | N13: 1152614335 | O13: 1152614335 | P13: 1152614335
A14: 4 | C14: Electricity | D14: kWh | E14: =INDIRECT("'Ferries Summary'!"&'Ferries Summary'!E$4&($A14+INDEX('Ferries Summary'!$S$6:$S$13,MATCH(Region,'Ferries Summary'!$R$6:$R$13,0)))) -> 0 | F14: =INDIRECT("'Ferries Summary'!"&'Ferries Summary'!F$4&($A14+INDEX('Ferries Summary'!$S$6:$S$13,MATCH(Region,'Ferries Summary'!$R$6:$R$13,0)))) -> 0 | G14: =INDIRECT("'Ferries Summary'!"&'Ferries Summary'!G$4&($A14+INDEX('Ferries Summary'!$S$6:$S$13,MATCH(Region,'Ferries Summary'!$R$6:$R$13,0)))) -> 0 | H14: =INDIRECT("'Ferries Summary'!"&'Ferries Summary'!H$4&($A14+INDEX('Ferries Summary'!$S$6:$S$13,MATCH(Region,'Ferries Summary'!$R$6:$R$13,0)))) -> 0 | I14: =INDIRECT("'Ferries Summary'!"&'Ferries Summary'!I$4&($A14+INDEX('Ferries Summary'!$S$6:$S$13,MATCH(Region,'Ferries Summary'!$R$6:$R$13,0)))) -> 0 | J14: =INDIRECT("'Ferries Summary'!"&'Ferries Summary'!J$4&($A14+INDEX('Ferries Summary'!$S$6:$S$13,MATCH(Region,'Ferries Summary'!$R$6:$R$13,0)))) -> 0 | K14: =INDIRECT("'Ferries Summary'!"&'Ferries Summary'!K$4&($A14+INDEX('Ferries Summary'!$S$6:$S$13,MATCH(Region,'Ferries Summary'!$R$6:$R$13,0)))) -> 0 | L14: =INDIRECT("'Ferries Summary'!"&'Ferries Summary'!L$4&($A14+INDEX('Ferries Summary'!$S$6:$S$13,MATCH(Region,'Ferries Summary'!$R$6:$R$13,0)))) -> 0 | M14: =INDIRECT("'Ferries Summary'!"&'Ferries Summary'!M$4&($A14+INDEX('Ferries Summary'!$S$6:$S$13,MATCH(Region,'Ferries Summary'!$R$6:$R$13,0)))) -> 0 | N14: =INDIRECT("'Ferries Summary'!"&'Ferries Summary'!N$4&($A14+INDEX('Ferries Summary'!$S$6:$S$13,MATCH(Region,'Ferries Summary'!$R$6:$R$13,0)))) -> 0 | O14: =INDIRECT("'Ferries Summary'!"&'Ferries Summary'!O$4&($A14+INDEX('Ferries Summary'!$S$6:$S$13,MATCH(Region,'Ferries Summary'!$R$6:$R$13,0)))) -> 0 | P14: =INDIRECT("'Ferries Summary'!"&'Ferries Summary'!P$4&($A14+INDEX('Ferries Summary'!$S$6:$S$13,MATCH(Region,'Ferries Summary'!$R$6:$R$13,0)))) -> 0
A15: 16 | C15: Hydrogen | D15: kWh | E15: =INDIRECT("'Ferries Summary'!"&'Ferries Summary'!E$4&($A15+INDEX('Ferries Summary'!$S$6:$S$13,MATCH(Region,'Ferries Summary'!$R$6:$R$13,0)))) -> 0 | F15: =INDIRECT("'Ferries Summary'!"&'Ferries Summary'!F$4&($A15+INDEX('Ferries Summary'!$S$6:$S$13,MATCH(Region,'Ferries Summary'!$R$6:$R$13,0)))) -> 0 | G15: =INDIRECT("'Ferries Summary'!"&'Ferries Summary'!G$4&($A15+INDEX('Ferries Summary'!$S$6:$S$13,MATCH(Region,'Ferries Summary'!$R$6:$R$13,0)))) -> 0 | H15: =INDIRECT("'Ferries Summary'!"&'Ferries Summary'!H$4&($A15+INDEX('Ferries Summary'!$S$6:$S$13,MATCH(Region,'Ferries Summary'!$R$6:$R$13,0)))) -> 0 | I15: =INDIRECT("'Ferries Summary'!"&'Ferries Summary'!I$4&($A15+INDEX('Ferries Summary'!$S$6:$S$13,MATCH(Region,'Ferries Summary'!$R$6:$R$13,0)))) -> 0 | J15: =INDIRECT("'Ferries Summary'!"&'Ferries Summary'!J$4&($A15+INDEX('Ferries Summary'!$S$6:$S$13,MATCH(Region,'Ferries Summary'!$R$6:$R$13,0)))) -> 0 | K15: =INDIRECT("'Ferries Summary'!"&'Ferries Summary'!K$4&($A15+INDEX('Ferries Summary'!$S$6:$S$13,MATCH(Region,'Ferries Summary'!$R$6:$R$13,0)))) -> 0 | L15: =INDIRECT("'Ferries Summary'!"&'Ferries Summary'!L$4&($A15+INDEX('Ferries Summary'!$S$6:$S$13,MATCH(Region,'Ferries Summary'!$R$6:$R$13,0)))) -> 0 | M15: =INDIRECT("'Ferries Summary'!"&'Ferries Summary'!M$4&($A15+INDEX('Ferries Summary'!$S$6:$S$13,MATCH(Region,'Ferries Summary'!$R$6:$R$13,0)))) -> 216276080 | N15: =INDIRECT("'Ferries Summary'!"&'Ferries Summary'!N$4&($A15+INDEX('Ferries Summary'!$S$6:$S$13,MATCH(Region,'Ferries Summary'!$R$6:$R$13,0)))) -> 1152614335 | O15: =INDIRECT("'Ferries Summary'!"&'Ferries Summary'!O$4&($A15+INDEX('Ferries Summary'!$S$6:$S$13,MATCH(Region,'Ferries Summary'!$R$6:$R$13,0)))) -> 1152614335 | P15: =INDIRECT("'Ferries Summary'!"&'Ferries Summary'!P$4&($A15+INDEX('Ferries Summary'!$S$6:$S$13,MATCH(Region,'Ferries Summary'!$R$6:$R$13,0)))) -> 1152614335
B16: Scenario C: High Hydrogen | C16: Total | D16: kWh | E16: =E17+E18 -> 0 | F16: =F17+F18 -> 0 | G16: 0 | H16: =H17+H18 -> 0 | I16: 0 | J16: 0 | K16: 216276080 | L16: 792583247.6 | M16: 1152614335 | N16: 1152614335 | O16: 1152614335 | P16: 1152614335
A17: 5 | C17: Electricity | D17: kWh | E17: =INDIRECT("'Ferries Summary'!"&'Ferries Summary'!E$4&($A17+INDEX('Ferries Summary'!$S$6:$S$13,MATCH(Region,'Ferries Summary'!$R$6:$R$13,0)))) -> 0 | F17: =INDIRECT("'Ferries Summary'!"&'Ferries Summary'!F$4&($A17+INDEX('Ferries Summary'!$S$6:$S$13,MATCH(Region,'Ferries Summary'!$R$6:$R$13,0)))) -> 0 | G17: =INDIRECT("'Ferries Summary'!"&'Ferries Summary'!G$4&($A17+INDEX('Ferries Summary'!$S$6:$S$13,MATCH(Region,'Ferries Summary'!$R$6:$R$13,0)))) -> 0 | H17: =INDIRECT("'Ferries Summary'!"&'Ferries Summary'!H$4&($A17+INDEX('Ferries Summary'!$S$6:$S$13,MATCH(Region,'Ferries Summary'!$R$6:$R$13,0)))) -> 0 | I17: =INDIRECT("'Ferries Summary'!"&'Ferries Summary'!I$4&($A17+INDEX('Ferries Summary'!$S$6:$S$13,MATCH(Region,'Ferries Summary'!$R$6:$R$13,0)))) -> 0 | J17: =INDIRECT("'Ferries Summary'!"&'Ferries Summary'!J$4&($A17+INDEX('Ferries Summary'!$S$6:$S$13,MATCH(Region,'Ferries Summary'!$R$6:$R$13,0)))) -> 0 | K17: =INDIRECT("'Ferries Summary'!"&'Ferries Summary'!K$4&($A17+INDEX('Ferries Summary'!$S$6:$S$13,MATCH(Region,'Ferries Summary'!$R$6:$R$13,0)))) -> 0 | L17: =INDIRECT("'Ferries Summary'!"&'Ferries Summary'!L$4&($A17+INDEX('Ferries Summary'!$S$6:$S$13,MATCH(Region,'Ferries Summary'!$R$6:$R$13,0)))) -> 0 | M17: =INDIRECT("'Ferries Summary'!"&'Ferries Summary'!M$4&($A17+INDEX('Ferries Summary'!$S$6:$S$13,MATCH(Region,'Ferries Summary'!$R$6:$R$13,0)))) -> 0 | N17: =INDIRECT("'Ferries Summary'!"&'Ferries Summary'!N$4&($A17+INDEX('Ferries Summary'!$S$6:$S$13,MATCH(Region,'Ferries Summary'!$R$6:$R$13,0)))) -> 0 | O17: =INDIRECT("'Ferries Summary'!"&'Ferries Summary'!O$4&($A17+INDEX('Ferries Summary'!$S$6:$S$13,MATCH(Region,'Ferries Summary'!$R$6:$R$13,0)))) -> 0 | P17: =INDIRECT("'Ferries Summary'!"&'Ferries Summary'!P$4&($A17+INDEX('Ferries Summary'!$S$6:$S$13,MATCH(Region,'Ferries Summary'!$R$6:$R$13,0)))) -> 0
A18: 17 | C18: Hydrogen | D18: kWh | E18: =INDIRECT("'Ferries Summary'!"&'Ferries Summary'!E$4&($A18+INDEX('Ferries Summary'!$S$6:$S$13,MATCH(Region,'Ferries Summary'!$R$6:$R$13,0)))) -> 0 | F18: =INDIRECT("'Ferries Summary'!"&'Ferries Summary'!F$4&($A18+INDEX('Ferries Summary'!$S$6:$S$13,MATCH(Region,'Ferries Summary'!$R$6:$R$13,0)))) -> 0 | G18: =INDIRECT("'Ferries Summary'!"&'Ferries Summary'!G$4&($A18+INDEX('Ferries Summary'!$S$6:$S$13,MATCH(Region,'Ferries Summary'!$R$6:$R$13,0)))) -> 0 | H18: =INDIRECT("'Ferries Summary'!"&'Ferries Summary'!H$4&($A18+INDEX('Ferries Summary'!$S$6:$S$13,MATCH(Region,'Ferries Summary'!$R$6:$R$13,0)))) -> 0 | I18: =INDIRECT("'Ferries Summary'!"&'Ferries Summary'!I$4&($A18+INDEX('Ferries Summary'!$S$6:$S$13,MATCH(Region,'Ferries Summary'!$R$6:$R$13,0)))) -> 0 | J18: =INDIRECT("'Ferries Summary'!"&'Ferries Summary'!J$4&($A18+INDEX('Ferries Summary'!$S$6:$S$13,MATCH(Region,'Ferries Summary'!$R$6:$R$13,0)))) -> 0 | K18: =INDIRECT("'Ferries Summary'!"&'Ferries Summary'!K$4&($A18+INDEX('Ferries Summary'!$S$6:$S$13,MATCH(Region,'Ferries Summary'!$R$6:$R$13,0)))) -> 216276080 | L18: =INDIRECT("'Ferries Summary'!"&'Ferries Summary'!L$4&($A18+INDEX('Ferries Summary'!$S$6:$S$13,MATCH(Region,'Ferries Summary'!$R$6:$R$13,0)))) -> 792583247.6 | M18: =INDIRECT("'Ferries Summary'!"&'Ferries Summary'!M$4&($A18+INDEX('Ferries Summary'!$S$6:$S$13,MATCH(Region,'Ferries Summary'!$R$6:$R$13,0)))) -> 1152614335 | N18: =INDIRECT("'Ferries Summary'!"&'Ferries Summary'!N$4&($A18+INDEX('Ferries Summary'!$S$6:$S$13,MATCH(Region,'Ferries Summary'!$R$6:$R$13,0)))) -> 1152614335 | O18: =INDIRECT("'Ferries Summary'!"&'Ferries Summary'!O$4&($A18+INDEX('Ferries Summary'!$S$6:$S$13,MATCH(Region,'Ferries Summary'!$R$6:$R$13,0)))) -> 1152614335 | P18: =INDIRECT("'Ferries Summary'!"&'Ferries Summary'!P$4&($A18+INDEX('Ferries Summary'!$S$6:$S$13,MATCH(Region,'Ferries Summary'!$R$6:$R$13,0)))) -> 1152614335
B21: Dumfries & Galloway
B23: Battery Electric (kWh) | C23: 2021 | E23: 2022 | F23: 2023 | G23: 2024 | H23: 2025 | I23: 2026 | J23: 2027 | K23: 2028 | L23: 2029 | M23: 2030 | N23: 2035 | O23: 2040 | P23: 2045
B24: Scenario 1 | C24: 0 | E24: 0 | F24: 0 | G24: 0 | H24: 0 | I24: 0 | J24: 0 | K24: 0 | L24: 0 | M24: 0 | N24: 0 | O24: 0 | P24: 0 | Q24: Values are kWh of electricity
B25: Scenario 2 | C25: 0 | E25: 0 | F25: 0 | G25: 0 | H25: 0 | I25: 0 | J25: 0 | K25: 0 | L25: 0 | M25: 0 | N25: 0 | O25: 0 | P25: 0
B26: Scenario 3 | C26: 0 | E26: 0 | F26: 0 | G26: 0 | H26: 0 | I26: 0 | J26: 0 | K26: 0 | L26: 0 | M26: 0 | N26: 0 | O26: 0 | P26: 0
B29: Hydrogen (kg) | C29: 2021 | E29: 2022 | F29: 2023 | G29: 2024 | H29: 2025 | I29: 2026 | J29: 2027 | K29: 2028 | L29: 2029 | M29: 2030 | N29: 2035 | O29: 2040 | P29: 2045
B30: Scenario 1 | C30: 0 | E30: 0 | F30: 0 | G30: 0 | H30: 0 | I30: 0 | J30: 0 | K30: 0 | L30: 0 | M30: 0 | N30: 7633273.413 | O30: 40680505.94 | P30: 40680505.94 | Q30: Values are kg of hydrogen
B31: Scenario 2 | C31: 0 | E31: 0 | F31: 0 | G31: 0 | H31: 0 | I31: 0 | J31: 0 | K31: 0 | L31: 0 | M31: 7633273.413 | N31: 40680505.94 | O31: 40680505.94 | P31: 40680505.94
B32: Scenario 3 | C32: 0 | E32: 0 | F32: 0 | G32: 0 | H32: 0 | I32: 0 | J32: 0 | K32: 7633273.413 | L32: 27973526.38 | M32: 40680505.94 | N32: 40680505.94 | O32: 40680505.94 | P32: 40680505.94
B35: Hydrogen (kWh) | C35: 2021 | E35: 2022 | F35: 2023 | G35: 2024 | H35: 2025 | I35: 2026 | J35: 2027 | K35: 2028 | L35: 2029 | M35: 2030 | N35: 2035 | O35: 2040 | P35: 2045
B36: Scenario 1 | C36: 0 | E36: 0 | F36: 0 | G36: 0 | H36: 0 | I36: 0 | J36: 0 | K36: 0 | L36: 0 | M36: 0 | N36: 216276080 | O36: 1152614335 | P36: 1152614335 | Q36: Values are kWh of hydrogen
B37: Scenario 2 | C37: 0 | E37: 0 | F37: 0 | G37: 0 | H37: 0 | I37: 0 | J37: 0 | K37: 0 | L37: 0 | M37: 216276080 | N37: 1152614335 | O37: 1152614335 | P37: 1152614335
B38: Scenario 3 | C38: 0 | E38: 0 | F38: 0 | G38: 0 | H38: 0 | I38: 0 | J38: 0 | K38: 216276080 | L38: 792583247.6 | M38: 1152614335 | N38: 1152614335 | O38: 1152614335 | P38: 1152614335
B40: Fife
B42: Battery Electric (kWh) | C42: 2021 | E42: 2022 | F42: 2023 | G42: 2024 | H42: 2025 | I42: 2026 | J42: 2027 | K42: 2028 | L42: 2029 | M42: 2030 | N42: 2035 | O42: 2040 | P42: 2045
B43: Scenario 1 | C43: 0 | E43: 0 | F43: 0 | G43: 0 | H43: 0 | I43: 0 | J43: 0 | K43: 0 | L43: 0 | M43: 0 | N43: 0 | O43: 0 | P43: 0 | Q43: Values are kWh of electricity
B44: Scenario 2 | C44: 0 | E44: 0 | F44: 0 | G44: 0 | H44: 0 | I44: 0 | J44: 0 | K44: 0 | L44: 0 | M44: 0 | N44: 0 | O44: 0 | P44: 0
B45: Scenario 3 | C45: 0 | E45: 0 | F45: 0 | G45: 0 | H45: 0 | I45: 0 | J45: 0 | K45: 0 | L45: 0 | M45: 0 | N45: 0 | O45: 0 | P45: 0
B48: Hydrogen (kg) | C48: 2021 | E48: 2022 | F48: 2023 | G48: 2024 | H48: 2025 | I48: 2026 | J48: 2027 | K48: 2028 | L48: 2029 | M48: 2030 | N48: 2035 | O48: 2040 | P48: 2045
B49: Scenario 1 | C49: 0 | E49: 0 | F49: 0 | G49: 0 | H49: 0 | I49: 0 | J49: 0 | K49: 0 | L49: 0 | M49: 558.1763564 | N49: 1116.352713 | O49: 1116.352713 | P49: 1116.352713 | Q49: Values are kg of hydrogen
B50: Scenario 2 | C50: 0 | E50: 0 | F50: 0 | G50: 0 | H50: 0 | I50: 0 | J50: 0 | K50: 0 | L50: 0 | M50: 558.1763564 | N50: 1116.352713 | O50: 1116.352713 | P50: 1116.352713
B51: Scenario 3 | C51: 0 | E51: 0 | F51: 0 | G51: 0 | H51: 0 | I51: 0 | J51: 0 | K51: 0 | L51: 0 | M51: 558.1763564 | N51: 1116.352713 | O51: 1116.352713 | P51: 1116.352713
B54: Hydrogen (kWh) | C54: 2021 | E54: 2022 | F54: 2023 | G54: 2024 | H54: 2025 | I54: 2026 | J54: 2027 | K54: 2028 | L54: 2029 | M54: 2030 | N54: 2035 | O54: 2040 | P54: 2045
B55: Scenario 1 | C55: 0 | E55: 0 | F55: 0 | G55: 0 | H55: 0 | I55: 0 | J55: 0 | K55: 0 | L55: 0 | M55: 18605.87855 | N55: 37211.75709 | O55: 37211.75709 | P55: 37211.75709 | Q55: Values are kWh of hydrogen
B56: Scenario 2 | C56: 0 | E56: 0 | F56: 0 | G56: 0 | H56: 0 | I56: 0 | J56: 0 | K56: 0 | L56: 0 | M56: 18605.87855 | N56: 37211.75709 | O56: 37211.75709 | P56: 37211.75709
B57: Scenario 3 | C57: 0 | E57: 0 | F57: 0 | G57: 0 | H57: 0 | I57: 0 | J57: 0 | K57: 0 | L57: 0 | M57: 18605.87855 | N57: 37211.75709 | O57: 37211.75709 | P57: 37211.75709
B59: Highlands
B61: Battery Electric (kWh) | C61: 2021 | E61: 2022 | F61: 2023 | G61: 2024 | H61: 2025 | I61: 2026 | J61: 2027 | K61: 2028 | L61: 2029 | M61: 2030 | N61: 2035 | O61: 2040 | P61: 2045
B62: Scenario 1 | C62: 0 | E62: 0 | Q62: Values are kWh of electricity
B63: Scenario 2 | C63: 0 | E63: 0
B64: Scenario 3 | C64: 0 | E64: 0
B67: Hydrogen (kg) | C67: 2021 | E67: 2022 | F67: 2023 | G67: 2024 | H67: 2025 | I67: 2026 | J67: 2027 | K67: 2028 | L67: 2029 | M67: 2030 | N67: 2035 | O67: 2040 | P67: 2045
B68: Scenario 1 | C68: 0 | E68: 0 | F68: 0 | G68: 0 | H68: 0 | I68: 0 | J68: 0 | K68: 0 | L68: 0 | M68: 465850.5494 | N68: 931701.0989 | O68: 2146414.233 | P68: 2247524.271 | Q68: Values are kg of hydrogen
B69: Scenario 2 | C69: 0 | E69: 0 | F69: 0 | G69: 0 | H69: 29394.05347 | I69: 392719.0126 | J69: 822574.9292 | K69: 918499.94 | L69: 918499.94 | M69: 925100.5194 | N69: 931701.0989 | O69: 2146414.233 | P69: 2247524.271
B70: Scenario 3 | C70: 0 | E70: 77118.29137 | F70: 154236.5827 | G70: 154236.5827 | H70: 183630.6362 | I70: 546955.5954 | J70: 976811.5119 | K70: 1072736.523 | L70: 1072736.523 | M70: 1079337.102 | N70: 1085937.682 | O70: 2300650.816 | P70: 2401760.854
B73: Hydrogen (kWh) | C73: 2021 | E73: 2022 | F73: 2023 | G73: 2024 | H73: 2025 | I73: 2026 | J73: 2027 | K73: 2028 | L73: 2029 | M73: 2030 | N73: 2035 | O73: 2040 | P73: 2045
B74: Scenario 1 | C74: 0 | E74: 0 | F74: 0 | G74: 0 | H74: 0 | I74: 0 | J74: 0 | K74: 0 | L74: 0 | M74: 15528351.65 | N74: 31056703.3 | O74: 71547141.1 | P74: 74917475.7 | Q74: Values are kWh of hydrogen
B75: Scenario 2 | C75: 0 | E75: 0 | F75: 0 | G75: 0 | H75: 979801.7822 | I75: 13090633.75 | J75: 27419164.31 | K75: 30616664.67 | L75: 30616664.67 | M75: 30836683.98 | N75: 31056703.3 | O75: 71547141.1 | P75: 74917475.7
B76: Scenario 3 | C76: 0 | E76: 2570609.712 | F76: 5141219.425 | G76: 5141219.425 | H76: 6121021.207 | I76: 18231853.18 | J76: 32560383.73 | K76: 35757884.09 | L76: 35757884.09 | M76: 35977903.41 | N76: 36197922.72 | O76: 76688360.52 | P76: 80058695.12

Sheet Rail Summary (hidden)
E4: E | F4: F | G4: G | H4: H | I4: I | J4: J | K4: K | L4: L | M4: M | N4: N | O4: O | P4: P
D9: Units | E9: 2022 | F9: 2023 | G9: 2024 | H9: 2025 | I9: 2026 | J9: 2027 | K9: 2028 | L9: 2029 | M9: 2030 | N9: 2035 | O9: 2040 | P9: 2045 | R9: Lookup | S9: Row
B10: Scenario A: Low Hydrogen | C10: Total | E10: =SUM(E11:E12) -> 0 | F10: =SUM(F11:F12) -> 0 | G10: 0 | H10: 0 | I10: 0 | J10: 0 | K10: 0 | L10: 0 | M10: 0 | N10: 0 | O10: 0 | P10: 0 | R10: ='Key Assumptions >'!$B$21 -> Dumfries & Galloway | S10: =ROW(B23) -> 23
A11: 3 | C11: Hydrogen | D11: kWh | E11: =INDIRECT("'Rail Summary'!"&'Rail Summary'!E$4&($A11+INDEX('Rail Summary'!$S$10:$S$17,MATCH(Region,'Rail Summary'!$R$10:$R$17,0)))) -> 0 | F11: =INDIRECT("'Rail Summary'!"&'Rail Summary'!F$4&($A11+INDEX('Rail Summary'!$S$10:$S$17,MATCH(Region,'Rail Summary'!$R$10:$R$17,0)))) -> 0 | G11: =INDIRECT("'Rail Summary'!"&'Rail Summary'!G$4&($A11+INDEX('Rail Summary'!$S$10:$S$17,MATCH(Region,'Rail Summary'!$R$10:$R$17,0)))) -> 0 | H11: =INDIRECT("'Rail Summary'!"&'Rail Summary'!H$4&($A11+INDEX('Rail Summary'!$S$10:$S$17,MATCH(Region,'Rail Summary'!$R$10:$R$17,0)))) -> 0 | I11: =INDIRECT("'Rail Summary'!"&'Rail Summary'!I$4&($A11+INDEX('Rail Summary'!$S$10:$S$17,MATCH(Region,'Rail Summary'!$R$10:$R$17,0)))) -> 0 | J11: =INDIRECT("'Rail Summary'!"&'Rail Summary'!J$4&($A11+INDEX('Rail Summary'!$S$10:$S$17,MATCH(Region,'Rail Summary'!$R$10:$R$17,0)))) -> 0 | K11: =INDIRECT("'Rail Summary'!"&'Rail Summary'!K$4&($A11+INDEX('Rail Summary'!$S$10:$S$17,MATCH(Region,'Rail Summary'!$R$10:$R$17,0)))) -> 0 | L11: =INDIRECT("'Rail Summary'!"&'Rail Summary'!L$4&($A11+INDEX('Rail Summary'!$S$10:$S$17,MATCH(Region,'Rail Summary'!$R$10:$R$17,0)))) -> 0 | M11: =INDIRECT("'Rail Summary'!"&'Rail Summary'!M$4&($A11+INDEX('Rail Summary'!$S$10:$S$17,MATCH(Region,'Rail Summary'!$R$10:$R$17,0)))) -> 0 | N11: =INDIRECT("'Rail Summary'!"&'Rail Summary'!N$4&($A11+INDEX('Rail Summary'!$S$10:$S$17,MATCH(Region,'Rail Summary'!$R$10:$R$17,0)))) -> 0 | O11: =INDIRECT("'Rail Summary'!"&'Rail Summary'!O$4&($A11+INDEX('Rail Summary'!$S$10:$S$17,MATCH(Region,'Rail Summary'!$R$10:$R$17,0)))) -> 0 | P11: =INDIRECT("'Rail Summary'!"&'Rail Summary'!P$4&($A11+INDEX('Rail Summary'!$S$10:$S$17,MATCH(Region,'Rail Summary'!$R$10:$R$17,0)))) -> 0 | R11: ='Key Assumptions >'!$B$22 -> Fife | S11: =ROW(B30) -> 30
C12: Electricty | D12: kWh | E12: =INDIRECT("'Rail Summary'!"&'Rail Summary'!E$4&($A12+INDEX('Rail Summary'!$S$10:$S$17,MATCH(Region,'Rail Summary'!$R$10:$R$17,0)))) -> 0 | F12: =INDIRECT("'Rail Summary'!"&'Rail Summary'!F$4&($A12+INDEX('Rail Summary'!$S$10:$S$17,MATCH(Region,'Rail Summary'!$R$10:$R$17,0)))) -> 0 | G12: =INDIRECT("'Rail Summary'!"&'Rail Summary'!G$4&($A12+INDEX('Rail Summary'!$S$10:$S$17,MATCH(Region,'Rail Summary'!$R$10:$R$17,0)))) -> 0 | H12: =INDIRECT("'Rail Summary'!"&'Rail Summary'!H$4&($A12+INDEX('Rail Summary'!$S$10:$S$17,MATCH(Region,'Rail Summary'!$R$10:$R$17,0)))) -> 0 | I12: =INDIRECT("'Rail Summary'!"&'Rail Summary'!I$4&($A12+INDEX('Rail Summary'!$S$10:$S$17,MATCH(Region,'Rail Summary'!$R$10:$R$17,0)))) -> 0 | J12: =INDIRECT("'Rail Summary'!"&'Rail Summary'!J$4&($A12+INDEX('Rail Summary'!$S$10:$S$17,MATCH(Region,'Rail Summary'!$R$10:$R$17,0)))) -> 0 | K12: =INDIRECT("'Rail Summary'!"&'Rail Summary'!K$4&($A12+INDEX('Rail Summary'!$S$10:$S$17,MATCH(Region,'Rail Summary'!$R$10:$R$17,0)))) -> 0 | L12: =INDIRECT("'Rail Summary'!"&'Rail Summary'!L$4&($A12+INDEX('Rail Summary'!$S$10:$S$17,MATCH(Region,'Rail Summary'!$R$10:$R$17,0)))) -> 0 | M12: =INDIRECT("'Rail Summary'!"&'Rail Summary'!M$4&($A12+INDEX('Rail Summary'!$S$10:$S$17,MATCH(Region,'Rail Summary'!$R$10:$R$17,0)))) -> 0 | N12: =INDIRECT("'Rail Summary'!"&'Rail Summary'!N$4&($A12+INDEX('Rail Summary'!$S$10:$S$17,MATCH(Region,'Rail Summary'!$R$10:$R$17,0)))) -> 0 | O12: =INDIRECT("'Rail Summary'!"&'Rail Summary'!O$4&($A12+INDEX('Rail Summary'!$S$10:$S$17,MATCH(Region,'Rail Summary'!$R$10:$R$17,0)))) -> 0 | P12: =INDIRECT("'Rail Summary'!"&'Rail Summary'!P$4&($A12+INDEX('Rail Summary'!$S$10:$S$17,MATCH(Region,'Rail Summary'!$R$10:$R$17,0)))) -> 0 | R12: ='Key Assumptions >'!$B$23 -> Highlands | S12: =ROW(B37) -> 37
B13: Scenario B: Medium Hydrogen | C13: Total | D13: kWh | E13: =SUM(E14:E15) -> 0 | F13: =SUM(F14:F15) -> 0 | G13: 0 | H13: 0 | I13: 0 | J13: 0 | K13: 0 | L13: 0 | M13: 0 | N13: 8420218.282 | O13: 8420218.282 | P13: 8420218.282
A14: 4 | C14: Hydrogen | D14: kWh | E14: =INDIRECT("'Rail Summary'!"&'Rail Summary'!E$4&($A14+INDEX('Rail Summary'!$S$10:$S$17,MATCH(Region,'Rail Summary'!$R$10:$R$17,0)))) -> 0 | F14: =INDIRECT("'Rail Summary'!"&'Rail Summary'!F$4&($A14+INDEX('Rail Summary'!$S$10:$S$17,MATCH(Region,'Rail Summary'!$R$10:$R$17,0)))) -> 0 | G14: =INDIRECT("'Rail Summary'!"&'Rail Summary'!G$4&($A14+INDEX('Rail Summary'!$S$10:$S$17,MATCH(Region,'Rail Summary'!$R$10:$R$17,0)))) -> 0 | H14: =INDIRECT("'Rail Summary'!"&'Rail Summary'!H$4&($A14+INDEX('Rail Summary'!$S$10:$S$17,MATCH(Region,'Rail Summary'!$R$10:$R$17,0)))) -> 0 | I14: =INDIRECT("'Rail Summary'!"&'Rail Summary'!I$4&($A14+INDEX('Rail Summary'!$S$10:$S$17,MATCH(Region,'Rail Summary'!$R$10:$R$17,0)))) -> 0 | J14: =INDIRECT("'Rail Summary'!"&'Rail Summary'!J$4&($A14+INDEX('Rail Summary'!$S$10:$S$17,MATCH(Region,'Rail Summary'!$R$10:$R$17,0)))) -> 0 | K14: =INDIRECT("'Rail Summary'!"&'Rail Summary'!K$4&($A14+INDEX('Rail Summary'!$S$10:$S$17,MATCH(Region,'Rail Summary'!$R$10:$R$17,0)))) -> 0 | L14: =INDIRECT("'Rail Summary'!"&'Rail Summary'!L$4&($A14+INDEX('Rail Summary'!$S$10:$S$17,MATCH(Region,'Rail Summary'!$R$10:$R$17,0)))) -> 0 | M14: =INDIRECT("'Rail Summary'!"&'Rail Summary'!M$4&($A14+INDEX('Rail Summary'!$S$10:$S$17,MATCH(Region,'Rail Summary'!$R$10:$R$17,0)))) -> 0 | N14: =INDIRECT("'Rail Summary'!"&'Rail Summary'!N$4&($A14+INDEX('Rail Summary'!$S$10:$S$17,MATCH(Region,'Rail Summary'!$R$10:$R$17,0)))) -> 8420218.282 | O14: =INDIRECT("'Rail Summary'!"&'Rail Summary'!O$4&($A14+INDEX('Rail Summary'!$S$10:$S$17,MATCH(Region,'Rail Summary'!$R$10:$R$17,0)))) -> 8420218.282 | P14: =INDIRECT("'Rail Summary'!"&'Rail Summary'!P$4&($A14+INDEX('Rail Summary'!$S$10:$S$17,MATCH(Region,'Rail Summary'!$R$10:$R$17,0)))) -> 8420218.282
C15: Electricty | D15: kWh | E15: =INDIRECT("'Rail Summary'!"&'Rail Summary'!E$4&($A15+INDEX('Rail Summary'!$S$10:$S$17,MATCH(Region,'Rail Summary'!$R$10:$R$17,0)))) -> 0 | F15: =INDIRECT("'Rail Summary'!"&'Rail Summary'!F$4&($A15+INDEX('Rail Summary'!$S$10:$S$17,MATCH(Region,'Rail Summary'!$R$10:$R$17,0)))) -> 0 | G15: =INDIRECT("'Rail Summary'!"&'Rail Summary'!G$4&($A15+INDEX('Rail Summary'!$S$10:$S$17,MATCH(Region,'Rail Summary'!$R$10:$R$17,0)))) -> 0 | H15: =INDIRECT("'Rail Summary'!"&'Rail Summary'!H$4&($A15+INDEX('Rail Summary'!$S$10:$S$17,MATCH(Region,'Rail Summary'!$R$10:$R$17,0)))) -> 0 | I15: =INDIRECT("'Rail Summary'!"&'Rail Summary'!I$4&($A15+INDEX('Rail Summary'!$S$10:$S$17,MATCH(Region,'Rail Summary'!$R$10:$R$17,0)))) -> 0 | J15: =INDIRECT("'Rail Summary'!"&'Rail Summary'!J$4&($A15+INDEX('Rail Summary'!$S$10:$S$17,MATCH(Region,'Rail Summary'!$R$10:$R$17,0)))) -> 0 | K15: =INDIRECT("'Rail Summary'!"&'Rail Summary'!K$4&($A15+INDEX('Rail Summary'!$S$10:$S$17,MATCH(Region,'Rail Summary'!$R$10:$R$17,0)))) -> 0 | L15: =INDIRECT("'Rail Summary'!"&'Rail Summary'!L$4&($A15+INDEX('Rail Summary'!$S$10:$S$17,MATCH(Region,'Rail Summary'!$R$10:$R$17,0)))) -> 0 | M15: =INDIRECT("'Rail Summary'!"&'Rail Summary'!M$4&($A15+INDEX('Rail Summary'!$S$10:$S$17,MATCH(Region,'Rail Summary'!$R$10:$R$17,0)))) -> 0 | N15: =INDIRECT("'Rail Summary'!"&'Rail Summary'!N$4&($A15+INDEX('Rail Summary'!$S$10:$S$17,MATCH(Region,'Rail Summary'!$R$10:$R$17,0)))) -> 0 | O15: =INDIRECT("'Rail Summary'!"&'Rail Summary'!O$4&($A15+INDEX('Rail Summary'!$S$10:$S$17,MATCH(Region,'Rail Summary'!$R$10:$R$17,0)))) -> 0 | P15: =INDIRECT("'Rail Summary'!"&'Rail Summary'!P$4&($A15+INDEX('Rail Summary'!$S$10:$S$17,MATCH(Region,'Rail Summary'!$R$10:$R$17,0)))) -> 0
B16: Scenario C: High Hydrogen | C16: Total | D16: kWh | E16: =SUM(E17:E18) -> 0 | F16: =SUM(F17:F18) -> 0 | G16: 0 | H16: 0 | I16: 0 | J16: 0 | K16: 0 | L16: 0 | M16: 0 | N16: 8420218.282 | O16: 8420218.282 | P16: 8420218.282
A17: 5 | C17: Hydrogen | D17: kWh | E17: =INDIRECT("'Rail Summary'!"&'Rail Summary'!E$4&($A17+INDEX('Rail Summary'!$S$10:$S$17,MATCH(Region,'Rail Summary'!$R$10:$R$17,0)))) -> 0 | F17: =INDIRECT("'Rail Summary'!"&'Rail Summary'!F$4&($A17+INDEX('Rail Summary'!$S$10:$S$17,MATCH(Region,'Rail Summary'!$R$10:$R$17,0)))) -> 0 | G17: =INDIRECT("'Rail Summary'!"&'Rail Summary'!G$4&($A17+INDEX('Rail Summary'!$S$10:$S$17,MATCH(Region,'Rail Summary'!$R$10:$R$17,0)))) -> 0 | H17: =INDIRECT("'Rail Summary'!"&'Rail Summary'!H$4&($A17+INDEX('Rail Summary'!$S$10:$S$17,MATCH(Region,'Rail Summary'!$R$10:$R$17,0)))) -> 0 | I17: =INDIRECT("'Rail Summary'!"&'Rail Summary'!I$4&($A17+INDEX('Rail Summary'!$S$10:$S$17,MATCH(Region,'Rail Summary'!$R$10:$R$17,0)))) -> 0 | J17: =INDIRECT("'Rail Summary'!"&'Rail Summary'!J$4&($A17+INDEX('Rail Summary'!$S$10:$S$17,MATCH(Region,'Rail Summary'!$R$10:$R$17,0)))) -> 0 | K17: =INDIRECT("'Rail Summary'!"&'Rail Summary'!K$4&($A17+INDEX('Rail Summary'!$S$10:$S$17,MATCH(Region,'Rail Summary'!$R$10:$R$17,0)))) -> 0 | L17: =INDIRECT("'Rail Summary'!"&'Rail Summary'!L$4&($A17+INDEX('Rail Summary'!$S$10:$S$17,MATCH(Region,'Rail Summary'!$R$10:$R$17,0)))) -> 0 | M17: =INDIRECT("'Rail Summary'!"&'Rail Summary'!M$4&($A17+INDEX('Rail Summary'!$S$10:$S$17,MATCH(Region,'Rail Summary'!$R$10:$R$17,0)))) -> 0 | N17: =INDIRECT("'Rail Summary'!"&'Rail Summary'!N$4&($A17+INDEX('Rail Summary'!$S$10:$S$17,MATCH(Region,'Rail Summary'!$R$10:$R$17,0)))) -> 8420218.282 | O17: =INDIRECT("'Rail Summary'!"&'Rail Summary'!O$4&($A17+INDEX('Rail Summary'!$S$10:$S$17,MATCH(Region,'Rail Summary'!$R$10:$R$17,0)))) -> 8420218.282 | P17: =INDIRECT("'Rail Summary'!"&'Rail Summary'!P$4&($A17+INDEX('Rail Summary'!$S$10:$S$17,MATCH(Region,'Rail Summary'!$R$10:$R$17,0)))) -> 8420218.282
C18: Electricty | D18: kWh | E18: =INDIRECT("'Rail Summary'!"&'Rail Summary'!E$4&($A18+INDEX('Rail Summary'!$S$10:$S$17,MATCH(Region,'Rail Summary'!$R$10:$R$17,0)))) -> 0 | F18: =INDIRECT("'Rail Summary'!"&'Rail Summary'!F$4&($A18+INDEX('Rail Summary'!$S$10:$S$17,MATCH(Region,'Rail Summary'!$R$10:$R$17,0)))) -> 0 | G18: =INDIRECT("'Rail Summary'!"&'Rail Summary'!G$4&($A18+INDEX('Rail Summary'!$S$10:$S$17,MATCH(Region,'Rail Summary'!$R$10:$R$17,0)))) -> 0 | H18: =INDIRECT("'Rail Summary'!"&'Rail Summary'!H$4&($A18+INDEX('Rail Summary'!$S$10:$S$17,MATCH(Region,'Rail Summary'!$R$10:$R$17,0)))) -> 0 | I18: =INDIRECT("'Rail Summary'!"&'Rail Summary'!I$4&($A18+INDEX('Rail Summary'!$S$10:$S$17,MATCH(Region,'Rail Summary'!$R$10:$R$17,0)))) -> 0 | J18: =INDIRECT("'Rail Summary'!"&'Rail Summary'!J$4&($A18+INDEX('Rail Summary'!$S$10:$S$17,MATCH(Region,'Rail Summary'!$R$10:$R$17,0)))) -> 0 | K18: =INDIRECT("'Rail Summary'!"&'Rail Summary'!K$4&($A18+INDEX('Rail Summary'!$S$10:$S$17,MATCH(Region,'Rail Summary'!$R$10:$R$17,0)))) -> 0 | L18: =INDIRECT("'Rail Summary'!"&'Rail Summary'!L$4&($A18+INDEX('Rail Summary'!$S$10:$S$17,MATCH(Region,'Rail Summary'!$R$10:$R$17,0)))) -> 0 | M18: =INDIRECT("'Rail Summary'!"&'Rail Summary'!M$4&($A18+INDEX('Rail Summary'!$S$10:$S$17,MATCH(Region,'Rail Summary'!$R$10:$R$17,0)))) -> 0 | N18: =INDIRECT("'Rail Summary'!"&'Rail Summary'!N$4&($A18+INDEX('Rail Summary'!$S$10:$S$17,MATCH(Region,'Rail Summary'!$R$10:$R$17,0)))) -> 0 | O18: =INDIRECT("'Rail Summary'!"&'Rail Summary'!O$4&($A18+INDEX('Rail Summary'!$S$10:$S$17,MATCH(Region,'Rail Summary'!$R$10:$R$17,0)))) -> 0 | P18: =INDIRECT("'Rail Summary'!"&'Rail Summary'!P$4&($A18+INDEX('Rail Summary'!$S$10:$S$17,MATCH(Region,'Rail Summary'!$R$10:$R$17,0)))) -> 0
B23: Dumfries & Galloway
B25: Hydrogen (kWh) | D25: Base | E25: 2022 | F25: 2023 | G25: 2024 | H25: 2025 | I25: 2026 | J25: 2027 | K25: 2028 | L25: 2029 | M25: 2030 | N25: 2035 | O25: 2040 | P25: 2045
B26: Scenario 1 | D26: 0 | E26: 0 | F26: 0 | G26: 0 | H26: 0 | I26: 0 | J26: 0 | K26: 0 | L26: 0 | M26: 0 | N26: 0 | O26: 0 | P26: 0
B27: Scenario 2 | D27: 0 | E27: 0 | F27: 0 | G27: 0 | H27: 0 | I27: 0 | J27: 0 | K27: 0 | L27: 0 | M27: 0 | N27: 8420218.282 | O27: 8420218.282 | P27: 8420218.282
B28: Scenario 3 | D28: 0 | E28: 0 | F28: 0 | G28: 0 | H28: 0 | I28: 0 | J28: 0 | K28: 0 | L28: 0 | M28: 0 | N28: 8420218.282 | O28: 8420218.282 | P28: 8420218.282
B30: Fife
B32: Hydrogen (kWh) | D32: Base | E32: 2022 | F32: 2023 | G32: 2024 | H32: 2025 | I32: 2026 | J32: 2027 | K32: 2028 | L32: 2029 | M32: 2030 | N32: 2035 | O32: 2040 | P32: 2045
B33: Scenario 1 | D33: 0 | E33: 0 | F33: 0 | G33: 0 | H33: 0 | I33: 0 | J33: 0 | K33: 0 | L33: 0 | M33: 0 | N33: 0 | O33: 0 | P33: 0
B34: Scenario 2 | D34: 0 | E34: 0 | F34: 0 | G34: 0 | H34: 0 | I34: 0 | J34: 0 | K34: 0 | L34: 0 | M34: 0 | N34: 0 | O34: 0 | P34: 0
B35: Scenario 3 | D35: 0 | E35: 0 | F35: 0 | G35: 0 | H35: 0 | I35: 0 | J35: 0 | K35: 0 | L35: 0 | M35: 0 | N35: 0 | O35: 0 | P35: 0
B37: Highlands | Q37: `
B39: Hydrogen (kWh) | D39: Base | E39: 2022 | F39: 2023 | G39: 2024 | H39: 2025 | I39: 2026 | J39: 2027 | K39: 2028 | L39: 2029 | M39: 2030 | N39: 2035 | O39: 2040 | P39: 2045
B40: Scenario 1 | D40: 0 | E40: 0 | F40: 0 | G40: 0 | H40: 0 | I40: 0 | J40: 0 | K40: 16052500.94 | L40: 21612602.81 | M40: 27122122.99 | N40: 27122122.99 | O40: 27122122.99 | P40: 27122122.99
B41: Scenario 2 | D41: 0 | E41: 0 | F41: 0 | G41: 0 | H41: 0 | I41: 0 | J41: 0 | K41: 16052500.94 | L41: 21612602.81 | M41: 27122122.99 | N41: 27122122.99 | O41: 27122122.99 | P41: 27122122.99
B42: Scenario 3 | D42: 0 | E42: 0 | F42: 0 | G42: 0 | H42: 0 | I42: 0 | J42: 0 | K42: 16052500.94 | L42: 21612602.81 | M42: 27122122.99 | N42: 35008501.34 | O42: 35008501.34 | P42: 35008501.34

Sheet Results_Backend (hidden)
A1: Year | B1: Scenario | C1: Electricity | G1: Year | H1: Scenario | I1: Hydrogen
A2: 2022 | B2: Scenario A: Low Hydrogen | C2: =N8 -> 0 | G2: 2022 | H2: Scenario A: Low Hydrogen | I2: =N9 -> 122939.8479
A3: 2023 | B3: Scenario A: Low Hydrogen | C3: =O8 -> 0 | G3: 2023 | H3: Scenario A: Low Hydrogen | I3: =O9 -> 150302.7392 | L3: To update - Toggle through regions and ensure latest data is copied into regional tabls below
A4: 2024 | B4: Scenario A: Low Hydrogen | C4: =P8 -> 0 | G4: 2024 | H4: Scenario A: Low Hydrogen | I4: =P9 -> 173932.3416
A5: 2025 | B5: Scenario A: Low Hydrogen | C5: =Q8 -> 0 | G5: 2025 | H5: Scenario A: Low Hydrogen | I5: =Q9 -> 215387.9179
A6: 2026 | B6: Scenario A: Low Hydrogen | C6: =R8 -> 0 | G6: 2026 | H6: Scenario A: Low Hydrogen | I6: =R9 -> 1113852.458
A7: 2027 | B7: Scenario A: Low Hydrogen | C7: =S8 -> 0 | G7: 2027 | H7: Scenario A: Low Hydrogen | I7: =S9 -> 2115865.209 | N7: 2022 | O7: 2023 | P7: 2024 | Q7: 2025 | R7: 2026 | S7: 2027 | T7: 2028 | U7: 2029 | V7: 2030 | W7: 2035 | X7: 2040 | Y7: 2045 | Z7: Units | AB7: Region
A8: 2028 | B8: Scenario A: Low Hydrogen | C8: =T8 -> 0 | G8: 2028 | H8: Scenario A: Low Hydrogen | I8: =T9 -> 3135613.776 | L8: Scenario A: Low Hydrogen | M8: Electricity | N8: =SUM(SUM('Shipping Summary'!H11:H12)+SUM('Aviation Summary'!G27:G29)+'Ferries Summary'!E11+'Rail Summary'!E12+'Bus Summary'!E12+'Car Summary'!E5+'HGV Summary'!E5+'Van Summary'!E5) -> 0 | O8: =SUM(SUM('Shipping Summary'!I11:I12)+SUM('Aviation Summary'!H27:H29)+'Ferries Summary'!F11+'Rail Summary'!F12+'Bus Summary'!F12+'Car Summary'!F5+'HGV Summary'!F5+'Van Summary'!F5) -> 0 | P8: =SUM(SUM('Shipping Summary'!J11:J12)+SUM('Aviation Summary'!I27:I29)+'Ferries Summary'!G11+'Rail Summary'!G12+'Bus Summary'!G12+'Car Summary'!G5+'HGV Summary'!G5+'Van Summary'!G5) -> 0 | Q8: =SUM(SUM('Shipping Summary'!K11:K12)+SUM('Aviation Summary'!J27:J29)+'Ferries Summary'!H11+'Rail Summary'!H12+'Bus Summary'!H12+'Car Summary'!H5+'HGV Summary'!H5+'Van Summary'!H5) -> 0 | R8: =SUM(SUM('Shipping Summary'!L11:L12)+SUM('Aviation Summary'!K27:K29)+'Ferries Summary'!I11+'Rail Summary'!I12+'Bus Summary'!I12+'Car Summary'!I5+'HGV Summary'!I5+'Van Summary'!I5) -> 0 | S8: =SUM(SUM('Shipping Summary'!M11:M12)+SUM('Aviation Summary'!L27:L29)+'Ferries Summary'!J11+'Rail Summary'!J12+'Bus Summary'!J12+'Car Summary'!J5+'HGV Summary'!J5+'Van Summary'!J5) -> 0 | T8: =SUM(SUM('Shipping Summary'!N11:N12)+SUM('Aviation Summary'!M27:M29)+'Ferries Summary'!K11+'Rail Summary'!K12+'Bus Summary'!K12+'Car Summary'!K5+'HGV Summary'!K5+'Van Summary'!K5) -> 0 | U8: =SUM(SUM('Shipping Summary'!O11:O12)+SUM('Aviation Summary'!N27:N29)+'Ferries Summary'!L11+'Rail Summary'!L12+'Bus Summary'!L12+'Car Summary'!L5+'HGV Summary'!L5+'Van Summary'!L5) -> 0 | V8: =SUM(SUM('Shipping Summary'!P11:P12)+SUM('Aviation Summary'!O27:O29)+'Ferries Summary'!M11+'Rail Summary'!M12+'Bus Summary'!M12+'Car Summary'!M5+'HGV Summary'!M5+'Van Summary'!M5) -> 0 | W8: =SUM(SUM('Shipping Summary'!Q11:Q12)+SUM('Aviation Summary'!P27:P29)+'Ferries Summary'!N11+'Rail Summary'!N12+'Bus Summary'!N12+'Car Summary'!N5+'HGV Summary'!N5+'Van Summary'!N5) -> 0 | X8: =SUM(SUM('Shipping Summary'!R11:R12)+SUM('Aviation Summary'!Q27:Q29)+'Ferries Summary'!O11+'Rail Summary'!O12+'Bus Summary'!O12+'Car Summary'!O5+'HGV Summary'!O5+'Van Summary'!O5) -> 0 | Y8: =SUM(SUM('Shipping Summary'!S11:S12)+SUM('Aviation Summary'!R27:R29)+'Ferries Summary'!P11+'Rail Summary'!P12+'Bus Summary'!P12+'Car Summary'!P5+'HGV Summary'!P5+'Van Summary'!P5) -> 0 | Z8: kWh | AB8: ='Key Assumptions >'!B21 -> Dumfries & Galloway | AC8: =MROUND(MAX(Y24:Y35),250000000) -> 1250000000 | AD8: =AC8+250000000 -> 1500000000
A9: 2029 | B9: Scenario A: Low Hydrogen | C9: =U8 -> 0 | G9: 2029 | H9: Scenario A: Low Hydrogen | I9: =U9 -> 4263750.764 | M9: Hydrogen | N9: =SUM('Shipping Summary'!H13+SUM('Aviation Summary'!G12:G14)+'Ferries Summary'!E12+'Rail Summary'!E11+'Bus Summary'!E11+'Car Summary'!E6+'HGV Summary'!E6+'Van Summary'!E6) -> 122939.8479 | O9: =SUM('Shipping Summary'!I13+SUM('Aviation Summary'!H12:H14)+'Ferries Summary'!F12+'Rail Summary'!F11+'Bus Summary'!F11+'Car Summary'!F6+'HGV Summary'!F6+'Van Summary'!F6) -> 150302.7392 | P9: =SUM('Shipping Summary'!J13+SUM('Aviation Summary'!I12:I14)+'Ferries Summary'!G12+'Rail Summary'!G11+'Bus Summary'!G11+'Car Summary'!G6+'HGV Summary'!G6+'Van Summary'!G6) -> 173932.3416 | Q9: =SUM('Shipping Summary'!K13+SUM('Aviation Summary'!J12:J14)+'Ferries Summary'!H12+'Rail Summary'!H11+'Bus Summary'!H11+'Car Summary'!H6+'HGV Summary'!H6+'Van Summary'!H6) -> 215387.9179 | R9: =SUM('Shipping Summary'!L13+SUM('Aviation Summary'!K12:K14)+'Ferries Summary'!I12+'Rail Summary'!I11+'Bus Summary'!I11+'Car Summary'!I6+'HGV Summary'!I6+'Van Summary'!I6) -> 1113852.458 | S9: =SUM('Shipping Summary'!M13+SUM('Aviation Summary'!L12:L14)+'Ferries Summary'!J12+'Rail Summary'!J11+'Bus Summary'!J11+'Car Summary'!J6+'HGV Summary'!J6+'Van Summary'!J6) -> 2115865.209 | T9: =SUM('Shipping Summary'!N13+SUM('Aviation Summary'!M12:M14)+'Ferries Summary'!K12+'Rail Summary'!K11+'Bus Summary'!K11+'Car Summary'!K6+'HGV Summary'!K6+'Van Summary'!K6) -> 3135613.776 | U9: =SUM('Shipping Summary'!O13+SUM('Aviation Summary'!N12:N14)+'Ferries Summary'!L12+'Rail Summary'!L11+'Bus Summary'!L11+'Car Summary'!L6+'HGV Summary'!L6+'Van Summary'!L6) -> 4263750.764 | V9: =SUM('Shipping Summary'!P13+SUM('Aviation Summary'!O12:O14)+'Ferries Summary'!M12+'Rail Summary'!M11+'Bus Summary'!M11+'Car Summary'!M6+'HGV Summary'!M6+'Van Summary'!M6) -> 5862516.364 | W9: =SUM('Shipping Summary'!Q13+SUM('Aviation Summary'!P12:P14)+'Ferries Summary'!N12+'Rail Summary'!N11+'Bus Summary'!N11+'Car Summary'!N6+'HGV Summary'!N6+'Van Summary'!N6) -> 232703020.9 | X9: =SUM('Shipping Summary'!R13+SUM('Aviation Summary'!Q12:Q14)+'Ferries Summary'!O12+'Rail Summary'!O11+'Bus Summary'!O11+'Car Summary'!O6+'HGV Summary'!O6+'Van Summary'!O6) -> 1180295710 | Y9: =SUM('Shipping Summary'!S13+SUM('Aviation Summary'!R12:R14)+'Ferries Summary'!P12+'Rail Summary'!P11+'Bus Summary'!P11+'Car Summary'!P6+'HGV Summary'!P6+'Van Summary'!P6) -> 1188483923 | Z9: kWh | AB9: ='Key Assumptions >'!B22 -> Fife | AC9: =MROUND(MAX(Y39:Y50),250000000) -> 250000000 | AD9: =AC9+50000000 -> 300000000
A10: 2030 | B10: Scenario A: Low Hydrogen | C10: =V8 -> 0 | G10: 2030 | H10: Scenario A: Low Hydrogen | I10: =V9 -> 5862516.364 | L10: Scenario B: Medium Hydrogen | M10: Electricity | N10: =SUM(SUM('Shipping Summary'!H15:H16)+SUM('Aviation Summary'!G31:G33)+'Ferries Summary'!E14+'Rail Summary'!E15+'Bus Summary'!E15+'Car Summary'!E8+'HGV Summary'!E8+'Van Summary'!E8) -> 0 | O10: =SUM(SUM('Shipping Summary'!I15:I16)+SUM('Aviation Summary'!H31:H33)+'Ferries Summary'!F14+'Rail Summary'!F15+'Bus Summary'!F15+'Car Summary'!F8+'HGV Summary'!F8+'Van Summary'!F8) -> 0 | P10: =SUM(SUM('Shipping Summary'!J15:J16)+SUM('Aviation Summary'!I31:I33)+'Ferries Summary'!G14+'Rail Summary'!G15+'Bus Summary'!G15+'Car Summary'!G8+'HGV Summary'!G8+'Van Summary'!G8) -> 0 | Q10: =SUM(SUM('Shipping Summary'!K15:K16)+SUM('Aviation Summary'!J31:J33)+'Ferries Summary'!H14+'Rail Summary'!H15+'Bus Summary'!H15+'Car Summary'!H8+'HGV Summary'!H8+'Van Summary'!H8) -> 0 | R10: =SUM(SUM('Shipping Summary'!L15:L16)+SUM('Aviation Summary'!K31:K33)+'Ferries Summary'!I14+'Rail Summary'!I15+'Bus Summary'!I15+'Car Summary'!I8+'HGV Summary'!I8+'Van Summary'!I8) -> 0 | S10: =SUM(SUM('Shipping Summary'!M15:M16)+SUM('Aviation Summary'!L31:L33)+'Ferries Summary'!J14+'Rail Summary'!J15+'Bus Summary'!J15+'Car Summary'!J8+'HGV Summary'!J8+'Van Summary'!J8) -> 0 | T10: =SUM(SUM('Shipping Summary'!N15:N16)+SUM('Aviation Summary'!M31:M33)+'Ferries Summary'!K14+'Rail Summary'!K15+'Bus Summary'!K15+'Car Summary'!K8+'HGV Summary'!K8+'Van Summary'!K8) -> 0 | U10: =SUM(SUM('Shipping Summary'!O15:O16)+SUM('Aviation Summary'!N31:N33)+'Ferries Summary'!L14+'Rail Summary'!L15+'Bus Summary'!L15+'Car Summary'!L8+'HGV Summary'!L8+'Van Summary'!L8) -> 0 | V10: =SUM(SUM('Shipping Summary'!P15:P16)+SUM('Aviation Summary'!O31:O33)+'Ferries Summary'!M14+'Rail Summary'!M15+'Bus Summary'!M15+'Car Summary'!M8+'HGV Summary'!M8+'Van Summary'!M8) -> 0 | W10: =SUM(SUM('Shipping Summary'!Q15:Q16)+SUM('Aviation Summary'!P31:P33)+'Ferries Summary'!N14+'Rail Summary'!N15+'Bus Summary'!N15+'Car Summary'!N8+'HGV Summary'!N8+'Van Summary'!N8) -> 0 | X10: =SUM(SUM('Shipping Summary'!R15:R16)+SUM('Aviation Summary'!Q31:Q33)+'Ferries Summary'!O14+'Rail Summary'!O15+'Bus Summary'!O15+'Car Summary'!O8+'HGV Summary'!O8+'Van Summary'!O8) -> 0 | Y10: =SUM(SUM('Shipping Summary'!S15:S16)+SUM('Aviation Summary'!R31:R33)+'Ferries Summary'!P14+'Rail Summary'!P15+'Bus Summary'!P15+'Car Summary'!P8+'HGV Summary'!P8+'Van Summary'!P8) -> 0 | Z10: kWh | AB10: ='Key Assumptions >'!B23 -> Highlands | AC10: =MROUND(MAX(Y54:Y65),250000000) -> 1250000000 | AD10: =AC10+250000000 -> 1500000000
A11: 2035 | B11: Scenario A: Low Hydrogen | C11: =W8 -> 0 | G11: 2035 | H11: Scenario A: Low Hydrogen | I11: =W9 -> 232703020.9 | M11: Hydrogen | N11: =SUM('Shipping Summary'!H17+SUM('Aviation Summary'!G16:G18)+'Ferries Summary'!E15+'Rail Summary'!E14+'Bus Summary'!E14+'Car Summary'!E9+'HGV Summary'!E9+'Van Summary'!E9) -> 148362.5766 | O11: =SUM('Shipping Summary'!I17+SUM('Aviation Summary'!H16:H18)+'Ferries Summary'!F15+'Rail Summary'!F14+'Bus Summary'!F14+'Car Summary'!F9+'HGV Summary'!F9+'Van Summary'!F9) -> 196442.7802 | P11: =SUM('Shipping Summary'!J17+SUM('Aviation Summary'!I16:I18)+'Ferries Summary'!G15+'Rail Summary'!G14+'Bus Summary'!G14+'Car Summary'!G9+'HGV Summary'!G9+'Van Summary'!G9) -> 239283.0334 | Q11: =SUM('Shipping Summary'!K17+SUM('Aviation Summary'!J16:J18)+'Ferries Summary'!H15+'Rail Summary'!H14+'Bus Summary'!H14+'Car Summary'!H9+'HGV Summary'!H9+'Van Summary'!H9) -> 321376.0668 | R11: =SUM('Shipping Summary'!L17+SUM('Aviation Summary'!K16:K18)+'Ferries Summary'!I15+'Rail Summary'!I14+'Bus Summary'!I14+'Car Summary'!I9+'HGV Summary'!I9+'Van Summary'!I9) -> 2216903.919 | S11: =SUM('Shipping Summary'!M17+SUM('Aviation Summary'!L16:L18)+'Ferries Summary'!J15+'Rail Summary'!J14+'Bus Summary'!J14+'Car Summary'!J9+'HGV Summary'!J9+'Van Summary'!J9) -> 4404986.374 | T11: =SUM('Shipping Summary'!N17+SUM('Aviation Summary'!M16:M18)+'Ferries Summary'!K15+'Rail Summary'!K14+'Bus Summary'!K14+'Car Summary'!K9+'HGV Summary'!K9+'Van Summary'!K9) -> 6651901.81 | U11: =SUM('Shipping Summary'!O17+SUM('Aviation Summary'!N16:N18)+'Ferries Summary'!L15+'Rail Summary'!L14+'Bus Summary'!L14+'Car Summary'!L9+'HGV Summary'!L9+'Van Summary'!L9) -> 9137401.905 | V11: =SUM('Shipping Summary'!P17+SUM('Aviation Summary'!O16:O18)+'Ferries Summary'!M15+'Rail Summary'!M14+'Bus Summary'!M14+'Car Summary'!M9+'HGV Summary'!M9+'Van Summary'!M9) -> 228899949.1 | W11: =SUM('Shipping Summary'!Q17+SUM('Aviation Summary'!P16:P18)+'Ferries Summary'!N15+'Rail Summary'!N14+'Bus Summary'!N14+'Car Summary'!N9+'HGV Summary'!N9+'Van Summary'!N9) -> 1206022082 | X11: =SUM('Shipping Summary'!R17+SUM('Aviation Summary'!Q16:Q18)+'Ferries Summary'!O15+'Rail Summary'!O14+'Bus Summary'!O14+'Car Summary'!O9+'HGV Summary'!O9+'Van Summary'!O9) -> 1229290709 | Y11: =SUM('Shipping Summary'!S17+SUM('Aviation Summary'!R16:R18)+'Ferries Summary'!P15+'Rail Summary'!P14+'Bus Summary'!P14+'Car Summary'!P9+'HGV Summary'!P9+'Van Summary'!P9) -> 1240725456 | Z11: kWh
A12: 2040 | B12: Scenario A: Low Hydrogen | C12: =X8 -> 0 | G12: 2040 | H12: Scenario A: Low Hydrogen | I12: =X9 -> 1180295710 | L12: Scenario C: High Hydrogen | M12: Electricity | N12: =SUM(SUM('Shipping Summary'!H19:H20)+SUM('Aviation Summary'!G35:G37)+'Ferries Summary'!E17+'Rail Summary'!E18+'Bus Summary'!E18+'Car Summary'!E11+'HGV Summary'!E11+'Van Summary'!E11) -> 0 | O12: =SUM(SUM('Shipping Summary'!I19:I20)+SUM('Aviation Summary'!H35:H37)+'Ferries Summary'!F17+'Rail Summary'!F18+'Bus Summary'!F18+'Car Summary'!F11+'HGV Summary'!F11+'Van Summary'!F11) -> 0 | P12: =SUM(SUM('Shipping Summary'!J19:J20)+SUM('Aviation Summary'!I35:I37)+'Ferries Summary'!G17+'Rail Summary'!G18+'Bus Summary'!G18+'Car Summary'!G11+'HGV Summary'!G11+'Van Summary'!G11) -> 0 | Q12: =SUM(SUM('Shipping Summary'!K19:K20)+SUM('Aviation Summary'!J35:J37)+'Ferries Summary'!H17+'Rail Summary'!H18+'Bus Summary'!H18+'Car Summary'!H11+'HGV Summary'!H11+'Van Summary'!H11) -> 0 | R12: =SUM(SUM('Shipping Summary'!L19:L20)+SUM('Aviation Summary'!K35:K37)+'Ferries Summary'!I17+'Rail Summary'!I18+'Bus Summary'!I18+'Car Summary'!I11+'HGV Summary'!I11+'Van Summary'!I11) -> 0 | S12: =SUM(SUM('Shipping Summary'!M19:M20)+SUM('Aviation Summary'!L35:L37)+'Ferries Summary'!J17+'Rail Summary'!J18+'Bus Summary'!J18+'Car Summary'!J11+'HGV Summary'!J11+'Van Summary'!J11) -> 0 | T12: =SUM(SUM('Shipping Summary'!N19:N20)+SUM('Aviation Summary'!M35:M37)+'Ferries Summary'!K17+'Rail Summary'!K18+'Bus Summary'!K18+'Car Summary'!K11+'HGV Summary'!K11+'Van Summary'!K11) -> 0 | U12: =SUM(SUM('Shipping Summary'!O19:O20)+SUM('Aviation Summary'!N35:N37)+'Ferries Summary'!L17+'Rail Summary'!L18+'Bus Summary'!L18+'Car Summary'!L11+'HGV Summary'!L11+'Van Summary'!L11) -> 0 | V12: =SUM(SUM('Shipping Summary'!P19:P20)+SUM('Aviation Summary'!O35:O37)+'Ferries Summary'!M17+'Rail Summary'!M18+'Bus Summary'!M18+'Car Summary'!M11+'HGV Summary'!M11+'Van Summary'!M11) -> 0 | W12: =SUM(SUM('Shipping Summary'!Q19:Q20)+SUM('Aviation Summary'!P35:P37)+'Ferries Summary'!N17+'Rail Summary'!N18+'Bus Summary'!N18+'Car Summary'!N11+'HGV Summary'!N11+'Van Summary'!N11) -> 0 | X12: =SUM(SUM('Shipping Summary'!R19:R20)+SUM('Aviation Summary'!Q35:Q37)+'Ferries Summary'!O17+'Rail Summary'!O18+'Bus Summary'!O18+'Car Summary'!O11+'HGV Summary'!O11+'Van Summary'!O11) -> 0 | Y12: =SUM(SUM('Shipping Summary'!S19:S20)+SUM('Aviation Summary'!R35:R37)+'Ferries Summary'!P17+'Rail Summary'!P18+'Bus Summary'!P18+'Car Summary'!P11+'HGV Summary'!P11+'Van Summary'!P11) -> 0 | Z12: kWh
A13: 2045 | B13: Scenario A: Low Hydrogen | C13: =Y8 -> 0 | G13: 2045 | H13: Scenario A: Low Hydrogen | I13: =Y9 -> 1188483923 | M13: Hydrogen | N13: =SUM('Shipping Summary'!H21+SUM('Aviation Summary'!G20:G22)+'Ferries Summary'!E18+'Rail Summary'!E17+'Bus Summary'!E17+'Car Summary'!E12+'HGV Summary'!E12+'Van Summary'!E12) -> 173728.3008 | O13: =SUM('Shipping Summary'!I21+SUM('Aviation Summary'!H20:H22)+'Ferries Summary'!F18+'Rail Summary'!F17+'Bus Summary'!F17+'Car Summary'!F12+'HGV Summary'!F12+'Van Summary'!F12) -> 242472.2418 | P13: =SUM('Shipping Summary'!J21+SUM('Aviation Summary'!I20:I22)+'Ferries Summary'!G18+'Rail Summary'!G17+'Bus Summary'!G17+'Car Summary'!G12+'HGV Summary'!G12+'Van Summary'!G12) -> 304492.1075 | Q13: =SUM('Shipping Summary'!K21+SUM('Aviation Summary'!J20:J22)+'Ferries Summary'!H18+'Rail Summary'!H17+'Bus Summary'!H17+'Car Summary'!H12+'HGV Summary'!H12+'Van Summary'!H12) -> 427060.2644 | R13: =SUM('Shipping Summary'!L21+SUM('Aviation Summary'!K20:K22)+'Ferries Summary'!I18+'Rail Summary'!I17+'Bus Summary'!I17+'Car Summary'!I12+'HGV Summary'!I12+'Van Summary'!I12) -> 2426284.758 | S13: =SUM('Shipping Summary'!M21+SUM('Aviation Summary'!L20:L22)+'Ferries Summary'!J18+'Rail Summary'!J17+'Bus Summary'!J17+'Car Summary'!J12+'HGV Summary'!J12+'Van Summary'!J12) -> 7122040.938 | T13: =SUM('Shipping Summary'!N21+SUM('Aviation Summary'!M20:M22)+'Ferries Summary'!K18+'Rail Summary'!K17+'Bus Summary'!K17+'Car Summary'!K12+'HGV Summary'!K12+'Van Summary'!K12) -> 225707795.1 | U13: =SUM('Shipping Summary'!O21+SUM('Aviation Summary'!N20:N22)+'Ferries Summary'!L18+'Rail Summary'!L17+'Bus Summary'!L17+'Car Summary'!L12+'HGV Summary'!L12+'Van Summary'!L12) -> 804566019.9 | V13: =SUM('Shipping Summary'!P21+SUM('Aviation Summary'!O20:O22)+'Ferries Summary'!M18+'Rail Summary'!M17+'Bus Summary'!M17+'Car Summary'!M12+'HGV Summary'!M12+'Van Summary'!M12) -> 1168610149 | W13: =SUM('Shipping Summary'!Q21+SUM('Aviation Summary'!P20:P22)+'Ferries Summary'!N18+'Rail Summary'!N17+'Bus Summary'!N17+'Car Summary'!N12+'HGV Summary'!N12+'Van Summary'!N12) -> 1210474370 | X13: =SUM('Shipping Summary'!R21+SUM('Aviation Summary'!Q20:Q22)+'Ferries Summary'!O18+'Rail Summary'!O17+'Bus Summary'!O17+'Car Summary'!O12+'HGV Summary'!O12+'Van Summary'!O12) -> 1239227030 | Y13: =SUM('Shipping Summary'!S21+SUM('Aviation Summary'!R20:R22)+'Ferries Summary'!P18+'Rail Summary'!P17+'Bus Summary'!P17+'Car Summary'!P12+'HGV Summary'!P12+'Van Summary'!P12) -> 1259121505 | Z13: kWh
A14: 2022 | B14: Scenario B: Medium Hydrogen | C14: =N10 -> 0 | G14: 2022 | H14: Scenario B: Medium Hydrogen | I14: =N11 -> 148362.5766 | M14: Electricity | Z14: kWh
A15: 2023 | B15: Scenario B: Medium Hydrogen | C15: =O10 -> 0 | G15: 2023 | H15: Scenario B: Medium Hydrogen | I15: =O11 -> 196442.7802 | M15: Hydrogen | Z15: kWh
A16: 2024 | B16: Scenario B: Medium Hydrogen | C16: =P10 -> 0 | G16: 2024 | H16: Scenario B: Medium Hydrogen | I16: =P11 -> 239283.0334 | M16: Electricity | Z16: kWh
A17: 2025 | B17: Scenario B: Medium Hydrogen | C17: =Q10 -> 0 | G17: 2025 | H17: Scenario B: Medium Hydrogen | I17: =Q11 -> 321376.0668 | M17: Hydrogen | Z17: kWh
A18: 2026 | B18: Scenario B: Medium Hydrogen | C18: =R10 -> 0 | G18: 2026 | H18: Scenario B: Medium Hydrogen | I18: =R11 -> 2216903.919 | M18: Electricity | Z18: kWh
A19: 2027 | B19: Scenario B: Medium Hydrogen | C19: =S10 -> 0 | G19: 2027 | H19: Scenario B: Medium Hydrogen | I19: =S11 -> 4404986.374 | M19: Hydrogen | Z19: kWh
A20: 2028 | B20: Scenario B: Medium Hydrogen | C20: =T10 -> 0 | G20: 2028 | H20: Scenario B: Medium Hydrogen | I20: =T11 -> 6651901.81
A21: 2029 | B21: Scenario B: Medium Hydrogen | C21: =U10 -> 0 | G21: 2029 | H21: Scenario B: Medium Hydrogen | I21: =U11 -> 9137401.905
A22: 2030 | B22: Scenario B: Medium Hydrogen | C22: =V10 -> 0 | G22: 2030 | H22: Scenario B: Medium Hydrogen | I22: =V11 -> 228899949.1 | L22: Dumfries & Galloway
A23: 2035 | B23: Scenario B: Medium Hydrogen | C23: =W10 -> 0 | G23: 2035 | H23: Scenario B: Medium Hydrogen | I23: =W11 -> 1206022082 | N23: 2022 | O23: 2023 | P23: 2024 | Q23: 2025 | R23: 2026 | S23: 2027 | T23: 2028 | U23: 2029 | V23: 2030 | W23: 2035 | X23: 2040 | Y23: 2045 | Z23: Units
A24: 2040 | B24: Scenario B: Medium Hydrogen | C24: =X10 -> 0 | G24: 2040 | H24: Scenario B: Medium Hydrogen | I24: =X11 -> 1229290709 | L24: Scenario A: Low Hydrogen | M24: Electricity | N24: 0 | O24: 0 | P24: 0 | Q24: 0 | R24: 0 | S24: 0 | T24: 0 | U24: 0 | V24: 0 | W24: 0 | X24: 0 | Y24: 0 | Z24: kWh
A25: 2045 | B25: Scenario B: Medium Hydrogen | C25: =Y10 -> 0 | G25: 2045 | H25: Scenario B: Medium Hydrogen | I25: =Y11 -> 1240725456 | M25: Hydrogen | N25: 122939.8479 | O25: 150302.7392 | P25: 173932.3416 | Q25: 215387.9179 | R25: 1113852.458 | S25: 2115865.209 | T25: 3135613.776 | U25: 4263750.764 | V25: 5862516.364 | W25: 232703020.9 | X25: 1180295710 | Y25: 1188483923 | Z25: kWh
A26: 2022 | B26: Scenario C: High Hydrogen | C26: =N12 -> 0 | G26: 2022 | H26: Scenario C: High Hydrogen | I26: =N13 -> 173728.3008 | L26: Scenario B: Medium Hydrogen | M26: Electricity | N26: 0 | O26: 0 | P26: 0 | Q26: 0 | R26: 0 | S26: 0 | T26: 0 | U26: 0 | V26: 0 | W26: 0 | X26: 0 | Y26: 0 | Z26: kWh
A27: 2023 | B27: Scenario C: High Hydrogen | C27: =O12 -> 0 | G27: 2023 | H27: Scenario C: High Hydrogen | I27: =O13 -> 242472.2418 | M27: Hydrogen | N27: 148362.5766 | O27: 196442.7802 | P27: 239283.0334 | Q27: 321376.0668 | R27: 2216903.919 | S27: 4404986.374 | T27: 6651901.81 | U27: 9137401.905 | V27: 228899949.1 | W27: 1206022082 | X27: 1229290709 | Y27: 1240725456 | Z27: kWh
A28: 2024 | B28: Scenario C: High Hydrogen | C28: =P12 -> 0 | G28: 2024 | H28: Scenario C: High Hydrogen | I28: =P13 -> 304492.1075 | L28: Scenario C: High Hydrogen | M28: Electricity | N28: 0 | O28: 0 | P28: 0 | Q28: 0 | R28: 0 | S28: 0 | T28: 0 | U28: 0 | V28: 0 | W28: 0 | X28: 0 | Y28: 0 | Z28: kWh
A29: 2025 | B29: Scenario C: High Hydrogen | C29: =Q12 -> 0 | G29: 2025 | H29: Scenario C: High Hydrogen | I29: =Q13 -> 427060.2644 | M29: Hydrogen | N29: 173728.3008 | O29: 242472.2418 | P29: 304492.1075 | Q29: 427060.2644 | R29: 2426284.758 | S29: 7122040.938 | T29: 225707795.1 | U29: 804566019.9 | V29: 1168610149 | W29: 1210474370 | X29: 1239227030 | Y29: 1259121505 | Z29: kWh
A30: 2026 | B30: Scenario C: High Hydrogen | C30: =R12 -> 0 | G30: 2026 | H30: Scenario C: High Hydrogen | I30: =R13 -> 2426284.758 | M30: Electricity | Z30: kWh
A31: 2027 | B31: Scenario C: High Hydrogen | C31: =S12 -> 0 | G31: 2027 | H31: Scenario C: High Hydrogen | I31: =S13 -> 7122040.938 | M31: Hydrogen | Z31: kWh
A32: 2028 | B32: Scenario C: High Hydrogen | C32: =T12 -> 0 | G32: 2028 | H32: Scenario C: High Hydrogen | I32: =T13 -> 225707795.1 | M32: Electricity | Z32: kWh
A33: 2029 | B33: Scenario C: High Hydrogen | C33: =U12 -> 0 | G33: 2029 | H33: Scenario C: High Hydrogen | I33: =U13 -> 804566019.9 | M33: Hydrogen | Z33: kWh
A34: 2030 | B34: Scenario C: High Hydrogen | C34: =V12 -> 0 | G34: 2030 | H34: Scenario C: High Hydrogen | I34: =V13 -> 1168610149 | M34: Electricity | Z34: kWh
A35: 2035 | B35: Scenario C: High Hydrogen | C35: =W12 -> 0 | G35: 2035 | H35: Scenario C: High Hydrogen | I35: =W13 -> 1210474370 | M35: Hydrogen | Z35: kWh
A36: 2040 | B36: Scenario C: High Hydrogen | C36: =X12 -> 0 | G36: 2040 | H36: Scenario C: High Hydrogen | I36: =X13 -> 1239227030
A37: 2045 | B37: Scenario C: High Hydrogen | C37: =Y12 -> 0 | G37: 2045 | H37: Scenario C: High Hydrogen | I37: =Y13 -> 1259121505 | L37: Fife
A38: 2022 | B38: Blank | C38: =N14 -> 0 | G38: 2022 | H38: Blank | I38: =N15 -> 0 | N38: 2022 | O38: 2023 | P38: 2024 | Q38: 2025 | R38: 2026 | S38: 2027 | T38: 2028 | U38: 2029 | V38: 2030 | W38: 2035 | X38: 2040 | Y38: 2045 | Z38: Units
A39: 2023 | B39: Blank | C39: =O14 -> 0 | G39: 2023 | H39: Blank | I39: =O15 -> 0 | L39: Scenario A: Low Hydrogen | M39: Electricity | N39: 0 | O39: 0 | P39: 0 | Q39: 0 | R39: 0 | S39: 0 | T39: 0 | U39: 0 | V39: 0 | W39: 0 | X39: 0 | Y39: 0 | Z39: kWh
A40: 2024 | B40: Blank | C40: =P14 -> 0 | G40: 2024 | H40: Blank | I40: =P15 -> 0 | M40: Hydrogen | N40: 317361.242 | O40: 389498.7343 | P40: 2191015.239 | Q40: 3750595.146 | R40: 5292537.545 | S40: 6992252.296 | T40: 8709809.553 | U40: 10599005.3 | V40: 13662737.11 | W40: 36080829.84 | X40: 61529812.63 | Y40: 82370380.39 | Z40: kWh
A41: 2025 | B41: Blank | C41: =Q14 -> 0 | G41: 2025 | H41: Blank | I41: =Q15 -> 0 | L41: Scenario B: Medium Hydrogen | M41: Electricity | N41: 0 | O41: 0 | P41: 0 | Q41: 0 | R41: 0 | S41: 0 | T41: 0 | U41: 0 | V41: 0 | W41: 0 | X41: 0 | Y41: 0 | Z41: kWh
A42: 2026 | B42: Blank | C42: =R14 -> 0 | G42: 2026 | H42: Blank | I42: =R15 -> 0 | M42: Hydrogen | N42: 383994.6757 | O42: 510987.5164 | P42: 626270.5606 | Q42: 846299.6254 | R42: 4094631.472 | S42: 7800630.065 | T42: 11580473.14 | U42: 15738151.12 | V42: 22419723.4 | W42: 87754093.36 | X42: 147236189 | Y42: 179970584.1 | Z42: kWh
A43: 2027 | B43: Blank | C43: =S14 -> 0 | G43: 2027 | H43: Blank | I43: =S15 -> 0 | L43: Scenario C: High Hydrogen | M43: Electricity | N43: 0 | O43: 0 | P43: 0 | Q43: 0 | R43: 0 | S43: 0 | T43: 0 | U43: 0 | V43: 0 | W43: 0 | X43: 0 | Y43: 0 | Z43: kWh
A44: 2028 | B44: Blank | C44: =T14 -> 0 | G44: 2028 | H44: Blank | I44: =T15 -> 0 | M44: Hydrogen | N44: 450484.9873 | O44: 632199.831 | P44: 799261.887 | Q44: 1127734.911 | R44: 4603317.797 | S44: 8480609.489 | T44: 12408007 | U44: 16717031.71 | V44: 24804286.19 | W44: 97538982.77 | X44: 167743198.4 | Y44: 224351413.2 | Z44: kWh
A45: 2029 | B45: Blank | C45: =U14 -> 0 | G45: 2029 | H45: Blank | I45: =U15 -> 0 | M45: Electricity | Z45: kWh
A46: 2030 | B46: Blank | C46: =V14 -> 0 | G46: 2030 | H46: Blank | I46: =V15 -> 0 | M46: Hydrogen | Z46: kWh
A47: 2035 | B47: Blank | C47: =W14 -> 0 | G47: 2035 | H47: Blank | I47: =W15 -> 0 | M47: Electricity | Z47: kWh
A48: 2040 | B48: Blank | C48: =X14 -> 0 | G48: 2040 | H48: Blank | I48: =X15 -> 0 | M48: Hydrogen | Z48: kWh
A49: 2045 | B49: Blank | C49: =Y14 -> 0 | G49: 2045 | H49: Blank | I49: =Y15 -> 0 | M49: Electricity | Z49: kWh
A50: 2022 | B50: Blank | C50: =N16 -> 0 | G50: 2022 | H50: Blank | I50: =N17 -> 0 | M50: Hydrogen | Z50: kWh
A51: 2023 | B51: Blank | C51: =O16 -> 0 | G51: 2023 | H51: Blank | I51: =O17 -> 0
A52: 2024 | B52: Blank | C52: =P16 -> 0 | G52: 2024 | H52: Blank | I52: =P17 -> 0 | L52: Highlands
A53: 2025 | B53: Blank | C53: =Q16 -> 0 | G53: 2025 | H53: Blank | I53: =Q17 -> 0 | N53: 2022 | O53: 2023 | P53: 2024 | Q53: 2025 | R53: 2026 | S53: 2027 | T53: 2028 | U53: 2029 | V53: 2030 | W53: 2035 | X53: 2040 | Y53: 2045 | Z53: Units
A54: 2026 | B54: Blank | C54: =R16 -> 0 | G54: 2026 | H54: Blank | I54: =R17 -> 0 | L54: Scenario A: Low Hydrogen | M54: Electricity | N54: 0 | O54: 0 | P54: 0 | Q54: 0 | R54: 0 | S54: 0 | T54: 0 | U54: 0 | V54: 0 | W54: 0 | X54: 0 | Y54: 0 | Z54: kWh
A55: 2027 | B55: Blank | C55: =S16 -> 0 | G55: 2027 | H55: Blank | I55: =S17 -> 0 | M55: Hydrogen | N55: 213999.4133 | O55: 259031.4913 | P55: 296808.3254 | Q55: 364162.1512 | R55: 1039881.264 | S55: 1775820.003 | T55: 18568981.62 | U55: 24944085.58 | V55: 72145492.54 | W55: 201255491.1 | X55: 370653844.1 | Y55: 511554968.1 | Z55: kWh
A56: 2028 | B56: Blank | C56: =T16 -> 0 | G56: 2028 | H56: Blank | I56: =T17 -> 0 | L56: Scenario B: Medium Hydrogen | M56: Electricity | N56: 0 | O56: 0 | P56: 0 | Q56: 0 | R56: 0 | S56: 0 | T56: 0 | U56: 0 | V56: 0 | W56: 0 | X56: 0 | Y56: 0 | Z56: kWh
A57: 2029 | B57: Blank | C57: =U16 -> 0 | G57: 2029 | H57: Blank | I57: =U17 -> 0 | M57: Hydrogen | N57: 255843.9686 | O57: 334896.0806 | P57: 403428.5825 | Q57: 1517264.397 | R57: 15048944.01 | S57: 30979312.9 | T57: 51857105.07 | U57: 59208104.86 | V57: 114283221.2 | W57: 354507171.8 | X57: 662812849.6 | Y57: 941043358.8 | Z57: kWh
A58: 2030 | B58: Blank | C58: =V16 -> 0 | G58: 2030 | H58: Blank | I58: =V17 -> 0 | L58: Scenario C: High Hydrogen | M58: Electricity | N58: 0 | O58: 0 | P58: 0 | Q58: 0 | R58: 0 | S58: 0 | T58: 0 | U58: 0 | V58: 0 | W58: 0 | X58: 0 | Y58: 0 | Z58: kWh
A59: 2035 | B59: Blank | C59: =W16 -> 0 | G59: 2035 | H59: Blank | I59: =W17 -> 0 | M59: Hydrogen | N59: 2868189.363 | O59: 5551770.324 | P59: 5650999.399 | Q59: 6831227.376 | R59: 20488897.2 | S59: 36517135.55 | T59: 57480660.91 | U59: 64921419.59 | V59: 143944451.6 | W59: 507480585.9 | X59: 931946465.8 | Y59: 1345467131 | Z59: kWh
A60: 2040 | B60: Blank | C60: =X16 -> 0 | G60: 2040 | H60: Blank | I60: =X17 -> 0 | M60: Electricity | Z60: kWh
A61: 2045 | B61: Blank | C61: =Y16 -> 0 | G61: 2045 | H61: Blank | I61: =Y17 -> 0 | M61: Hydrogen | Z61: kWh
A62: 2022 | B62: Blank | C62: =N18 -> 0 | G62: 2022 | H62: Blank | I62: =N19 -> 0 | M62: Electricity | Z62: kWh
A63: 2023 | B63: Blank | C63: =O18 -> 0 | G63: 2023 | H63: Blank | I63: =O19 -> 0 | M63: Hydrogen | Z63: kWh
A64: 2024 | B64: Blank | C64: =P18 -> 0 | G64: 2024 | H64: Blank | I64: =P19 -> 0 | M64: Electricity | Z64: kWh
A65: 2025 | B65: Blank | C65: =Q18 -> 0 | G65: 2025 | H65: Blank | I65: =Q19 -> 0 | M65: Hydrogen | Z65: kWh
A66: 2026 | B66: Blank | C66: =R18 -> 0 | G66: 2026 | H66: Blank | I66: =R19 -> 0
A67: 2027 | B67: Blank | C67: =S18 -> 0 | G67: 2027 | H67: Blank | I67: =S19 -> 0
A68: 2028 | B68: Blank | C68: =T18 -> 0 | G68: 2028 | H68: Blank | I68: =T19 -> 0
A69: 2029 | B69: Blank | C69: =U18 -> 0 | G69: 2029 | H69: Blank | I69: =U19 -> 0
A70: 2030 | B70: Blank | C70: =V18 -> 0 | G70: 2030 | H70: Blank | I70: =V19 -> 0
A71: 2035 | B71: Blank | C71: =W18 -> 0 | G71: 2035 | H71: Blank | I71: =W19 -> 0
A72: 2040 | B72: Blank | C72: =X18 -> 0 | G72: 2040 | H72: Blank | I72: =X19 -> 0
A73: 2045 | B73: Blank | C73: =Y18 -> 0 | G73: 2045 | H73: Blank | I73: =Y19 -> 0

Sheet Bus Summary (hidden)
C3: =MID(CELL("filename",B1),FIND("]",CELL("filename",B1))+1,99) -> Bus Summary
B7: Bus + Coach | C7: Summary of total fuel usage split by fuel type
E8: E | F8: F | G8: G | H8: H | I8: I | J8: J | K8: K | L8: L | M8: M | N8: N | O8: O | P8: P
D9: Units | E9: 2022 | F9: 2023 | G9: 2024 | H9: 2025 | I9: 2026 | J9: 2027 | K9: 2028 | L9: 2029 | M9: 2030 | N9: 2035 | O9: 2040 | P9: 2045 | R9: Lookup | S9: Row
B10: Scenario A: Low Hydrogen | C10: Total | R10: ='Key Assumptions >'!$B$21 -> Dumfries & Galloway | S10: =ROW(B47) -> 47
A11: 15 | C11: Hydrogen | D11: kWh | E11: =INDIRECT("'Bus Summary'!"&'Bus Summary'!E$8&($A11+INDEX('Bus Summary'!$S$10:$S$17,MATCH(Region,'Bus Summary'!$R$10:$R$17,0)))) -> 0 | F11: =INDIRECT("'Bus Summary'!"&'Bus Summary'!F$8&($A11+INDEX('Bus Summary'!$S$10:$S$17,MATCH(Region,'Bus Summary'!$R$10:$R$17,0)))) -> 0 | G11: =INDIRECT("'Bus Summary'!"&'Bus Summary'!G$8&($A11+INDEX('Bus Summary'!$S$10:$S$17,MATCH(Region,'Bus Summary'!$R$10:$R$17,0)))) -> 0 | H11: =INDIRECT("'Bus Summary'!"&'Bus Summary'!H$8&($A11+INDEX('Bus Summary'!$S$10:$S$17,MATCH(Region,'Bus Summary'!$R$10:$R$17,0)))) -> 0 | I11: =INDIRECT("'Bus Summary'!"&'Bus Summary'!I$8&($A11+INDEX('Bus Summary'!$S$10:$S$17,MATCH(Region,'Bus Summary'!$R$10:$R$17,0)))) -> 0 | J11: =INDIRECT("'Bus Summary'!"&'Bus Summary'!J$8&($A11+INDEX('Bus Summary'!$S$10:$S$17,MATCH(Region,'Bus Summary'!$R$10:$R$17,0)))) -> 0 | K11: =INDIRECT("'Bus Summary'!"&'Bus Summary'!K$8&($A11+INDEX('Bus Summary'!$S$10:$S$17,MATCH(Region,'Bus Summary'!$R$10:$R$17,0)))) -> 0 | L11: =INDIRECT("'Bus Summary'!"&'Bus Summary'!L$8&($A11+INDEX('Bus Summary'!$S$10:$S$17,MATCH(Region,'Bus Summary'!$R$10:$R$17,0)))) -> 0 | M11: =INDIRECT("'Bus Summary'!"&'Bus Summary'!M$8&($A11+INDEX('Bus Summary'!$S$10:$S$17,MATCH(Region,'Bus Summary'!$R$10:$R$17,0)))) -> 0 | N11: =INDIRECT("'Bus Summary'!"&'Bus Summary'!N$8&($A11+INDEX('Bus Summary'!$S$10:$S$17,MATCH(Region,'Bus Summary'!$R$10:$R$17,0)))) -> 1042943.426 | O11: =INDIRECT("'Bus Summary'!"&'Bus Summary'!O$8&($A11+INDEX('Bus Summary'!$S$10:$S$17,MATCH(Region,'Bus Summary'!$R$10:$R$17,0)))) -> 1564415.139 | P11: =INDIRECT("'Bus Summary'!"&'Bus Summary'!P$8&($A11+INDEX('Bus Summary'!$S$10:$S$17,MATCH(Region,'Bus Summary'!$R$10:$R$17,0)))) -> 1564415.139 | R11: ='Key Assumptions >'!$B$22 -> Fife | S11: =ROW(B65) -> 65
C12: Electricity/kWh | D12: kWh | E12: =INDIRECT("'Bus Summary'!"&'Bus Summary'!E$8&($A12+INDEX('Bus Summary'!$S$10:$S$17,MATCH(Region,'Bus Summary'!$R$10:$R$17,0)))) -> 0 | F12: =INDIRECT("'Bus Summary'!"&'Bus Summary'!F$8&($A12+INDEX('Bus Summary'!$S$10:$S$17,MATCH(Region,'Bus Summary'!$R$10:$R$17,0)))) -> 0 | G12: =INDIRECT("'Bus Summary'!"&'Bus Summary'!G$8&($A12+INDEX('Bus Summary'!$S$10:$S$17,MATCH(Region,'Bus Summary'!$R$10:$R$17,0)))) -> 0 | H12: =INDIRECT("'Bus Summary'!"&'Bus Summary'!H$8&($A12+INDEX('Bus Summary'!$S$10:$S$17,MATCH(Region,'Bus Summary'!$R$10:$R$17,0)))) -> 0 | I12: =INDIRECT("'Bus Summary'!"&'Bus Summary'!I$8&($A12+INDEX('Bus Summary'!$S$10:$S$17,MATCH(Region,'Bus Summary'!$R$10:$R$17,0)))) -> 0 | J12: =INDIRECT("'Bus Summary'!"&'Bus Summary'!J$8&($A12+INDEX('Bus Summary'!$S$10:$S$17,MATCH(Region,'Bus Summary'!$R$10:$R$17,0)))) -> 0 | K12: =INDIRECT("'Bus Summary'!"&'Bus Summary'!K$8&($A12+INDEX('Bus Summary'!$S$10:$S$17,MATCH(Region,'Bus Summary'!$R$10:$R$17,0)))) -> 0 | L12: =INDIRECT("'Bus Summary'!"&'Bus Summary'!L$8&($A12+INDEX('Bus Summary'!$S$10:$S$17,MATCH(Region,'Bus Summary'!$R$10:$R$17,0)))) -> 0 | M12: =INDIRECT("'Bus Summary'!"&'Bus Summary'!M$8&($A12+INDEX('Bus Summary'!$S$10:$S$17,MATCH(Region,'Bus Summary'!$R$10:$R$17,0)))) -> 0 | N12: =INDIRECT("'Bus Summary'!"&'Bus Summary'!N$8&($A12+INDEX('Bus Summary'!$S$10:$S$17,MATCH(Region,'Bus Summary'!$R$10:$R$17,0)))) -> 0 | O12: =INDIRECT("'Bus Summary'!"&'Bus Summary'!O$8&($A12+INDEX('Bus Summary'!$S$10:$S$17,MATCH(Region,'Bus Summary'!$R$10:$R$17,0)))) -> 0 | P12: =INDIRECT("'Bus Summary'!"&'Bus Summary'!P$8&($A12+INDEX('Bus Summary'!$S$10:$S$17,MATCH(Region,'Bus Summary'!$R$10:$R$17,0)))) -> 0 | R12: ='Key Assumptions >'!$B$23 -> Highlands | S12: =ROW(B83) -> 83
B13: Scenario B: Medium Hydrogen | C13: Total
A14: 14 | C14: Hydrogen | E14: =INDIRECT("'Bus Summary'!"&'Bus Summary'!E$8&($A14+INDEX('Bus Summary'!$S$10:$S$17,MATCH(Region,'Bus Summary'!$R$10:$R$17,0)))) -> 0 | F14: =INDIRECT("'Bus Summary'!"&'Bus Summary'!F$8&($A14+INDEX('Bus Summary'!$S$10:$S$17,MATCH(Region,'Bus Summary'!$R$10:$R$17,0)))) -> 0 | G14: =INDIRECT("'Bus Summary'!"&'Bus Summary'!G$8&($A14+INDEX('Bus Summary'!$S$10:$S$17,MATCH(Region,'Bus Summary'!$R$10:$R$17,0)))) -> 0 | H14: =INDIRECT("'Bus Summary'!"&'Bus Summary'!H$8&($A14+INDEX('Bus Summary'!$S$10:$S$17,MATCH(Region,'Bus Summary'!$R$10:$R$17,0)))) -> 0 | I14: =INDIRECT("'Bus Summary'!"&'Bus Summary'!I$8&($A14+INDEX('Bus Summary'!$S$10:$S$17,MATCH(Region,'Bus Summary'!$R$10:$R$17,0)))) -> 0 | J14: =INDIRECT("'Bus Summary'!"&'Bus Summary'!J$8&($A14+INDEX('Bus Summary'!$S$10:$S$17,MATCH(Region,'Bus Summary'!$R$10:$R$17,0)))) -> 0 | K14: =INDIRECT("'Bus Summary'!"&'Bus Summary'!K$8&($A14+INDEX('Bus Summary'!$S$10:$S$17,MATCH(Region,'Bus Summary'!$R$10:$R$17,0)))) -> 0 | L14: =INDIRECT("'Bus Summary'!"&'Bus Summary'!L$8&($A14+INDEX('Bus Summary'!$S$10:$S$17,MATCH(Region,'Bus Summary'!$R$10:$R$17,0)))) -> 0 | M14: =INDIRECT("'Bus Summary'!"&'Bus Summary'!M$8&($A14+INDEX('Bus Summary'!$S$10:$S$17,MATCH(Region,'Bus Summary'!$R$10:$R$17,0)))) -> 0 | N14: =INDIRECT("'Bus Summary'!"&'Bus Summary'!N$8&($A14+INDEX('Bus Summary'!$S$10:$S$17,MATCH(Region,'Bus Summary'!$R$10:$R$17,0)))) -> 3302654.183 | O14: =INDIRECT("'Bus Summary'!"&'Bus Summary'!O$8&($A14+INDEX('Bus Summary'!$S$10:$S$17,MATCH(Region,'Bus Summary'!$R$10:$R$17,0)))) -> 3302654.183 | P14: =INDIRECT("'Bus Summary'!"&'Bus Summary'!P$8&($A14+INDEX('Bus Summary'!$S$10:$S$17,MATCH(Region,'Bus Summary'!$R$10:$R$17,0)))) -> 3302654.183
C15: Electricity/kWh | D15: kWh | E15: =INDIRECT("'Bus Summary'!"&'Bus Summary'!E$8&($A15+INDEX('Bus Summary'!$S$10:$S$17,MATCH(Region,'Bus Summary'!$R$10:$R$17,0)))) -> 0 | F15: =INDIRECT("'Bus Summary'!"&'Bus Summary'!F$8&($A15+INDEX('Bus Summary'!$S$10:$S$17,MATCH(Region,'Bus Summary'!$R$10:$R$17,0)))) -> 0 | G15: =INDIRECT("'Bus Summary'!"&'Bus Summary'!G$8&($A15+INDEX('Bus Summary'!$S$10:$S$17,MATCH(Region,'Bus Summary'!$R$10:$R$17,0)))) -> 0 | H15: =INDIRECT("'Bus Summary'!"&'Bus Summary'!H$8&($A15+INDEX('Bus Summary'!$S$10:$S$17,MATCH(Region,'Bus Summary'!$R$10:$R$17,0)))) -> 0 | I15: =INDIRECT("'Bus Summary'!"&'Bus Summary'!I$8&($A15+INDEX('Bus Summary'!$S$10:$S$17,MATCH(Region,'Bus Summary'!$R$10:$R$17,0)))) -> 0 | J15: =INDIRECT("'Bus Summary'!"&'Bus Summary'!J$8&($A15+INDEX('Bus Summary'!$S$10:$S$17,MATCH(Region,'Bus Summary'!$R$10:$R$17,0)))) -> 0 | K15: =INDIRECT("'Bus Summary'!"&'Bus Summary'!K$8&($A15+INDEX('Bus Summary'!$S$10:$S$17,MATCH(Region,'Bus Summary'!$R$10:$R$17,0)))) -> 0 | L15: =INDIRECT("'Bus Summary'!"&'Bus Summary'!L$8&($A15+INDEX('Bus Summary'!$S$10:$S$17,MATCH(Region,'Bus Summary'!$R$10:$R$17,0)))) -> 0 | M15: =INDIRECT("'Bus Summary'!"&'Bus Summary'!M$8&($A15+INDEX('Bus Summary'!$S$10:$S$17,MATCH(Region,'Bus Summary'!$R$10:$R$17,0)))) -> 0 | N15: =INDIRECT("'Bus Summary'!"&'Bus Summary'!N$8&($A15+INDEX('Bus Summary'!$S$10:$S$17,MATCH(Region,'Bus Summary'!$R$10:$R$17,0)))) -> 0 | O15: =INDIRECT("'Bus Summary'!"&'Bus Summary'!O$8&($A15+INDEX('Bus Summary'!$S$10:$S$17,MATCH(Region,'Bus Summary'!$R$10:$R$17,0)))) -> 0 | P15: =INDIRECT("'Bus Summary'!"&'Bus Summary'!P$8&($A15+INDEX('Bus Summary'!$S$10:$S$17,MATCH(Region,'Bus Summary'!$R$10:$R$17,0)))) -> 0
B16: Scenario C: High Hydrogen | C16: Total
A17: 13 | C17: Hydrogen | E17: =INDIRECT("'Bus Summary'!"&'Bus Summary'!E$8&($A17+INDEX('Bus Summary'!$S$10:$S$17,MATCH(Region,'Bus Summary'!$R$10:$R$17,0)))) -> 0 | F17: =INDIRECT("'Bus Summary'!"&'Bus Summary'!F$8&($A17+INDEX('Bus Summary'!$S$10:$S$17,MATCH(Region,'Bus Summary'!$R$10:$R$17,0)))) -> 0 | G17: =INDIRECT("'Bus Summary'!"&'Bus Summary'!G$8&($A17+INDEX('Bus Summary'!$S$10:$S$17,MATCH(Region,'Bus Summary'!$R$10:$R$17,0)))) -> 0 | H17: =INDIRECT("'Bus Summary'!"&'Bus Summary'!H$8&($A17+INDEX('Bus Summary'!$S$10:$S$17,MATCH(Region,'Bus Summary'!$R$10:$R$17,0)))) -> 0 | I17: =INDIRECT("'Bus Summary'!"&'Bus Summary'!I$8&($A17+INDEX('Bus Summary'!$S$10:$S$17,MATCH(Region,'Bus Summary'!$R$10:$R$17,0)))) -> 0 | J17: =INDIRECT("'Bus Summary'!"&'Bus Summary'!J$8&($A17+INDEX('Bus Summary'!$S$10:$S$17,MATCH(Region,'Bus Summary'!$R$10:$R$17,0)))) -> 2433534.661 | K17: =INDIRECT("'Bus Summary'!"&'Bus Summary'!K$8&($A17+INDEX('Bus Summary'!$S$10:$S$17,MATCH(Region,'Bus Summary'!$R$10:$R$17,0)))) -> 2433534.661 | L17: =INDIRECT("'Bus Summary'!"&'Bus Summary'!L$8&($A17+INDEX('Bus Summary'!$S$10:$S$17,MATCH(Region,'Bus Summary'!$R$10:$R$17,0)))) -> 2433534.661 | M17: =INDIRECT("'Bus Summary'!"&'Bus Summary'!M$8&($A17+INDEX('Bus Summary'!$S$10:$S$17,MATCH(Region,'Bus Summary'!$R$10:$R$17,0)))) -> 2433534.661 | N17: =INDIRECT("'Bus Summary'!"&'Bus Summary'!N$8&($A17+INDEX('Bus Summary'!$S$10:$S$17,MATCH(Region,'Bus Summary'!$R$10:$R$17,0)))) -> 4345597.609 | O17: =INDIRECT("'Bus Summary'!"&'Bus Summary'!O$8&($A17+INDEX('Bus Summary'!$S$10:$S$17,MATCH(Region,'Bus Summary'!$R$10:$R$17,0)))) -> 4345597.609 | P17: =INDIRECT("'Bus Summary'!"&'Bus Summary'!P$8&($A17+INDEX('Bus Summary'!$S$10:$S$17,MATCH(Region,'Bus Summary'!$R$10:$R$17,0)))) -> 4345597.609
C18: Electricity/kWh | D18: kWh | E18: =INDIRECT("'Bus Summary'!"&'Bus Summary'!E$8&($A18+INDEX('Bus Summary'!$S$10:$S$17,MATCH(Region,'Bus Summary'!$R$10:$R$17,0)))) -> 0 | F18: =INDIRECT("'Bus Summary'!"&'Bus Summary'!F$8&($A18+INDEX('Bus Summary'!$S$10:$S$17,MATCH(Region,'Bus Summary'!$R$10:$R$17,0)))) -> 0 | G18: =INDIRECT("'Bus Summary'!"&'Bus Summary'!G$8&($A18+INDEX('Bus Summary'!$S$10:$S$17,MATCH(Region,'Bus Summary'!$R$10:$R$17,0)))) -> 0 | H18: =INDIRECT("'Bus Summary'!"&'Bus Summary'!H$8&($A18+INDEX('Bus Summary'!$S$10:$S$17,MATCH(Region,'Bus Summary'!$R$10:$R$17,0)))) -> 0 | I18: =INDIRECT("'Bus Summary'!"&'Bus Summary'!I$8&($A18+INDEX('Bus Summary'!$S$10:$S$17,MATCH(Region,'Bus Summary'!$R$10:$R$17,0)))) -> 0 | J18: =INDIRECT("'Bus Summary'!"&'Bus Summary'!J$8&($A18+INDEX('Bus Summary'!$S$10:$S$17,MATCH(Region,'Bus Summary'!$R$10:$R$17,0)))) -> 0 | K18: =INDIRECT("'Bus Summary'!"&'Bus Summary'!K$8&($A18+INDEX('Bus Summary'!$S$10:$S$17,MATCH(Region,'Bus Summary'!$R$10:$R$17,0)))) -> 0 | L18: =INDIRECT("'Bus Summary'!"&'Bus Summary'!L$8&($A18+INDEX('Bus Summary'!$S$10:$S$17,MATCH(Region,'Bus Summary'!$R$10:$R$17,0)))) -> 0 | M18: =INDIRECT("'Bus Summary'!"&'Bus Summary'!M$8&($A18+INDEX('Bus Summary'!$S$10:$S$17,MATCH(Region,'Bus Summary'!$R$10:$R$17,0)))) -> 0 | N18: =INDIRECT("'Bus Summary'!"&'Bus Summary'!N$8&($A18+INDEX('Bus Summary'!$S$10:$S$17,MATCH(Region,'Bus Summary'!$R$10:$R$17,0)))) -> 0 | O18: =INDIRECT("'Bus Summary'!"&'Bus Summary'!O$8&($A18+INDEX('Bus Summary'!$S$10:$S$17,MATCH(Region,'Bus Summary'!$R$10:$R$17,0)))) -> 0 | P18: =INDIRECT("'Bus Summary'!"&'Bus Summary'!P$8&($A18+INDEX('Bus Summary'!$S$10:$S$17,MATCH(Region,'Bus Summary'!$R$10:$R$17,0)))) -> 0
B22: Bus | E22: 2022 | F22: 2023 | G22: 2024 | H22: 2025 | I22: 2026 | J22: 2027 | K22: 2028 | L22: 2029 | M22: 2030 | N22: 2035 | O22: 2040 | P22: 2045
B23: Scenario A: Low Hydrogen | C23: Total
A24: 9 | C24: Hydrogen | E24: =INDIRECT("'Bus Summary'!"&'Bus Summary'!E$8&($A24+INDEX('Bus Summary'!$S$10:$S$17,MATCH(Region,'Bus Summary'!$R$10:$R$17,0)))) -> 0 | F24: =INDIRECT("'Bus Summary'!"&'Bus Summary'!F$8&($A24+INDEX('Bus Summary'!$S$10:$S$17,MATCH(Region,'Bus Summary'!$R$10:$R$17,0)))) -> 0 | G24: =INDIRECT("'Bus Summary'!"&'Bus Summary'!G$8&($A24+INDEX('Bus Summary'!$S$10:$S$17,MATCH(Region,'Bus Summary'!$R$10:$R$17,0)))) -> 0 | H24: =INDIRECT("'Bus Summary'!"&'Bus Summary'!H$8&($A24+INDEX('Bus Summary'!$S$10:$S$17,MATCH(Region,'Bus Summary'!$R$10:$R$17,0)))) -> 0 | I24: =INDIRECT("'Bus Summary'!"&'Bus Summary'!I$8&($A24+INDEX('Bus Summary'!$S$10:$S$17,MATCH(Region,'Bus Summary'!$R$10:$R$17,0)))) -> 0 | J24: =INDIRECT("'Bus Summary'!"&'Bus Summary'!J$8&($A24+INDEX('Bus Summary'!$S$10:$S$17,MATCH(Region,'Bus Summary'!$R$10:$R$17,0)))) -> 0 | K24: =INDIRECT("'Bus Summary'!"&'Bus Summary'!K$8&($A24+INDEX('Bus Summary'!$S$10:$S$17,MATCH(Region,'Bus Summary'!$R$10:$R$17,0)))) -> 0 | L24: =INDIRECT("'Bus Summary'!"&'Bus Summary'!L$8&($A24+INDEX('Bus Summary'!$S$10:$S$17,MATCH(Region,'Bus Summary'!$R$10:$R$17,0)))) -> 0 | M24: =INDIRECT("'Bus Summary'!"&'Bus Summary'!M$8&($A24+INDEX('Bus Summary'!$S$10:$S$17,MATCH(Region,'Bus Summary'!$R$10:$R$17,0)))) -> 0 | N24: =INDIRECT("'Bus Summary'!"&'Bus Summary'!N$8&($A24+INDEX('Bus Summary'!$S$10:$S$17,MATCH(Region,'Bus Summary'!$R$10:$R$17,0)))) -> 0 | O24: =INDIRECT("'Bus Summary'!"&'Bus Summary'!O$8&($A24+INDEX('Bus Summary'!$S$10:$S$17,MATCH(Region,'Bus Summary'!$R$10:$R$17,0)))) -> 521471.7131 | P24: =INDIRECT("'Bus Summary'!"&'Bus Summary'!P$8&($A24+INDEX('Bus Summary'!$S$10:$S$17,MATCH(Region,'Bus Summary'!$R$10:$R$17,0)))) -> 521471.7131
C25: Electricity/kWh | D25: kWh | E25: =INDIRECT("'Bus Summary'!"&'Bus Summary'!E$8&($A25+INDEX('Bus Summary'!$S$10:$S$17,MATCH(Region,'Bus Summary'!$R$10:$R$17,0)))) -> 0 | F25: =INDIRECT("'Bus Summary'!"&'Bus Summary'!F$8&($A25+INDEX('Bus Summary'!$S$10:$S$17,MATCH(Region,'Bus Summary'!$R$10:$R$17,0)))) -> 0 | G25: =INDIRECT("'Bus Summary'!"&'Bus Summary'!G$8&($A25+INDEX('Bus Summary'!$S$10:$S$17,MATCH(Region,'Bus Summary'!$R$10:$R$17,0)))) -> 0 | H25: =INDIRECT("'Bus Summary'!"&'Bus Summary'!H$8&($A25+INDEX('Bus Summary'!$S$10:$S$17,MATCH(Region,'Bus Summary'!$R$10:$R$17,0)))) -> 0 | I25: =INDIRECT("'Bus Summary'!"&'Bus Summary'!I$8&($A25+INDEX('Bus Summary'!$S$10:$S$17,MATCH(Region,'Bus Summary'!$R$10:$R$17,0)))) -> 0 | J25: =INDIRECT("'Bus Summary'!"&'Bus Summary'!J$8&($A25+INDEX('Bus Summary'!$S$10:$S$17,MATCH(Region,'Bus Summary'!$R$10:$R$17,0)))) -> 0 | K25: =INDIRECT("'Bus Summary'!"&'Bus Summary'!K$8&($A25+INDEX('Bus Summary'!$S$10:$S$17,MATCH(Region,'Bus Summary'!$R$10:$R$17,0)))) -> 0 | L25: =INDIRECT("'Bus Summary'!"&'Bus Summary'!L$8&($A25+INDEX('Bus Summary'!$S$10:$S$17,MATCH(Region,'Bus Summary'!$R$10:$R$17,0)))) -> 0 | M25: =INDIRECT("'Bus Summary'!"&'Bus Summary'!M$8&($A25+INDEX('Bus Summary'!$S$10:$S$17,MATCH(Region,'Bus Summary'!$R$10:$R$17,0)))) -> 0 | N25: =INDIRECT("'Bus Summary'!"&'Bus Summary'!N$8&($A25+INDEX('Bus Summary'!$S$10:$S$17,MATCH(Region,'Bus Summary'!$R$10:$R$17,0)))) -> 0 | O25: =INDIRECT("'Bus Summary'!"&'Bus Summary'!O$8&($A25+INDEX('Bus Summary'!$S$10:$S$17,MATCH(Region,'Bus Summary'!$R$10:$R$17,0)))) -> 0 | P25: =INDIRECT("'Bus Summary'!"&'Bus Summary'!P$8&($A25+INDEX('Bus Summary'!$S$10:$S$17,MATCH(Region,'Bus Summary'!$R$10:$R$17,0)))) -> 0
B26: Scenario B: Medium Hydrogen | C26: Total
A27: 6 | C27: Hydrogen | E27: =INDIRECT("'Bus Summary'!"&'Bus Summary'!E$8&($A27+INDEX('Bus Summary'!$S$10:$S$17,MATCH(Region,'Bus Summary'!$R$10:$R$17,0)))) -> 0 | F27: =INDIRECT("'Bus Summary'!"&'Bus Summary'!F$8&($A27+INDEX('Bus Summary'!$S$10:$S$17,MATCH(Region,'Bus Summary'!$R$10:$R$17,0)))) -> 0 | G27: =INDIRECT("'Bus Summary'!"&'Bus Summary'!G$8&($A27+INDEX('Bus Summary'!$S$10:$S$17,MATCH(Region,'Bus Summary'!$R$10:$R$17,0)))) -> 0 | H27: =INDIRECT("'Bus Summary'!"&'Bus Summary'!H$8&($A27+INDEX('Bus Summary'!$S$10:$S$17,MATCH(Region,'Bus Summary'!$R$10:$R$17,0)))) -> 0 | I27: =INDIRECT("'Bus Summary'!"&'Bus Summary'!I$8&($A27+INDEX('Bus Summary'!$S$10:$S$17,MATCH(Region,'Bus Summary'!$R$10:$R$17,0)))) -> 0 | J27: =INDIRECT("'Bus Summary'!"&'Bus Summary'!J$8&($A27+INDEX('Bus Summary'!$S$10:$S$17,MATCH(Region,'Bus Summary'!$R$10:$R$17,0)))) -> 0 | K27: =INDIRECT("'Bus Summary'!"&'Bus Summary'!K$8&($A27+INDEX('Bus Summary'!$S$10:$S$17,MATCH(Region,'Bus Summary'!$R$10:$R$17,0)))) -> 0 | L27: =INDIRECT("'Bus Summary'!"&'Bus Summary'!L$8&($A27+INDEX('Bus Summary'!$S$10:$S$17,MATCH(Region,'Bus Summary'!$R$10:$R$17,0)))) -> 0 | M27: =INDIRECT("'Bus Summary'!"&'Bus Summary'!M$8&($A27+INDEX('Bus Summary'!$S$10:$S$17,MATCH(Region,'Bus Summary'!$R$10:$R$17,0)))) -> 0 | N27: =INDIRECT("'Bus Summary'!"&'Bus Summary'!N$8&($A27+INDEX('Bus Summary'!$S$10:$S$17,MATCH(Region,'Bus Summary'!$R$10:$R$17,0)))) -> 1564415.139 | O27: =INDIRECT("'Bus Summary'!"&'Bus Summary'!O$8&($A27+INDEX('Bus Summary'!$S$10:$S$17,MATCH(Region,'Bus Summary'!$R$10:$R$17,0)))) -> 1564415.139 | P27: =INDIRECT("'Bus Summary'!"&'Bus Summary'!P$8&($A27+INDEX('Bus Summary'!$S$10:$S$17,MATCH(Region,'Bus Summary'!$R$10:$R$17,0)))) -> 1564415.139
C28: Electricity/kWh | D28: kWh | E28: =INDIRECT("'Bus Summary'!"&'Bus Summary'!E$8&($A28+INDEX('Bus Summary'!$S$10:$S$17,MATCH(Region,'Bus Summary'!$R$10:$R$17,0)))) -> 0 | F28: =INDIRECT("'Bus Summary'!"&'Bus Summary'!F$8&($A28+INDEX('Bus Summary'!$S$10:$S$17,MATCH(Region,'Bus Summary'!$R$10:$R$17,0)))) -> 0 | G28: =INDIRECT("'Bus Summary'!"&'Bus Summary'!G$8&($A28+INDEX('Bus Summary'!$S$10:$S$17,MATCH(Region,'Bus Summary'!$R$10:$R$17,0)))) -> 0 | H28: =INDIRECT("'Bus Summary'!"&'Bus Summary'!H$8&($A28+INDEX('Bus Summary'!$S$10:$S$17,MATCH(Region,'Bus Summary'!$R$10:$R$17,0)))) -> 0 | I28: =INDIRECT("'Bus Summary'!"&'Bus Summary'!I$8&($A28+INDEX('Bus Summary'!$S$10:$S$17,MATCH(Region,'Bus Summary'!$R$10:$R$17,0)))) -> 0 | J28: =INDIRECT("'Bus Summary'!"&'Bus Summary'!J$8&($A28+INDEX('Bus Summary'!$S$10:$S$17,MATCH(Region,'Bus Summary'!$R$10:$R$17,0)))) -> 0 | K28: =INDIRECT("'Bus Summary'!"&'Bus Summary'!K$8&($A28+INDEX('Bus Summary'!$S$10:$S$17,MATCH(Region,'Bus Summary'!$R$10:$R$17,0)))) -> 0 | L28: =INDIRECT("'Bus Summary'!"&'Bus Summary'!L$8&($A28+INDEX('Bus Summary'!$S$10:$S$17,MATCH(Region,'Bus Summary'!$R$10:$R$17,0)))) -> 0 | M28: =INDIRECT("'Bus Summary'!"&'Bus Summary'!M$8&($A28+INDEX('Bus Summary'!$S$10:$S$17,MATCH(Region,'Bus Summary'!$R$10:$R$17,0)))) -> 0 | N28: =INDIRECT("'Bus Summary'!"&'Bus Summary'!N$8&($A28+INDEX('Bus Summary'!$S$10:$S$17,MATCH(Region,'Bus Summary'!$R$10:$R$17,0)))) -> 0 | O28: =INDIRECT("'Bus Summary'!"&'Bus Summary'!O$8&($A28+INDEX('Bus Summary'!$S$10:$S$17,MATCH(Region,'Bus Summary'!$R$10:$R$17,0)))) -> 0 | P28: =INDIRECT("'Bus Summary'!"&'Bus Summary'!P$8&($A28+INDEX('Bus Summary'!$S$10:$S$17,MATCH(Region,'Bus Summary'!$R$10:$R$17,0)))) -> 0
B29: Scenario C: High Hydrogen | C29: Total
A30: 3 | C30: Hydrogen | E30: =INDIRECT("'Bus Summary'!"&'Bus Summary'!E$8&($A30+INDEX('Bus Summary'!$S$10:$S$17,MATCH(Region,'Bus Summary'!$R$10:$R$17,0)))) -> 0 | F30: =INDIRECT("'Bus Summary'!"&'Bus Summary'!F$8&($A30+INDEX('Bus Summary'!$S$10:$S$17,MATCH(Region,'Bus Summary'!$R$10:$R$17,0)))) -> 0 | G30: =INDIRECT("'Bus Summary'!"&'Bus Summary'!G$8&($A30+INDEX('Bus Summary'!$S$10:$S$17,MATCH(Region,'Bus Summary'!$R$10:$R$17,0)))) -> 0 | H30: =INDIRECT("'Bus Summary'!"&'Bus Summary'!H$8&($A30+INDEX('Bus Summary'!$S$10:$S$17,MATCH(Region,'Bus Summary'!$R$10:$R$17,0)))) -> 0 | I30: =INDIRECT("'Bus Summary'!"&'Bus Summary'!I$8&($A30+INDEX('Bus Summary'!$S$10:$S$17,MATCH(Region,'Bus Summary'!$R$10:$R$17,0)))) -> 0 | J30: =INDIRECT("'Bus Summary'!"&'Bus Summary'!J$8&($A30+INDEX('Bus Summary'!$S$10:$S$17,MATCH(Region,'Bus Summary'!$R$10:$R$17,0)))) -> 0 | K30: =INDIRECT("'Bus Summary'!"&'Bus Summary'!K$8&($A30+INDEX('Bus Summary'!$S$10:$S$17,MATCH(Region,'Bus Summary'!$R$10:$R$17,0)))) -> 0 | L30: =INDIRECT("'Bus Summary'!"&'Bus Summary'!L$8&($A30+INDEX('Bus Summary'!$S$10:$S$17,MATCH(Region,'Bus Summary'!$R$10:$R$17,0)))) -> 0 | M30: =INDIRECT("'Bus Summary'!"&'Bus Summary'!M$8&($A30+INDEX('Bus Summary'!$S$10:$S$17,MATCH(Region,'Bus Summary'!$R$10:$R$17,0)))) -> 0 | N30: =INDIRECT("'Bus Summary'!"&'Bus Summary'!N$8&($A30+INDEX('Bus Summary'!$S$10:$S$17,MATCH(Region,'Bus Summary'!$R$10:$R$17,0)))) -> 1912062.948 | O30: =INDIRECT("'Bus Summary'!"&'Bus Summary'!O$8&($A30+INDEX('Bus Summary'!$S$10:$S$17,MATCH(Region,'Bus Summary'!$R$10:$R$17,0)))) -> 1912062.948 | P30: =INDIRECT("'Bus Summary'!"&'Bus Summary'!P$8&($A30+INDEX('Bus Summary'!$S$10:$S$17,MATCH(Region,'Bus Summary'!$R$10:$R$17,0)))) -> 1912062.948
C31: Electricity/kWh | D31: kWh | E31: =INDIRECT("'Bus Summary'!"&'Bus Summary'!E$8&($A31+INDEX('Bus Summary'!$S$10:$S$17,MATCH(Region,'Bus Summary'!$R$10:$R$17,0)))) -> 0 | F31: =INDIRECT("'Bus Summary'!"&'Bus Summary'!F$8&($A31+INDEX('Bus Summary'!$S$10:$S$17,MATCH(Region,'Bus Summary'!$R$10:$R$17,0)))) -> 0 | G31: =INDIRECT("'Bus Summary'!"&'Bus Summary'!G$8&($A31+INDEX('Bus Summary'!$S$10:$S$17,MATCH(Region,'Bus Summary'!$R$10:$R$17,0)))) -> 0 | H31: =INDIRECT("'Bus Summary'!"&'Bus Summary'!H$8&($A31+INDEX('Bus Summary'!$S$10:$S$17,MATCH(Region,'Bus Summary'!$R$10:$R$17,0)))) -> 0 | I31: =INDIRECT("'Bus Summary'!"&'Bus Summary'!I$8&($A31+INDEX('Bus Summary'!$S$10:$S$17,MATCH(Region,'Bus Summary'!$R$10:$R$17,0)))) -> 0 | J31: =INDIRECT("'Bus Summary'!"&'Bus Summary'!J$8&($A31+INDEX('Bus Summary'!$S$10:$S$17,MATCH(Region,'Bus Summary'!$R$10:$R$17,0)))) -> 0 | K31: =INDIRECT("'Bus Summary'!"&'Bus Summary'!K$8&($A31+INDEX('Bus Summary'!$S$10:$S$17,MATCH(Region,'Bus Summary'!$R$10:$R$17,0)))) -> 0 | L31: =INDIRECT("'Bus Summary'!"&'Bus Summary'!L$8&($A31+INDEX('Bus Summary'!$S$10:$S$17,MATCH(Region,'Bus Summary'!$R$10:$R$17,0)))) -> 0 | M31: =INDIRECT("'Bus Summary'!"&'Bus Summary'!M$8&($A31+INDEX('Bus Summary'!$S$10:$S$17,MATCH(Region,'Bus Summary'!$R$10:$R$17,0)))) -> 0 | N31: =INDIRECT("'Bus Summary'!"&'Bus Summary'!N$8&($A31+INDEX('Bus Summary'!$S$10:$S$17,MATCH(Region,'Bus Summary'!$R$10:$R$17,0)))) -> 0 | O31: =INDIRECT("'Bus Summary'!"&'Bus Summary'!O$8&($A31+INDEX('Bus Summary'!$S$10:$S$17,MATCH(Region,'Bus Summary'!$R$10:$R$17,0)))) -> 0 | P31: =INDIRECT("'Bus Summary'!"&'Bus Summary'!P$8&($A31+INDEX('Bus Summary'!$S$10:$S$17,MATCH(Region,'Bus Summary'!$R$10:$R$17,0)))) -> 0
B35: Coach | E35: 2022 | F35: 2023 | G35: 2024 | H35: 2025 | I35: 2026 | J35: 2027 | K35: 2028 | L35: 2029 | M35: 2030 | N35: 2035 | O35: 2040 | P35: 2045
B36: Scenario A: Low Hydrogen | C36: Total
A37: 10 | C37: Hydrogen | E37: =INDIRECT("'Bus Summary'!"&'Bus Summary'!E$8&($A37+INDEX('Bus Summary'!$S$10:$S$17,MATCH(Region,'Bus Summary'!$R$10:$R$17,0)))) -> 0 | F37: =INDIRECT("'Bus Summary'!"&'Bus Summary'!F$8&($A37+INDEX('Bus Summary'!$S$10:$S$17,MATCH(Region,'Bus Summary'!$R$10:$R$17,0)))) -> 0 | G37: =INDIRECT("'Bus Summary'!"&'Bus Summary'!G$8&($A37+INDEX('Bus Summary'!$S$10:$S$17,MATCH(Region,'Bus Summary'!$R$10:$R$17,0)))) -> 0 | H37: =INDIRECT("'Bus Summary'!"&'Bus Summary'!H$8&($A37+INDEX('Bus Summary'!$S$10:$S$17,MATCH(Region,'Bus Summary'!$R$10:$R$17,0)))) -> 0 | I37: =INDIRECT("'Bus Summary'!"&'Bus Summary'!I$8&($A37+INDEX('Bus Summary'!$S$10:$S$17,MATCH(Region,'Bus Summary'!$R$10:$R$17,0)))) -> 0 | J37: =INDIRECT("'Bus Summary'!"&'Bus Summary'!J$8&($A37+INDEX('Bus Summary'!$S$10:$S$17,MATCH(Region,'Bus Summary'!$R$10:$R$17,0)))) -> 0 | K37: =INDIRECT("'Bus Summary'!"&'Bus Summary'!K$8&($A37+INDEX('Bus Summary'!$S$10:$S$17,MATCH(Region,'Bus Summary'!$R$10:$R$17,0)))) -> 0 | L37: =INDIRECT("'Bus Summary'!"&'Bus Summary'!L$8&($A37+INDEX('Bus Summary'!$S$10:$S$17,MATCH(Region,'Bus Summary'!$R$10:$R$17,0)))) -> 0 | M37: =INDIRECT("'Bus Summary'!"&'Bus Summary'!M$8&($A37+INDEX('Bus Summary'!$S$10:$S$17,MATCH(Region,'Bus Summary'!$R$10:$R$17,0)))) -> 0 | N37: =INDIRECT("'Bus Summary'!"&'Bus Summary'!N$8&($A37+INDEX('Bus Summary'!$S$10:$S$17,MATCH(Region,'Bus Summary'!$R$10:$R$17,0)))) -> 1042943.426 | O37: =INDIRECT("'Bus Summary'!"&'Bus Summary'!O$8&($A37+INDEX('Bus Summary'!$S$10:$S$17,MATCH(Region,'Bus Summary'!$R$10:$R$17,0)))) -> 1042943.426 | P37: =INDIRECT("'Bus Summary'!"&'Bus Summary'!P$8&($A37+INDEX('Bus Summary'!$S$10:$S$17,MATCH(Region,'Bus Summary'!$R$10:$R$17,0)))) -> 1042943.426
C38: Electricity/kWh | D38: kWh | E38: =INDIRECT("'Bus Summary'!"&'Bus Summary'!E$8&($A38+INDEX('Bus Summary'!$S$10:$S$17,MATCH(Region,'Bus Summary'!$R$10:$R$17,0)))) -> 0 | F38: =INDIRECT("'Bus Summary'!"&'Bus Summary'!F$8&($A38+INDEX('Bus Summary'!$S$10:$S$17,MATCH(Region,'Bus Summary'!$R$10:$R$17,0)))) -> 0 | G38: =INDIRECT("'Bus Summary'!"&'Bus Summary'!G$8&($A38+INDEX('Bus Summary'!$S$10:$S$17,MATCH(Region,'Bus Summary'!$R$10:$R$17,0)))) -> 0 | H38: =INDIRECT("'Bus Summary'!"&'Bus Summary'!H$8&($A38+INDEX('Bus Summary'!$S$10:$S$17,MATCH(Region,'Bus Summary'!$R$10:$R$17,0)))) -> 0 | I38: =INDIRECT("'Bus Summary'!"&'Bus Summary'!I$8&($A38+INDEX('Bus Summary'!$S$10:$S$17,MATCH(Region,'Bus Summary'!$R$10:$R$17,0)))) -> 0 | J38: =INDIRECT("'Bus Summary'!"&'Bus Summary'!J$8&($A38+INDEX('Bus Summary'!$S$10:$S$17,MATCH(Region,'Bus Summary'!$R$10:$R$17,0)))) -> 0 | K38: =INDIRECT("'Bus Summary'!"&'Bus Summary'!K$8&($A38+INDEX('Bus Summary'!$S$10:$S$17,MATCH(Region,'Bus Summary'!$R$10:$R$17,0)))) -> 0 | L38: =INDIRECT("'Bus Summary'!"&'Bus Summary'!L$8&($A38+INDEX('Bus Summary'!$S$10:$S$17,MATCH(Region,'Bus Summary'!$R$10:$R$17,0)))) -> 0 | M38: =INDIRECT("'Bus Summary'!"&'Bus Summary'!M$8&($A38+INDEX('Bus Summary'!$S$10:$S$17,MATCH(Region,'Bus Summary'!$R$10:$R$17,0)))) -> 0 | N38: =INDIRECT("'Bus Summary'!"&'Bus Summary'!N$8&($A38+INDEX('Bus Summary'!$S$10:$S$17,MATCH(Region,'Bus Summary'!$R$10:$R$17,0)))) -> 0 | O38: =INDIRECT("'Bus Summary'!"&'Bus Summary'!O$8&($A38+INDEX('Bus Summary'!$S$10:$S$17,MATCH(Region,'Bus Summary'!$R$10:$R$17,0)))) -> 0 | P38: =INDIRECT("'Bus Summary'!"&'Bus Summary'!P$8&($A38+INDEX('Bus Summary'!$S$10:$S$17,MATCH(Region,'Bus Summary'!$R$10:$R$17,0)))) -> 0
B39: Scenario B: Medium Hydrogen | C39: Total
A40: 7 | C40: Hydrogen | E40: =INDIRECT("'Bus Summary'!"&'Bus Summary'!E$8&($A40+INDEX('Bus Summary'!$S$10:$S$17,MATCH(Region,'Bus Summary'!$R$10:$R$17,0)))) -> 0 | F40: =INDIRECT("'Bus Summary'!"&'Bus Summary'!F$8&($A40+INDEX('Bus Summary'!$S$10:$S$17,MATCH(Region,'Bus Summary'!$R$10:$R$17,0)))) -> 0 | G40: =INDIRECT("'Bus Summary'!"&'Bus Summary'!G$8&($A40+INDEX('Bus Summary'!$S$10:$S$17,MATCH(Region,'Bus Summary'!$R$10:$R$17,0)))) -> 0 | H40: =INDIRECT("'Bus Summary'!"&'Bus Summary'!H$8&($A40+INDEX('Bus Summary'!$S$10:$S$17,MATCH(Region,'Bus Summary'!$R$10:$R$17,0)))) -> 0 | I40: =INDIRECT("'Bus Summary'!"&'Bus Summary'!I$8&($A40+INDEX('Bus Summary'!$S$10:$S$17,MATCH(Region,'Bus Summary'!$R$10:$R$17,0)))) -> 0 | J40: =INDIRECT("'Bus Summary'!"&'Bus Summary'!J$8&($A40+INDEX('Bus Summary'!$S$10:$S$17,MATCH(Region,'Bus Summary'!$R$10:$R$17,0)))) -> 0 | K40: =INDIRECT("'Bus Summary'!"&'Bus Summary'!K$8&($A40+INDEX('Bus Summary'!$S$10:$S$17,MATCH(Region,'Bus Summary'!$R$10:$R$17,0)))) -> 0 | L40: =INDIRECT("'Bus Summary'!"&'Bus Summary'!L$8&($A40+INDEX('Bus Summary'!$S$10:$S$17,MATCH(Region,'Bus Summary'!$R$10:$R$17,0)))) -> 0 | M40: =INDIRECT("'Bus Summary'!"&'Bus Summary'!M$8&($A40+INDEX('Bus Summary'!$S$10:$S$17,MATCH(Region,'Bus Summary'!$R$10:$R$17,0)))) -> 0 | N40: =INDIRECT("'Bus Summary'!"&'Bus Summary'!N$8&($A40+INDEX('Bus Summary'!$S$10:$S$17,MATCH(Region,'Bus Summary'!$R$10:$R$17,0)))) -> 1738239.044 | O40: =INDIRECT("'Bus Summary'!"&'Bus Summary'!O$8&($A40+INDEX('Bus Summary'!$S$10:$S$17,MATCH(Region,'Bus Summary'!$R$10:$R$17,0)))) -> 1738239.044 | P40: =INDIRECT("'Bus Summary'!"&'Bus Summary'!P$8&($A40+INDEX('Bus Summary'!$S$10:$S$17,MATCH(Region,'Bus Summary'!$R$10:$R$17,0)))) -> 1738239.044
C41: Electricity/kWh | D41: kWh | E41: =INDIRECT("'Bus Summary'!"&'Bus Summary'!E$8&($A41+INDEX('Bus Summary'!$S$10:$S$17,MATCH(Region,'Bus Summary'!$R$10:$R$17,0)))) -> 0 | F41: =INDIRECT("'Bus Summary'!"&'Bus Summary'!F$8&($A41+INDEX('Bus Summary'!$S$10:$S$17,MATCH(Region,'Bus Summary'!$R$10:$R$17,0)))) -> 0 | G41: =INDIRECT("'Bus Summary'!"&'Bus Summary'!G$8&($A41+INDEX('Bus Summary'!$S$10:$S$17,MATCH(Region,'Bus Summary'!$R$10:$R$17,0)))) -> 0 | H41: =INDIRECT("'Bus Summary'!"&'Bus Summary'!H$8&($A41+INDEX('Bus Summary'!$S$10:$S$17,MATCH(Region,'Bus Summary'!$R$10:$R$17,0)))) -> 0 | I41: =INDIRECT("'Bus Summary'!"&'Bus Summary'!I$8&($A41+INDEX('Bus Summary'!$S$10:$S$17,MATCH(Region,'Bus Summary'!$R$10:$R$17,0)))) -> 0 | J41: =INDIRECT("'Bus Summary'!"&'Bus Summary'!J$8&($A41+INDEX('Bus Summary'!$S$10:$S$17,MATCH(Region,'Bus Summary'!$R$10:$R$17,0)))) -> 0 | K41: =INDIRECT("'Bus Summary'!"&'Bus Summary'!K$8&($A41+INDEX('Bus Summary'!$S$10:$S$17,MATCH(Region,'Bus Summary'!$R$10:$R$17,0)))) -> 0 | L41: =INDIRECT("'Bus Summary'!"&'Bus Summary'!L$8&($A41+INDEX('Bus Summary'!$S$10:$S$17,MATCH(Region,'Bus Summary'!$R$10:$R$17,0)))) -> 0 | M41: =INDIRECT("'Bus Summary'!"&'Bus Summary'!M$8&($A41+INDEX('Bus Summary'!$S$10:$S$17,MATCH(Region,'Bus Summary'!$R$10:$R$17,0)))) -> 0 | N41: =INDIRECT("'Bus Summary'!"&'Bus Summary'!N$8&($A41+INDEX('Bus Summary'!$S$10:$S$17,MATCH(Region,'Bus Summary'!$R$10:$R$17,0)))) -> 0 | O41: =INDIRECT("'Bus Summary'!"&'Bus Summary'!O$8&($A41+INDEX('Bus Summary'!$S$10:$S$17,MATCH(Region,'Bus Summary'!$R$10:$R$17,0)))) -> 0 | P41: =INDIRECT("'Bus Summary'!"&'Bus Summary'!P$8&($A41+INDEX('Bus Summary'!$S$10:$S$17,MATCH(Region,'Bus Summary'!$R$10:$R$17,0)))) -> 0
B42: Scenario C: High Hydrogen | C42: Total
A43: 4 | C43: Hydrogen | E43: =INDIRECT("'Bus Summary'!"&'Bus Summary'!E$8&($A43+INDEX('Bus Summary'!$S$10:$S$17,MATCH(Region,'Bus Summary'!$R$10:$R$17,0)))) -> 0 | F43: =INDIRECT("'Bus Summary'!"&'Bus Summary'!F$8&($A43+INDEX('Bus Summary'!$S$10:$S$17,MATCH(Region,'Bus Summary'!$R$10:$R$17,0)))) -> 0 | G43: =INDIRECT("'Bus Summary'!"&'Bus Summary'!G$8&($A43+INDEX('Bus Summary'!$S$10:$S$17,MATCH(Region,'Bus Summary'!$R$10:$R$17,0)))) -> 0 | H43: =INDIRECT("'Bus Summary'!"&'Bus Summary'!H$8&($A43+INDEX('Bus Summary'!$S$10:$S$17,MATCH(Region,'Bus Summary'!$R$10:$R$17,0)))) -> 0 | I43: =INDIRECT("'Bus Summary'!"&'Bus Summary'!I$8&($A43+INDEX('Bus Summary'!$S$10:$S$17,MATCH(Region,'Bus Summary'!$R$10:$R$17,0)))) -> 0 | J43: =INDIRECT("'Bus Summary'!"&'Bus Summary'!J$8&($A43+INDEX('Bus Summary'!$S$10:$S$17,MATCH(Region,'Bus Summary'!$R$10:$R$17,0)))) -> 2433534.661 | K43: =INDIRECT("'Bus Summary'!"&'Bus Summary'!K$8&($A43+INDEX('Bus Summary'!$S$10:$S$17,MATCH(Region,'Bus Summary'!$R$10:$R$17,0)))) -> 2433534.661 | L43: =INDIRECT("'Bus Summary'!"&'Bus Summary'!L$8&($A43+INDEX('Bus Summary'!$S$10:$S$17,MATCH(Region,'Bus Summary'!$R$10:$R$17,0)))) -> 2433534.661 | M43: =INDIRECT("'Bus Summary'!"&'Bus Summary'!M$8&($A43+INDEX('Bus Summary'!$S$10:$S$17,MATCH(Region,'Bus Summary'!$R$10:$R$17,0)))) -> 2433534.661 | N43: =INDIRECT("'Bus Summary'!"&'Bus Summary'!N$8&($A43+INDEX('Bus Summary'!$S$10:$S$17,MATCH(Region,'Bus Summary'!$R$10:$R$17,0)))) -> 2433534.661 | O43: =INDIRECT("'Bus Summary'!"&'Bus Summary'!O$8&($A43+INDEX('Bus Summary'!$S$10:$S$17,MATCH(Region,'Bus Summary'!$R$10:$R$17,0)))) -> 2433534.661 | P43: =INDIRECT("'Bus Summary'!"&'Bus Summary'!P$8&($A43+INDEX('Bus Summary'!$S$10:$S$17,MATCH(Region,'Bus Summary'!$R$10:$R$17,0)))) -> 2433534.661
C44: Electricity/kWh | D44: kWh | E44: =INDIRECT("'Bus Summary'!"&'Bus Summary'!E$8&($A44+INDEX('Bus Summary'!$S$10:$S$17,MATCH(Region,'Bus Summary'!$R$10:$R$17,0)))) -> 0 | F44: =INDIRECT("'Bus Summary'!"&'Bus Summary'!F$8&($A44+INDEX('Bus Summary'!$S$10:$S$17,MATCH(Region,'Bus Summary'!$R$10:$R$17,0)))) -> 0 | G44: =INDIRECT("'Bus Summary'!"&'Bus Summary'!G$8&($A44+INDEX('Bus Summary'!$S$10:$S$17,MATCH(Region,'Bus Summary'!$R$10:$R$17,0)))) -> 0 | H44: =INDIRECT("'Bus Summary'!"&'Bus Summary'!H$8&($A44+INDEX('Bus Summary'!$S$10:$S$17,MATCH(Region,'Bus Summary'!$R$10:$R$17,0)))) -> 0 | I44: =INDIRECT("'Bus Summary'!"&'Bus Summary'!I$8&($A44+INDEX('Bus Summary'!$S$10:$S$17,MATCH(Region,'Bus Summary'!$R$10:$R$17,0)))) -> 0 | J44: =INDIRECT("'Bus Summary'!"&'Bus Summary'!J$8&($A44+INDEX('Bus Summary'!$S$10:$S$17,MATCH(Region,'Bus Summary'!$R$10:$R$17,0)))) -> 0 | K44: =INDIRECT("'Bus Summary'!"&'Bus Summary'!K$8&($A44+INDEX('Bus Summary'!$S$10:$S$17,MATCH(Region,'Bus Summary'!$R$10:$R$17,0)))) -> 0 | L44: =INDIRECT("'Bus Summary'!"&'Bus Summary'!L$8&($A44+INDEX('Bus Summary'!$S$10:$S$17,MATCH(Region,'Bus Summary'!$R$10:$R$17,0)))) -> 0 | M44: =INDIRECT("'Bus Summary'!"&'Bus Summary'!M$8&($A44+INDEX('Bus Summary'!$S$10:$S$17,MATCH(Region,'Bus Summary'!$R$10:$R$17,0)))) -> 0 | N44: =INDIRECT("'Bus Summary'!"&'Bus Summary'!N$8&($A44+INDEX('Bus Summary'!$S$10:$S$17,MATCH(Region,'Bus Summary'!$R$10:$R$17,0)))) -> 0 | O44: =INDIRECT("'Bus Summary'!"&'Bus Summary'!O$8&($A44+INDEX('Bus Summary'!$S$10:$S$17,MATCH(Region,'Bus Summary'!$R$10:$R$17,0)))) -> 0 | P44: =INDIRECT("'Bus Summary'!"&'Bus Summary'!P$8&($A44+INDEX('Bus Summary'!$S$10:$S$17,MATCH(Region,'Bus Summary'!$R$10:$R$17,0)))) -> 0
B47: Dumfries & Galloway
A48: 1
A49: 2 | B49: Hydrogen demand for graph (kWh)
A50: 3 | B50: High hydrogen buses (MH) | E50: 0 | F50: 0 | G50: 0 | H50: 0 | I50: 0 | J50: 0 | K50: 0 | L50: 0 | M50: 0 | N50: 1912062.948 | O50: 1912062.948 | P50: 1912062.948
A51: 4 | B51: High hydrogen coaches (LH) | E51: 0 | F51: 0 | G51: 0 | H51: 0 | I51: 0 | J51: 2433534.661 | K51: 2433534.661 | L51: 2433534.661 | M51: 2433534.661 | N51: 2433534.661 | O51: 2433534.661 | P51: 2433534.661
A52: 5
A53: 6 | B53: Medium hydrogen buses (MM) | E53: 0 | F53: 0 | G53: 0 | H53: 0 | I53: 0 | J53: 0 | K53: 0 | L53: 0 | M53: 0 | N53: 1564415.139 | O53: 1564415.139 | P53: 1564415.139
A54: 7 | B54: Medium hydrogen coaches (MM) | E54: 0 | F54: 0 | G54: 0 | H54: 0 | I54: 0 | J54: 0 | K54: 0 | L54: 0 | M54: 0 | N54: 1738239.044 | O54: 1738239.044 | P54: 1738239.044
A55: 8
A56: 9 | B56: Low hydrogen buses (ML) | E56: 0 | F56: 0 | G56: 0 | H56: 0 | I56: 0 | J56: 0 | K56: 0 | L56: 0 | M56: 0 | N56: 0 | O56: 521471.7131 | P56: 521471.7131
A57: 10 | B57: Low hydrogen coaches (ML) | E57: 0 | F57: 0 | G57: 0 | H57: 0 | I57: 0 | J57: 0 | K57: 0 | L57: 0 | M57: 0 | N57: 1042943.426 | O57: 1042943.426 | P57: 1042943.426
A58: 11
A59: 12 | E59: 2022 | F59: 2023 | G59: 2024 | H59: 2025 | I59: 2026 | J59: 2027 | K59: 2028 | L59: 2029 | M59: 2030 | N59: 2035 | O59: 2040 | P59: 2045
A60: 13 | B60: High hydrogen demand | E60: 0 | F60: 0 | G60: 0 | H60: 0 | I60: 0 | J60: 2433534.661 | K60: 2433534.661 | L60: 2433534.661 | M60: 2433534.661 | N60: 4345597.609 | O60: 4345597.609 | P60: 4345597.609
A61: 14 | B61: Medium hydrogen demand | E61: 0 | F61: 0 | G61: 0 | H61: 0 | I61: 0 | J61: 0 | K61: 0 | L61: 0 | M61: 0 | N61: 3302654.183 | O61: 3302654.183 | P61: 3302654.183
A62: 15 | B62: Low hydrogen demand | E62: 0 | F62: 0 | G62: 0 | H62: 0 | I62: 0 | J62: 0 | K62: 0 | L62: 0 | M62: 0 | N62: 1042943.426 | O62: 1564415.139 | P62: 1564415.139
B65: Fife
B67: Hydrogen demand for graph (kWh)
B68: High hydrogen buses (MH) | E68: 0 | F68: 0 | G68: 0 | H68: 0 | I68: 0 | J68: 0 | K68: 0 | L68: 0 | M68: 0 | N68: 0 | O68: 0 | P68: 1448406
B69: High hydrogen coaches (LH) | E69: 0 | F69: 0 | G69: 0 | H69: 0 | I69: 0 | J69: 0 | K69: 0 | L69: 0 | M69: 0 | N69: 0 | O69: 0 | P69: 1738087.2
B71: Medium hydrogen buses (MM) | E71: 0 | F71: 0 | G71: 0 | H71: 0 | I71: 0 | J71: 0 | K71: 0 | L71: 0 | M71: 0 | N71: 0 | O71: 1448406 | P71: 1448406
B72: Medium hydrogen coaches (MM) | E72: 0 | F72: 0 | G72: 0 | H72: 0 | I72: 0 | J72: 0 | K72: 0 | L72: 0 | M72: 0 | N72: 0 | O72: 1738087.2 | P72: 1738087.2
B74: Low hydrogen buses (ML) | E74: 0 | F74: 0 | G74: 0 | H74: 1448406 | I74: 1448406 | J74: 1448406 | K74: 1448406 | L74: 1448406 | M74: 1448406 | N74: 1448406 | O74: 1448406 | P74: 1448406
B75: Low hydrogen coaches (ML) | E75: 0 | F75: 0 | G75: 1738087.2 | H75: 1738087.2 | I75: 1738087.2 | J75: 1738087.2 | K75: 1738087.2 | L75: 1738087.2 | M75: 1738087.2 | N75: 1738087.2 | O75: 1738087.2 | P75: 1738087.2
E77: 2022 | F77: 2023 | G77: 2024 | H77: 2025 | I77: 2026 | J77: 2027 | K77: 2028 | L77: 2029 | M77: 2030 | N77: 2035 | O77: 2040 | P77: 2045
B78: High hydrogen demand | E78: 0 | F78: 0 | G78: 0 | H78: 0 | I78: 0 | J78: 0 | K78: 0 | L78: 0 | M78: 0 | N78: 0 | O78: 0 | P78: 3186493.2
B79: Medium hydrogen demand | E79: 0 | F79: 0 | G79: 0 | H79: 0 | I79: 0 | J79: 0 | K79: 0 | L79: 0 | M79: 0 | N79: 0 | O79: 3186493.2 | P79: 3186493.2
B80: Low hydrogen demand | E80: 0 | F80: 0 | G80: 1738087.2 | H80: 3186493.2 | I80: 3186493.2 | J80: 3186493.2 | K80: 3186493.2 | L80: 3186493.2 | M80: 3186493.2 | N80: 3186493.2 | O80: 3186493.2 | P80: 3186493.2
B83: Highlands
B85: Hydrogen demand for graph (kWh)
B86: High hydrogen buses (MH) | E86: 0 | F86: 0 | G86: 0 | H86: 0 | I86: 0 | J86: 0 | K86: 0 | L86: 0 | M86: 2085584.961 | N86: 3128377.442 | O86: 3128377.442 | P86: 3128377.442
B87: High hydrogen coaches (LH) | E87: 0 | F87: 0 | G87: 0 | H87: 0 | I87: 0 | J87: 0 | K87: 0 | L87: 0 | M87: 0 | N87: 2259383.708 | O87: 2259383.708 | P87: 2259383.708
B89: Medium hydrogen buses (MM) | E89: 0 | F89: 0 | G89: 0 | H89: 0 | I89: 0 | J89: 0 | K89: 0 | L89: 0 | M89: 0 | N89: 0 | O89: 1564188.721 | P89: 1564188.721
B90: Medium hydrogen coaches (MM) | E90: 0 | F90: 0 | G90: 0 | H90: 0 | I90: 0 | J90: 0 | K90: 0 | L90: 0 | M90: 0 | N90: 0 | O90: 1042792.481 | P90: 1042792.481
B92: Low hydrogen buses (ML) | E92: 0 | F92: 0 | G92: 0 | H92: 0 | I92: 0 | J92: 0 | K92: 0 | L92: 0 | M92: 0 | N92: 0 | O92: 521396.2403 | P92: 521396.2403
B93: Low hydrogen coaches (ML) | E93: 0 | F93: 0 | G93: 0 | H93: 0 | I93: 0 | J93: 0 | K93: 0 | L93: 0 | M93: 0 | N93: 347597.4935 | O93: 347597.4935 | P93: 347597.4935
E95: 2022 | F95: 2023 | G95: 2024 | H95: 2025 | I95: 2026 | J95: 2027 | K95: 2028 | L95: 2029 | M95: 2030 | N95: 2035 | O95: 2040 | P95: 2045
B96: High hydrogen demand | E96: 0 | F96: 0 | G96: 0 | H96: 0 | I96: 0 | J96: 0 | K96: 0 | L96: 0 | M96: 2085584.961 | N96: 5387761.149 | O96: 5387761.149 | P96: 5387761.149
B97: Medium hydrogen demand | E97: 0 | F97: 0 | G97: 0 | H97: 0 | I97: 0 | J97: 0 | K97: 0 | L97: 0 | M97: 0 | N97: 0 | O97: 2606981.201 | P97: 2606981.201
B98: Low hydrogen demand | E98: 0 | F98: 0 | G98: 0 | H98: 0 | I98: 0 | J98: 0 | K98: 0 | L98: 0 | M98: 0 | N98: 347597.4935 | O98: 868993.7338 | P98: 868993.7338

Sheet Car Summary (hidden)
B1: Lookup Table | R1: Lookup | S1: Row
A2: 1 | E2: E | F2: F | G2: G | H2: H | I2: I | J2: J | K2: K | L2: L | M2: M | N2: N | O2: O | P2: P | R2: ='Key Assumptions >'!B21 -> Dumfries & Galloway | S2: =ROW(B14) -> 14
A3: 2 | C3: TOtal | D3: Units | E3: 2022 | F3: 2023 | G3: 2024 | H3: 2025 | I3: 2026 | J3: 2027 | K3: 2028 | L3: 2029 | M3: 2030 | N3: 2035 | O3: 2040 | P3: 2045 | R3: ='Key Assumptions >'!B22 -> Fife | S3: =ROW(B46) -> 46
A4: 3 | B4: Scenario A: Low Hydrogen | C4: Total | E4: =E5+E6 -> 118942.8219 | F4: =F5+F6 -> 143181.834 | G4: 163052.8283 | H4: 198825.1482 | I4: 245984.5246 | J4: 283818.1093 | K4: 316646.7583 | L4: 351829.6232 | M4: 624492.3293 | N4: 2807536.777 | O4: 5734048.541 | P4: 7020654.085 | R4: ='Key Assumptions >'!B23 -> Highlands | S4: =ROW(B79) -> 79
A5: 4 | C5: Electricity | D5: kWh | E5: =INDIRECT("'Car Summary'!"&'Car Summary'!E$2&($A5+INDEX('Car Summary'!$S$2:$S$9,MATCH(Region,'Car Summary'!$R$2:$R$9,0)))) -> 0 | F5: =INDIRECT("'Car Summary'!"&'Car Summary'!F$2&($A5+INDEX('Car Summary'!$S$2:$S$9,MATCH(Region,'Car Summary'!$R$2:$R$9,0)))) -> 0 | G5: =INDIRECT("'Car Summary'!"&'Car Summary'!G$2&($A5+INDEX('Car Summary'!$S$2:$S$9,MATCH(Region,'Car Summary'!$R$2:$R$9,0)))) -> 0 | H5: =INDIRECT("'Car Summary'!"&'Car Summary'!H$2&($A5+INDEX('Car Summary'!$S$2:$S$9,MATCH(Region,'Car Summary'!$R$2:$R$9,0)))) -> 0 | I5: =INDIRECT("'Car Summary'!"&'Car Summary'!I$2&($A5+INDEX('Car Summary'!$S$2:$S$9,MATCH(Region,'Car Summary'!$R$2:$R$9,0)))) -> 0 | J5: =INDIRECT("'Car Summary'!"&'Car Summary'!J$2&($A5+INDEX('Car Summary'!$S$2:$S$9,MATCH(Region,'Car Summary'!$R$2:$R$9,0)))) -> 0 | K5: =INDIRECT("'Car Summary'!"&'Car Summary'!K$2&($A5+INDEX('Car Summary'!$S$2:$S$9,MATCH(Region,'Car Summary'!$R$2:$R$9,0)))) -> 0 | L5: =INDIRECT("'Car Summary'!"&'Car Summary'!L$2&($A5+INDEX('Car Summary'!$S$2:$S$9,MATCH(Region,'Car Summary'!$R$2:$R$9,0)))) -> 0 | M5: =INDIRECT("'Car Summary'!"&'Car Summary'!M$2&($A5+INDEX('Car Summary'!$S$2:$S$9,MATCH(Region,'Car Summary'!$R$2:$R$9,0)))) -> 0 | N5: =INDIRECT("'Car Summary'!"&'Car Summary'!N$2&($A5+INDEX('Car Summary'!$S$2:$S$9,MATCH(Region,'Car Summary'!$R$2:$R$9,0)))) -> 0 | O5: =INDIRECT("'Car Summary'!"&'Car Summary'!O$2&($A5+INDEX('Car Summary'!$S$2:$S$9,MATCH(Region,'Car Summary'!$R$2:$R$9,0)))) -> 0 | P5: =INDIRECT("'Car Summary'!"&'Car Summary'!P$2&($A5+INDEX('Car Summary'!$S$2:$S$9,MATCH(Region,'Car Summary'!$R$2:$R$9,0)))) -> 0
A6: 5 | C6: Hydrogen | D6: kWh | E6: =INDIRECT("'Car Summary'!"&'Car Summary'!E$2&($A6+INDEX('Car Summary'!$S$2:$S$9,MATCH(Region,'Car Summary'!$R$2:$R$9,0)))) -> 118942.8219 | F6: =INDIRECT("'Car Summary'!"&'Car Summary'!F$2&($A6+INDEX('Car Summary'!$S$2:$S$9,MATCH(Region,'Car Summary'!$R$2:$R$9,0)))) -> 143181.834 | G6: =INDIRECT("'Car Summary'!"&'Car Summary'!G$2&($A6+INDEX('Car Summary'!$S$2:$S$9,MATCH(Region,'Car Summary'!$R$2:$R$9,0)))) -> 163052.8283 | H6: =INDIRECT("'Car Summary'!"&'Car Summary'!H$2&($A6+INDEX('Car Summary'!$S$2:$S$9,MATCH(Region,'Car Summary'!$R$2:$R$9,0)))) -> 198825.1482 | I6: =INDIRECT("'Car Summary'!"&'Car Summary'!I$2&($A6+INDEX('Car Summary'!$S$2:$S$9,MATCH(Region,'Car Summary'!$R$2:$R$9,0)))) -> 245984.5246 | J6: =INDIRECT("'Car Summary'!"&'Car Summary'!J$2&($A6+INDEX('Car Summary'!$S$2:$S$9,MATCH(Region,'Car Summary'!$R$2:$R$9,0)))) -> 283818.1093 | K6: =INDIRECT("'Car Summary'!"&'Car Summary'!K$2&($A6+INDEX('Car Summary'!$S$2:$S$9,MATCH(Region,'Car Summary'!$R$2:$R$9,0)))) -> 316646.7583 | L6: =INDIRECT("'Car Summary'!"&'Car Summary'!L$2&($A6+INDEX('Car Summary'!$S$2:$S$9,MATCH(Region,'Car Summary'!$R$2:$R$9,0)))) -> 351829.6232 | M6: =INDIRECT("'Car Summary'!"&'Car Summary'!M$2&($A6+INDEX('Car Summary'!$S$2:$S$9,MATCH(Region,'Car Summary'!$R$2:$R$9,0)))) -> 624492.3293 | N6: =INDIRECT("'Car Summary'!"&'Car Summary'!N$2&($A6+INDEX('Car Summary'!$S$2:$S$9,MATCH(Region,'Car Summary'!$R$2:$R$9,0)))) -> 2807536.777 | O6: =INDIRECT("'Car Summary'!"&'Car Summary'!O$2&($A6+INDEX('Car Summary'!$S$2:$S$9,MATCH(Region,'Car Summary'!$R$2:$R$9,0)))) -> 5734048.541 | P6: =INDIRECT("'Car Summary'!"&'Car Summary'!P$2&($A6+INDEX('Car Summary'!$S$2:$S$9,MATCH(Region,'Car Summary'!$R$2:$R$9,0)))) -> 7020654.085
A7: 6 | B7: Scenario B: Medium Hydrogen | C7: Total | D7: kWh | E7: =E8+E9 -> 140390.0449 | F7: =F8+F9 -> 182241.932 | G7: 217581.094 | H7: 288325.4135 | I7: 384097.9142 | J7: 462805.0767 | K7: 532264.5248 | L7: 606334.2888 | M7: 1149699.184 | N7: 5465177.101 | O7: 11211406.6 | P7: 13671407.54
A8: 7 | C8: Electricity | D8: kWh | E8: =INDIRECT("'Car Summary'!"&'Car Summary'!E$2&($A8+INDEX('Car Summary'!$S$2:$S$9,MATCH(Region,'Car Summary'!$R$2:$R$9,0)))) -> 0 | F8: =INDIRECT("'Car Summary'!"&'Car Summary'!F$2&($A8+INDEX('Car Summary'!$S$2:$S$9,MATCH(Region,'Car Summary'!$R$2:$R$9,0)))) -> 0 | G8: =INDIRECT("'Car Summary'!"&'Car Summary'!G$2&($A8+INDEX('Car Summary'!$S$2:$S$9,MATCH(Region,'Car Summary'!$R$2:$R$9,0)))) -> 0 | H8: =INDIRECT("'Car Summary'!"&'Car Summary'!H$2&($A8+INDEX('Car Summary'!$S$2:$S$9,MATCH(Region,'Car Summary'!$R$2:$R$9,0)))) -> 0 | I8: =INDIRECT("'Car Summary'!"&'Car Summary'!I$2&($A8+INDEX('Car Summary'!$S$2:$S$9,MATCH(Region,'Car Summary'!$R$2:$R$9,0)))) -> 0 | J8: =INDIRECT("'Car Summary'!"&'Car Summary'!J$2&($A8+INDEX('Car Summary'!$S$2:$S$9,MATCH(Region,'Car Summary'!$R$2:$R$9,0)))) -> 0 | K8: =INDIRECT("'Car Summary'!"&'Car Summary'!K$2&($A8+INDEX('Car Summary'!$S$2:$S$9,MATCH(Region,'Car Summary'!$R$2:$R$9,0)))) -> 0 | L8: =INDIRECT("'Car Summary'!"&'Car Summary'!L$2&($A8+INDEX('Car Summary'!$S$2:$S$9,MATCH(Region,'Car Summary'!$R$2:$R$9,0)))) -> 0 | M8: =INDIRECT("'Car Summary'!"&'Car Summary'!M$2&($A8+INDEX('Car Summary'!$S$2:$S$9,MATCH(Region,'Car Summary'!$R$2:$R$9,0)))) -> 0 | N8: =INDIRECT("'Car Summary'!"&'Car Summary'!N$2&($A8+INDEX('Car Summary'!$S$2:$S$9,MATCH(Region,'Car Summary'!$R$2:$R$9,0)))) -> 0 | O8: =INDIRECT("'Car Summary'!"&'Car Summary'!O$2&($A8+INDEX('Car Summary'!$S$2:$S$9,MATCH(Region,'Car Summary'!$R$2:$R$9,0)))) -> 0 | P8: =INDIRECT("'Car Summary'!"&'Car Summary'!P$2&($A8+INDEX('Car Summary'!$S$2:$S$9,MATCH(Region,'Car Summary'!$R$2:$R$9,0)))) -> 0
A9: 8 | C9: Hydrogen | D9: kWh | E9: =INDIRECT("'Car Summary'!"&'Car Summary'!E$2&($A9+INDEX('Car Summary'!$S$2:$S$9,MATCH(Region,'Car Summary'!$R$2:$R$9,0)))) -> 140390.0449 | F9: =INDIRECT("'Car Summary'!"&'Car Summary'!F$2&($A9+INDEX('Car Summary'!$S$2:$S$9,MATCH(Region,'Car Summary'!$R$2:$R$9,0)))) -> 182241.932 | G9: =INDIRECT("'Car Summary'!"&'Car Summary'!G$2&($A9+INDEX('Car Summary'!$S$2:$S$9,MATCH(Region,'Car Summary'!$R$2:$R$9,0)))) -> 217581.094 | H9: =INDIRECT("'Car Summary'!"&'Car Summary'!H$2&($A9+INDEX('Car Summary'!$S$2:$S$9,MATCH(Region,'Car Summary'!$R$2:$R$9,0)))) -> 288325.4135 | I9: =INDIRECT("'Car Summary'!"&'Car Summary'!I$2&($A9+INDEX('Car Summary'!$S$2:$S$9,MATCH(Region,'Car Summary'!$R$2:$R$9,0)))) -> 384097.9142 | J9: =INDIRECT("'Car Summary'!"&'Car Summary'!J$2&($A9+INDEX('Car Summary'!$S$2:$S$9,MATCH(Region,'Car Summary'!$R$2:$R$9,0)))) -> 462805.0767 | K9: =INDIRECT("'Car Summary'!"&'Car Summary'!K$2&($A9+INDEX('Car Summary'!$S$2:$S$9,MATCH(Region,'Car Summary'!$R$2:$R$9,0)))) -> 532264.5248 | L9: =INDIRECT("'Car Summary'!"&'Car Summary'!L$2&($A9+INDEX('Car Summary'!$S$2:$S$9,MATCH(Region,'Car Summary'!$R$2:$R$9,0)))) -> 606334.2888 | M9: =INDIRECT("'Car Summary'!"&'Car Summary'!M$2&($A9+INDEX('Car Summary'!$S$2:$S$9,MATCH(Region,'Car Summary'!$R$2:$R$9,0)))) -> 1149699.184 | N9: =INDIRECT("'Car Summary'!"&'Car Summary'!N$2&($A9+INDEX('Car Summary'!$S$2:$S$9,MATCH(Region,'Car Summary'!$R$2:$R$9,0)))) -> 5465177.101 | O9: =INDIRECT("'Car Summary'!"&'Car Summary'!O$2&($A9+INDEX('Car Summary'!$S$2:$S$9,MATCH(Region,'Car Summary'!$R$2:$R$9,0)))) -> 11211406.6 | P9: =INDIRECT("'Car Summary'!"&'Car Summary'!P$2&($A9+INDEX('Car Summary'!$S$2:$S$9,MATCH(Region,'Car Summary'!$R$2:$R$9,0)))) -> 13671407.54
A10: 9 | B10: Scenario C: High Hydrogen | C10: Total | D10: kWh | E10: =E11+E12 -> 161769.5033 | F10: =F11+F12 -> 221170.9694 | G10: 271939.1984 | H10: 377484.2845 | I10: 521578.9841 | J10: 640937.4718 | K10: 746863.6099 | L10: 859657.8976 | M10: 1670719.826 | N10: 8070362.77 | O10: 16534467.95 | P10: 20064886.18
A11: 10 | C11: Electricity | D11: kWh | E11: =INDIRECT("'Car Summary'!"&'Car Summary'!E$2&($A11+INDEX('Car Summary'!$S$2:$S$9,MATCH(Region,'Car Summary'!$R$2:$R$9,0)))) -> 0 | F11: =INDIRECT("'Car Summary'!"&'Car Summary'!F$2&($A11+INDEX('Car Summary'!$S$2:$S$9,MATCH(Region,'Car Summary'!$R$2:$R$9,0)))) -> 0 | G11: =INDIRECT("'Car Summary'!"&'Car Summary'!G$2&($A11+INDEX('Car Summary'!$S$2:$S$9,MATCH(Region,'Car Summary'!$R$2:$R$9,0)))) -> 0 | H11: =INDIRECT("'Car Summary'!"&'Car Summary'!H$2&($A11+INDEX('Car Summary'!$S$2:$S$9,MATCH(Region,'Car Summary'!$R$2:$R$9,0)))) -> 0 | I11: =INDIRECT("'Car Summary'!"&'Car Summary'!I$2&($A11+INDEX('Car Summary'!$S$2:$S$9,MATCH(Region,'Car Summary'!$R$2:$R$9,0)))) -> 0 | J11: =INDIRECT("'Car Summary'!"&'Car Summary'!J$2&($A11+INDEX('Car Summary'!$S$2:$S$9,MATCH(Region,'Car Summary'!$R$2:$R$9,0)))) -> 0 | K11: =INDIRECT("'Car Summary'!"&'Car Summary'!K$2&($A11+INDEX('Car Summary'!$S$2:$S$9,MATCH(Region,'Car Summary'!$R$2:$R$9,0)))) -> 0 | L11: =INDIRECT("'Car Summary'!"&'Car Summary'!L$2&($A11+INDEX('Car Summary'!$S$2:$S$9,MATCH(Region,'Car Summary'!$R$2:$R$9,0)))) -> 0 | M11: =INDIRECT("'Car Summary'!"&'Car Summary'!M$2&($A11+INDEX('Car Summary'!$S$2:$S$9,MATCH(Region,'Car Summary'!$R$2:$R$9,0)))) -> 0 | N11: =INDIRECT("'Car Summary'!"&'Car Summary'!N$2&($A11+INDEX('Car Summary'!$S$2:$S$9,MATCH(Region,'Car Summary'!$R$2:$R$9,0)))) -> 0 | O11: =INDIRECT("'Car Summary'!"&'Car Summary'!O$2&($A11+INDEX('Car Summary'!$S$2:$S$9,MATCH(Region,'Car Summary'!$R$2:$R$9,0)))) -> 0 | P11: =INDIRECT("'Car Summary'!"&'Car Summary'!P$2&($A11+INDEX('Car Summary'!$S$2:$S$9,MATCH(Region,'Car Summary'!$R$2:$R$9,0)))) -> 0
A12: 11 | C12: Hydrogen | D12: kWh | E12: =INDIRECT("'Car Summary'!"&'Car Summary'!E$2&($A12+INDEX('Car Summary'!$S$2:$S$9,MATCH(Region,'Car Summary'!$R$2:$R$9,0)))) -> 161769.5033 | F12: =INDIRECT("'Car Summary'!"&'Car Summary'!F$2&($A12+INDEX('Car Summary'!$S$2:$S$9,MATCH(Region,'Car Summary'!$R$2:$R$9,0)))) -> 221170.9694 | G12: =INDIRECT("'Car Summary'!"&'Car Summary'!G$2&($A12+INDEX('Car Summary'!$S$2:$S$9,MATCH(Region,'Car Summary'!$R$2:$R$9,0)))) -> 271939.1984 | H12: =INDIRECT("'Car Summary'!"&'Car Summary'!H$2&($A12+INDEX('Car Summary'!$S$2:$S$9,MATCH(Region,'Car Summary'!$R$2:$R$9,0)))) -> 377484.2845 | I12: =INDIRECT("'Car Summary'!"&'Car Summary'!I$2&($A12+INDEX('Car Summary'!$S$2:$S$9,MATCH(Region,'Car Summary'!$R$2:$R$9,0)))) -> 521578.9841 | J12: =INDIRECT("'Car Summary'!"&'Car Summary'!J$2&($A12+INDEX('Car Summary'!$S$2:$S$9,MATCH(Region,'Car Summary'!$R$2:$R$9,0)))) -> 640937.4718 | K12: =INDIRECT("'Car Summary'!"&'Car Summary'!K$2&($A12+INDEX('Car Summary'!$S$2:$S$9,MATCH(Region,'Car Summary'!$R$2:$R$9,0)))) -> 746863.6099 | L12: =INDIRECT("'Car Summary'!"&'Car Summary'!L$2&($A12+INDEX('Car Summary'!$S$2:$S$9,MATCH(Region,'Car Summary'!$R$2:$R$9,0)))) -> 859657.8976 | M12: =INDIRECT("'Car Summary'!"&'Car Summary'!M$2&($A12+INDEX('Car Summary'!$S$2:$S$9,MATCH(Region,'Car Summary'!$R$2:$R$9,0)))) -> 1670719.826 | N12: =INDIRECT("'Car Summary'!"&'Car Summary'!N$2&($A12+INDEX('Car Summary'!$S$2:$S$9,MATCH(Region,'Car Summary'!$R$2:$R$9,0)))) -> 8070362.77 | O12: =INDIRECT("'Car Summary'!"&'Car Summary'!O$2&($A12+INDEX('Car Summary'!$S$2:$S$9,MATCH(Region,'Car Summary'!$R$2:$R$9,0)))) -> 16534467.95 | P12: =INDIRECT("'Car Summary'!"&'Car Summary'!P$2&($A12+INDEX('Car Summary'!$S$2:$S$9,MATCH(Region,'Car Summary'!$R$2:$R$9,0)))) -> 20064886.18
B14: Dumfries & Galloway
C16: TOtal | D16: Units | E16: 2022 | F16: 2023 | G16: 2024 | H16: 2025 | I16: 2026 | J16: 2027 | K16: 2028 | L16: 2029 | M16: 2030 | N16: 2035 | O16: 2040 | P16: 2045
B17: Scenario A: Low Hydrogen | C17: Total | E17: =E18+E19 -> 118942.8219 | F17: =F18+F19 -> 143181.834 | G17: 163052.8283 | H17: 198825.1482 | I17: 245984.5246 | J17: 283818.1093 | K17: 316646.7583 | L17: 351829.6232 | M17: 624492.3293 | N17: 2807536.777 | O17: 5734048.541 | P17: 7020654.085
C18: Electricity | D18: kWh
C19: Hydrogen | D19: kWh | E19: =TRANSPOSE(C33:C44) -> 118942.8219 | F19: 143181.834 | G19: 163052.8283 | H19: 198825.1482 | I19: 245984.5246 | J19: 283818.1093 | K19: 316646.7583 | L19: 351829.6232 | M19: 624492.3293 | N19: 2807536.777 | O19: 5734048.541 | P19: 7020654.085
B20: Scenario B: Medium Hydrogen | C20: Total | D20: kWh
C21: Electricity | D21: kWh
C22: Hydrogen | D22: kWh | E22: =TRANSPOSE(D33:D44) -> 140390.0449 | F22: 182241.932 | G22: 217581.094 | H22: 288325.4135 | I22: 384097.9142 | J22: 462805.0767 | K22: 532264.5248 | L22: 606334.2888 | M22: 1149699.184 | N22: 5465177.101 | O22: 11211406.6 | P22: 13671407.54
B23: Scenario C: High Hydrogen | C23: Total | D23: kWh
C24: Electricity | D24: kWh
C25: Hydrogen | D25: kWh | E25: =TRANSPOSE(E33:E44) -> 161769.5033 | F25: 221170.9694 | G25: 271939.1984 | H25: 377484.2845 | I25: 521578.9841 | J25: 640937.4718 | K25: 746863.6099 | L25: 859657.8976 | M25: 1670719.826 | N25: 8070362.77 | O25: 16534467.95 | P25: 20064886.18
A29: Hydrogen
B31: hydrogen kwh
B32: Year | C32: Low Hydrogen | D32: Medium Hydrogen | E32: High Hydrogen
B33: 2022 | C33: 118942.8219 | D33: 140390.0449 | E33: 161769.5033
B34: 2023 | C34: 143181.834 | D34: 182241.932 | E34: 221170.9694
B35: 2024 | C35: 163052.8283 | D35: 217581.094 | E35: 271939.1984
B36: 2025 | C36: 198825.1482 | D36: 288325.4135 | E36: 377484.2845
B37: 2026 | C37: 245984.5246 | D37: 384097.9142 | E37: 521578.9841
B38: 2027 | C38: 283818.1093 | D38: 462805.0767 | E38: 640937.4718
B39: 2028 | C39: 316646.7583 | D39: 532264.5248 | E39: 746863.6099
B40: 2029 | C40: 351829.6232 | D40: 606334.2888 | E40: 859657.8976
B41: 2030 | C41: 624492.3293 | D41: 1149699.184 | E41: 1670719.826
B42: 2035 | C42: 2807536.777 | D42: 5465177.101 | E42: 8070362.77
B43: 2040 | C43: 5734048.541 | D43: 11211406.6 | E43: 16534467.95
B44: 2045 | C44: 7020654.085 | D44: 13671407.54 | E44: 20064886.18
B46: Fife
C48: TOtal | D48: Units | E48: 2022 | F48: 2023 | G48: 2024 | H48: 2025 | I48: 2026 | J48: 2027 | K48: 2028 | L48: 2029 | M48: 2030 | N48: 2035 | O48: 2040 | P48: 2045
B49: Scenario A: Low Hydrogen | C49: Total | E49: =E50+E51 -> 305807.383 | F49: =F50+F51 -> 368383.8456 | G49: 419802.3637 | H49: 512262.6698 | I49: 633894.7616 | J49: 731539.189 | K49: 816320.6641 | L49: 907207.2891 | M49: 1610607.637 | N49: 7044084.773 | O49: 14194576.64 | P49: 17445402.77
C50: Electricity | D50: kWh
C51: Hydrogen | D51: kWh | E51: =TRANSPOSE(C66:C77) -> 305807.383 | F51: 368383.8456 | G51: 419802.3637 | H51: 512262.6698 | I51: 633894.7616 | J51: 731539.189 | K51: 816320.6641 | L51: 907207.2891 | M51: 1610607.637 | N51: 7044084.773 | O51: 14194576.64 | P51: 17445402.77
B52: Scenario B: Medium Hydrogen | C52: Total | D52: kWh | E52: =E53+E54 -> 360949.1647 | F52: =F53+F54 -> 468879.1996 | G52: 560193.0277 | H52: 742855.4559 | I52: 989808.8353 | J52: 1192876.844 | K52: 1372186.89 | L52: 1563458.135 | M52: 2965151.369 | N52: 13712080.68 | O52: 27753718.7 | P52: 33971651.09
C53: Electricity | D53: kWh
C54: Hydrogen | D54: kWh | E54: =TRANSPOSE(D66:D77) -> 360949.1647 | F54: 468879.1996 | G54: 560193.0277 | H54: 742855.4559 | I54: 989808.8353 | J54: 1192876.844 | K54: 1372186.89 | L54: 1563458.135 | M54: 2965151.369 | N54: 13712080.68 | O54: 27753718.7 | P54: 33971651.09
B55: Scenario C: High Hydrogen | C55: Total | D55: kWh | E55: =E56+E57 -> 415916.7207 | F55: =F56+F57 -> 569037.3559 | G55: 700145.5877 | H55: 972568.6571 | I55: 1344093.44 | J55: 1652011.845 | K55: 1925426.937 | L55: 2216663.577 | M55: 4308898.58 | N55: 20248468.32 | O55: 40930900.88 | P55: 49858605.3
C56: Electricity | D56: kWh
C57: Hydrogen | D57: kWh | E57: =TRANSPOSE(E66:E77) -> 415916.7207 | F57: 569037.3559 | G57: 700145.5877 | H57: 972568.6571 | I57: 1344093.44 | J57: 1652011.845 | K57: 1925426.937 | L57: 2216663.577 | M57: 4308898.58 | N57: 20248468.32 | O57: 40930900.88 | P57: 49858605.3
A62: Hydrogen
B64: hydrogen kwh
B65: Year | C65: Low Hydrogen | D65: Medium Hydrogen | E65: High Hydrogen
B66: 2022 | C66: 305807.383 | D66: 360949.1647 | E66: 415916.7207
B67: 2023 | C67: 368383.8456 | D67: 468879.1996 | E67: 569037.3559
B68: 2024 | C68: 419802.3637 | D68: 560193.0277 | E68: 700145.5877
B69: 2025 | C69: 512262.6698 | D69: 742855.4559 | E69: 972568.6571
B70: 2026 | C70: 633894.7616 | D70: 989808.8353 | E70: 1344093.44
B71: 2027 | C71: 731539.189 | D71: 1192876.844 | E71: 1652011.845
B72: 2028 | C72: 816320.6641 | D72: 1372186.89 | E72: 1925426.937
B73: 2029 | C73: 907207.2891 | D73: 1563458.135 | E73: 2216663.577
B74: 2030 | C74: 1610607.637 | D74: 2965151.369 | E74: 4308898.58
B75: 2035 | C75: 7044084.773 | D75: 13712080.68 | E75: 20248468.32
B76: 2040 | C76: 14194576.64 | D76: 27753718.7 | E76: 40930900.88
B77: 2045 | C77: 17445402.77 | D77: 33971651.09 | E77: 49858605.3
B79: Highlands
C81: TOtal | D81: Units | E81: 2022 | F81: 2023 | G81: 2024 | H81: 2025 | I81: 2026 | J81: 2027 | K81: 2028 | L81: 2029 | M81: 2030 | N81: 2035 | O81: 2040 | P81: 2045
B82: Scenario A: Low Hydrogen | C82: Total | E82: =E83+E84 -> 209999.4591 | F82: =F83+F84 -> 251822.8823 | G82: 285660.35 | H82: 346971.7871 | I82: 430194.7353 | J82: 497429.409 | K82: 556160.3788 | L82: 619285.1196 | M82: 1101585.45 | N82: 5196241.212 | O82: 10863438.76 | P82: 13622602.41
C83: Electricity | D83: kWh
C84: Hydrogen | D84: kWh | E84: =TRANSPOSE(C100:C111) -> 209999.4591 | F84: 251822.8823 | G84: 285660.35 | H84: 346971.7871 | I84: 430194.7353 | J84: 497429.409 | K84: 556160.3788 | L84: 619285.1196 | M84: 1101585.45 | N84: 5196241.212 | O84: 10863438.76 | P84: 13622602.41
B85: Scenario B: Medium Hydrogen | C85: Total | D85: kWh
C86: Electricity | D86: kWh
C87: Hydrogen | D87: kWh | E87: =TRANSPOSE(D100:D111) -> 247865.5963 | F87: 320520.3294 | G87: 381191.1276 | H87: 503159.6099 | I87: 671736.9755 | J87: 811128.1425 | K87: 934872.7943 | L87: 1067260.338 | M87: 2028034.347 | N87: 10115051.28 | O87: 21240564.68 | P87: 26527464.13
B88: Scenario C: High Hydrogen | C88: Total | D88: kWh
C89: Electricity | D89: kWh
C90: Hydrogen | D90: kWh | E90: =TRANSPOSE(E100:E111) -> 285612.0919 | F90: 388987.2719 | G90: 476423.7912 | H90: 658751.6619 | I90: 912173.371 | J90: 1123329.123 | K90: 1311795.991 | L90: 1513156.678 | M90: 2947098.892 | N90: 14936777.31 | O90: 31325367.86 | P90: 38933119.85
A96: Hydrogen
B98: hydrogen kwh
B99: Year | C99: Low Hydrogen | D99: Medium Hydrogen | E99: High Hydrogen
B100: 2022 | C100: 209999.4591 | D100: 247865.5963 | E100: 285612.0919
B101: 2023 | C101: 251822.8823 | D101: 320520.3294 | E101: 388987.2719
B102: 2024 | C102: 285660.35 | D102: 381191.1276 | E102: 476423.7912
B103: 2025 | C103: 346971.7871 | D103: 503159.6099 | E103: 658751.6619
B104: 2026 | C104: 430194.7353 | D104: 671736.9755 | E104: 912173.371
B105: 2027 | C105: 497429.409 | D105: 811128.1425 | E105: 1123329.123
B106: 2028 | C106: 556160.3788 | D106: 934872.7943 | E106: 1311795.991
B107: 2029 | C107: 619285.1196 | D107: 1067260.338 | E107: 1513156.678
B108: 2030 | C108: 1101585.45 | D108: 2028034.347 | E108: 2947098.892
B109: 2035 | C109: 5196241.212 | D109: 10115051.28 | E109: 14936777.31
B110: 2040 | C110: 10863438.76 | D110: 21240564.68 | E110: 31325367.86
B111: 2045 | C111: 13622602.41 | D111: 26527464.13 | E111: 38933119.85

Sheet HGV Summary (hidden)
B1: Lookup Table | R1: Lookup | S1: Row
A2: 1 | E2: E | F2: F | G2: G | H2: H | I2: I | J2: J | K2: K | L2: L | M2: M | N2: N | O2: O | P2: P | R2: ='Key Assumptions >'!B21 -> Dumfries & Galloway | S2: =ROW(B14) -> 14
A3: 2 | C3: Total | D3: Units | E3: 2022 | F3: 2023 | G3: 2024 | H3: 2025 | I3: 2026 | J3: 2027 | K3: 2028 | L3: 2029 | M3: 2030 | N3: 2035 | O3: 2040 | P3: 2045 | R3: ='Key Assumptions >'!B22 -> Fife | S3: =ROW(B44) -> 44
A4: 3 | B4: Scenario A: Low Hydrogen | C4: Total | E4: =E5+E6 -> 0 | F4: 0 | G4: 0 | H4: 0 | I4: 842904.1123 | J4: 1797855.725 | K4: 2775506.067 | L4: 3860613.063 | M4: 5035286.802 | N4: 11586497.06 | O4: 18704054.41 | P4: 25008752.82 | R4: ='Key Assumptions >'!B23 -> Highlands | S4: =ROW(B73) -> 73
A5: 4 | C5: Electricity | D5: kWh | E5: =INDIRECT("'HGV Summary'!"&'HGV Summary'!E$2&($A5+INDEX('HGV Summary'!$S$2:$S$9,MATCH(Region,'HGV Summary'!$R$2:$R$9,0)))) -> 0 | F5: =INDIRECT("'HGV Summary'!"&'HGV Summary'!F$2&($A5+INDEX('HGV Summary'!$S$2:$S$9,MATCH(Region,'HGV Summary'!$R$2:$R$9,0)))) -> 0 | G5: =INDIRECT("'HGV Summary'!"&'HGV Summary'!G$2&($A5+INDEX('HGV Summary'!$S$2:$S$9,MATCH(Region,'HGV Summary'!$R$2:$R$9,0)))) -> 0 | H5: =INDIRECT("'HGV Summary'!"&'HGV Summary'!H$2&($A5+INDEX('HGV Summary'!$S$2:$S$9,MATCH(Region,'HGV Summary'!$R$2:$R$9,0)))) -> 0 | I5: =INDIRECT("'HGV Summary'!"&'HGV Summary'!I$2&($A5+INDEX('HGV Summary'!$S$2:$S$9,MATCH(Region,'HGV Summary'!$R$2:$R$9,0)))) -> 0 | J5: =INDIRECT("'HGV Summary'!"&'HGV Summary'!J$2&($A5+INDEX('HGV Summary'!$S$2:$S$9,MATCH(Region,'HGV Summary'!$R$2:$R$9,0)))) -> 0 | K5: =INDIRECT("'HGV Summary'!"&'HGV Summary'!K$2&($A5+INDEX('HGV Summary'!$S$2:$S$9,MATCH(Region,'HGV Summary'!$R$2:$R$9,0)))) -> 0 | L5: =INDIRECT("'HGV Summary'!"&'HGV Summary'!L$2&($A5+INDEX('HGV Summary'!$S$2:$S$9,MATCH(Region,'HGV Summary'!$R$2:$R$9,0)))) -> 0 | M5: =INDIRECT("'HGV Summary'!"&'HGV Summary'!M$2&($A5+INDEX('HGV Summary'!$S$2:$S$9,MATCH(Region,'HGV Summary'!$R$2:$R$9,0)))) -> 0 | N5: =INDIRECT("'HGV Summary'!"&'HGV Summary'!N$2&($A5+INDEX('HGV Summary'!$S$2:$S$9,MATCH(Region,'HGV Summary'!$R$2:$R$9,0)))) -> 0 | O5: =INDIRECT("'HGV Summary'!"&'HGV Summary'!O$2&($A5+INDEX('HGV Summary'!$S$2:$S$9,MATCH(Region,'HGV Summary'!$R$2:$R$9,0)))) -> 0 | P5: =INDIRECT("'HGV Summary'!"&'HGV Summary'!P$2&($A5+INDEX('HGV Summary'!$S$2:$S$9,MATCH(Region,'HGV Summary'!$R$2:$R$9,0)))) -> 0
A6: 5 | C6: Hydrogen | D6: kWh | E6: =INDIRECT("'HGV Summary'!"&'HGV Summary'!E$2&($A6+INDEX('HGV Summary'!$S$2:$S$9,MATCH(Region,'HGV Summary'!$R$2:$R$9,0)))) -> 0 | F6: =INDIRECT("'HGV Summary'!"&'HGV Summary'!F$2&($A6+INDEX('HGV Summary'!$S$2:$S$9,MATCH(Region,'HGV Summary'!$R$2:$R$9,0)))) -> 0 | G6: =INDIRECT("'HGV Summary'!"&'HGV Summary'!G$2&($A6+INDEX('HGV Summary'!$S$2:$S$9,MATCH(Region,'HGV Summary'!$R$2:$R$9,0)))) -> 0 | H6: =INDIRECT("'HGV Summary'!"&'HGV Summary'!H$2&($A6+INDEX('HGV Summary'!$S$2:$S$9,MATCH(Region,'HGV Summary'!$R$2:$R$9,0)))) -> 0 | I6: =INDIRECT("'HGV Summary'!"&'HGV Summary'!I$2&($A6+INDEX('HGV Summary'!$S$2:$S$9,MATCH(Region,'HGV Summary'!$R$2:$R$9,0)))) -> 842904.1123 | J6: =INDIRECT("'HGV Summary'!"&'HGV Summary'!J$2&($A6+INDEX('HGV Summary'!$S$2:$S$9,MATCH(Region,'HGV Summary'!$R$2:$R$9,0)))) -> 1797855.725 | K6: =INDIRECT("'HGV Summary'!"&'HGV Summary'!K$2&($A6+INDEX('HGV Summary'!$S$2:$S$9,MATCH(Region,'HGV Summary'!$R$2:$R$9,0)))) -> 2775506.067 | L6: =INDIRECT("'HGV Summary'!"&'HGV Summary'!L$2&($A6+INDEX('HGV Summary'!$S$2:$S$9,MATCH(Region,'HGV Summary'!$R$2:$R$9,0)))) -> 3860613.063 | M6: =INDIRECT("'HGV Summary'!"&'HGV Summary'!M$2&($A6+INDEX('HGV Summary'!$S$2:$S$9,MATCH(Region,'HGV Summary'!$R$2:$R$9,0)))) -> 5035286.802 | N6: =INDIRECT("'HGV Summary'!"&'HGV Summary'!N$2&($A6+INDEX('HGV Summary'!$S$2:$S$9,MATCH(Region,'HGV Summary'!$R$2:$R$9,0)))) -> 11586497.06 | O6: =INDIRECT("'HGV Summary'!"&'HGV Summary'!O$2&($A6+INDEX('HGV Summary'!$S$2:$S$9,MATCH(Region,'HGV Summary'!$R$2:$R$9,0)))) -> 18704054.41 | P6: =INDIRECT("'HGV Summary'!"&'HGV Summary'!P$2&($A6+INDEX('HGV Summary'!$S$2:$S$9,MATCH(Region,'HGV Summary'!$R$2:$R$9,0)))) -> 25008752.82
A7: 6 | B7: Scenario B: Medium Hydrogen | C7: Total | D7: kWh | E7: =E8+E9 -> 0 | F7: 0 | G7: 0 | H7: 0 | I7: 1782997.06 | J7: 3873958.695 | K7: 6032909.445 | L7: 8428665.266 | M7: 11020461.17 | N7: 33945555.41 | O7: 49832990.53 | P7: 57347823.87
A8: 7 | C8: Electricity | D8: kWh | E8: =INDIRECT("'HGV Summary'!"&'HGV Summary'!E$2&($A8+INDEX('HGV Summary'!$S$2:$S$9,MATCH(Region,'HGV Summary'!$R$2:$R$9,0)))) -> 0 | F8: =INDIRECT("'HGV Summary'!"&'HGV Summary'!F$2&($A8+INDEX('HGV Summary'!$S$2:$S$9,MATCH(Region,'HGV Summary'!$R$2:$R$9,0)))) -> 0 | G8: =INDIRECT("'HGV Summary'!"&'HGV Summary'!G$2&($A8+INDEX('HGV Summary'!$S$2:$S$9,MATCH(Region,'HGV Summary'!$R$2:$R$9,0)))) -> 0 | H8: =INDIRECT("'HGV Summary'!"&'HGV Summary'!H$2&($A8+INDEX('HGV Summary'!$S$2:$S$9,MATCH(Region,'HGV Summary'!$R$2:$R$9,0)))) -> 0 | I8: =INDIRECT("'HGV Summary'!"&'HGV Summary'!I$2&($A8+INDEX('HGV Summary'!$S$2:$S$9,MATCH(Region,'HGV Summary'!$R$2:$R$9,0)))) -> 0 | J8: =INDIRECT("'HGV Summary'!"&'HGV Summary'!J$2&($A8+INDEX('HGV Summary'!$S$2:$S$9,MATCH(Region,'HGV Summary'!$R$2:$R$9,0)))) -> 0 | K8: =INDIRECT("'HGV Summary'!"&'HGV Summary'!K$2&($A8+INDEX('HGV Summary'!$S$2:$S$9,MATCH(Region,'HGV Summary'!$R$2:$R$9,0)))) -> 0 | L8: =INDIRECT("'HGV Summary'!"&'HGV Summary'!L$2&($A8+INDEX('HGV Summary'!$S$2:$S$9,MATCH(Region,'HGV Summary'!$R$2:$R$9,0)))) -> 0 | M8: =INDIRECT("'HGV Summary'!"&'HGV Summary'!M$2&($A8+INDEX('HGV Summary'!$S$2:$S$9,MATCH(Region,'HGV Summary'!$R$2:$R$9,0)))) -> 0 | N8: =INDIRECT("'HGV Summary'!"&'HGV Summary'!N$2&($A8+INDEX('HGV Summary'!$S$2:$S$9,MATCH(Region,'HGV Summary'!$R$2:$R$9,0)))) -> 0 | O8: =INDIRECT("'HGV Summary'!"&'HGV Summary'!O$2&($A8+INDEX('HGV Summary'!$S$2:$S$9,MATCH(Region,'HGV Summary'!$R$2:$R$9,0)))) -> 0 | P8: =INDIRECT("'HGV Summary'!"&'HGV Summary'!P$2&($A8+INDEX('HGV Summary'!$S$2:$S$9,MATCH(Region,'HGV Summary'!$R$2:$R$9,0)))) -> 0
A9: 8 | C9: Hydrogen | D9: kWh | E9: =INDIRECT("'HGV Summary'!"&'HGV Summary'!E$2&($A9+INDEX('HGV Summary'!$S$2:$S$9,MATCH(Region,'HGV Summary'!$R$2:$R$9,0)))) -> 0 | F9: =INDIRECT("'HGV Summary'!"&'HGV Summary'!F$2&($A9+INDEX('HGV Summary'!$S$2:$S$9,MATCH(Region,'HGV Summary'!$R$2:$R$9,0)))) -> 0 | G9: =INDIRECT("'HGV Summary'!"&'HGV Summary'!G$2&($A9+INDEX('HGV Summary'!$S$2:$S$9,MATCH(Region,'HGV Summary'!$R$2:$R$9,0)))) -> 0 | H9: =INDIRECT("'HGV Summary'!"&'HGV Summary'!H$2&($A9+INDEX('HGV Summary'!$S$2:$S$9,MATCH(Region,'HGV Summary'!$R$2:$R$9,0)))) -> 0 | I9: =INDIRECT("'HGV Summary'!"&'HGV Summary'!I$2&($A9+INDEX('HGV Summary'!$S$2:$S$9,MATCH(Region,'HGV Summary'!$R$2:$R$9,0)))) -> 1782997.06 | J9: =INDIRECT("'HGV Summary'!"&'HGV Summary'!J$2&($A9+INDEX('HGV Summary'!$S$2:$S$9,MATCH(Region,'HGV Summary'!$R$2:$R$9,0)))) -> 3873958.695 | K9: =INDIRECT("'HGV Summary'!"&'HGV Summary'!K$2&($A9+INDEX('HGV Summary'!$S$2:$S$9,MATCH(Region,'HGV Summary'!$R$2:$R$9,0)))) -> 6032909.445 | L9: =INDIRECT("'HGV Summary'!"&'HGV Summary'!L$2&($A9+INDEX('HGV Summary'!$S$2:$S$9,MATCH(Region,'HGV Summary'!$R$2:$R$9,0)))) -> 8428665.266 | M9: =INDIRECT("'HGV Summary'!"&'HGV Summary'!M$2&($A9+INDEX('HGV Summary'!$S$2:$S$9,MATCH(Region,'HGV Summary'!$R$2:$R$9,0)))) -> 11020461.17 | N9: =INDIRECT("'HGV Summary'!"&'HGV Summary'!N$2&($A9+INDEX('HGV Summary'!$S$2:$S$9,MATCH(Region,'HGV Summary'!$R$2:$R$9,0)))) -> 33945555.41 | O9: =INDIRECT("'HGV Summary'!"&'HGV Summary'!O$2&($A9+INDEX('HGV Summary'!$S$2:$S$9,MATCH(Region,'HGV Summary'!$R$2:$R$9,0)))) -> 49832990.53 | P9: =INDIRECT("'HGV Summary'!"&'HGV Summary'!P$2&($A9+INDEX('HGV Summary'!$S$2:$S$9,MATCH(Region,'HGV Summary'!$R$2:$R$9,0)))) -> 57347823.87
A10: 9 | B10: Scenario C: High Hydrogen | C10: Total | D10: kWh | E10: =E11+E12 -> 0 | F10: 0 | G10: 0 | H10: 0 | I10: 1829992.357 | J10: 3945234.902 | K10: 6121224.974 | L10: 8535976.23 | M10: 11149004.25 | N10: 33232725.33 | O10: 50737736.45 | P10: 64573091.73
A11: 10 | C11: Electricity | D11: kWh | E11: =INDIRECT("'HGV Summary'!"&'HGV Summary'!E$2&($A11+INDEX('HGV Summary'!$S$2:$S$9,MATCH(Region,'HGV Summary'!$R$2:$R$9,0)))) -> 0 | F11: =INDIRECT("'HGV Summary'!"&'HGV Summary'!F$2&($A11+INDEX('HGV Summary'!$S$2:$S$9,MATCH(Region,'HGV Summary'!$R$2:$R$9,0)))) -> 0 | G11: =INDIRECT("'HGV Summary'!"&'HGV Summary'!G$2&($A11+INDEX('HGV Summary'!$S$2:$S$9,MATCH(Region,'HGV Summary'!$R$2:$R$9,0)))) -> 0 | H11: =INDIRECT("'HGV Summary'!"&'HGV Summary'!H$2&($A11+INDEX('HGV Summary'!$S$2:$S$9,MATCH(Region,'HGV Summary'!$R$2:$R$9,0)))) -> 0 | I11: =INDIRECT("'HGV Summary'!"&'HGV Summary'!I$2&($A11+INDEX('HGV Summary'!$S$2:$S$9,MATCH(Region,'HGV Summary'!$R$2:$R$9,0)))) -> 0 | J11: =INDIRECT("'HGV Summary'!"&'HGV Summary'!J$2&($A11+INDEX('HGV Summary'!$S$2:$S$9,MATCH(Region,'HGV Summary'!$R$2:$R$9,0)))) -> 0 | K11: =INDIRECT("'HGV Summary'!"&'HGV Summary'!K$2&($A11+INDEX('HGV Summary'!$S$2:$S$9,MATCH(Region,'HGV Summary'!$R$2:$R$9,0)))) -> 0 | L11: =INDIRECT("'HGV Summary'!"&'HGV Summary'!L$2&($A11+INDEX('HGV Summary'!$S$2:$S$9,MATCH(Region,'HGV Summary'!$R$2:$R$9,0)))) -> 0 | M11: =INDIRECT("'HGV Summary'!"&'HGV Summary'!M$2&($A11+INDEX('HGV Summary'!$S$2:$S$9,MATCH(Region,'HGV Summary'!$R$2:$R$9,0)))) -> 0 | N11: =INDIRECT("'HGV Summary'!"&'HGV Summary'!N$2&($A11+INDEX('HGV Summary'!$S$2:$S$9,MATCH(Region,'HGV Summary'!$R$2:$R$9,0)))) -> 0 | O11: =INDIRECT("'HGV Summary'!"&'HGV Summary'!O$2&($A11+INDEX('HGV Summary'!$S$2:$S$9,MATCH(Region,'HGV Summary'!$R$2:$R$9,0)))) -> 0 | P11: =INDIRECT("'HGV Summary'!"&'HGV Summary'!P$2&($A11+INDEX('HGV Summary'!$S$2:$S$9,MATCH(Region,'HGV Summary'!$R$2:$R$9,0)))) -> 0
A12: 11 | C12: Hydrogen | D12: kWh | E12: =INDIRECT("'HGV Summary'!"&'HGV Summary'!E$2&($A12+INDEX('HGV Summary'!$S$2:$S$9,MATCH(Region,'HGV Summary'!$R$2:$R$9,0)))) -> 0 | F12: =INDIRECT("'HGV Summary'!"&'HGV Summary'!F$2&($A12+INDEX('HGV Summary'!$S$2:$S$9,MATCH(Region,'HGV Summary'!$R$2:$R$9,0)))) -> 0 | G12: =INDIRECT("'HGV Summary'!"&'HGV Summary'!G$2&($A12+INDEX('HGV Summary'!$S$2:$S$9,MATCH(Region,'HGV Summary'!$R$2:$R$9,0)))) -> 0 | H12: =INDIRECT("'HGV Summary'!"&'HGV Summary'!H$2&($A12+INDEX('HGV Summary'!$S$2:$S$9,MATCH(Region,'HGV Summary'!$R$2:$R$9,0)))) -> 0 | I12: =INDIRECT("'HGV Summary'!"&'HGV Summary'!I$2&($A12+INDEX('HGV Summary'!$S$2:$S$9,MATCH(Region,'HGV Summary'!$R$2:$R$9,0)))) -> 1829992.357 | J12: =INDIRECT("'HGV Summary'!"&'HGV Summary'!J$2&($A12+INDEX('HGV Summary'!$S$2:$S$9,MATCH(Region,'HGV Summary'!$R$2:$R$9,0)))) -> 3945234.902 | K12: =INDIRECT("'HGV Summary'!"&'HGV Summary'!K$2&($A12+INDEX('HGV Summary'!$S$2:$S$9,MATCH(Region,'HGV Summary'!$R$2:$R$9,0)))) -> 6121224.974 | L12: =INDIRECT("'HGV Summary'!"&'HGV Summary'!L$2&($A12+INDEX('HGV Summary'!$S$2:$S$9,MATCH(Region,'HGV Summary'!$R$2:$R$9,0)))) -> 8535976.23 | M12: =INDIRECT("'HGV Summary'!"&'HGV Summary'!M$2&($A12+INDEX('HGV Summary'!$S$2:$S$9,MATCH(Region,'HGV Summary'!$R$2:$R$9,0)))) -> 11149004.25 | N12: =INDIRECT("'HGV Summary'!"&'HGV Summary'!N$2&($A12+INDEX('HGV Summary'!$S$2:$S$9,MATCH(Region,'HGV Summary'!$R$2:$R$9,0)))) -> 33232725.33 | O12: =INDIRECT("'HGV Summary'!"&'HGV Summary'!O$2&($A12+INDEX('HGV Summary'!$S$2:$S$9,MATCH(Region,'HGV Summary'!$R$2:$R$9,0)))) -> 50737736.45 | P12: =INDIRECT("'HGV Summary'!"&'HGV Summary'!P$2&($A12+INDEX('HGV Summary'!$S$2:$S$9,MATCH(Region,'HGV Summary'!$R$2:$R$9,0)))) -> 64573091.73
B14: Dumfries & Galloway
E15: E | F15: F | G15: G | H15: H | I15: I | J15: J | K15: K | L15: L | M15: M | N15: N | O15: O | P15: P
C16: Total | D16: Units | E16: 2022 | F16: 2023 | G16: 2024 | H16: 2025 | I16: 2026 | J16: 2027 | K16: 2028 | L16: 2029 | M16: 2030 | N16: 2035 | O16: 2040 | P16: 2045
B17: Scenario A: Low Hydrogen | C17: Total | E17: =E18+E19 -> 0 | F17: 0 | G17: 0 | H17: 0 | I17: 842904.1123 | J17: 1797855.725 | K17: 2775506.067 | L17: 3860613.063 | M17: 5035286.802 | N17: 11586497.06 | O17: 18704054.41 | P17: 25008752.82
C18: Electricity | D18: kWh
C19: Hydrogen | D19: kWh | E19: =TRANSPOSE(C30:C41) -> 0 | F19: 0 | G19: 0 | H19: 0 | I19: 842904.1123 | J19: 1797855.725 | K19: 2775506.067 | L19: 3860613.063 | M19: 5035286.802 | N19: 11586497.06 | O19: 18704054.41 | P19: 25008752.82
B20: Scenario B: Medium Hydrogen | C20: Total | D20: kWh
C21: Electricity | D21: kWh
C22: Hydrogen | D22: kWh | E22: =TRANSPOSE(D30:D41) -> 0 | F22: 0 | G22: 0 | H22: 0 | I22: 1782997.06 | J22: 3873958.695 | K22: 6032909.445 | L22: 8428665.266 | M22: 11020461.17 | N22: 33945555.41 | O22: 49832990.53 | P22: 57347823.87
B23: Scenario C: High Hydrogen | C23: Total | D23: kWh
C24: Electricity | D24: kWh
C25: Hydrogen | D25: kWh | E25: =TRANSPOSE(E30:E41) -> 0 | F25: 0 | G25: 0 | H25: 0 | I25: 1829992.357 | J25: 3945234.902 | K25: 6121224.974 | L25: 8535976.23 | M25: 11149004.25 | N25: 33232725.33 | O25: 50737736.45 | P25: 64573091.73
A29: Hydrogen Generation | B29: Year | C29: Low Hydrogen | D29: Medium Hydrogen | E29: High Hydrogen
B30: 2022 | C30: 0 | D30: 0 | E30: 0
B31: 2023 | C31: 0 | D31: 0 | E31: 0
B32: 2024 | C32: 0 | D32: 0 | E32: 0
B33: 2025 | C33: 0 | D33: 0 | E33: 0
B34: 2026 | C34: 842904.1123 | D34: 1782997.06 | E34: 1829992.357
B35: 2027 | C35: 1797855.725 | D35: 3873958.695 | E35: 3945234.902
B36: 2028 | C36: 2775506.067 | D36: 6032909.445 | E36: 6121224.974
B37: 2029 | C37: 3860613.063 | D37: 8428665.266 | E37: 8535976.23
B38: 2030 | C38: 5035286.802 | D38: 11020461.17 | E38: 11149004.25
B39: 2035 | C39: 11586497.06 | D39: 33945555.41 | E39: 33232725.33
B40: 2040 | C40: 18704054.41 | D40: 49832990.53 | E40: 50737736.45
B41: 2045 | C41: 25008752.82 | D41: 57347823.87 | E41: 64573091.73
B44: Fife
C46: Total | D46: Units | E46: 2022 | F46: 2023 | G46: 2024 | H46: 2025 | I46: 2026 | J46: 2027 | K46: 2028 | L46: 2029 | M46: 2030 | N46: 2035 | O46: 2040 | P46: 2045
B47: Scenario A: Low Hydrogen | C47: Total | E47: =E48+E49 -> 0 | F47: 0 | G47: 0 | H47: 0 | I47: 1395362.377 | J47: 2970915.869 | K47: 4578087.028 | L47: 6355991.963 | M47: 8273980.084 | N47: 22826166.6 | O47: 38785395.56 | P47: 54028550.76
C48: Electricity | D48: kWh
C49: Hydrogen | D49: kWh | E49: =TRANSPOSE(C60:C71) -> 0 | F49: 0 | G49: 0 | H49: 0 | I49: 1395362.377 | J49: 2970915.869 | K49: 4578087.028 | L49: 6355991.963 | M49: 8273980.084 | N49: 22826166.6 | O49: 38785395.56 | P49: 54028550.76
B50: Scenario B: Medium Hydrogen | C50: Total | D50: kWh
C51: Electricity | D51: kWh
C52: Hydrogen | D52: kWh | E52: =TRANSPOSE(D60:D71) -> 0 | F52: 0 | G52: 0 | H52: 0 | I52: 2951613.333 | J52: 6401629.011 | K52: 9951044.535 | L52: 13876689.48 | M52: 18108814.81 | N52: 66874992.45 | O52: 103335469.8 | P52: 123893415.9
B53: Scenario C: High Hydrogen | C53: Total | D53: kWh
C54: Electricity | D54: kWh
C55: Hydrogen | D55: kWh | E55: =TRANSPOSE(E60:E71) -> 0 | F55: 0 | G55: 0 | H55: 0 | I55: 3029410.402 | J55: 6519411.328 | K55: 10096717.49 | L55: 14053362.88 | M55: 18320036.72 | N55: 65470669.97 | O55: 105211583.3 | P55: 139502780.9
A59: Hydrogen Generation | B59: Year | C59: Low Hydrogen | D59: Medium Hydrogen | E59: High Hydrogen
B60: 2022 | C60: 0 | D60: 0 | E60: 0
B61: 2023 | C61: 0 | D61: 0 | E61: 0
B62: 2024 | C62: 0 | D62: 0 | E62: 0
B63: 2025 | C63: 0 | D63: 0 | E63: 0
B64: 2026 | C64: 1395362.377 | D64: 2951613.333 | E64: 3029410.402
B65: 2027 | C65: 2970915.869 | D65: 6401629.011 | E65: 6519411.328
B66: 2028 | C66: 4578087.028 | D66: 9951044.535 | E66: 10096717.49
B67: 2029 | C67: 6355991.963 | D67: 13876689.48 | E67: 14053362.88
B68: 2030 | C68: 8273980.084 | D68: 18108814.81 | E68: 18320036.72
B69: 2035 | C69: 22826166.6 | D69: 66874992.45 | E69: 65470669.97
B70: 2040 | C70: 38785395.56 | D70: 103335469.8 | E70: 105211583.3
B71: 2045 | C71: 54028550.76 | D71: 123893415.9 | E71: 139502780.9
B73: Highlands
C75: Total | D75: Units | E75: 2022 | F75: 2023 | G75: 2024 | H75: 2025 | I75: 2026 | J75: 2027 | K75: 2028 | L75: 2029 | M75: 2030 | N75: 2035 | O75: 2040 | P75: 2045
B76: Scenario A: Low Hydrogen | C76: Total | E76: =E77+E78 -> 0 | F76: 0 | G76: 0 | H76: 0 | I76: 583881.5621 | J76: 1243192.433 | K76: 1915766.564 | L76: 2659822.929 | M76: 3462541.698 | N76: 8907691.882 | O76: 15567296.24 | P76: 20807554.9
C77: Electricity | D77: kWh
C78: Hydrogen | D78: kWh | E78: =TRANSPOSE(C89:C100) -> 0 | F78: 0 | G78: 0 | H78: 0 | I78: 583881.5621 | J78: 1243192.433 | K78: 1915766.564 | L78: 2659822.929 | M78: 3462541.698 | N78: 8907691.882 | O78: 15567296.24 | P78: 20807554.9
B79: Scenario B: Medium Hydrogen | C79: Total | D79: kWh
C80: Electricity | D80: kWh
C81: Hydrogen | D81: kWh | E81: =TRANSPOSE(D89:D100) -> 0 | F81: 0 | G81: 0 | H81: 0 | I81: 1235086.047 | J81: 2678788.998 | K81: 4164158.146 | L81: 5807045.867 | M81: 7578278.622 | N81: 26097322.33 | O81: 41475762.88 | P81: 47714014.46
B82: Scenario C: High Hydrogen | C82: Total | D82: kWh
C83: Electricity | D83: kWh
C84: Hydrogen | D84: kWh | E84: =TRANSPOSE(E89:E100) -> 0 | F84: 0 | G84: 0 | H84: 0 | I84: 1267639.795 | J84: 2728075.512 | K84: 4225117.097 | L84: 5880979.245 | M84: 7666671.954 | N84: 25549298.99 | O84: 42228778.65 | P84: 53725516.07
A88: Hydrogen Generation | B88: Year | C88: Low Hydrogen | D88: Medium Hydrogen | E88: High Hydrogen
B89: 2022 | C89: 0 | D89: 0 | E89: 0
B90: 2023 | C90: 0 | D90: 0 | E90: 0
B91: 2024 | C91: 0 | D91: 0 | E91: 0
B92: 2025 | C92: 0 | D92: 0 | E92: 0
B93: 2026 | C93: 583881.5621 | D93: 1235086.047 | E93: 1267639.795
B94: 2027 | C94: 1243192.433 | D94: 2678788.998 | E94: 2728075.512
B95: 2028 | C95: 1915766.564 | D95: 4164158.146 | E95: 4225117.097
B96: 2029 | C96: 2659822.929 | D96: 5807045.867 | E96: 5880979.245
B97: 2030 | C97: 3462541.698 | D97: 7578278.622 | E97: 7666671.954
B98: 2035 | C98: 8907691.882 | D98: 26097322.33 | E98: 25549298.99
B99: 2040 | C99: 15567296.24 | D99: 41475762.88 | E99: 42228778.65
B100: 2045 | C100: 20807554.9 | D100: 47714014.46 | E100: 53725516.07

Sheet Van Summary (hidden)
B1: Lookup Table | R1: Lookup | S1: Row
A2: 1 | E2: E | F2: F | G2: G | H2: H | I2: I | J2: J | K2: K | L2: L | M2: M | N2: N | O2: O | P2: P | R2: ='Key Assumptions >'!B21 -> Dumfries & Galloway | S2: =ROW(B15) -> 15
A3: 2 | C3: TOtal | D3: Units | E3: 2022 | F3: 2023 | G3: 2024 | H3: 2025 | I3: 2026 | J3: 2027 | K3: 2028 | L3: 2029 | M3: 2030 | N3: 2035 | O3: 2040 | P3: 2045 | R3: ='Key Assumptions >'!B22 -> Fife | S3: =ROW(B43) -> 43
A4: 3 | B4: Scenario A: Low Hydrogen | C4: Total | E4: =E5+E6 -> 3997.025997 | F4: =F5+F6 -> 7120.905168 | G4: 10879.51329 | H4: 16562.7697 | I4: 24963.82149 | J4: 34191.37542 | K4: 43460.95124 | L4: 51308.07829 | M4: 116041.1104 | N4: 458651.9248 | O4: 683934.6696 | P4: 797628.2177 | R4: ='Key Assumptions >'!B23 -> Highlands | S4: =ROW(B72) -> 72
A5: 4 | C5: Electricity | D5: kWh | E5: =INDIRECT("'Van Summary'!"&'Van Summary'!E$2&($A5+INDEX('Van Summary'!$S$2:$S$9,MATCH(Region,'Van Summary'!$R$2:$R$9,0)))) -> 0 | F5: =INDIRECT("'Van Summary'!"&'Van Summary'!F$2&($A5+INDEX('Van Summary'!$S$2:$S$9,MATCH(Region,'Van Summary'!$R$2:$R$9,0)))) -> 0 | G5: =INDIRECT("'Van Summary'!"&'Van Summary'!G$2&($A5+INDEX('Van Summary'!$S$2:$S$9,MATCH(Region,'Van Summary'!$R$2:$R$9,0)))) -> 0 | H5: =INDIRECT("'Van Summary'!"&'Van Summary'!H$2&($A5+INDEX('Van Summary'!$S$2:$S$9,MATCH(Region,'Van Summary'!$R$2:$R$9,0)))) -> 0 | I5: =INDIRECT("'Van Summary'!"&'Van Summary'!I$2&($A5+INDEX('Van Summary'!$S$2:$S$9,MATCH(Region,'Van Summary'!$R$2:$R$9,0)))) -> 0 | J5: =INDIRECT("'Van Summary'!"&'Van Summary'!J$2&($A5+INDEX('Van Summary'!$S$2:$S$9,MATCH(Region,'Van Summary'!$R$2:$R$9,0)))) -> 0 | K5: =INDIRECT("'Van Summary'!"&'Van Summary'!K$2&($A5+INDEX('Van Summary'!$S$2:$S$9,MATCH(Region,'Van Summary'!$R$2:$R$9,0)))) -> 0 | L5: =INDIRECT("'Van Summary'!"&'Van Summary'!L$2&($A5+INDEX('Van Summary'!$S$2:$S$9,MATCH(Region,'Van Summary'!$R$2:$R$9,0)))) -> 0 | M5: =INDIRECT("'Van Summary'!"&'Van Summary'!M$2&($A5+INDEX('Van Summary'!$S$2:$S$9,MATCH(Region,'Van Summary'!$R$2:$R$9,0)))) -> 0 | N5: =INDIRECT("'Van Summary'!"&'Van Summary'!N$2&($A5+INDEX('Van Summary'!$S$2:$S$9,MATCH(Region,'Van Summary'!$R$2:$R$9,0)))) -> 0 | O5: =INDIRECT("'Van Summary'!"&'Van Summary'!O$2&($A5+INDEX('Van Summary'!$S$2:$S$9,MATCH(Region,'Van Summary'!$R$2:$R$9,0)))) -> 0 | P5: =INDIRECT("'Van Summary'!"&'Van Summary'!P$2&($A5+INDEX('Van Summary'!$S$2:$S$9,MATCH(Region,'Van Summary'!$R$2:$R$9,0)))) -> 0
A6: 5 | C6: Hydrogen | D6: kWh | E6: =INDIRECT("'Van Summary'!"&'Van Summary'!E$2&($A6+INDEX('Van Summary'!$S$2:$S$9,MATCH(Region,'Van Summary'!$R$2:$R$9,0)))) -> 3997.025997 | F6: =INDIRECT("'Van Summary'!"&'Van Summary'!F$2&($A6+INDEX('Van Summary'!$S$2:$S$9,MATCH(Region,'Van Summary'!$R$2:$R$9,0)))) -> 7120.905168 | G6: =INDIRECT("'Van Summary'!"&'Van Summary'!G$2&($A6+INDEX('Van Summary'!$S$2:$S$9,MATCH(Region,'Van Summary'!$R$2:$R$9,0)))) -> 10879.51329 | H6: =INDIRECT("'Van Summary'!"&'Van Summary'!H$2&($A6+INDEX('Van Summary'!$S$2:$S$9,MATCH(Region,'Van Summary'!$R$2:$R$9,0)))) -> 16562.7697 | I6: =INDIRECT("'Van Summary'!"&'Van Summary'!I$2&($A6+INDEX('Van Summary'!$S$2:$S$9,MATCH(Region,'Van Summary'!$R$2:$R$9,0)))) -> 24963.82149 | J6: =INDIRECT("'Van Summary'!"&'Van Summary'!J$2&($A6+INDEX('Van Summary'!$S$2:$S$9,MATCH(Region,'Van Summary'!$R$2:$R$9,0)))) -> 34191.37542 | K6: =INDIRECT("'Van Summary'!"&'Van Summary'!K$2&($A6+INDEX('Van Summary'!$S$2:$S$9,MATCH(Region,'Van Summary'!$R$2:$R$9,0)))) -> 43460.95124 | L6: =INDIRECT("'Van Summary'!"&'Van Summary'!L$2&($A6+INDEX('Van Summary'!$S$2:$S$9,MATCH(Region,'Van Summary'!$R$2:$R$9,0)))) -> 51308.07829 | M6: =INDIRECT("'Van Summary'!"&'Van Summary'!M$2&($A6+INDEX('Van Summary'!$S$2:$S$9,MATCH(Region,'Van Summary'!$R$2:$R$9,0)))) -> 116041.1104 | N6: =INDIRECT("'Van Summary'!"&'Van Summary'!N$2&($A6+INDEX('Van Summary'!$S$2:$S$9,MATCH(Region,'Van Summary'!$R$2:$R$9,0)))) -> 458651.9248 | O6: =INDIRECT("'Van Summary'!"&'Van Summary'!O$2&($A6+INDEX('Van Summary'!$S$2:$S$9,MATCH(Region,'Van Summary'!$R$2:$R$9,0)))) -> 683934.6696 | P6: =INDIRECT("'Van Summary'!"&'Van Summary'!P$2&($A6+INDEX('Van Summary'!$S$2:$S$9,MATCH(Region,'Van Summary'!$R$2:$R$9,0)))) -> 797628.2177
A7: 6 | B7: Scenario B: Medium Hydrogen | C7: Total | D7: kWh
A8: 7 | C8: Electricity | D8: kWh | E8: =INDIRECT("'Van Summary'!"&'Van Summary'!E$2&($A8+INDEX('Van Summary'!$S$2:$S$9,MATCH(Region,'Van Summary'!$R$2:$R$9,0)))) -> 0 | F8: =INDIRECT("'Van Summary'!"&'Van Summary'!F$2&($A8+INDEX('Van Summary'!$S$2:$S$9,MATCH(Region,'Van Summary'!$R$2:$R$9,0)))) -> 0 | G8: =INDIRECT("'Van Summary'!"&'Van Summary'!G$2&($A8+INDEX('Van Summary'!$S$2:$S$9,MATCH(Region,'Van Summary'!$R$2:$R$9,0)))) -> 0 | H8: =INDIRECT("'Van Summary'!"&'Van Summary'!H$2&($A8+INDEX('Van Summary'!$S$2:$S$9,MATCH(Region,'Van Summary'!$R$2:$R$9,0)))) -> 0 | I8: =INDIRECT("'Van Summary'!"&'Van Summary'!I$2&($A8+INDEX('Van Summary'!$S$2:$S$9,MATCH(Region,'Van Summary'!$R$2:$R$9,0)))) -> 0 | J8: =INDIRECT("'Van Summary'!"&'Van Summary'!J$2&($A8+INDEX('Van Summary'!$S$2:$S$9,MATCH(Region,'Van Summary'!$R$2:$R$9,0)))) -> 0 | K8: =INDIRECT("'Van Summary'!"&'Van Summary'!K$2&($A8+INDEX('Van Summary'!$S$2:$S$9,MATCH(Region,'Van Summary'!$R$2:$R$9,0)))) -> 0 | L8: =INDIRECT("'Van Summary'!"&'Van Summary'!L$2&($A8+INDEX('Van Summary'!$S$2:$S$9,MATCH(Region,'Van Summary'!$R$2:$R$9,0)))) -> 0 | M8: =INDIRECT("'Van Summary'!"&'Van Summary'!M$2&($A8+INDEX('Van Summary'!$S$2:$S$9,MATCH(Region,'Van Summary'!$R$2:$R$9,0)))) -> 0 | N8: =INDIRECT("'Van Summary'!"&'Van Summary'!N$2&($A8+INDEX('Van Summary'!$S$2:$S$9,MATCH(Region,'Van Summary'!$R$2:$R$9,0)))) -> 0 | O8: =INDIRECT("'Van Summary'!"&'Van Summary'!O$2&($A8+INDEX('Van Summary'!$S$2:$S$9,MATCH(Region,'Van Summary'!$R$2:$R$9,0)))) -> 0 | P8: =INDIRECT("'Van Summary'!"&'Van Summary'!P$2&($A8+INDEX('Van Summary'!$S$2:$S$9,MATCH(Region,'Van Summary'!$R$2:$R$9,0)))) -> 0
A9: 8 | C9: Hydrogen | D9: kWh | E9: =INDIRECT("'Van Summary'!"&'Van Summary'!E$2&($A9+INDEX('Van Summary'!$S$2:$S$9,MATCH(Region,'Van Summary'!$R$2:$R$9,0)))) -> 7972.531708 | F9: =INDIRECT("'Van Summary'!"&'Van Summary'!F$2&($A9+INDEX('Van Summary'!$S$2:$S$9,MATCH(Region,'Van Summary'!$R$2:$R$9,0)))) -> 14200.84824 | G9: =INDIRECT("'Van Summary'!"&'Van Summary'!G$2&($A9+INDEX('Van Summary'!$S$2:$S$9,MATCH(Region,'Van Summary'!$R$2:$R$9,0)))) -> 21701.93936 | H9: =INDIRECT("'Van Summary'!"&'Van Summary'!H$2&($A9+INDEX('Van Summary'!$S$2:$S$9,MATCH(Region,'Van Summary'!$R$2:$R$9,0)))) -> 33050.65331 | I9: =INDIRECT("'Van Summary'!"&'Van Summary'!I$2&($A9+INDEX('Van Summary'!$S$2:$S$9,MATCH(Region,'Van Summary'!$R$2:$R$9,0)))) -> 49808.94462 | J9: =INDIRECT("'Van Summary'!"&'Van Summary'!J$2&($A9+INDEX('Van Summary'!$S$2:$S$9,MATCH(Region,'Van Summary'!$R$2:$R$9,0)))) -> 68222.60213 | K9: =INDIRECT("'Van Summary'!"&'Van Summary'!K$2&($A9+INDEX('Van Summary'!$S$2:$S$9,MATCH(Region,'Van Summary'!$R$2:$R$9,0)))) -> 86727.84 | L9: =INDIRECT("'Van Summary'!"&'Van Summary'!L$2&($A9+INDEX('Van Summary'!$S$2:$S$9,MATCH(Region,'Van Summary'!$R$2:$R$9,0)))) -> 102402.3502 | M9: =INDIRECT("'Van Summary'!"&'Van Summary'!M$2&($A9+INDEX('Van Summary'!$S$2:$S$9,MATCH(Region,'Van Summary'!$R$2:$R$9,0)))) -> 231221.0602 | N9: =INDIRECT("'Van Summary'!"&'Van Summary'!N$2&($A9+INDEX('Van Summary'!$S$2:$S$9,MATCH(Region,'Van Summary'!$R$2:$R$9,0)))) -> 910641.0053 | O9: =INDIRECT("'Van Summary'!"&'Van Summary'!O$2&($A9+INDEX('Van Summary'!$S$2:$S$9,MATCH(Region,'Van Summary'!$R$2:$R$9,0)))) -> 1355842.406 | P9: =INDIRECT("'Van Summary'!"&'Van Summary'!P$2&($A9+INDEX('Van Summary'!$S$2:$S$9,MATCH(Region,'Van Summary'!$R$2:$R$9,0)))) -> 1575683.456
A10: 9 | B10: Scenario C: High Hydrogen | C10: Total | D10: kWh
A11: 10 | C11: Electricity | D11: kWh | E11: =INDIRECT("'Van Summary'!"&'Van Summary'!E$2&($A11+INDEX('Van Summary'!$S$2:$S$9,MATCH(Region,'Van Summary'!$R$2:$R$9,0)))) -> 0 | F11: =INDIRECT("'Van Summary'!"&'Van Summary'!F$2&($A11+INDEX('Van Summary'!$S$2:$S$9,MATCH(Region,'Van Summary'!$R$2:$R$9,0)))) -> 0 | G11: =INDIRECT("'Van Summary'!"&'Van Summary'!G$2&($A11+INDEX('Van Summary'!$S$2:$S$9,MATCH(Region,'Van Summary'!$R$2:$R$9,0)))) -> 0 | H11: =INDIRECT("'Van Summary'!"&'Van Summary'!H$2&($A11+INDEX('Van Summary'!$S$2:$S$9,MATCH(Region,'Van Summary'!$R$2:$R$9,0)))) -> 0 | I11: =INDIRECT("'Van Summary'!"&'Van Summary'!I$2&($A11+INDEX('Van Summary'!$S$2:$S$9,MATCH(Region,'Van Summary'!$R$2:$R$9,0)))) -> 0 | J11: =INDIRECT("'Van Summary'!"&'Van Summary'!J$2&($A11+INDEX('Van Summary'!$S$2:$S$9,MATCH(Region,'Van Summary'!$R$2:$R$9,0)))) -> 0 | K11: =INDIRECT("'Van Summary'!"&'Van Summary'!K$2&($A11+INDEX('Van Summary'!$S$2:$S$9,MATCH(Region,'Van Summary'!$R$2:$R$9,0)))) -> 0 | L11: =INDIRECT("'Van Summary'!"&'Van Summary'!L$2&($A11+INDEX('Van Summary'!$S$2:$S$9,MATCH(Region,'Van Summary'!$R$2:$R$9,0)))) -> 0 | M11: =INDIRECT("'Van Summary'!"&'Van Summary'!M$2&($A11+INDEX('Van Summary'!$S$2:$S$9,MATCH(Region,'Van Summary'!$R$2:$R$9,0)))) -> 0 | N11: =INDIRECT("'Van Summary'!"&'Van Summary'!N$2&($A11+INDEX('Van Summary'!$S$2:$S$9,MATCH(Region,'Van Summary'!$R$2:$R$9,0)))) -> 0 | O11: =INDIRECT("'Van Summary'!"&'Van Summary'!O$2&($A11+INDEX('Van Summary'!$S$2:$S$9,MATCH(Region,'Van Summary'!$R$2:$R$9,0)))) -> 0 | P11: =INDIRECT("'Van Summary'!"&'Van Summary'!P$2&($A11+INDEX('Van Summary'!$S$2:$S$9,MATCH(Region,'Van Summary'!$R$2:$R$9,0)))) -> 0
